Workbook

Sheet jazyk
B2: Udržateľnosť malých a rodinných fariem
O7: Európska komisia nezodpovedá za informácie uvedené v súbore
O8: Europos Komisija neatsako už byloje esančią informaciją
O9: Evropská komise neodpovídá za informace uvedené v souboru
O10: Az Európai Bizottság nem felelős az aktában szereplő információkért
O11: The European Commission is not responsible for the information contained in the file

Sheet preklady (hidden)
A1: Slovensky | B1: Česky | C1: English | D1: Hungarian | E1: Lithuanian
A2: Vstup žvočíšna výroba | B2: Vstup žvočíšná výroba | C2: Input animal production | D2: Bemeneti állattenyésztés | E2: Pradinė gyvūnų produkcija
A3: Udržateľnosť malých a rodinných fariem | B3: Udržitelnost malých a rodinných farem | C3: Sustainability of small and family farms | D3: A kis és a családi gazdaságok fenntarthatósága | E3: Mažų ir šeimos ūkių tvarumas
A4: Hovädzí dobytok | B4: skot | C4: Cattle | D4: marha | E4: Galvijai | J4: Slovensky | K4: Vstup žvočíšna výroba | L4: Udržateľnosť malých a rodinných fariem | M4: Hovädzí dobytok | N4: Ukazovatele | O4: Jednotky | P4: od | Q4: do | R4: Vstupné údaje | S4: Údaje z posledného výpočtu
A5: UKAZOVATELE | B5: UKAZOVATELE | C5: Indicators | D5: mutatók | E5: rodikliai | J5: Česky | K5: Vstup žvočíšná výroba | L5: Udržitelnost malých a rodinných farem | M5: skot | N5: Ukazatele | O5: jednotky | P5: od | Q5: do | R5: vstupní údaje | S5: Údaje z posledního výpočtu
A6: JEDNOTKY | B6: JEDNOTKY | C6: Units | D6: egységek | E6: vienetai | J6: English | K6: Input animal production | L6: Sustainability of small and family farms | M6: Cattle | N6: Indicators | O6: Units | P6: from | Q6: to | R6: Input data | S6: Data from the last calculation
A7: OD | B7: OD | C7: from | D7: tól | E7: nuo | J7: Hungarian | K7: Bemeneti állattenyésztés | L7: A kis és a családi gazdaságok fenntarthatósága | M7: marha | N7: mutatók | O7: egységek | P7: ???????? | Q7: hogy | R7: Bemeneti adatok | S7: Az utolsó számítás adatai
A8: DO | B8: DO | C8: to | D8: hogy | E8: iki | J8: Lithuanian | K8: Pradinė gyvūnų produkcija | L8: Mažų ir šeimos ūkių tvarumas | M8: Galvijai | N8: rodikliai | O8: vienetai | P8: nuo | Q8: iki | R8: Įvesties duomenys | S8: Paskutinio skaičiavimo duomenys
A9: VSTUPNÉ ÚDAJE | B9: VSTUPNÉ ÚDAJE | C9: Input data | D9: Bemeneti adatok | E9: Įvesties duomenys
A10: ÚDAJE Z POSLEDNÉHO VÝPOČTU | B10: ÚDAJE Z POSLEDNÉHO VÝPOČTU | C10: Data from the last calculation | D10: Az utolsó számítás adatai | E10: Paskutinio skaičiavimo duomenys
A11: Dojnice | B11: Dojnice | C11: Dairy cows | D11: tejelő tehén | E11: pieno karvė
A12: úžitkovosť / mlieko | B12: užitkovost / mléko | C12: utility / milk | D12: hozam / tej | E12: derlius / pienas
A13: realizačná cena za 1 liter mlieka | B13: realizační cena za 1 litr mléka | C13: realization price for 1 liter of milk | D13: megvalósíthatósági ár 1 liter tejre | E13: Galimybės kaina už 1 litrą pieno
A14: dotácia na 1 dojnicu | B14: dotace na 1 dojnici | C14: subsidies per 1 dairy cow | D14: támogatás tehénként | E14: subsidija už pieninę karvę
A15: vlastné náklady na 100 kŕmnych dní | B15: vlastní náklady na 100 krmných dní | C15: own costs per 100 feeding days | D15: 100 takarmánynaponként saját költségek | E15: savo išlaidas už 100 pašarų dienų
A16: počet dojníc základné stádo | B16: počet dojnic základní stádo | C16: number of dairy cows (basic herd) | D16: a tejelő tehenek alapállománya | E16: melžiamų karvių bazinės bandos skaičius
A17: litre / 1 rok | B17: litry / 1 rok | C17: liters / 1 year | D17: liter / év | E17: litrų / 1 metus
A18: Euro / 1 liter | B18: Euro / 1 litr | C18: Euro / 1 liter | D18: Euro / 1 liter | E18: Eurų / 1 litras
A19: Euro / rok | B19: Euro / rok | C19: Euro / year | D19: Euró / év | E19: Eurų / metus
A20: Euro / 100 kŕmnych dní | B20: Euro / 100 krmných dní | C20: Euro / 100 feeding days | D20: Euro / 100 takarmánynap | E20: Euro / 100 maitinimo dienų
A21: ks | B21: ks | C21: pc | D21: darab | E21: jb
A22: Teľatá | B22: telata | C22: Calves | D22: Borjak | E22: veršeliai
A23: úžitkovosť - priemerný denný prírastok | B23: užitkovost - průměrný denní přírůstek | C23: utility - average daily increment | D23: hasznosság - átlagos napi növekedés | E23: naudingumas - vidutinis dienos prieaugis
A24: realizačná cena za 1 kg živej hmotnosti | B24: realizační cena za 1 kg živé hmotnosti | C24: realization price for 1 kg of live weight | D24: megvalósíthatósági ár 1 kg élősúly esetén | E24: Galimybės kaina už 1 kg gyvojo svorio
A25: dotácie na 1 ks | B25: dotace na 1 ks | C25: subsidies per 1 pc | D25: támogatás 1 db-ra | E25: subsidija už 1 vnt
A26: vlastné náklady na 100 kŕmnych dní | B26: vlastní náklady na 100 krmných dní | C26: own costs per 100 feeding days | D26: 100 takarmánynaponként saját költségek | E26: savo išlaidas už 100 pašarų dienų
A27: kg / 1 deň | B27: kg / 1 den | C27: kg / 1 day | D27: kg / 1 nap | E27: kg / 1 diena
A28: Euro/1 kg | B28: Euro / 1 kg | C28: Euro / 1 kg | D28: Euró / 1 kg | E28: Eurų / 1 kg
A29: Euro/rok | B29: Euro / rok | C29: Euro / year | D29: Euro / év | E29: EUR / metus
A30: Euro / 100 kŕmnych dní | B30: Euro / 100 krmných dní | C30: Euro / 100 feeding days | D30: Euro / 100 takarmánynap | E30: Euro / 100 maitinimo dienų
A31: Odchov jalovíc | B31: odchov jalovic | C31: Rearing of heifers | D31: Üsző tenyésztés | E31: Telyčių auginimas
A32: úžitkovosť - priemerný denný prírastok | B32: užitkovost - průměrný denní přírůstek | C32: utility - average daily increment | D32: hasznosság - átlagos napi növekedés | E32: naudingumas - vidutinis dienos prieaugis
A33: realizačná cena za 1 kg živej hmotnosti | B33: realizační cena za 1 kg živé hmotnosti | C33: feasibility price for 1 kg of live weight | D33: megvalósíthatósági ár 1 kg élősúly esetén | E33: galimybių kaina už 1 kg gyvojo svorio
A34: dotácie na 1 ks | B34: dotace na 1 ks | C34: subsidies per 1 pc | D34: támogatás 1 db-ra | E34: subsidija už 1 vnt
A35: vlastné náklady na 100 kŕmnych dní | B35: vlastní náklady na 100 krmných dní | C35: own costs per 100 feeding days | D35: 100 takarmánynaponként saját költségek | E35: savo išlaidas už 100 pašarų dienų
A36: kg / 1 deň | B36: kg / 1 den | C36: kg / 1 day | D36: kg / 1 nap | E36: kg / 1 diena
A37: Euro/1 kg | B37: Euro / 1 kg | C37: Euro / 1 kg | D37: Euró / 1 kg | E37: Eurų / 1 kg
A38: Euro/rok | B38: Euro / rok | C38: Euro / year | D38: Euro / év | E38: EUR / metus
A39: Euro / 100 kŕmnych dní | B39: Euro / 100 krmných dní | C39: Euro / 100 feeding days | D39: Euro / 100 takarmánynap | E39: Euro / 100 pašarų dienų
A40: Vysokoteľné jalovice | B40: Vysokoprodukční jalovice | C40: High-pregnant heifers | D40: Magas hőmérsékleti üszők | E40: Aukštos temperatūros telyčios
A41: Realizačná cena za 1 kus | B41: Realizační cena za 1 kus | C41: realization price for 1 pc | D41: 1 db megvalósítási ár | E41: Realizacijos kaina už 1 kūrinį
A42: dotácie na 1 ks | B42: dotace na 1 ks | C42: subsidies for 1 pc | D42: támogatás 1 db-ra | E42: subsidija už 1 vnt
A43: vlastné náklady na 100 kŕmnych dní | B43: vlastní náklady na 100 krmných dní | C43: own costs per 100 feeding days | D43: 100 takarmánynaponként saját költségek | E43: savo išlaidas už 100 pašarų dienų
A44: Euro / 1 ks | B44: Euro / 1 ks | C44: Euro / 1 pc | D44: Euro / 1 db | E44: Eurų / 1 vnt
A45: Euro / 1 ks | B45: Euro / 1 ks | C45: Euro / 1 pc | D45: Euro / 1 db | E45: Eurų / 1 vnt
A46: Euro / 100 kŕmnych dní | B46: Euro / 100 krmných dní | C46: Euro / 100 feeding days | D46: Euro / 100 takarmánynap | E46: Euro / 100 pašarų dienų
A47: Výkrm hovädzieho dobytka | B47: Výkrm skotu | C47: Cattle for fattening | D47: Hizlaló szarvasmarha | E47: Mėsiniai galvijai
A48: úžitkovosť - priemerný denný prírastok | B48: užitkovost - průměrný denní přírůstek | C48: utility - average daily increment | D48: hasznosság - átlagos napi növekedés | E48: naudingumas - vidutinis dienos prieaugis
A49: realizačná cena za 1 kg živej hmotnosti | B49: realizační cena za 1 kg živé hmotnosti | C49: feasibility price for 1 kg of live weight | D49: megvalósíthatósági ár 1 kg élősúly esetén | E49: Galimybės kaina už 1 kg gyvojo svorio
A50: dotácie na 1 ks | B50: dotace na 1 ks | C50: subsidies per 1 pc | D50: támogatás 1 db-ra | E50: subsidija už 1 vnt
A51: vlastné náklady na 100 kŕmnych dní | B51: vlastní náklady na 100 krmných dní | C51: own costs per 100 feeding days | D51: 100 takarmánynaponként saját költségek | E51: savo išlaidas už 100 pašarų dienų
A52: kg / deň | B52: kg / den | C52: kg / day | D52: kg / nap | E52: kg per dieną
A53: Euro / 1 kg | B53: Euro / 1 kg | C53: Euro / 1 kg | D53: Euró / 1 kg | E53: Eurų / 1 kg
A54: Euro / 1 ks | B54: Euro / 1 ks | C54: Euro / 1 pc | D54: Euro / 1 db | E54: Eurų / 1 vnt
A55: Euro / 100 kŕmnych dní | B55: Euro / 100 krmných dní | C55: Euro / 100 feeding days | D55: Euro / 100 takarmánynap | E55: Euro / 100 pašarų dienų
A57: Ošípané | B57: Prasata | C57: Pigs | D57: sertések | E57: kiaules
A58: Prasnice | B58: Prasnice | C58: Sows | D58: koca | E58: sėti
A59: počet narodených ciciakov za 1 rok | B59: počet narozených selat za 1 rok | C59: number of piglets born for 1 year | D59: Az egy év alatt született malacok száma | E59: Paršelių, gimusių per vienerius metus, skaičius
A60: realizačná cena za 1 kg živej hmotnosti (brakovaná prasnica) | B60: realizační cena za 1 kg živé hmotnosti (vyřazené prasnice) | C60: realization price per 1 kg of live weight (cracked sow) | D60: megvalósíthatósági ár 1 kg élősúly számára (repedt koca) | E60: 1 kg gyvojo svorio (nulaužtos paršavedės) kaina
A61: dotácie na 1 ks | B61: dotace na 1 ks | C61: subsidies per 1 pc | D61: támogatás 1 db-ra | E61: subsidija už 1 vnt
A62: vlastné náklady na 100 kŕmnych dní | B62: vlastní náklady na 100 krmných dní | C62: own costs per 100 feeding days | D62: 100 takarmánynaponként saját költségek | E62: savo išlaidas už 100 pašarų dienų
A63: počet prasníc (základné stádo) | B63: počet prasnic (základní stádo) | C63: number of sows (basic herd) | D63: koca száma (alapállomány) | E63: paršavedžių skaičius (pagrindinė banda)
A64: ks / 1 prasnica | B64: ks / 1 prasnicí | C64: pc / 1 sow | D64: db / 1 koca | E64: vnt / 1 paršavedė
A65: Euro / 1 kg | B65: Euro / 1 kg | C65: Euro / 1 kg | D65: Euró / 1 kg | E65: Eurų / 1 kg
A66: Euro / rok | B66: Euro / rok | C66: Euro / year | D66: Euró / év | E66: Eurų / metus
A67: Euro / 100 kŕmnych dní | B67: Euro / 100 krmných dní | C67: Euro / 100 feeding days | D67: Euro / 100 takarmánynap | E67: Euro / 100 pašarų dienų
A68: ks | B68: ks | C68: pc | D68: darab | E68: jb
A69: Mladé chovné ošípané - predvýkrm | B69: Mladé chovné prasata - předvýkrm | C69: Young breeding pigs - starter | D69: Fiatal tenyészsertések - indító | E69: Jaunos veislinės kiaulės - startuolis
A70: úžitkovosť - priemerný denný prírastok | B70: užitkovost - průměrný denní přírůstek | C70: utility - average daily increment | D70: hasznosság - átlagos napi növekedés | E70: naudingumas - vidutinis dienos prieaugis
A71: vlastné náklady na 100 kŕmnych dní | B71: vlastní náklady na 100 krmných dní | C71: own costs per 100 feed days | D71: 100 takarmánynaponként saját költségek | E71: savo išlaidas už 100 pašarų dienų
A72: kg / deň | B72: kg / den | C72: kg / day | D72: kg / nap | E72: kg per dieną
A73: Euro / 100 kŕmnych dní | B73: Euro / 100 krmných dní | C73: Euro / 100 feed days | D73: Euro / 100 takarmánynap | E73: Euro / 100 pašarų dienų
A74: Výkrm ošípaných | B74: výkrm prasat | C74: Fattening pigs | D74: Hizlaló sertések | E74: Penimos kiaulės
A75: úžitkovosť - priemerný denný prírastok | B75: užitkovost - průměrný denní přírůstek | C75: utility - average daily increment | D75: hasznosság - átlagos napi növekedés | E75: naudingumas - vidutinis dienos prieaugis
A76: realizačná cena za 1 kg živej hmotnosti | B76: realizační cena za 1 kg živé hmotnosti | C76: realization price for 1 kg of live weight | D76: megvalósíthatósági ár 1 kg élősúly esetén | E76: Galimybės kaina už 1 kg gyvojo svorio
A77: dotácie na 1 ks | B77: dotace na 1 ks | C77: subsidies per 1 pc | D77: támogatás 1 db-ra | E77: subsidija už 1 vnt
A78: vlastné náklady na 100 kŕmnych dní | B78: vlastní náklady na 100 krmných dní | C78: own costs per 100 feeding days | D78: 100 takarmánynaponként saját költségek | E78: savo išlaidas už 100 pašarų dienų
A79: kg / deň | B79: kg / den | C79: kg / day | D79: kg / nap | E79: kg per dieną
A80: Euro / 1 kg | B80: Euro / 1 kg | C80: Euro / 1 kg | D80: Euró / 1 kg | E80: Eurų / 1 kg
A81: Euro / 1 ks | B81: Euro / 1 ks | C81: Euro / 1 pc | D81: Euro / 1 db | E81: Eurų / 1 vnt
A82: Euro / 100 kŕmnych dní | B82: Euro / 100 krmných dní | C82: Euro / 100 feeding days | D82: Euro / 100 takarmánynap | E82: Euro / 100 pašarų dienų
A84: Ovce | B84: ovce | C84: Sheeps | D84: Juh | E84: avis
A85: Bahnice | B85: bahnice | C85: Ewes | D85: anyajuh | E85: ėriavedės
A86: úžitkovosť / mlieko | B86: užitkovost / mléko | C86: utility / milk | D86: hozam / tej | E86: derlius / pienas
A87: realizačná cena za 1 liter mlieka | B87: realizační cena za 1 litr mléka | C87: realization price for 1 liter of milk | D87: megvalósíthatósági ár 1 liter tejre | E87: Galimybės kaina už 1 litrą pieno
A88: dotácie na 1 ks | B88: dotace na 1 ks | C88: subsidies per 1 pc | D88: támogatás 1 db-ra | E88: subsidija už 1 vnt
A89: vlastné náklady na 100 kŕmnych dní | B89: vlastní náklady na 100 krmných dní | C89: own costs per 100 feeding days | D89: 100 takarmánynaponként saját költségek | E89: savo išlaidas už 100 pašarų dienų
A90: počet bahníc - oviec (základné stádo) | B90: počet bahnic - ovcí (základní stádo) | C90: number of ewes - sheep (basic herd) | D90: juhok száma - juh (alapcsorda) | E90: avių skaičius - avys (pagrindinė banda)
A91: realizačná cena za 1 kg vlny | B91: realizační cena za 1 kg vlny | C91: realization price for 1 kg of wool | D91: megvalósítási ár 1 kg gyapjúra | E91: realizavimo kaina už 1 kg vilnos
A92: litre/rok | B92: litry / rok | C92: liters / year | D92: liter / év | E92: litrų / m
A93: Euro / 1 liter | B93: Euro / 1 litr | C93: Euro / 1 liter | D93: Euro / 1 liter | E93: Eurų / 1 litras
A94: Euro / 1 ks | B94: Euro / 1 ks | C94: Euro / 1 pc | D94: Euro / 1 db | E94: Eurų / 1 vnt
A95: Euro / 100 kŕmnych dní | B95: Euro / 100 krmných dní | C95: Euro / 100 feeding days | D95: Euro / 100 takarmánynap | E95: Euro / 100 pašarų dienų
A96: ks | B96: ks | C96: pc | D96: ks | E96: jb
A97: Euro / 1 kg | B97: Euro / 1 kg | C97: Euro / 1 kg | D97: Euró / 1 kg | E97: Eurų / 1 kg
A98: Mladé chovné ovce | B98: Mladé chovné ovce | C98: Young breeding sheep | D98: Fiatal tenyész juh | E98: Jaunos veislinės avys
A99: vlastné náklady na 100 kŕmnych dní | B99: vlastní náklady na 100 krmných dní | C99: own costs per 100 feeding days | D99: 100 takarmánynaponként saját költségek | E99: savo išlaidas už 100 pašarų dienų
A100: priemerná hmotnosť jahniat pri predaji | B100: průměrná hmotnost jehňat při prodeji | C100: average weight of lambs on sale | D100: az eladott bárányok átlagos tömege | E100: vidutinis parduodamų ėriukų svoris
A101: realizačná cena za 1 kg jahniat | B101: realizační cena za 1 kg jehňat | C101: realization price for 1 kg of lambs | D101: ára 1 kg bárányoknak | E101: 1 kg ėriukų tinkamumo kaina
A102: Euro / 100 kŕmnych dní | B102: Euro / 100 krmných dní | C102: Euro / 100 feeding days | D102: Euro / 100 takarmánynap | E102: Euro / 100 pašarų dienų
A103: kg / 1 ks | B103: kg / 1 ks | C103: kg / 1 pc | D103: kg / 1 db | E103: kg / 1 vnt
A104: Euro / 1 kg | B104: Euro / 1 kg | C104: Euro / 1 kg | D104: Euró / 1 kg | E104: Eurų / 1 kg
A105: Hydina výkrm kurčiat (brojlery) | B105: Drůbež výkrm kuřat (brojleři) | C105: Poultry chickens for fattening (broilers) | D105: Baromfihús-csirkék (brojlercsirke) | E105: Naminiai paukščių viščiukai (broileriai)
A106: Výkrm brojlerov | B106: výkrm brojlerů | C106: Broiler fattening | D106: Brojler hizlalása | E106: Broilerių penėjimas
A107: priemerná hmotnosť brojlera pri predaji | B107: průměrná hmotnost brojlera při prodeji | C107: average weight of broiler on sale | D107: az eladó brojler átlagos súlya | E107: vidutinis parduodamo broilerio svoris
A108: realizačná cena za 1 kg živej hmotnosti | B108: realizační cena za 1 kg živé hmotnosti | C108: feasibility price for 1 kg of live weight | D108: megvalósíthatósági ár 1 kg élősúly esetén | E108: Galimybės kaina už 1 kg gyvojo svorio
A109: dotácie na 1 ks | B109: dotace na 1 ks | C109: subsidies per 1 pc | D109: támogatás 1 db-ra | E109: subsidija už 1 vnt
A110: vlastné náklady na 100 kŕmnych dní | B110: vlastní náklady na 100 krmných dní | C110: own costs per 100 feeding days | D110: 100 takarmánynaponként saját költségek | E110: savo išlaidas už 100 pašarų dienų
A111: počet kusov chovaných kurčiat (brojlerov) | B111: počet kusů chovaných kuřat (brojlerů) | C111: Number of chickens reared (broilers) | D111: Tenyésztett csirkék száma (brojler) | E111: Augintų viščiukų (broilerių) skaičius
A112: kg / 1 ks | B112: kg / 1 ks | C112: kg / 1 pc | D112: kg / 1 db | E112: kg / 1 vnt
A113: Euro / 1 kg | B113: Euro / 1 kg | C113: Euro / 1 kg | D113: Euró / 1 kg | E113: Eurų / 1 kg
A114: Euro / 1 ks | B114: Euro / 1 ks | C114: Euro / 1 pc | D114: Euro / 1 db | E114: Eurų / 1 vnt
A115: Euro / 100 kŕmnych dní | B115: Euro / 100 krmných dní | C115: Euro / 100 feeding days | D115: Euro / 100 takarmánynap | E115: Euro / 100 pašarų dienų
A116: ks | B116: ks | C116: pc | D116: ks | E116: jb
A117: Hydina nosnice | B117: drůbež nosnice | C117: Poultry laying hens | D117: Baromfi tojótyúkok | E117: Naminių paukščių dedeklės vištos
A118: Nosnice | B118: nosnice | C118: Layers | D118: réteg | E118: sluoksnis
A119: úžitkovosť ročná znáška vajec | B119: užitkovost roční snáška vajec | C119: yield annual egg production per on piece | D119: hozam éves tojásrakás | E119: derlius metinis kiaušinių dėjimas
A120: realizačná cena za 1 ks vajca | B120: realizační cena za 1 ks vejce | C120: realization price for 1 egg | D120: megvalósíthatósági ár 1 tojásra | E120: galimybių kaina už 1 kiaušinį
A121: dotácie na 1 ks nosnice | B121: dotace na 1 ks nosnice | C121: subsidy for 1 piece of laying hens | D121: támogatás 1 darab tojótyúk számára | E121: subsidija už 1 vištų dedeklių vištą
A122: vlastné náklady na 100 kŕmnych dní | B122: vlastní náklady na 100 krmných dní | C122: own costs per 100 feeding days | D122: 100 takarmánynaponként saját költségek | E122: savo išlaidas už 100 pašarų dienų
A123: počet nosníc | B123: počet nosnic | C123: number of laying hens | D123: tojótyúkok száma | E123: vištų dedeklių skaičius
A124: realizačná cena vyradenej nosnice (brakovaná nosnica) | B124: realizační cena vyřazené nosnice (vyřazené nosnice) | C124: realization price of discarded laying hens (cracked laying hens) | D124: Kihúzott tojótyúk (repedt tojótyúk) kivitelezési ára | E124: Išmestų vištų dedeklių (nulaužytų vištų dedeklių) vykdymo kaina
A125: ks / rok | B125: ks / rok | C125: pc / year | D125: db / év | E125: vnt per metus
A126: Euro / 1 ks | B126: Euro / 1 ks | C126: Euro / 1 pc | D126: Euro / 1 db | E126: Eurų / 1 vnt
A127: Euro / 1 ks | B127: Euro / 1 ks | C127: Euro / 1 pc | D127: Euro / 1 db | E127: Eurų / 1 vnt
A128: Euro / 100 kŕmnych dní | B128: Euro / 100 krmných dní | C128: Euro / 100 feeding days | D128: Euro / 100 takarmánynap | E128: Euro / 100 pašarų dienų
A129: ks | B129: ks | C129: pc | D129: darab | E129: jb
A130: Euro / 1 ks | B130: Euro / 1 ks | C130: Euro / 1 pc | D130: Euro / 1 db | E130: Eurų / 1 vnt
A131: Kozy | B131: kozy | C131: Goats | D131: Kecske | E131: ožkos
A132: úžitkovosť / mlieko | B132: užitkovost / mléko | C132: utility / milk | D132: hozam / tej | E132: derlius / pienas
A133: realizačná cena za 1 liter mlieka | B133: realizační cena za 1 litr mléka | C133: realization price for 1 liter of milk | D133: megvalósíthatósági ár 1 liter tejre | E133: Galimybės kaina už 1 litrą pieno
A134: dotácie na 1 ks | B134: dotace na 1 ks | C134: subsidies per 1 pc | D134: támogatás 1 db-ra | E134: subsidija už 1 vnt
A135: vlastné náklady na 100 kŕmnych dní (základné stádo) | B135: vlastní náklady na 100 krmných dní (základní stádo) | C135: own costs per 100 feeding days (basic herd) | D135: saját költségek 100 etetési naponként (alapcsorda) | E135: nuosavos išlaidos už 100 šėrimo dienų (pagrindinė banda)
A136: vlastné náklady na 100 kŕmnych dní (odchov kozičiek) | B136: vlastní náklady na 100 krmných dní (odchov koziček) | C136: own costs per 100 feeding days (breeding of goats) | D136: saját költségek 100 takarmánynaponként (kecsketenyésztés) | E136: nuosavos išlaidos už 100 pašarų dienų (ožkų veisimas)
A137: počet kôz (základné stádo) | B137: počet koz (základní stádo) | C137: number of goats (basic herd) | D137: kecskék száma (alapállomány) | E137: ožkų skaičius (pagrindinė banda)
A138: realizačná cena za 1 kg živej hmotnosti (kozliat) | B138: realizační cena za 1 kg živé hmotnosti (kůzlat) | C138: realization price for 1 kg of live weight (kid) | D138: megvalósíthatósági ár 1 kg élősúlyért (gyerek) | E138: kaina už 1 kg gyvojo svorio (vaikas)
A139: litre / rok | B139: litry / rok | C139: liters / year | D139: liter / év | E139: litrų per metus
A140: Euro / 1 liter | B140: Euro / 1 litr | C140: Euro / 1 liter | D140: Euro / 1 liter | E140: Eurų / 1 litras
A141: Euro / 1 ks | B141: Euro / 1 ks | C141: Euro / 1 pc | D141: Euro / 1 db | E141: Eurų / 1 vnt
A142: Euro / 100 kŕmnych dní | B142: Euro / 100 krmných dní | C142: Euro / 100 feeding days | D142: Euro / 100 takarmánynap | E142: Euro / 100 pašarų dienų
A143: Euro / 100 kŕmnych dní | B143: Euro / 100 krmných dní | C143: Euro / 100 feeding days | D143: Euro / 100 takarmánynap | E143: Euro / 100 pašarų dienų
A144: ks | B144: ks | C144: pc | D144: darab | E144: jb
A145: Euro / 1 kg | B145: Euro / 1 kg | C145: Euro / 1 kg | D145: Euró / 1 kg | E145: Eurų / 1 kg
A148: Vstup rastlinná výroba | B148: Vstup rostlinná výroba | C148: Input crop production | D148: Alapvető növénytermesztés | E148: Pradinė augalininkystė
A149: Kategória komodity | B149: Kategorie komodity | C149: Commodity category | D149: Árukategória | E149: Prekės kategorija
A150: Ukazovatele | B150: ukazatele | C150: indicators | D150: mutatók | E150: rodikliai
A151: Úroda z 1 hektára | B151: Sklizeň z 1 hektaru | C151: yields from 1 hectare | D151: Betakarítás hektáronként | E151: Derlius iš hektaro
A152: Cena | B152: cena | C152: price | D152: ár | E152: kaina
A153: Dotácie | B153: dotace | C153: subsidies | D153: támogatások | E153: subsidijos
A154: Vlastné náklady | B154: vlastní náklady | C154: own costs | D154: Saját költségek | E154: Nuosavos išlaidos
A155: Plocha osevu | B155: plocha osevu | C155: sowing area | D155: Vetési terület | E155: Sėjos plotas
A156: Prepočítať | B156: přepočítat | C156: calculate | D156: számítani | E156: Apskaičiuokite
A157: Vymazať | B157: vymazat | C157: clear | D157: világos | E157: aiškus
A158: t | B158: t | C158: tonnes | D158: tonna | E158: T
A159: Euro / 1 tona | B159: Euro / 1 tuna | C159: Euro / 1 tonne | D159: Euró / 1 tonna | E159: Eurų / 1 tona
A160: Euro / 1 ha poľn. pôdy | B160: Euro / 1 ha zemědělsky. půdy | C160: Euro / 1 ha agricultural land | D160: Euró / 1 ha mező föld | E160: Eurų / 1 ha lauko žemės
A161: Euro / 1 ha poľn. pôdy | B161: Euro / 1 ha zemědělsky. půdy | C161: Euro / 1 ha agricultural land | D161: Euró / 1 ha mező föld | E161: Eurų / 1 ha lauko žemės
A162: ha | B162: ha | C162: ha | D162: ha | E162: ha,
A164: obilniny | B164: obiloviny | C164: cereals | D164: gabonafélék | E164: grūdai
A165: pšenica | B165: pšenice | C165: wheat | D165: búza | E165: kviečiai
A166: jačmeň | B166: ječmen | C166: barley | D166: árpa | E166: miežis
A167: raž | B167: žito | C167: rye | D167: rozs | E167: rugiai
A168: ovos | B168: oves | C168: oats | D168: zab | E168: avižos
A169: kukurica | B169: kukuřice | C169: corn (maize) | D169: kukorica | E169: kukurūzai
A170: olejniny | B170: olejniny | C170: oilseeds | D170: olajos magvak | E170: aliejinių augalų
A171: repka olejná | B171: řepka olejná | C171: oilseed rape | D171: repce | E171: rapsų
A172: slnečnica | B172: slunečnice | C172: sunflower | D172: napraforgó | E172: saulėgrąža
A173: mak | B173: mák | C173: poppy | D173: mák | E173: aguona
A174: okopaniny | B174: okopaniny | C174: roots | D174: gyökerek | E174: šaknys
A175: zemiaky | B175: brambory | C175: potato | D175: burgonya | E175: bulvės
A176: cukrová repa | B176: cukrová řepa | C176: sugar beet | D176: cukorrépa | E176: cukrinių runkelių
A177: strukoviny | B177: luštěniny | C177: legumes | D177: hüvelyes növények | E177: ankštiniai
A178: hrach | B178: hrách | C178: peas | D178: borsó | E178: žirniai
A179: sója | B179: sója | C179: soya bean | D179: szója | E179: soja
A180: fazuľa | B180: fazole | C180: beans | D180: bab | E180: pupelės
A181: zelenina | B181: zelenina | C181: vegetable | D181: zöldségek | E181: daržovės
A182: paprika | B182: paprika | C182: pepper | D182: paprika | E182: paprika
A183: rajčiaky | B183: rajčata | C183: tomatoes | D183: paradicsom | E183: pomidorai
A184: mrkva | B184: mrkev | C184: carrot | D184: sárgarépa | E184: morkos
A185: karfiol | B185: květák | C185: cauliflower | D185: karfiol | E185: žiediniai kopūstai
A186: kapusta | B186: zelí | C186: cabbage | D186: káposzta | E186: kopūstai
A187: ovocie | B187: ovoce | C187: fruit | D187: gyümölcs | E187: vaisiai
A188: slivky | B188: švestky | C188: plums | D188: szilva | E188: slyvos
A189: jablká | B189: jablka | C189: apples | D189: alma | E189: obuoliai
A190: ostatné | B190: ostatní | C190: other | D190: más | E190: kitas
A191: vinič | B191: réva vinná | C191: vine | D191: szőlőtőke | E191: vynmedis
A192: lúky | B192: louky | C192: meadows | D192: rétek | E192: pievos
A193: pasienky | B193: pastviny | C193: pasture | D193: legelő | E193: ganykla
A194: lucerka siata | B194: vojtěška setá | C194: lantern | D194: lámpás | E194: žibintas
A195: kukurica na siláž | B195: kukuřice na siláž | C195: silage maize | D195: siló kukorica | E195: siloso kukurūzai
A197: Výstup živočíšna výroba | B197: Výstup živočišná výroba | C197: Output livestock production | D197: Teljesítmény állattenyésztés | E197: Produkcija gyvulininkystės
A198: Ekonomické hodnotenie chovov živočíšnej výroby | B198: Ekonomické hodnocení chovů živočišné výroby | C198: Economic evaluation of animal production | D198: Az állattenyésztés gazdasági értékelése | E198: Gyvulininkystės ekonominis įvertinimas
A199: Ukazovateľ za chov spolu | B199: Ukazatel za chov celkem | C199: Total breeding indicator | D199: Teljes tenyésztési mutató | E199: Bendras veisimo rodiklis
A200: Merná jednotka | B200: Měrná jednotka | C200: Unit of measure | D200: Mértékegység | E200: Matavimo vienetas
A201: Chov HD | B201: Chov dobytka | C201: Cattle | D201: Tenyésztés HD | E201: Veisimas HD
A202: Chov ošípanych | B202: chovu prasat | C202: Pigs | D202: Sertéstenyésztés | E202: Kiaulių veisimas
A203: Chov oviec | B203: Chov ovcí | C203: Sheeps | D203: Juhtenyésztés | E203: Avių auginimas
A204: Nosnice | B204: nosnice | C204: Layer | D204: réteg | E204: sluoksnis
A205: Výkrm kurčiat | B205: výkrm kuřat | C205: Brioers | D205: Húzó csirkék | E205: Mėsinės vištos
A206: Kozy | B206: kozy | C206: Goats | D206: kecske | E206: ožkos
... 109 more rows

Sheet Sheet2 (hidden)
A1: shape name | B1: shape type | C1: height | D1: width | E1: left | F1: top | G1: sheet name | H1: shape text
A2: Skupina 18 | B2: Skupina 18 | C2: 113.3858261 | D2: 196.7488251 | E2: 428.1368408 | F2: 349.8213501 | G2: jazyk
A3: Skupina 15 | B3: Skupina 15 | C3: 113.3858261 | D3: 193.8813324 | E3: 623.8615112 | F3: 51.32157516 | G3: jazyk
A4: Skupina 14 | B4: Skupina 14 | C4: 113.3858261 | D4: 193.2071686 | E4: 236.7855835 | F4: 49.28582764 | G4: jazyk
A5: Skupina 17 | B5: Skupina 17 | C5: 113.3858261 | D5: 195.2429199 | E5: 237.2142487 | F5: 198.9642487 | G5: jazyk
A6: Skupina 16 | B6: Skupina 16 | C6: 113.3858261 | D6: 192.6714172 | E6: 623.5714111 | F6: 202.9284973 | G6: jazyk
A7: Button 1 | B7: Button 1 | C7: 56.25 | D7: 84.75 | E7: 657.75 | F7: 393.75 | G7: Vstup žvočíšna výroba
A8: Button 2 | B8: Button 2 | C8: 56.25 | D8: 84.75 | E8: 657.75 | F8: 454.5 | G8: Vstup žvočíšna výroba
A9: Button 3 | B9: Button 3 | C9: 56.25 | D9: 84.75 | E9: 656.25 | F9: 766.5 | G9: Vstup žvočíšna výroba
A10: Button 4 | B10: Button 4 | C10: 57 | D10: 84.75 | E10: 656.25 | F10: 828 | G10: Vstup žvočíšna výroba
A11: Button 5 | B11: Button 5 | C11: 57 | D11: 84.75 | E11: 657 | F11: 1136.25 | G11: Vstup žvočíšna výroba
A12: Button 6 | B12: Button 6 | C12: 55.5 | D12: 84.75 | E12: 658.5 | F12: 1200 | G12: Vstup žvočíšna výroba
A13: Button 7 | B13: Button 7 | C13: 54.75 | D13: 84.75 | E13: 657.75 | F13: 1511.250122 | G13: Vstup žvočíšna výroba
A14: Button 8 | B14: Button 8 | C14: 70.5 | D14: 84.75 | E14: 657.75 | F14: 1572 | G14: Vstup žvočíšna výroba
A15: Button 9 | B15: Button 9 | C15: 69 | D15: 84.75 | E15: 657.75 | F15: 1932.749878 | G15: Vstup žvočíšna výroba
A16: Button 10 | B16: Button 10 | C16: 69.75 | D16: 84.75 | E16: 657.75 | F16: 2007 | G16: Vstup žvočíšna výroba
A17: Button 21 | B17: Button 21 | C17: 69 | D17: 84.75 | E17: 657 | F17: 2358.75 | G17: Vstup žvočíšna výroba
A18: Button 22 | B18: Button 22 | C18: 69.75 | D18: 84.75 | E18: 657 | F18: 2433 | G18: Vstup žvočíšna výroba
A19: Button 23 | B19: Button 23 | C19: 45.75 | D19: 84.75 | E19: 656.25 | F19: 2761.499756 | G19: Vstup žvočíšna výroba
A20: Button 24 | B20: Button 24 | C20: 45.75 | D20: 84.75 | E20: 656.25 | F20: 2712.75 | G20: Vstup žvočíšna výroba
A21: Button 25 | B21: Button 25 | C21: 69.75 | D21: 84.75 | E21: 657 | F21: 3045 | G21: Vstup žvočíšna výroba
A22: Button 26 | B22: Button 26 | C22: 55.5 | D22: 84.75 | E22: 657 | F22: 3114.75 | G22: Vstup žvočíšna výroba
A23: Button 29 | B23: Button 29 | C23: 70.5 | D23: 84.75 | E23: 657.75 | F23: 3471.75 | G23: Vstup žvočíšna výroba
A24: Button 30 | B24: Button 30 | C24: 69 | D24: 84.75 | E24: 657.75 | F24: 3546.75 | G24: Vstup žvočíšna výroba
A25: Button 31 | B25: Button 31 | C25: 67.5 | D25: 84.75 | E25: 657.75 | F25: 3885.75 | G25: Vstup žvočíšna výroba
A26: Button 32 | B26: Button 32 | C26: 67.5 | D26: 84.75 | E26: 657.75 | F26: 3954.75 | G26: Vstup žvočíšna výroba
A27: Button 35 | B27: Button 35 | C27: 70.5 | D27: 84.75 | E27: 657 | F27: 4280.25 | G27: Vstup žvočíšna výroba
A28: Button 36 | B28: Button 36 | C28: 70.5 | D28: 84.75 | E28: 657 | F28: 4355.25 | G28: Vstup žvočíšna výroba
A29: Button 37 | B29: Button 37 | C29: 70.5 | D29: 84.75 | E29: 657 | F29: 4696.5 | G29: Vstup žvočíšna výroba
A30: Picture 1 | B30: Picture 1 | C30: 150 | D30: 795.75 | E30: 0 | F30: 0 | G30: Vstup žvočíšna výroba
A31: Button 38 | B31: Button 38 | C31: 70.5 | D31: 84.75 | E31: 657 | F31: 4770.75 | G31: Vstup žvočíšna výroba
A32: Button 39 | B32: Button 39 | C32: 70.5 | D32: 84.75 | E32: 657 | F32: 5189.25 | G32: Vstup žvočíšna výroba
A33: Button 40 | B33: Button 40 | C33: 70.5 | D33: 84.75 | E33: 657 | F33: 5265 | G33: Vstup žvočíšna výroba
A34: Picture 2 | B34: Picture 2 | C34: 145.2433014 | D34: 795.75 | E34: 0 | F34: 185.5715027 | G34: Vstup žvočíšna výroba
A35: Picture 7 | B35: Picture 7 | C35: 144.9229889 | D35: 795.75 | E35: 0 | F35: 580.0961304 | G35: Vstup žvočíšna výroba
A36: Picture 9 | B36: Picture 9 | C36: 145.5990601 | D36: 795.75 | E36: 0 | F36: 940.4009399 | G36: Vstup žvočíšna výroba
A37: Picture 11 | B37: Picture 11 | C37: 147.7217255 | D37: 793.1745605 | E37: 2.575433016 | F37: 1334.150879 | G37: Vstup žvočíšna výroba
A38: Picture 42 | B38: Picture 42 | C38: 147.0181122 | D38: 795.75 | E38: 0 | F38: 1736.250122 | G38: Vstup žvočíšna výroba
A39: Picture 16 | B39: Picture 16 | C39: 147.4507904 | D39: 795.75 | E39: 0 | F39: 2167.393066 | G39: Vstup žvočíšna výroba
A40: Picture 17 | B40: Picture 17 | C40: 147.0141754 | D40: 747.1556396 | E40: 0 | F40: 2562.651123 | G40: Vstup žvočíšna výroba
A41: Picture 18 | B41: Picture 18 | C41: 148.4292145 | D41: 795.75 | E41: 0 | F41: 2841.115234 | G41: Vstup žvočíšna výroba
A42: Picture 20 | B42: Picture 20 | C42: 144.964325 | D42: 795.75 | E42: 0 | F42: 3264.279053 | G42: Vstup žvočíšna výroba
A43: Picture 21 | B43: Picture 21 | C43: 159.8489838 | D43: 795.75 | E43: 0 | F43: 3694.820557 | G43: Vstup žvočíšna výroba
A44: Picture 3 | B44: Picture 3 | C44: 147.8349609 | D44: 795.75 | E44: 0 | F44: 4093.232422 | G44: Vstup žvočíšna výroba
A45: Picture 10 | B45: Picture 10 | C45: 145.5989838 | D45: 795.75 | E45: 0 | F45: 4474.956543 | G45: Vstup žvočíšna výroba
A46: Picture 12 | B46: Picture 12 | C46: 147.0046387 | D46: 795.75 | E46: 0 | F46: 4957.858398 | G46: Vstup žvočíšna výroba
A47: Rectangle 5 | B47: Rectangle 5 | C47: 21.44645691 | D47: 795.75 | E47: 0 | F47: 129.1304779 | G47: Vstup žvočíšna výroba
A48: TextBox 4 | B48: TextBox 4 | C48: 35.19236374 | D48: 266.6800842 | E48: 46.95653534 | F48: 126.9229889 | G48: Vstup žvočíšna výroba
A49: Picture 6 | B49: Picture 6 | C49: 30.24259758 | D49: 179.8199158 | E49: 519.9456787 | F49: 125.2173996 | G49: Vstup žvočíšna výroba
A50: Button 41 | B50: Button 41 | C50: 87.75 | D50: 471.75 | E50: 171 | F50: 210.75 | G50: Vstup žvočíšna výroba
A51: Button 42 | B51: Button 42 | C51: 87.75 | D51: 471.75 | E51: 160.5 | F51: 605.25 | G51: Vstup žvočíšna výroba
A52: Button 43 | B52: Button 43 | C52: 87.75 | D52: 471.75 | E52: 165 | F52: 969 | G52: Vstup žvočíšna výroba
A53: Button 44 | B53: Button 44 | C53: 87.75 | D53: 471.75 | E53: 154.5 | F53: 1356.749878 | G53: Vstup žvočíšna výroba
A54: Button 45 | B54: Button 45 | C54: 87 | D54: 471.75 | E54: 152.25 | F54: 1761.749878 | G54: Vstup žvočíšna výroba
A55: Button 46 | B55: Button 46 | C55: 87 | D55: 471.75 | E55: 149.25 | F55: 2193.75 | G55: Vstup žvočíšna výroba
A56: Button 47 | B56: Button 47 | C56: 87 | D56: 471.75 | E56: 151.5 | F56: 2590.5 | G56: Vstup žvočíšna výroba
A57: Button 48 | B57: Button 48 | C57: 87 | D57: 471.75 | E57: 153.75 | F57: 2882.25 | G57: Vstup žvočíšna výroba
A58: Button 49 | B58: Button 49 | C58: 87 | D58: 471.75 | E58: 153 | F58: 3295.499756 | G58: Vstup žvočíšna výroba
A59: Button 50 | B59: Button 50 | C59: 87 | D59: 471.75 | E59: 159.75 | F59: 3742.500244 | G59: Vstup žvočíšna výroba
A60: Button 51 | B60: Button 51 | C60: 87 | D60: 471.75 | E60: 152.25 | F60: 4121.25 | G60: Vstup žvočíšna výroba
A61: Button 52 | B61: Button 52 | C61: 87 | D61: 471.75 | E61: 126.75 | F61: 4506.75 | G61: Vstup žvočíšna výroba
A62: Button 53 | B62: Button 53 | C62: 87 | D62: 471.75 | E62: 150.75 | F62: 4986.75 | G62: Vstup žvočíšna výroba
A63: newname | B63: newname | C63: 87 | D63: 81 | E63: 658.5 | F63: 345.75 | G63: Vstup žvočíšna výroba
A64: Button 3 | B64: Button 3 | C64: 87 | D64: 81 | E64: 658.5 | F64: 740.25 | G64: Vstup žvočíšna výroba
A65: Button 4 | B65: Button 4 | C65: 87 | D65: 81 | E65: 657.75 | F65: 1094.25 | G65: Vstup žvočíšna výroba
A66: Button 5 | B66: Button 5 | C66: 87 | D66: 81 | E66: 657 | F66: 1488.749878 | G66: Vstup žvočíšna výroba
A67: Button 6 | B67: Button 6 | C67: 87 | D67: 81 | E67: 658.5 | F67: 1896 | G67: Vstup žvočíšna výroba
A68: Button 7 | B68: Button 7 | C68: 87 | D68: 81 | E68: 658.5 | F68: 2328 | G68: Vstup žvočíšna výroba
A69: Button 8 | B69: Button 8 | C69: 87 | D69: 81 | E69: 653.25 | F69: 2592 | G69: Vstup žvočíšna výroba
A70: Button 9 | B70: Button 9 | C70: 87 | D70: 81 | E70: 658.5 | F70: 3012 | G70: Vstup žvočíšna výroba
A71: Button 10 | B71: Button 10 | C71: 87 | D71: 81 | E71: 658.5 | F71: 3425.25 | G71: Vstup žvočíšna výroba
A72: Button 11 | B72: Button 11 | C72: 87 | D72: 81 | E72: 659.25 | F72: 3817.499756 | G72: Vstup žvočíšna výroba
A73: Button 12 | B73: Button 12 | C73: 87 | D73: 81 | E73: 658.5 | F73: 4252.5 | G73: Vstup žvočíšna výroba
A74: Button 13 | B74: Button 13 | C74: 87 | D74: 81 | E74: 658.5 | F74: 4631.25 | G74: Vstup žvočíšna výroba
A75: Button 14 | B75: Button 14 | C75: 87 | D75: 81 | E75: 658.5 | F75: 5116.5 | G75: Vstup žvočíšna výroba
A76: Button 1 | B76: Button 1 | C76: 97.39291382 | D76: 70.5 | E76: 565.8214111 | F76: 82.17858124 | G76: Vstup rastlinná výroba
A77: Button 3 | B77: Button 3 | C77: 19.60716629 | D77: 70.5 | E77: 565.8214111 | F77: 132.3214111 | G77: Vstup rastlinná výroba
A78: Button 4 | B78: Button 4 | C78: 19.60716629 | D78: 70.5 | E78: 565.8214111 | F78: 152.6785889 | G78: Vstup rastlinná výroba
A79: Button 5 | B79: Button 5 | C79: 19.60708618 | D79: 70.5 | E79: 566.5714111 | F79: 173.0357513 | G79: Vstup rastlinná výroba
A80: Button 6 | B80: Button 6 | C80: 19.60716629 | D80: 70.5 | E80: 565.8214111 | F80: 193.3928375 | G80: Vstup rastlinná výroba
A81: Button 8 | B81: Button 8 | C81: 19.60716629 | D81: 70.5 | E81: 565.8214111 | F81: 213.75 | G81: Vstup rastlinná výroba
A82: Button 9 | B82: Button 9 | C82: 19.60708618 | D82: 70.5 | E82: 565.8214111 | F82: 234.1071625 | G82: Vstup rastlinná výroba
A83: Button 10 | B83: Button 10 | C83: 19.60716629 | D83: 70.5 | E83: 565.8214111 | F83: 254.4642487 | G83: Vstup rastlinná výroba
A84: Button 11 | B84: Button 11 | C84: 19.60716629 | D84: 70.5 | E84: 565.8214111 | F84: 274.8214111 | G84: Vstup rastlinná výroba
A85: Button 12 | B85: Button 12 | C85: 19.60716629 | D85: 70.5 | E85: 565.8214111 | F85: 295.1785889 | G85: Vstup rastlinná výroba
A86: Button 13 | B86: Button 13 | C86: 19.60708618 | D86: 70.5 | E86: 565.8214111 | F86: 315.5357361 | G86: Vstup rastlinná výroba
A87: Button 14 | B87: Button 14 | C87: 19.60716629 | D87: 70.5 | E87: 565.8214111 | F87: 335.8928223 | G87: Vstup rastlinná výroba
A88: Button 15 | B88: Button 15 | C88: 19.60716629 | D88: 70.5 | E88: 565.8214111 | F88: 356.25 | G88: Vstup rastlinná výroba
A89: Button 16 | B89: Button 16 | C89: 19.60708618 | D89: 70.5 | E89: 565.8214111 | F89: 376.6071777 | G89: Vstup rastlinná výroba
A90: Button 17 | B90: Button 17 | C90: 19.60716629 | D90: 70.5 | E90: 565.8214111 | F90: 396.9642639 | G90: Vstup rastlinná výroba
A91: Button 18 | B91: Button 18 | C91: 19.60716629 | D91: 70.5 | E91: 565.8214111 | F91: 417.3214111 | G91: Vstup rastlinná výroba
A92: Button 19 | B92: Button 19 | C92: 18.10716629 | D92: 70.5 | E92: 565.8214111 | F92: 436.9285889 | G92: Vstup rastlinná výroba
A93: Button 20 | B93: Button 20 | C93: 19.60708618 | D93: 70.5 | E93: 566.5714111 | F93: 455.0357361 | G93: Vstup rastlinná výroba
A94: Button 22 | B94: Button 22 | C94: 19.60716629 | D94: 70.5 | E94: 566.5714111 | F94: 475.3928223 | G94: Vstup rastlinná výroba
A95: Button 23 | B95: Button 23 | C95: 19.60716629 | D95: 70.5 | E95: 566.5714111 | F95: 495.75 | G95: Vstup rastlinná výroba
A96: Button 25 | B96: Button 25 | C96: 19.60708618 | D96: 70.5 | E96: 566.5714111 | F96: 516.1071777 | G96: Vstup rastlinná výroba
A97: Button 26 | B97: Button 26 | C97: 19.60716629 | D97: 70.5 | E97: 566.5714111 | F97: 536.4642334 | G97: Vstup rastlinná výroba
A98: Button 27 | B98: Button 27 | C98: 19.60716629 | D98: 70.5 | E98: 566.5714111 | F98: 556.8214111 | G98: Vstup rastlinná výroba
A99: Button 28 | B99: Button 28 | C99: 19.60716629 | D99: 70.5 | E99: 566.5714111 | F99: 577.1785889 | G99: Vstup rastlinná výroba
A100: Button 29 | B100: Button 29 | C100: 19.60708618 | D100: 70.5 | E100: 566.5714111 | F100: 597.5357666 | G100: Vstup rastlinná výroba
A101: Button 30 | B101: Button 30 | C101: 50.89283371 | D101: 54 | E101: 646.0714111 | F101: 82.17858124 | G101: Vstup rastlinná výroba
A102: Button 31 | B102: Button 31 | C102: 20.35716629 | D102: 53.25 | E102: 646.8214111 | F102: 133.0714111 | G102: Vstup rastlinná výroba
A103: Button 32 | B103: Button 32 | C103: 20.35716629 | D103: 53.25 | E103: 646.8214111 | F103: 153.4285889 | G103: Vstup rastlinná výroba
A104: Button 33 | B104: Button 33 | C104: 20.35708618 | D104: 53.25 | E104: 646.8214111 | F104: 173.7857513 | G104: Vstup rastlinná výroba
A105: Button 34 | B105: Button 34 | C105: 20.35716629 | D105: 53.25 | E105: 646.8214111 | F105: 194.1428375 | G105: Vstup rastlinná výroba
A106: Button 35 | B106: Button 35 | C106: 20.35716629 | D106: 53.25 | E106: 646.8214111 | F106: 214.5 | G106: Vstup rastlinná výroba
A107: Button 36 | B107: Button 36 | C107: 20.35708618 | D107: 53.25 | E107: 646.8214111 | F107: 234.8571625 | G107: Vstup rastlinná výroba
A108: Button 38 | B108: Button 38 | C108: 20.35716629 | D108: 53.25 | E108: 646.8214111 | F108: 255.2142487 | G108: Vstup rastlinná výroba
A109: Button 39 | B109: Button 39 | C109: 20.35716629 | D109: 53.25 | E109: 646.8214111 | F109: 275.5714111 | G109: Vstup rastlinná výroba
A110: Button 40 | B110: Button 40 | C110: 20.35716629 | D110: 53.25 | E110: 646.8214111 | F110: 295.9285889 | G110: Vstup rastlinná výroba
A111: Button 41 | B111: Button 41 | C111: 20.35708618 | D111: 53.25 | E111: 646.8214111 | F111: 316.2857361 | G111: Vstup rastlinná výroba
A112: Button 42 | B112: Button 42 | C112: 20.35716629 | D112: 53.25 | E112: 646.8214111 | F112: 336.6428223 | G112: Vstup rastlinná výroba
A113: Button 43 | B113: Button 43 | C113: 20.35716629 | D113: 53.25 | E113: 646.8214111 | F113: 357 | G113: Vstup rastlinná výroba
A114: Button 44 | B114: Button 44 | C114: 20.35708618 | D114: 53.25 | E114: 646.8214111 | F114: 377.3571777 | G114: Vstup rastlinná výroba
A115: Button 45 | B115: Button 45 | C115: 20.35716629 | D115: 53.25 | E115: 646.8214111 | F115: 397.7142639 | G115: Vstup rastlinná výroba
A116: Button 46 | B116: Button 46 | C116: 20.35716629 | D116: 53.25 | E116: 646.8214111 | F116: 418.0714111 | G116: Vstup rastlinná výroba
A117: Button 47 | B117: Button 47 | C117: 20.35716629 | D117: 53.25 | E117: 646.8214111 | F117: 438.4285889 | G117: Vstup rastlinná výroba
A118: Button 48 | B118: Button 48 | C118: 20.35708618 | D118: 53.25 | E118: 646.8214111 | F118: 458.7857361 | G118: Vstup rastlinná výroba
A119: Button 49 | B119: Button 49 | C119: 20.35716629 | D119: 53.25 | E119: 646.8214111 | F119: 479.1428223 | G119: Vstup rastlinná výroba
A120: Button 51 | B120: Button 51 | C120: 20.35716629 | D120: 53.25 | E120: 646.8214111 | F120: 499.5 | G120: Vstup rastlinná výroba
A121: Button 52 | B121: Button 52 | C121: 20.35708618 | D121: 53.25 | E121: 646.8214111 | F121: 519.8571777 | G121: Vstup rastlinná výroba
A122: Button 53 | B122: Button 53 | C122: 20.35716629 | D122: 53.25 | E122: 646.8214111 | F122: 540.2142334 | G122: Vstup rastlinná výroba
A123: Button 54 | B123: Button 54 | C123: 20.35716629 | D123: 53.25 | E123: 646.8214111 | F123: 560.5714111 | G123: Vstup rastlinná výroba
A124: Button 55 | B124: Button 55 | C124: 20.35716629 | D124: 53.25 | E124: 646.8214111 | F124: 580.9285889 | G124: Vstup rastlinná výroba
A125: Button 56 | B125: Button 56 | C125: 20.35708618 | D125: 53.25 | E125: 646.8214111 | F125: 601.2857666 | G125: Vstup rastlinná výroba
A126: Picture 1 | B126: Picture 1 | C126: 637.4180298 | D126: 242.7273254 | E126: 701.2012329 | F126: 21.61763763 | G126: Vstup rastlinná výroba
A127: Picture 52 | B127: Picture 52 | C127: 67.20779419 | D127: 237.2726746 | E127: 702.3701782 | F127: 0 | G127: Vstup rastlinná výroba
A128: Button 57 | B128: Button 57 | C128: 107.8928375 | D128: 108 | E128: 763.3928223 | F128: 275.5714111 | G128: Vstup rastlinná výroba
A129: Comment 61 | B129: Comment 61 | C129: 58.5 | D129: 108 | E129: 574.5 | F129: 2.25 | G129: Vstup rastlinná výroba
A130: Button 8 | B130: Button 8 | C130: 0 | D130: 209.25 | E130: 625.9285889 | F130: 669.6428223 | G130: Výstup živočíšna výroba
A131: Button 14 | B131: Button 14 | C131: 0 | D131: 176.25 | E131: 611.6785889 | F131: 669.6428223 | G131: Výstup živočíšna výroba
A132: Button 17 | B132: Button 17 | C132: 0 | D132: 176.25 | E132: 616.1785889 | F132: 669.6428223 | G132: Výstup živočíšna výroba
A133: Button 20 | B133: Button 20 | C133: 0 | D133: 176.25 | E133: 616.1785889 | F133: 669.6428223 | G133: Výstup živočíšna výroba
A134: Button 21 | B134: Button 21 | C134: 70.5 | D134: 70.5 | E134: 609.4285889 | F134: 510.6428223 | G134: Výstup živočíšna výroba
A135: Button 22 | B135: Button 22 | C135: 70.5 | D135: 70.5 | E135: 750.4285889 | F135: 510.6428223 | G135: Výstup živočíšna výroba
A136: Button 23 | B136: Button 23 | C136: 70.5 | D136: 70.5 | E136: 884.6785889 | F136: 508.3928223 | G136: Výstup živočíšna výroba
A137: Button 24 | B137: Button 24 | C137: 69.75 | D137: 70.5 | E137: 1282.928589 | F137: 504.6428223 | G137: Výstup živočíšna výroba
A138: Button 25 | B138: Button 25 | C138: 69.75 | D138: 70.5 | E138: 1016.678589 | F138: 508.3928223 | G138: Výstup živočíšna výroba
A139: Button 26 | B139: Button 26 | C139: 69 | D139: 70.5 | E139: 1158.428589 | F139: 506.8928223 | G139: Výstup živočíšna výroba
A140: Picture 1 | B140: Picture 1 | C140: 180 | D140: 468.0629272 | E140: 57.66810989 | F140: 489.6428223 | G140: Výstup živočíšna výroba
A141: Picture 15 | B141: Picture 15 | C141: 63.40000153 | D141: 229.3829956 | E141: 1134.075562 | F141: 0 | G141: Výstup živočíšna výroba
A142: Button 27 | B142: Button 27 | C142: 0 | D142: 492.75 | E142: 762.4285889 | F142: 669.6428223 | G142: Výstup živočíšna výroba
A143: Button 28 | B143: Button 28 | C143: 0 | D143: 449.25 | E143: 706.1785889 | F143: 669.6428223 | G143: Výstup živočíšna výroba
A144: Button 1053 | B144: Button 1053 | C144: 69 | D144: 228.75 | E144: 1015.928589 | F144: 594.6428223 | G144: Výstup živočíšna výroba
A145: Picture 5 | B145: Picture 5 | C145: 496.0715027 | D145: 161.8461456 | E145: 1104.582397 | F145: 28.92850304 | G145: Výstup rastlinná výroba
A146: Picture 3 | B146: Picture 3 | C146: 49.28574753 | D146: 162.8570862 | E146: 1103.571289 | F146: 0 | G146: Výstup rastlinná výroba
A147: Picture 6 | B147: Picture 6 | C147: 300.0000916 | D147: 631.0714111 | E147: 635.3571777 | F147: 522.8571167 | G147: Výstup rastlinná výroba
A148: Button 8 | B148: Button 8 | C148: 103.7143326 | D148: 340.1785889 | E148: 668.3571777 | F148: 564.6428223 | G148: Výstup rastlinná výroba
A149: Button 19 | B149: Button 19 | C149: 67.60708618 | D149: 338.6785889 | E149: 669.8571777 | F149: 698.0357666 | G149: Výstup rastlinná výroba
A150: Comment 1 | B150: Comment 1 | C150: 59.25 | D150: 108 | E150: 579 | F150: 415.5 | G150: Výstup rastlinná výroba
A151: Comment 2 | B151: Comment 2 | C151: 59.25 | D151: 108 | E151: 579 | F151: 431.25 | G151: Výstup rastlinná výroba
A152: Comment 3 | B152: Comment 3 | C152: 59.25 | D152: 108 | E152: 579 | F152: 447 | G152: Výstup rastlinná výroba
A153: Comment 4 | B153: Comment 4 | C153: 59.25 | D153: 108 | E153: 579 | F153: 462.75 | G153: Výstup rastlinná výroba
A154: Comment 5 | B154: Comment 5 | C154: 28.5 | D154: 208.5 | E154: 396.75 | F154: 447 | G154: Výstup rastlinná výroba
A155: Comment 17 | B155: Comment 17 | C155: 63 | D155: 94.5 | E155: 78 | F155: 642.75 | G155: Výstup rastlinná výroba
A156: Comment 18 | B156: Comment 18 | C156: 96 | D156: 94.5 | E156: 78 | F156: 570.75 | G156: Výstup rastlinná výroba
A157: Obrázok 2 | B157: Obrázok 2 | C157: 161.322052 | D157: 242.25 | E157: 476.2499084 | F157: 158.3331451 | G157: Výstup podniku spolu
A158: Obrázok 3 | B158: Obrázok 3 | C158: 161.6498413 | D158: 234.2506256 | E158: 242.1029205 | F158: 158.0450439 | G158: Výstup podniku spolu
A159: Obrázok 4 | B159: Obrázok 4 | C159: 161.4797668 | D159: 241.557724 | E159: 0.576929152 | F159: 158.2758331 | G159: Výstup podniku spolu
A160: Picture 3 | B160: Picture 3 | C160: 49.28574753 | D160: 162.8570862 | E160: 689.1170044 | F160: 0 | G160: Výstup podniku spolu
A161: Button 4 | B161: Button 4 | C161: 57 | D161: 141.75 | E161: 37.5 | F161: 165.75 | G161: Výstup podniku spolu
A162: Button 29 | B162: Button 29 | C162: 57 | D162: 141.75 | E162: 292.5 | F162: 165 | G162: Výstup podniku spolu
A163: Button 30 | B163: Button 30 | C163: 57 | D163: 141.75 | E163: 291.75 | F163: 237.75 | G163: Výstup podniku spolu
A164: Button 31 | B164: Button 31 | C164: 57 | D164: 141.75 | E164: 36.75 | F164: 240 | G164: Výstup podniku spolu
A165: Button 1 | B165: Button 1 | C165: 34.47291183 | D165: 154.9970093 | E165: 925.7078247 | F165: 253.1295319 | G165: DOJN

Sheet Sheet1 (hidden)
A2: Skupina 18 | B2: Skupina 18 | C2: 113.3858261 | D2: 196.7488251 | E2: 428.1368408 | F2: 349.8213501 | G2: jazyk
A3: Skupina 15 | B3: Skupina 15 | C3: 113.3858261 | D3: 193.8813324 | E3: 623.8615112 | F3: 51.32157516 | G3: jazyk
A4: Skupina 14 | B4: Skupina 14 | C4: 113.3858261 | D4: 193.2071686 | E4: 236.7855835 | F4: 49.28582764 | G4: jazyk
A5: Skupina 17 | B5: Skupina 17 | C5: 113.3858261 | D5: 195.2429199 | E5: 237.2142487 | F5: 198.9642487 | G5: jazyk
A6: Skupina 16 | B6: Skupina 16 | C6: 113.3858261 | D6: 192.6714172 | E6: 623.5714111 | F6: 202.9284973 | G6: jazyk
A7: Button 1 | B7: Button 1 | C7: 56.25 | D7: 84.75 | E7: 657.75 | F7: 393.75 | G7: Vstup žvočíšna výroba
A8: Button 2 | B8: Button 2 | C8: 56.25 | D8: 84.75 | E8: 657.75 | F8: 454.5 | G8: Vstup žvočíšna výroba
A9: Button 3 | B9: Button 3 | C9: 56.25 | D9: 84.75 | E9: 656.25 | F9: 766.5 | G9: Vstup žvočíšna výroba
A10: Button 4 | B10: Button 4 | C10: 57 | D10: 84.75 | E10: 656.25 | F10: 828 | G10: Vstup žvočíšna výroba
A11: Button 5 | B11: Button 5 | C11: 57 | D11: 84.75 | E11: 657 | F11: 1136.25 | G11: Vstup žvočíšna výroba
A12: Button 6 | B12: Button 6 | C12: 55.5 | D12: 84.75 | E12: 658.5 | F12: 1200 | G12: Vstup žvočíšna výroba
A13: Button 7 | B13: Button 7 | C13: 54.75 | D13: 84.75 | E13: 657.75 | F13: 1511.250122 | G13: Vstup žvočíšna výroba
A14: Button 8 | B14: Button 8 | C14: 70.5 | D14: 84.75 | E14: 657.75 | F14: 1572 | G14: Vstup žvočíšna výroba
A15: Button 9 | B15: Button 9 | C15: 69 | D15: 84.75 | E15: 657.75 | F15: 1932.749878 | G15: Vstup žvočíšna výroba
A16: Button 10 | B16: Button 10 | C16: 69.75 | D16: 84.75 | E16: 657.75 | F16: 2007 | G16: Vstup žvočíšna výroba
A17: Button 21 | B17: Button 21 | C17: 69 | D17: 84.75 | E17: 657 | F17: 2358.75 | G17: Vstup žvočíšna výroba
A18: Button 22 | B18: Button 22 | C18: 69.75 | D18: 84.75 | E18: 657 | F18: 2433 | G18: Vstup žvočíšna výroba
A19: Button 23 | B19: Button 23 | C19: 45.75 | D19: 84.75 | E19: 656.25 | F19: 2761.499756 | G19: Vstup žvočíšna výroba
A20: Button 24 | B20: Button 24 | C20: 45.75 | D20: 84.75 | E20: 656.25 | F20: 2712.75 | G20: Vstup žvočíšna výroba
A21: Button 25 | B21: Button 25 | C21: 69.75 | D21: 84.75 | E21: 657 | F21: 3045 | G21: Vstup žvočíšna výroba
A22: Button 26 | B22: Button 26 | C22: 55.5 | D22: 84.75 | E22: 657 | F22: 3114.75 | G22: Vstup žvočíšna výroba
A23: Button 29 | B23: Button 29 | C23: 70.5 | D23: 84.75 | E23: 657.75 | F23: 3471.75 | G23: Vstup žvočíšna výroba
A24: Button 30 | B24: Button 30 | C24: 69 | D24: 84.75 | E24: 657.75 | F24: 3546.75 | G24: Vstup žvočíšna výroba
A25: Button 31 | B25: Button 31 | C25: 67.5 | D25: 84.75 | E25: 657.75 | F25: 3885.75 | G25: Vstup žvočíšna výroba
A26: Button 32 | B26: Button 32 | C26: 67.5 | D26: 84.75 | E26: 657.75 | F26: 3954.75 | G26: Vstup žvočíšna výroba
A27: Button 35 | B27: Button 35 | C27: 70.5 | D27: 84.75 | E27: 657 | F27: 4280.25 | G27: Vstup žvočíšna výroba
A28: Button 36 | B28: Button 36 | C28: 70.5 | D28: 84.75 | E28: 657 | F28: 4355.25 | G28: Vstup žvočíšna výroba
A29: Button 37 | B29: Button 37 | C29: 70.5 | D29: 84.75 | E29: 657 | F29: 4696.5 | G29: Vstup žvočíšna výroba
A30: Picture 1 | B30: Picture 1 | C30: 150 | D30: 795.75 | E30: 0 | F30: 0 | G30: Vstup žvočíšna výroba
A31: Button 38 | B31: Button 38 | C31: 70.5 | D31: 84.75 | E31: 657 | F31: 4770.75 | G31: Vstup žvočíšna výroba
A32: Button 39 | B32: Button 39 | C32: 70.5 | D32: 84.75 | E32: 657 | F32: 5189.25 | G32: Vstup žvočíšna výroba
A33: Button 40 | B33: Button 40 | C33: 70.5 | D33: 84.75 | E33: 657 | F33: 5265 | G33: Vstup žvočíšna výroba
A34: Picture 2 | B34: Picture 2 | C34: 145.2433014 | D34: 795.75 | E34: 0 | F34: 185.5715027 | G34: Vstup žvočíšna výroba
A35: Picture 7 | B35: Picture 7 | C35: 144.9229889 | D35: 795.75 | E35: 0 | F35: 580.0961304 | G35: Vstup žvočíšna výroba
A36: Picture 9 | B36: Picture 9 | C36: 145.5990601 | D36: 795.75 | E36: 0 | F36: 940.4009399 | G36: Vstup žvočíšna výroba
A37: Picture 11 | B37: Picture 11 | C37: 147.7217255 | D37: 793.1745605 | E37: 2.575433016 | F37: 1334.150879 | G37: Vstup žvočíšna výroba
A38: Picture 42 | B38: Picture 42 | C38: 147.0181122 | D38: 795.75 | E38: 0 | F38: 1736.250122 | G38: Vstup žvočíšna výroba
A39: Picture 16 | B39: Picture 16 | C39: 147.4507904 | D39: 795.75 | E39: 0 | F39: 2167.393066 | G39: Vstup žvočíšna výroba
A40: Picture 17 | B40: Picture 17 | C40: 147.0141754 | D40: 747.1556396 | E40: 0 | F40: 2562.651123 | G40: Vstup žvočíšna výroba
A41: Picture 18 | B41: Picture 18 | C41: 148.4292145 | D41: 795.75 | E41: 0 | F41: 2841.115234 | G41: Vstup žvočíšna výroba
A42: Picture 20 | B42: Picture 20 | C42: 144.964325 | D42: 795.75 | E42: 0 | F42: 3264.279053 | G42: Vstup žvočíšna výroba
A43: Picture 21 | B43: Picture 21 | C43: 159.8489838 | D43: 795.75 | E43: 0 | F43: 3694.820557 | G43: Vstup žvočíšna výroba
A44: Picture 3 | B44: Picture 3 | C44: 147.8349609 | D44: 795.75 | E44: 0 | F44: 4093.232422 | G44: Vstup žvočíšna výroba
A45: Picture 10 | B45: Picture 10 | C45: 145.5989838 | D45: 795.75 | E45: 0 | F45: 4474.956543 | G45: Vstup žvočíšna výroba
A46: Picture 12 | B46: Picture 12 | C46: 147.0046387 | D46: 795.75 | E46: 0 | F46: 4957.858398 | G46: Vstup žvočíšna výroba
A47: Rectangle 5 | B47: Rectangle 5 | C47: 21.44645691 | D47: 795.75 | E47: 0 | F47: 129.1304779 | G47: Vstup žvočíšna výroba
A48: TextBox 4 | B48: TextBox 4 | C48: 35.19236374 | D48: 266.6800842 | E48: 46.95653534 | F48: 126.9229889 | G48: Vstup žvočíšna výroba
A49: Picture 6 | B49: Picture 6 | C49: 30.24259758 | D49: 179.8199158 | E49: 519.9456787 | F49: 125.2173996 | G49: Vstup žvočíšna výroba
A50: Button 41 | B50: Button 41 | C50: 87.75 | D50: 471.75 | E50: 171 | F50: 210.75 | G50: Vstup žvočíšna výroba
A51: Button 42 | B51: Button 42 | C51: 87.75 | D51: 471.75 | E51: 160.5 | F51: 605.25 | G51: Vstup žvočíšna výroba
A52: Button 43 | B52: Button 43 | C52: 87.75 | D52: 471.75 | E52: 165 | F52: 969 | G52: Vstup žvočíšna výroba
A53: Button 44 | B53: Button 44 | C53: 87.75 | D53: 471.75 | E53: 154.5 | F53: 1356.749878 | G53: Vstup žvočíšna výroba
A54: Button 45 | B54: Button 45 | C54: 87 | D54: 471.75 | E54: 152.25 | F54: 1761.749878 | G54: Vstup žvočíšna výroba
A55: Button 46 | B55: Button 46 | C55: 87 | D55: 471.75 | E55: 149.25 | F55: 2193.75 | G55: Vstup žvočíšna výroba
A56: Button 47 | B56: Button 47 | C56: 87 | D56: 471.75 | E56: 151.5 | F56: 2590.5 | G56: Vstup žvočíšna výroba
A57: Button 48 | B57: Button 48 | C57: 87 | D57: 471.75 | E57: 153.75 | F57: 2882.25 | G57: Vstup žvočíšna výroba
A58: Button 49 | B58: Button 49 | C58: 87 | D58: 471.75 | E58: 153 | F58: 3295.499756 | G58: Vstup žvočíšna výroba
A59: Button 50 | B59: Button 50 | C59: 87 | D59: 471.75 | E59: 159.75 | F59: 3742.500244 | G59: Vstup žvočíšna výroba
A60: Button 51 | B60: Button 51 | C60: 87 | D60: 471.75 | E60: 152.25 | F60: 4121.25 | G60: Vstup žvočíšna výroba
A61: Button 52 | B61: Button 52 | C61: 87 | D61: 471.75 | E61: 126.75 | F61: 4506.75 | G61: Vstup žvočíšna výroba
A62: Button 53 | B62: Button 53 | C62: 87 | D62: 471.75 | E62: 150.75 | F62: 4986.75 | G62: Vstup žvočíšna výroba
A63: newname | B63: newname | C63: 87 | D63: 81 | E63: 658.5 | F63: 345.75 | G63: Vstup žvočíšna výroba
A64: Button 3 | B64: Button 3 | C64: 87 | D64: 81 | E64: 658.5 | F64: 740.25 | G64: Vstup žvočíšna výroba
A65: Button 4 | B65: Button 4 | C65: 87 | D65: 81 | E65: 657.75 | F65: 1094.25 | G65: Vstup žvočíšna výroba
A66: Button 5 | B66: Button 5 | C66: 87 | D66: 81 | E66: 657 | F66: 1488.749878 | G66: Vstup žvočíšna výroba
A67: Button 6 | B67: Button 6 | C67: 87 | D67: 81 | E67: 658.5 | F67: 1896 | G67: Vstup žvočíšna výroba
A68: Button 7 | B68: Button 7 | C68: 87 | D68: 81 | E68: 658.5 | F68: 2328 | G68: Vstup žvočíšna výroba
A69: Button 8 | B69: Button 8 | C69: 87 | D69: 81 | E69: 653.25 | F69: 2592 | G69: Vstup žvočíšna výroba
A70: Button 9 | B70: Button 9 | C70: 87 | D70: 81 | E70: 658.5 | F70: 3012 | G70: Vstup žvočíšna výroba
A71: Button 10 | B71: Button 10 | C71: 87 | D71: 81 | E71: 658.5 | F71: 3425.25 | G71: Vstup žvočíšna výroba
A72: Button 11 | B72: Button 11 | C72: 87 | D72: 81 | E72: 659.25 | F72: 3817.499756 | G72: Vstup žvočíšna výroba
A73: Button 12 | B73: Button 12 | C73: 87 | D73: 81 | E73: 658.5 | F73: 4252.5 | G73: Vstup žvočíšna výroba
A74: Button 13 | B74: Button 13 | C74: 87 | D74: 81 | E74: 658.5 | F74: 4631.25 | G74: Vstup žvočíšna výroba
A75: Button 14 | B75: Button 14 | C75: 87 | D75: 81 | E75: 658.5 | F75: 5116.5 | G75: Vstup žvočíšna výroba
A76: Button 1 | B76: Button 1 | C76: 97.39291382 | D76: 70.5 | E76: 565.8214111 | F76: 82.17858124 | G76: Vstup rastlinná výroba
A77: Button 3 | B77: Button 3 | C77: 19.60716629 | D77: 70.5 | E77: 565.8214111 | F77: 132.3214111 | G77: Vstup rastlinná výroba
A78: Button 4 | B78: Button 4 | C78: 19.60716629 | D78: 70.5 | E78: 565.8214111 | F78: 152.6785889 | G78: Vstup rastlinná výroba
A79: Button 5 | B79: Button 5 | C79: 19.60708618 | D79: 70.5 | E79: 566.5714111 | F79: 173.0357513 | G79: Vstup rastlinná výroba
A80: Button 6 | B80: Button 6 | C80: 19.60716629 | D80: 70.5 | E80: 565.8214111 | F80: 193.3928375 | G80: Vstup rastlinná výroba
A81: Button 8 | B81: Button 8 | C81: 19.60716629 | D81: 70.5 | E81: 565.8214111 | F81: 213.75 | G81: Vstup rastlinná výroba
A82: Button 9 | B82: Button 9 | C82: 19.60708618 | D82: 70.5 | E82: 565.8214111 | F82: 234.1071625 | G82: Vstup rastlinná výroba
A83: Button 10 | B83: Button 10 | C83: 19.60716629 | D83: 70.5 | E83: 565.8214111 | F83: 254.4642487 | G83: Vstup rastlinná výroba
A84: Button 11 | B84: Button 11 | C84: 19.60716629 | D84: 70.5 | E84: 565.8214111 | F84: 274.8214111 | G84: Vstup rastlinná výroba
A85: Button 12 | B85: Button 12 | C85: 19.60716629 | D85: 70.5 | E85: 565.8214111 | F85: 295.1785889 | G85: Vstup rastlinná výroba
A86: Button 13 | B86: Button 13 | C86: 19.60708618 | D86: 70.5 | E86: 565.8214111 | F86: 315.5357361 | G86: Vstup rastlinná výroba
A87: Button 14 | B87: Button 14 | C87: 19.60716629 | D87: 70.5 | E87: 565.8214111 | F87: 335.8928223 | G87: Vstup rastlinná výroba
A88: Button 15 | B88: Button 15 | C88: 19.60716629 | D88: 70.5 | E88: 565.8214111 | F88: 356.25 | G88: Vstup rastlinná výroba
A89: Button 16 | B89: Button 16 | C89: 19.60708618 | D89: 70.5 | E89: 565.8214111 | F89: 376.6071777 | G89: Vstup rastlinná výroba
A90: Button 17 | B90: Button 17 | C90: 19.60716629 | D90: 70.5 | E90: 565.8214111 | F90: 396.9642639 | G90: Vstup rastlinná výroba
A91: Button 18 | B91: Button 18 | C91: 19.60716629 | D91: 70.5 | E91: 565.8214111 | F91: 417.3214111 | G91: Vstup rastlinná výroba
A92: Button 19 | B92: Button 19 | C92: 18.10716629 | D92: 70.5 | E92: 565.8214111 | F92: 436.9285889 | G92: Vstup rastlinná výroba
A93: Button 20 | B93: Button 20 | C93: 19.60708618 | D93: 70.5 | E93: 566.5714111 | F93: 455.0357361 | G93: Vstup rastlinná výroba
A94: Button 22 | B94: Button 22 | C94: 19.60716629 | D94: 70.5 | E94: 566.5714111 | F94: 475.3928223 | G94: Vstup rastlinná výroba
A95: Button 23 | B95: Button 23 | C95: 19.60716629 | D95: 70.5 | E95: 566.5714111 | F95: 495.75 | G95: Vstup rastlinná výroba
A96: Button 25 | B96: Button 25 | C96: 19.60708618 | D96: 70.5 | E96: 566.5714111 | F96: 516.1071777 | G96: Vstup rastlinná výroba
A97: Button 26 | B97: Button 26 | C97: 19.60716629 | D97: 70.5 | E97: 566.5714111 | F97: 536.4642334 | G97: Vstup rastlinná výroba
A98: Button 27 | B98: Button 27 | C98: 19.60716629 | D98: 70.5 | E98: 566.5714111 | F98: 556.8214111 | G98: Vstup rastlinná výroba
A99: Button 28 | B99: Button 28 | C99: 19.60716629 | D99: 70.5 | E99: 566.5714111 | F99: 577.1785889 | G99: Vstup rastlinná výroba
A100: Button 29 | B100: Button 29 | C100: 19.60708618 | D100: 70.5 | E100: 566.5714111 | F100: 597.5357666 | G100: Vstup rastlinná výroba
A101: Button 30 | B101: Button 30 | C101: 50.89283371 | D101: 54 | E101: 646.0714111 | F101: 82.17858124 | G101: Vstup rastlinná výroba
A102: Button 31 | B102: Button 31 | C102: 20.35716629 | D102: 53.25 | E102: 646.8214111 | F102: 133.0714111 | G102: Vstup rastlinná výroba
A103: Button 32 | B103: Button 32 | C103: 20.35716629 | D103: 53.25 | E103: 646.8214111 | F103: 153.4285889 | G103: Vstup rastlinná výroba
A104: Button 33 | B104: Button 33 | C104: 20.35708618 | D104: 53.25 | E104: 646.8214111 | F104: 173.7857513 | G104: Vstup rastlinná výroba
A105: Button 34 | B105: Button 34 | C105: 20.35716629 | D105: 53.25 | E105: 646.8214111 | F105: 194.1428375 | G105: Vstup rastlinná výroba
A106: Button 35 | B106: Button 35 | C106: 20.35716629 | D106: 53.25 | E106: 646.8214111 | F106: 214.5 | G106: Vstup rastlinná výroba
A107: Button 36 | B107: Button 36 | C107: 20.35708618 | D107: 53.25 | E107: 646.8214111 | F107: 234.8571625 | G107: Vstup rastlinná výroba
A108: Button 38 | B108: Button 38 | C108: 20.35716629 | D108: 53.25 | E108: 646.8214111 | F108: 255.2142487 | G108: Vstup rastlinná výroba
A109: Button 39 | B109: Button 39 | C109: 20.35716629 | D109: 53.25 | E109: 646.8214111 | F109: 275.5714111 | G109: Vstup rastlinná výroba
A110: Button 40 | B110: Button 40 | C110: 20.35716629 | D110: 53.25 | E110: 646.8214111 | F110: 295.9285889 | G110: Vstup rastlinná výroba
A111: Button 41 | B111: Button 41 | C111: 20.35708618 | D111: 53.25 | E111: 646.8214111 | F111: 316.2857361 | G111: Vstup rastlinná výroba
A112: Button 42 | B112: Button 42 | C112: 20.35716629 | D112: 53.25 | E112: 646.8214111 | F112: 336.6428223 | G112: Vstup rastlinná výroba
A113: Button 43 | B113: Button 43 | C113: 20.35716629 | D113: 53.25 | E113: 646.8214111 | F113: 357 | G113: Vstup rastlinná výroba
A114: Button 44 | B114: Button 44 | C114: 20.35708618 | D114: 53.25 | E114: 646.8214111 | F114: 377.3571777 | G114: Vstup rastlinná výroba
A115: Button 45 | B115: Button 45 | C115: 20.35716629 | D115: 53.25 | E115: 646.8214111 | F115: 397.7142639 | G115: Vstup rastlinná výroba
A116: Button 46 | B116: Button 46 | C116: 20.35716629 | D116: 53.25 | E116: 646.8214111 | F116: 418.0714111 | G116: Vstup rastlinná výroba
A117: Button 47 | B117: Button 47 | C117: 20.35716629 | D117: 53.25 | E117: 646.8214111 | F117: 438.4285889 | G117: Vstup rastlinná výroba
A118: Button 48 | B118: Button 48 | C118: 20.35708618 | D118: 53.25 | E118: 646.8214111 | F118: 458.7857361 | G118: Vstup rastlinná výroba
A119: Button 49 | B119: Button 49 | C119: 20.35716629 | D119: 53.25 | E119: 646.8214111 | F119: 479.1428223 | G119: Vstup rastlinná výroba
A120: Button 51 | B120: Button 51 | C120: 20.35716629 | D120: 53.25 | E120: 646.8214111 | F120: 499.5 | G120: Vstup rastlinná výroba
A121: Button 52 | B121: Button 52 | C121: 20.35708618 | D121: 53.25 | E121: 646.8214111 | F121: 519.8571777 | G121: Vstup rastlinná výroba
A122: Button 53 | B122: Button 53 | C122: 20.35716629 | D122: 53.25 | E122: 646.8214111 | F122: 540.2142334 | G122: Vstup rastlinná výroba
A123: Button 54 | B123: Button 54 | C123: 20.35716629 | D123: 53.25 | E123: 646.8214111 | F123: 560.5714111 | G123: Vstup rastlinná výroba
A124: Button 55 | B124: Button 55 | C124: 20.35716629 | D124: 53.25 | E124: 646.8214111 | F124: 580.9285889 | G124: Vstup rastlinná výroba
A125: Button 56 | B125: Button 56 | C125: 20.35708618 | D125: 53.25 | E125: 646.8214111 | F125: 601.2857666 | G125: Vstup rastlinná výroba
A126: Picture 1 | B126: Picture 1 | C126: 637.4180298 | D126: 242.7273254 | E126: 701.2012329 | F126: 21.61763763 | G126: Vstup rastlinná výroba
A127: Picture 52 | B127: Picture 52 | C127: 67.20779419 | D127: 237.2726746 | E127: 702.3701782 | F127: 0 | G127: Vstup rastlinná výroba
A128: Button 57 | B128: Button 57 | C128: 107.8928375 | D128: 108 | E128: 763.3928223 | F128: 275.5714111 | G128: Vstup rastlinná výroba
A129: Comment 61 | B129: Comment 61 | C129: 58.5 | D129: 108 | E129: 574.5 | F129: 2.25 | G129: Vstup rastlinná výroba
A130: Button 8 | B130: Button 8 | C130: 0 | D130: 209.25 | E130: 625.9285889 | F130: 669.6428223 | G130: Výstup živočíšna výroba
A131: Button 14 | B131: Button 14 | C131: 0 | D131: 176.25 | E131: 611.6785889 | F131: 669.6428223 | G131: Výstup živočíšna výroba
A132: Button 17 | B132: Button 17 | C132: 0 | D132: 176.25 | E132: 616.1785889 | F132: 669.6428223 | G132: Výstup živočíšna výroba
A133: Button 20 | B133: Button 20 | C133: 0 | D133: 176.25 | E133: 616.1785889 | F133: 669.6428223 | G133: Výstup živočíšna výroba
A134: Button 21 | B134: Button 21 | C134: 70.5 | D134: 70.5 | E134: 609.4285889 | F134: 510.6428223 | G134: Výstup živočíšna výroba
A135: Button 22 | B135: Button 22 | C135: 70.5 | D135: 70.5 | E135: 750.4285889 | F135: 510.6428223 | G135: Výstup živočíšna výroba
A136: Button 23 | B136: Button 23 | C136: 70.5 | D136: 70.5 | E136: 884.6785889 | F136: 508.3928223 | G136: Výstup živočíšna výroba
A137: Button 24 | B137: Button 24 | C137: 69.75 | D137: 70.5 | E137: 1282.928589 | F137: 504.6428223 | G137: Výstup živočíšna výroba
A138: Button 25 | B138: Button 25 | C138: 69.75 | D138: 70.5 | E138: 1016.678589 | F138: 508.3928223 | G138: Výstup živočíšna výroba
A139: Button 26 | B139: Button 26 | C139: 69 | D139: 70.5 | E139: 1158.428589 | F139: 506.8928223 | G139: Výstup živočíšna výroba
A140: Picture 1 | B140: Picture 1 | C140: 180 | D140: 468.0629272 | E140: 57.66810989 | F140: 489.6428223 | G140: Výstup živočíšna výroba
A141: Picture 15 | B141: Picture 15 | C141: 63.40000153 | D141: 229.3829956 | E141: 1134.075562 | F141: 0 | G141: Výstup živočíšna výroba
A142: Button 27 | B142: Button 27 | C142: 0 | D142: 492.75 | E142: 762.4285889 | F142: 669.6428223 | G142: Výstup živočíšna výroba
A143: Button 28 | B143: Button 28 | C143: 0 | D143: 449.25 | E143: 706.1785889 | F143: 669.6428223 | G143: Výstup živočíšna výroba
A144: Button 1053 | B144: Button 1053 | C144: 69 | D144: 228.75 | E144: 1015.928589 | F144: 594.6428223 | G144: Výstup živočíšna výroba
A145: Picture 5 | B145: Picture 5 | C145: 496.0715027 | D145: 161.8461456 | E145: 1104.582397 | F145: 28.92850304 | G145: Výstup rastlinná výroba
A146: Picture 3 | B146: Picture 3 | C146: 49.28574753 | D146: 162.8570862 | E146: 1103.571289 | F146: 0 | G146: Výstup rastlinná výroba
A147: Picture 6 | B147: Picture 6 | C147: 300.0000916 | D147: 631.0714111 | E147: 635.3571777 | F147: 522.8571167 | G147: Výstup rastlinná výroba
A148: Button 8 | B148: Button 8 | C148: 103.7143326 | D148: 340.1785889 | E148: 668.3571777 | F148: 564.6428223 | G148: Výstup rastlinná výroba
A149: Button 19 | B149: Button 19 | C149: 67.60708618 | D149: 338.6785889 | E149: 669.8571777 | F149: 698.0357666 | G149: Výstup rastlinná výroba
A150: Comment 1 | B150: Comment 1 | C150: 59.25 | D150: 108 | E150: 579 | F150: 415.5 | G150: Výstup rastlinná výroba
A151: Comment 2 | B151: Comment 2 | C151: 59.25 | D151: 108 | E151: 579 | F151: 431.25 | G151: Výstup rastlinná výroba
A152: Comment 3 | B152: Comment 3 | C152: 59.25 | D152: 108 | E152: 579 | F152: 447 | G152: Výstup rastlinná výroba
A153: Comment 4 | B153: Comment 4 | C153: 59.25 | D153: 108 | E153: 579 | F153: 462.75 | G153: Výstup rastlinná výroba
A154: Comment 5 | B154: Comment 5 | C154: 28.5 | D154: 208.5 | E154: 396.75 | F154: 447 | G154: Výstup rastlinná výroba
A155: Comment 17 | B155: Comment 17 | C155: 63 | D155: 94.5 | E155: 78 | F155: 642.75 | G155: Výstup rastlinná výroba
A156: Comment 18 | B156: Comment 18 | C156: 96 | D156: 94.5 | E156: 78 | F156: 570.75 | G156: Výstup rastlinná výroba
A157: Obrázok 2 | B157: Obrázok 2 | C157: 161.322052 | D157: 242.25 | E157: 476.2499084 | F157: 158.3331451 | G157: Výstup podniku spolu
A158: Obrázok 3 | B158: Obrázok 3 | C158: 161.6498413 | D158: 234.2506256 | E158: 242.1029205 | F158: 158.0450439 | G158: Výstup podniku spolu
A159: Obrázok 4 | B159: Obrázok 4 | C159: 161.4797668 | D159: 241.557724 | E159: 0.576929152 | F159: 158.2758331 | G159: Výstup podniku spolu
A160: Picture 3 | B160: Picture 3 | C160: 49.28574753 | D160: 162.8570862 | E160: 689.1170044 | F160: 0 | G160: Výstup podniku spolu
A161: Button 4 | B161: Button 4 | C161: 57 | D161: 141.75 | E161: 37.5 | F161: 165.75 | G161: Výstup podniku spolu
A162: Button 29 | B162: Button 29 | C162: 57 | D162: 141.75 | E162: 292.5 | F162: 165 | G162: Výstup podniku spolu
A163: Button 30 | B163: Button 30 | C163: 57 | D163: 141.75 | E163: 291.75 | F163: 237.75 | G163: Výstup podniku spolu
A164: Button 31 | B164: Button 31 | C164: 57 | D164: 141.75 | E164: 36.75 | F164: 240 | G164: Výstup podniku spolu
A165: Button 1 | B165: Button 1 | C165: 34.47291183 | D165: 154.9970093 | E165: 925.7078247 | F165: 253.1295319 | G165: DOJN

Sheet Sheet3 (hidden)
A1: Table1 | B1: Kategória komodity | C1: Ukazovatele | D1: Úroda z 1 hektára | E1: Cena | F1: Dotácie | G1: Vlastné náklady | H1: Plocha osevu | I1: Prepočítať | J1: Vymazať | K1: tonnes | L1: Euro / 1 tonne | M1: Euro / 1 ha agricultural land | N1: Euro / 1 ha agricultural land2 | O1: ha | P1: dotácie Euro / 1 ha | Q1: dotácie Euro / 1 ha2 | R1: vlastné náklady Euro / 1 ha | S1: vlastné náklady Euro / 1 ha | T1: plocha osevu ha | U1: plocha osevu ha
A2: Table2 | B2: Ukazovateľ za chov spolu | C2: Merná jednotka | D2: Chov HD | E2: Chov ošípanych | F2: Chov oviec | G2: Nosnice | H2: Výkrm kurčiat | I2: Kozy | J2: Spolu
A3: Tabuľka47 | B3: Ukazovateľ HD | C3: Fyzický stav počty zvierat v kategórii
A4: Tabuľka48 | B4: Ukazovateľ ošípane | C4: Fyzický stav počty zvierat v kategórii
A5: Tabuľka49 | B5: Ukazovateľ ovce | C5: Fyzický stav počty zvierat v kategórii
A6: Tabuľka4910 | B6: Ukazovateľ kozy | C6: Fyzický stav počty zvierat v kategórii
A7: Tabuľka10 | B7: Ukazovateľ | C7: Jednotka | D7: Hodnota
A8: Tabuľka11 | B8: Ukazovateľ | C8: Jednotka | D8: Hodnota
A9: Tabuľka12 | B9: Ukazovateľ | C9: Jednotka | D9: Hodnota
A10: Tabuľka3 | B10: HA | C10: Jednotka | D10: CHOV HD | E10: CHOV OVCE | F10: CHOV KOZY | G10: SPOLU

Sheet zoznam tvarov (hidden)
A2: Picture 1 | B2: Picture 1 | C2: 219.75 | D2: 1160.617065 | E2: 49.90472412 | F2: 0 | G2: jazyk
A3: Skupina 18 | B3: Skupina 18 | C3: 113.3858261 | D3: 195.8917389 | E3: 230.0107117 | F3: 510.674408 | G3: jazyk
A4: Skupina 15 | B4: Skupina 15 | C4: 82.85645294 | D4: 195.3014984 | E4: 426.6429138 | F4: 264.6304626 | G4: jazyk
A5: Skupina 14 | B5: Skupina 14 | C5: 82.85645294 | D5: 195.3014984 | E5: 41.28133774 | F5: 262.5947266 | G5: jazyk
A6: Skupina 17 | B6: Skupina 17 | C6: 107.6064529 | D6: 194.3857422 | E6: 39.94527435 | F6: 365.5966797 | G6: jazyk
A7: Skupina 16 | B7: Skupina 16 | C7: 107.6064529 | D7: 191.8141785 | E7: 424.5881958 | F7: 369.5609436 | G7: jazyk
A8: Picture 6 | B8: Picture 6 | C8: 50.53165436 | D8: 384.0100708 | E8: 844.2252808 | F8: 183.5295258 | G8: jazyk
A9: Button 1 | B9: Button 1 | C9: 145.6071625 | D9: 70.5 | E9: 565.8214111 | F9: 82.17858124 | G9: Vstup rastlinná výroba
A10: Button 3 | B10: Button 3 | C10: 19.60716629 | D10: 70.5 | E10: 565.8214111 | F10: 132.3214111 | G10: Vstup rastlinná výroba
A11: Button 4 | B11: Button 4 | C11: 19.60716629 | D11: 70.5 | E11: 565.8214111 | F11: 152.6785889 | G11: Vstup rastlinná výroba
A12: Button 5 | B12: Button 5 | C12: 19.60708618 | D12: 70.5 | E12: 566.5714111 | F12: 173.0357513 | G12: Vstup rastlinná výroba
A13: Button 6 | B13: Button 6 | C13: 19.60716629 | D13: 70.5 | E13: 565.8214111 | F13: 193.3928375 | G13: Vstup rastlinná výroba
A14: Button 8 | B14: Button 8 | C14: 19.60716629 | D14: 70.5 | E14: 565.8214111 | F14: 213.75 | G14: Vstup rastlinná výroba
A15: Button 9 | B15: Button 9 | C15: 19.60708618 | D15: 70.5 | E15: 565.8214111 | F15: 234.1071625 | G15: Vstup rastlinná výroba
A16: Button 10 | B16: Button 10 | C16: 19.60716629 | D16: 70.5 | E16: 565.8214111 | F16: 254.4642487 | G16: Vstup rastlinná výroba
A17: Button 11 | B17: Button 11 | C17: 19.60716629 | D17: 70.5 | E17: 565.8214111 | F17: 274.8214111 | G17: Vstup rastlinná výroba
A18: Button 12 | B18: Button 12 | C18: 19.60716629 | D18: 70.5 | E18: 565.8214111 | F18: 295.1785889 | G18: Vstup rastlinná výroba
A19: Button 13 | B19: Button 13 | C19: 19.60708618 | D19: 70.5 | E19: 565.8214111 | F19: 315.5357361 | G19: Vstup rastlinná výroba
A20: Button 14 | B20: Button 14 | C20: 19.60716629 | D20: 70.5 | E20: 565.8214111 | F20: 335.8928223 | G20: Vstup rastlinná výroba
A21: Button 15 | B21: Button 15 | C21: 19.60716629 | D21: 70.5 | E21: 565.8214111 | F21: 356.25 | G21: Vstup rastlinná výroba
A22: Button 16 | B22: Button 16 | C22: 19.60708618 | D22: 70.5 | E22: 565.8214111 | F22: 376.6071777 | G22: Vstup rastlinná výroba
A23: Button 17 | B23: Button 17 | C23: 19.60716629 | D23: 70.5 | E23: 565.8214111 | F23: 396.9642639 | G23: Vstup rastlinná výroba
A24: Button 18 | B24: Button 18 | C24: 19.60716629 | D24: 70.5 | E24: 565.8214111 | F24: 417.3214111 | G24: Vstup rastlinná výroba
A25: Button 19 | B25: Button 19 | C25: 18.10716629 | D25: 70.5 | E25: 565.8214111 | F25: 436.9285889 | G25: Vstup rastlinná výroba
A26: Button 20 | B26: Button 20 | C26: 19.60708618 | D26: 70.5 | E26: 566.5714111 | F26: 455.0357361 | G26: Vstup rastlinná výroba
A27: Button 22 | B27: Button 22 | C27: 19.60716629 | D27: 70.5 | E27: 566.5714111 | F27: 475.3928223 | G27: Vstup rastlinná výroba
A28: Button 23 | B28: Button 23 | C28: 19.60716629 | D28: 70.5 | E28: 566.5714111 | F28: 495.75 | G28: Vstup rastlinná výroba
A29: Button 25 | B29: Button 25 | C29: 19.60708618 | D29: 70.5 | E29: 566.5714111 | F29: 516.1071777 | G29: Vstup rastlinná výroba
A30: Button 26 | B30: Button 26 | C30: 19.60716629 | D30: 70.5 | E30: 566.5714111 | F30: 536.4642334 | G30: Vstup rastlinná výroba
A31: Button 27 | B31: Button 27 | C31: 19.60716629 | D31: 70.5 | E31: 566.5714111 | F31: 556.8214111 | G31: Vstup rastlinná výroba
A32: Button 28 | B32: Button 28 | C32: 19.60716629 | D32: 70.5 | E32: 566.5714111 | F32: 577.1785889 | G32: Vstup rastlinná výroba
A33: Button 29 | B33: Button 29 | C33: 19.60708618 | D33: 70.5 | E33: 566.5714111 | F33: 597.5357666 | G33: Vstup rastlinná výroba
A34: Button 30 | B34: Button 30 | C34: 50.89283371 | D34: 62.25 | E34: 646.0714111 | F34: 82.17858124 | G34: Vstup rastlinná výroba
A35: Button 31 | B35: Button 31 | C35: 20.35716629 | D35: 61.5 | E35: 646.8214111 | F35: 133.0714111 | G35: Vstup rastlinná výroba
A36: Button 32 | B36: Button 32 | C36: 20.35716629 | D36: 61.5 | E36: 646.8214111 | F36: 153.4285889 | G36: Vstup rastlinná výroba
A37: Button 33 | B37: Button 33 | C37: 20.35708618 | D37: 61.5 | E37: 646.8214111 | F37: 173.7857513 | G37: Vstup rastlinná výroba
A38: Button 34 | B38: Button 34 | C38: 20.35716629 | D38: 61.5 | E38: 646.8214111 | F38: 194.1428375 | G38: Vstup rastlinná výroba
A39: Button 35 | B39: Button 35 | C39: 20.35716629 | D39: 61.5 | E39: 646.8214111 | F39: 214.5 | G39: Vstup rastlinná výroba
A40: Button 36 | B40: Button 36 | C40: 20.35708618 | D40: 61.5 | E40: 646.8214111 | F40: 234.8571625 | G40: Vstup rastlinná výroba
A41: Button 38 | B41: Button 38 | C41: 20.35716629 | D41: 61.5 | E41: 646.8214111 | F41: 255.2142487 | G41: Vstup rastlinná výroba
A42: Button 39 | B42: Button 39 | C42: 20.35716629 | D42: 61.5 | E42: 646.8214111 | F42: 275.5714111 | G42: Vstup rastlinná výroba
A43: Button 40 | B43: Button 40 | C43: 20.35716629 | D43: 61.5 | E43: 646.8214111 | F43: 295.9285889 | G43: Vstup rastlinná výroba
A44: Button 41 | B44: Button 41 | C44: 20.35708618 | D44: 61.5 | E44: 646.8214111 | F44: 316.2857361 | G44: Vstup rastlinná výroba
A45: Button 42 | B45: Button 42 | C45: 20.35716629 | D45: 61.5 | E45: 646.8214111 | F45: 336.6428223 | G45: Vstup rastlinná výroba
A46: Button 43 | B46: Button 43 | C46: 20.35716629 | D46: 61.5 | E46: 646.8214111 | F46: 357 | G46: Vstup rastlinná výroba
A47: Button 44 | B47: Button 44 | C47: 20.35708618 | D47: 61.5 | E47: 646.8214111 | F47: 377.3571777 | G47: Vstup rastlinná výroba
A48: Button 45 | B48: Button 45 | C48: 20.35716629 | D48: 61.5 | E48: 646.8214111 | F48: 397.7142639 | G48: Vstup rastlinná výroba
A49: Button 46 | B49: Button 46 | C49: 20.35716629 | D49: 61.5 | E49: 646.8214111 | F49: 418.0714111 | G49: Vstup rastlinná výroba
A50: Button 47 | B50: Button 47 | C50: 20.35716629 | D50: 61.5 | E50: 646.8214111 | F50: 438.4285889 | G50: Vstup rastlinná výroba
A51: Button 48 | B51: Button 48 | C51: 20.35708618 | D51: 61.5 | E51: 646.8214111 | F51: 458.7857361 | G51: Vstup rastlinná výroba
A52: Button 49 | B52: Button 49 | C52: 20.35716629 | D52: 61.5 | E52: 646.8214111 | F52: 479.1428223 | G52: Vstup rastlinná výroba
A53: Button 51 | B53: Button 51 | C53: 20.35716629 | D53: 61.5 | E53: 646.8214111 | F53: 499.5 | G53: Vstup rastlinná výroba
A54: Button 52 | B54: Button 52 | C54: 20.35708618 | D54: 61.5 | E54: 646.8214111 | F54: 519.8571777 | G54: Vstup rastlinná výroba
A55: Button 53 | B55: Button 53 | C55: 20.35716629 | D55: 61.5 | E55: 646.8214111 | F55: 540.2142334 | G55: Vstup rastlinná výroba
A56: Button 54 | B56: Button 54 | C56: 20.35716629 | D56: 61.5 | E56: 646.8214111 | F56: 560.5714111 | G56: Vstup rastlinná výroba
A57: Button 55 | B57: Button 55 | C57: 20.35716629 | D57: 61.5 | E57: 646.8214111 | F57: 580.9285889 | G57: Vstup rastlinná výroba
A58: Button 56 | B58: Button 56 | C58: 20.35708618 | D58: 61.5 | E58: 646.8214111 | F58: 601.2857666 | G58: Vstup rastlinná výroba
A59: Picture 1 | B59: Picture 1 | C59: 653.3822632 | D59: 242.7273254 | E59: 807.2727051 | F59: 21.61763763 | G59: Vstup rastlinná výroba
A60: Picture 52 | B60: Picture 52 | C60: 67.20779419 | D60: 237.2726746 | E60: 808.4415894 | F60: 0 | G60: Vstup rastlinná výroba
A61: Button 57 | B61: Button 57 | C61: 107.8928375 | D61: 108 | E61: 869.4642334 | F61: 275.5714111 | G61: Vstup rastlinná výroba
A62: Button 62 | B62: Button 62 | C62: 157.5 | D62: 134.25 | E62: 816.2142334 | F62: 76.92858124 | G62: Vstup rastlinná výroba
A63: Button 63 | B63: Button 63 | C63: 125.25 | D63: 135 | E63: 816.2142334 | F63: 244.7142487 | G63: Vstup rastlinná výroba
A64: Button 93 | B64: Button 93 | C64: 51 | D64: 226.5 | E64: 815.4642334 | F64: 424.1785889 | G64: Vstup rastlinná výroba
A65: Button 94 | B65: Button 94 | C65: 50.25 | D65: 225 | E65: 816.2142334 | F65: 478.3928223 | G65: Vstup rastlinná výroba
A66: Button 95 | B66: Button 95 | C66: 62.25 | D66: 222 | E66: 818.4642334 | F66: 541.8214111 | G66: Vstup rastlinná výroba
A67: Comment 61 | B67: Comment 61 | C67: 58.5 | D67: 108 | E67: 574.5 | F67: 2.25 | G67: Vstup rastlinná výroba
A68: Button 1 | B68: Button 1 | C68: 20.25 | D68: 170.25 | E68: 32.25 | F68: 9 | G68: tlacidka vymaz RV jedn
A69: Button 2 | B69: Button 2 | C69: 20.25 | D69: 170.25 | E69: 33 | F69: 29.25 | G69: tlacidka vymaz RV jedn
A70: Button 3 | B70: Button 3 | C70: 20.25 | D70: 170.25 | E70: 32.25 | F70: 49.5 | G70: tlacidka vymaz RV jedn
A71: Button 4 | B71: Button 4 | C71: 20.25 | D71: 169.5 | E71: 32.25 | F71: 69.75 | G71: tlacidka vymaz RV jedn
A72: Button 5 | B72: Button 5 | C72: 20.25 | D72: 170.25 | E72: 32.25 | F72: 90 | G72: tlacidka vymaz RV jedn
A73: Button 6 | B73: Button 6 | C73: 20.25 | D73: 170.25 | E73: 32.25 | F73: 110.25 | G73: tlacidka vymaz RV jedn
A74: Button 7 | B74: Button 7 | C74: 20.25 | D74: 170.25 | E74: 32.25 | F74: 130.5 | G74: tlacidka vymaz RV jedn
A75: Button 8 | B75: Button 8 | C75: 20.25 | D75: 170.25 | E75: 32.25 | F75: 150.75 | G75: tlacidka vymaz RV jedn
A76: Button 9 | B76: Button 9 | C76: 20.25 | D76: 170.25 | E76: 32.25 | F76: 171 | G76: tlacidka vymaz RV jedn
A77: Button 10 | B77: Button 10 | C77: 20.25 | D77: 170.25 | E77: 32.25 | F77: 191.25 | G77: tlacidka vymaz RV jedn
A78: Button 11 | B78: Button 11 | C78: 20.25 | D78: 170.25 | E78: 32.25 | F78: 211.5 | G78: tlacidka vymaz RV jedn
A79: Button 12 | B79: Button 12 | C79: 20.25 | D79: 170.25 | E79: 32.25 | F79: 231.75 | G79: tlacidka vymaz RV jedn
A80: Button 13 | B80: Button 13 | C80: 20.25 | D80: 170.25 | E80: 32.25 | F80: 252 | G80: tlacidka vymaz RV jedn
A81: Button 14 | B81: Button 14 | C81: 20.25 | D81: 170.25 | E81: 32.25 | F81: 272.25 | G81: tlacidka vymaz RV jedn
A82: Button 15 | B82: Button 15 | C82: 20.25 | D82: 170.25 | E82: 32.25 | F82: 292.5 | G82: tlacidka vymaz RV jedn
A83: Button 16 | B83: Button 16 | C83: 20.25 | D83: 170.25 | E83: 32.25 | F83: 312.75 | G83: tlacidka vymaz RV jedn
A84: Button 17 | B84: Button 17 | C84: 20.25 | D84: 170.25 | E84: 32.25 | F84: 333 | G84: tlacidka vymaz RV jedn
A85: Button 18 | B85: Button 18 | C85: 20.25 | D85: 170.25 | E85: 32.25 | F85: 353.25 | G85: tlacidka vymaz RV jedn
A86: Button 19 | B86: Button 19 | C86: 20.25 | D86: 170.25 | E86: 32.25 | F86: 373.5 | G86: tlacidka vymaz RV jedn
A87: Button 20 | B87: Button 20 | C87: 20.25 | D87: 170.25 | E87: 32.25 | F87: 393.75 | G87: tlacidka vymaz RV jedn
A88: Button 21 | B88: Button 21 | C88: 20.25 | D88: 170.25 | E88: 32.25 | F88: 414 | G88: tlacidka vymaz RV jedn
A89: Button 22 | B89: Button 22 | C89: 20.25 | D89: 170.25 | E89: 32.25 | F89: 434.25 | G89: tlacidka vymaz RV jedn
A90: Button 23 | B90: Button 23 | C90: 20.25 | D90: 170.25 | E90: 32.25 | F90: 454.5 | G90: tlacidka vymaz RV jedn
A91: Button 24 | B91: Button 24 | C91: 20.25 | D91: 170.25 | E91: 32.25 | F91: 474.75 | G91: tlacidka vymaz RV jedn
A92: Button 25 | B92: Button 25 | C92: 20.25 | D92: 170.25 | E92: 32.25 | F92: 495 | G92: tlacidka vymaz RV jedn
A93: Button 1 | B93: Button 1 | C93: 56.25 | D93: 84.75 | E93: 657.75 | F93: 393.75 | G93: Vstup žvočíšna výroba
A94: Button 2 | B94: Button 2 | C94: 56.25 | D94: 84.75 | E94: 657.75 | F94: 454.5 | G94: Vstup žvočíšna výroba
A95: Button 3 | B95: Button 3 | C95: 56.25 | D95: 84.75 | E95: 656.25 | F95: 766.5 | G95: Vstup žvočíšna výroba
A96: Button 4 | B96: Button 4 | C96: 57 | D96: 84.75 | E96: 656.25 | F96: 828 | G96: Vstup žvočíšna výroba
A97: Button 5 | B97: Button 5 | C97: 57 | D97: 84.75 | E97: 657 | F97: 1136.25 | G97: Vstup žvočíšna výroba
A98: Button 6 | B98: Button 6 | C98: 55.5 | D98: 84.75 | E98: 658.5 | F98: 1200 | G98: Vstup žvočíšna výroba
A99: Button 7 | B99: Button 7 | C99: 54.75 | D99: 84.75 | E99: 657.75 | F99: 1511.250122 | G99: Vstup žvočíšna výroba
A100: Button 8 | B100: Button 8 | C100: 70.5 | D100: 84.75 | E100: 657.75 | F100: 1572 | G100: Vstup žvočíšna výroba
A101: Button 9 | B101: Button 9 | C101: 69 | D101: 84.75 | E101: 657.75 | F101: 1932.749878 | G101: Vstup žvočíšna výroba
A102: Button 10 | B102: Button 10 | C102: 69.75 | D102: 84.75 | E102: 657.75 | F102: 2007 | G102: Vstup žvočíšna výroba
A103: Button 21 | B103: Button 21 | C103: 69 | D103: 84.75 | E103: 657 | F103: 2358.75 | G103: Vstup žvočíšna výroba
A104: Button 22 | B104: Button 22 | C104: 69.75 | D104: 84.75 | E104: 657 | F104: 2433 | G104: Vstup žvočíšna výroba
A105: Button 23 | B105: Button 23 | C105: 45.75 | D105: 84.75 | E105: 656.25 | F105: 2761.499756 | G105: Vstup žvočíšna výroba
A106: Button 24 | B106: Button 24 | C106: 45.75 | D106: 84.75 | E106: 656.25 | F106: 2712.75 | G106: Vstup žvočíšna výroba
A107: Button 25 | B107: Button 25 | C107: 69.75 | D107: 84.75 | E107: 657 | F107: 3045 | G107: Vstup žvočíšna výroba
A108: Button 26 | B108: Button 26 | C108: 55.5 | D108: 84.75 | E108: 657 | F108: 3114.75 | G108: Vstup žvočíšna výroba
A109: Button 29 | B109: Button 29 | C109: 70.5 | D109: 84.75 | E109: 657.75 | F109: 3471.75 | G109: Vstup žvočíšna výroba
A110: Button 30 | B110: Button 30 | C110: 69 | D110: 84.75 | E110: 657.75 | F110: 3546.75 | G110: Vstup žvočíšna výroba
A111: Button 31 | B111: Button 31 | C111: 67.5 | D111: 84.75 | E111: 657.75 | F111: 3885.75 | G111: Vstup žvočíšna výroba
A112: Button 32 | B112: Button 32 | C112: 67.5 | D112: 84.75 | E112: 657.75 | F112: 3954.75 | G112: Vstup žvočíšna výroba
A113: Button 35 | B113: Button 35 | C113: 70.5 | D113: 84.75 | E113: 657 | F113: 4280.25 | G113: Vstup žvočíšna výroba
A114: Button 36 | B114: Button 36 | C114: 70.5 | D114: 84.75 | E114: 657 | F114: 4355.25 | G114: Vstup žvočíšna výroba
A115: Button 37 | B115: Button 37 | C115: 70.5 | D115: 84.75 | E115: 657 | F115: 4696.5 | G115: Vstup žvočíšna výroba
A116: Picture 1 | B116: Picture 1 | C116: 150 | D116: 795.75 | E116: 0 | F116: 0 | G116: Vstup žvočíšna výroba
A117: Button 38 | B117: Button 38 | C117: 70.5 | D117: 84.75 | E117: 657 | F117: 4770.75 | G117: Vstup žvočíšna výroba
A118: Button 39 | B118: Button 39 | C118: 70.5 | D118: 84.75 | E118: 657 | F118: 5189.25 | G118: Vstup žvočíšna výroba
A119: Button 40 | B119: Button 40 | C119: 70.5 | D119: 84.75 | E119: 657 | F119: 5265 | G119: Vstup žvočíšna výroba
A120: Picture 2 | B120: Picture 2 | C120: 145.2433014 | D120: 795.75 | E120: 0 | F120: 185.5715027 | G120: Vstup žvočíšna výroba
A121: Picture 7 | B121: Picture 7 | C121: 144.9229889 | D121: 795.75 | E121: 0 | F121: 580.0961304 | G121: Vstup žvočíšna výroba
A122: Picture 9 | B122: Picture 9 | C122: 145.5990601 | D122: 795.75 | E122: 0 | F122: 940.4009399 | G122: Vstup žvočíšna výroba
A123: Picture 11 | B123: Picture 11 | C123: 147.7217255 | D123: 793.1745605 | E123: 2.575433016 | F123: 1334.150879 | G123: Vstup žvočíšna výroba
A124: Picture 42 | B124: Picture 42 | C124: 147.0181122 | D124: 795.75 | E124: 0 | F124: 1736.250122 | G124: Vstup žvočíšna výroba
A125: Picture 16 | B125: Picture 16 | C125: 147.4507904 | D125: 795.75 | E125: 0 | F125: 2167.393066 | G125: Vstup žvočíšna výroba
A126: Picture 17 | B126: Picture 17 | C126: 147.0141754 | D126: 747.1556396 | E126: 0 | F126: 2562.651123 | G126: Vstup žvočíšna výroba
A127: Picture 18 | B127: Picture 18 | C127: 148.4292145 | D127: 795.75 | E127: 0 | F127: 2841.115234 | G127: Vstup žvočíšna výroba
A128: Picture 20 | B128: Picture 20 | C128: 144.964325 | D128: 795.75 | E128: 0 | F128: 3264.279053 | G128: Vstup žvočíšna výroba
A129: Picture 21 | B129: Picture 21 | C129: 159.8489838 | D129: 795.75 | E129: 0 | F129: 3694.820557 | G129: Vstup žvočíšna výroba
A130: Picture 3 | B130: Picture 3 | C130: 147.8349609 | D130: 795.75 | E130: 0 | F130: 4093.232422 | G130: Vstup žvočíšna výroba
A131: Picture 10 | B131: Picture 10 | C131: 145.5989838 | D131: 795.75 | E131: 0 | F131: 4474.956543 | G131: Vstup žvočíšna výroba
A132: Picture 12 | B132: Picture 12 | C132: 147.0046387 | D132: 795.75 | E132: 0 | F132: 4957.858398 | G132: Vstup žvočíšna výroba
A133: Rectangle 5 | B133: Rectangle 5 | C133: 21.44645691 | D133: 795.75 | E133: 0 | F133: 129.1304779 | G133: Vstup žvočíšna výroba
A134: TextBox 4 | B134: TextBox 4 | C134: 35.19236374 | D134: 266.6800842 | E134: 46.95653534 | F134: 126.9229889 | G134: Vstup žvočíšna výroba
A135: Picture 6 | B135: Picture 6 | C135: 30.24259758 | D135: 179.8199158 | E135: 519.9456787 | F135: 125.2173996 | G135: Vstup žvočíšna výroba
A136: Button 41 | B136: Button 41 | C136: 87.75 | D136: 471.75 | E136: 171 | F136: 210.75 | G136: Vstup žvočíšna výroba
A137: Button 42 | B137: Button 42 | C137: 87.75 | D137: 471.75 | E137: 160.5 | F137: 605.25 | G137: Vstup žvočíšna výroba
A138: Button 43 | B138: Button 43 | C138: 87.75 | D138: 471.75 | E138: 165 | F138: 969 | G138: Vstup žvočíšna výroba
A139: Button 44 | B139: Button 44 | C139: 87.75 | D139: 471.75 | E139: 154.5 | F139: 1356.749878 | G139: Vstup žvočíšna výroba
A140: Button 45 | B140: Button 45 | C140: 87 | D140: 471.75 | E140: 152.25 | F140: 1761.749878 | G140: Vstup žvočíšna výroba
A141: Button 46 | B141: Button 46 | C141: 87 | D141: 471.75 | E141: 149.25 | F141: 2193.75 | G141: Vstup žvočíšna výroba
A142: Button 47 | B142: Button 47 | C142: 87 | D142: 471.75 | E142: 151.5 | F142: 2590.5 | G142: Vstup žvočíšna výroba
A143: Button 48 | B143: Button 48 | C143: 87 | D143: 471.75 | E143: 153.75 | F143: 2882.25 | G143: Vstup žvočíšna výroba
A144: Button 49 | B144: Button 49 | C144: 87 | D144: 471.75 | E144: 153 | F144: 3295.499756 | G144: Vstup žvočíšna výroba
A145: Button 50 | B145: Button 50 | C145: 87 | D145: 471.75 | E145: 159.75 | F145: 3742.500244 | G145: Vstup žvočíšna výroba
A146: Button 51 | B146: Button 51 | C146: 87 | D146: 471.75 | E146: 152.25 | F146: 4121.25 | G146: Vstup žvočíšna výroba
A147: Button 52 | B147: Button 52 | C147: 87 | D147: 471.75 | E147: 126.75 | F147: 4506.75 | G147: Vstup žvočíšna výroba
A148: Button 53 | B148: Button 53 | C148: 87 | D148: 471.75 | E148: 150.75 | F148: 4986.75 | G148: Vstup žvočíšna výroba
A149: newname | B149: newname | C149: 84.75 | D149: 90 | E149: 654 | F149: 1089.75 | G149: Vstup žvočíšna výroba
A150: Button 16 | B150: Button 16 | C150: 84.75 | D150: 90 | E150: 654 | F150: 730.5 | G150: Vstup žvočíšna výroba
A151: Button 17 | B151: Button 17 | C151: 84.75 | D151: 90 | E151: 654 | F151: 336 | G151: Vstup žvočíšna výroba
A152: Button 18 | B152: Button 18 | C152: 84.75 | D152: 90 | E152: 652.5 | F152: 1486.5 | G152: Vstup žvočíšna výroba
A153: Button 19 | B153: Button 19 | C153: 84.75 | D153: 90 | E153: 654 | F153: 1886.250122 | G153: Vstup žvočíšna výroba
A154: Button 20 | B154: Button 20 | C154: 84.75 | D154: 90 | E154: 654 | F154: 2318.25 | G154: Vstup žvočíšna výroba
A155: Button 21 | B155: Button 21 | C155: 84.75 | D155: 90 | E155: 649.5 | F155: 2619 | G155: Vstup žvočíšna výroba
A156: Button 22 | B156: Button 22 | C156: 84.75 | D156: 90 | E156: 654 | F156: 3002.25 | G156: Vstup žvočíšna výroba
A157: Button 23 | B157: Button 23 | C157: 84.75 | D157: 90 | E157: 654 | F157: 3415.499756 | G157: Vstup žvočíšna výroba
A158: Button 24 | B158: Button 24 | C158: 84.75 | D158: 90 | E158: 654 | F158: 3832.500244 | G158: Vstup žvočíšna výroba
A159: Button 25 | B159: Button 25 | C159: 84.75 | D159: 90 | E159: 654 | F159: 4242.75 | G159: Vstup žvočíšna výroba
A160: Button 26 | B160: Button 26 | C160: 84.75 | D160: 90 | E160: 654 | F160: 4621.5 | G160: Vstup žvočíšna výroba
A161: Button 27 | B161: Button 27 | C161: 84.75 | D161: 90 | E161: 654 | F161: 5106.75 | G161: Vstup žvočíšna výroba
A162: Button 28 | B162: Button 28 | C162: 87 | D162: 90 | E162: 654 | F162: 429 | G162: Vstup žvočíšna výroba
A163: Button 29 | B163: Button 29 | C163: 87 | D163: 90 | E163: 654.75 | F163: 819.75 | G163: Vstup žvočíšna výroba
A164: Button 30 | B164: Button 30 | C164: 87 | D164: 90 | E164: 654 | F164: 1185.75 | G164: Vstup žvočíšna výroba
A165: Button 31 | B165: Button 31 | C165: 87 | D165: 90 | E165: 652.5 | F165: 1587.749878 | G165: Vstup žvočíšna výroba
A166: Button 32 | B166: Button 32 | C166: 87 | D166: 90 | E166: 654 | F166: 1986 | G166: Vstup žvočíšna výroba
A167: Button 33 | B167: Button 33 | C167: 87 | D167: 90 | E167: 654.75 | F167: 2416.5 | G167: Vstup žvočíšna výroba
A168: Button 34 | B168: Button 34 | C168: 87 | D168: 90 | E168: 650.25 | F168: 2721 | G168: Vstup žvočíšna výroba
A169: Button 35 | B169: Button 35 | C169: 87 | D169: 90 | E169: 654 | F169: 3097.499756 | G169: Vstup žvočíšna výroba
A170: Button 36 | B170: Button 36 | C170: 87 | D170: 90 | E170: 654.75 | F170: 3526.500244 | G170: Vstup žvočíšna výroba
A171: Button 37 | B171: Button 37 | C171: 87 | D171: 90 | E171: 654.75 | F171: 3938.25 | G171: Vstup žvočíšna výroba
A172: Button 38 | B172: Button 38 | C172: 87 | D172: 90 | E172: 654 | F172: 4344 | G172: Vstup žvočíšna výroba
A173: Button 39 | B173: Button 39 | C173: 87 | D173: 90 | E173: 654 | F173: 4729.5 | G173: Vstup žvočíšna výroba
A174: Button 40 | B174: Button 40 | C174: 87 | D174: 90 | E174: 652.5 | F174: 5208.75 | G174: Vstup žvočíšna výroba
A175: Obrázok 2 | B175: Obrázok 2 | C175: 161.322052 | D175: 242.25 | E175: 476.2499084 | F175: 158.3331451 | G175: Výstup podniku spolu
A176: Obrázok 3 | B176: Obrázok 3 | C176: 161.6498413 | D176: 234.2506256 | E176: 242.1029205 | F176: 158.0450439 | G176: Výstup podniku spolu
A177: Obrázok 4 | B177: Obrázok 4 | C177: 161.4797668 | D177: 241.557724 | E177: 0.576929152 | F177: 158.2758331 | G177: Výstup podniku spolu
A178: Picture 3 | B178: Picture 3 | C178: 49.28574753 | D178: 162.8570862 | E178: 709.3670044 | F178: 0 | G178: Výstup podniku spolu
A179: Button 4 | B179: Button 4 | C179: 57 | D179: 141.75 | E179: 37.5 | F179: 165.75 | G179: Výstup podniku spolu
A180: Button 29 | B180: Button 29 | C180: 57 | D180: 141.75 | E180: 292.5 | F180: 165 | G180: Výstup podniku spolu
A181: Button 30 | B181: Button 30 | C181: 57 | D181: 141.75 | E181: 291.75 | F181: 237.75 | G181: Výstup podniku spolu
A182: Button 31 | B182: Button 31 | C182: 57 | D182: 141.75 | E182: 36.75 | F182: 240 | G182: Výstup podniku spolu
A183: Button 4 | B183: Button 4 | C183: 51 | D183: 225.75 | E183: 246 | F183: 239.25 | G183: Výstup podniku spolu
A184: Button 5 | B184: Button 5 | C184: 51 | D184: 221.25 | E184: 9 | F184: 240 | G184: Výstup podniku spolu
A185: Picture 5 | B185: Picture 5 | C185: 502.779541 | D185: 162.2653503 | E185: 1127.082397 | F185: 28.92850304 | G185: Výstup rastlinná výroba
A186: Picture 3 | B186: Picture 3 | C186: 49.28574753 | D186: 162.8570862 | E186: 1126.071289 | F186: 0 | G186: Výstup rastlinná výroba
A187: Picture 6 | B187: Picture 6 | C187: 270.0979614 | D187: 630 | E187: 659.3477783 | F187: 529.5651245 | G187: Výstup rastlinná výroba
A188: Button 8 | B188: Button 8 | C188: 103.7608643 | D188: 338.9674072 | E188: 692.3477783 | F188: 571.6304932 | G188: Výstup rastlinná výroba
A189: Button 19 | B189: Button 19 | C189: 0 | D189: 337.4674072 | E189: 693.8477783 | F189: 701.0869141 | G189: Výstup rastlinná výroba
A190: Button 19 | B190: Button 19 | C190: 94.5 | D190: 390.4239502 | E190: 787.5325928 | F190: 552.8151855 | G190: Výstup rastlinná výroba
A191: Button 20 | B191: Button 20 | C191: 57.75 | D191: 389.6739502 | E191: 789.0325928 | F191: 658.1413574 | G191: Výstup rastlinná výroba
A192: Button 21 | B192: Button 21 | C192: 308.25 | D192: 141.1303864 | E192: 1137.456543 | F192: 74.38047028 | G192: Výstup rastlinná výroba
A193: Comment 1 | B193: Comment 1 | C193: 59.25 | D193: 108 | E193: 579 | F193: 415.5 | G193: Výstup rastlinná výroba
A194: Comment 2 | B194: Comment 2 | C194: 59.25 | D194: 108 | E194: 579 | F194: 431.25 | G194: Výstup rastlinná výroba
A195: Comment 3 | B195: Comment 3 | C195: 59.25 | D195: 108 | E195: 579 | F195: 447 | G195: Výstup rastlinná výroba
A196: Comment 4 | B196: Comment 4 | C196: 59.25 | D196: 108 | E196: 579 | F196: 462.75 | G196: Výstup rastlinná výroba
A197: Comment 5 | B197: Comment 5 | C197: 28.5 | D197: 208.5 | E197: 396.75 | F197: 447 | G197: Výstup rastlinná výroba
A198: Button 8 | B198: Button 8 | C198: 0 | D198: 209.25 | E198: 625.9285889 | F198: 669.6428223 | G198: Výstup živočíšna výroba
A199: Button 14 | B199: Button 14 | C199: 0 | D199: 176.25 | E199: 611.6785889 | F199: 669.6428223 | G199: Výstup živočíšna výroba
A200: Button 17 | B200: Button 17 | C200: 0 | D200: 176.25 | E200: 616.1785889 | F200: 669.6428223 | G200: Výstup živočíšna výroba
A201: Button 20 | B201: Button 20 | C201: 0 | D201: 176.25 | E201: 616.1785889 | F201: 669.6428223 | G201: Výstup živočíšna výroba
... 20 more rows

Sheet Vstup rastlinná výroba
A1: Kategória komodity | B1: Ukazovatele | C1: Úroda z 1 hektára | D1: Cena | E1: Dotácie | F1: Vlastné náklady | G1: Plocha osevu | H1: Prepočítať | I1: Vymazať | J1: tonnes | K1: Euro / 1 tonne | L1: Euro / 1 ha agricultural land | M1: Euro / 1 ha agricultural land2 | N1: ha | O1: dotácie Euro / 1 ha | P1: dotácie Euro / 1 ha2 | Q1: vlastné náklady Euro / 1 ha | R1: vlastné náklady Euro / 1 ha | S1: plocha osevu ha | T1: plocha osevu ha
C2: t | D2: Euro / 1 tona | E2: Euro / 1 ha poľn. pôdy | F2: Euro / 1 ha poľn. pôdy | G2: ha | J2: tonnes | K2: Euro / 1 tonne | L2: Euro / 1 ha agricultural land | M2: Euro / 1 ha agricultural land | N2: ha | O2: MIN | P2: MAX | Q2: MIN | R2: MAX | S2: MIN | T2: MAX
A3: obilniny | B3: pšenica | C3: 2 | J3: ='VSTUP RV'!H5 -> 0 | K3: 2 | L3: 12 | M3: 100 | N3: 500 | O3: 100 | P3: 600 | Q3: 400 | R3: 1500 | S3: 0 | T3: 300
B4: jačmeň | C4: 3 | J4: ='VSTUP RV'!H6 -> 0 | K4: 2 | L4: 12 | M4: 100 | N4: 500 | O4: 100 | P4: 600 | Q4: 400 | R4: 1500 | S4: 0 | T4: 300
B5: raž | C5: 5 | J5: ='VSTUP RV'!H7 -> 0 | K5: 2 | L5: 12 | M5: 100 | N5: 500 | O5: 100 | P5: 600 | Q5: 400 | R5: 1500 | S5: 0 | T5: 300
B6: ovos | C6: 3 | J6: ='VSTUP RV'!H8 -> 0 | K6: 2 | L6: 12 | M6: 100 | N6: 500 | O6: 100 | P6: 600 | Q6: 400 | R6: 1500 | S6: 0 | T6: 300
B7: kukurica | C7: 5 | J7: ='VSTUP RV'!H9 -> 0 | K7: 5 | L7: 15 | M7: 100 | N7: 500 | O7: 100 | P7: 600 | Q7: 400 | R7: 1500 | S7: 0 | T7: 300
A8: olejniny | B8: repka olejná | C8: 5 | J8: ='VSTUP RV'!H10 -> 0 | K8: 1 | L8: 5 | M8: 100 | N8: 600 | O8: 100 | P8: 600 | Q8: 400 | R8: 1500 | S8: 0 | T8: 300
B9: slnečnica | C9: 3 | J9: ='VSTUP RV'!H11 -> 0 | K9: 1 | L9: 5 | M9: 100 | N9: 600 | O9: 100 | P9: 600 | Q9: 400 | R9: 1500 | S9: 0 | T9: 300
B10: mak | C10: 2 | J10: ='VSTUP RV'!H12 -> 0 | K10: 0.5 | L10: 5 | M10: 500 | N10: 3500 | O10: 100 | P10: 600 | Q10: 400 | R10: 1500 | S10: 0 | T10: 300
A11: okopaniny | B11: zemiaky | C11: 15 | J11: ='VSTUP RV'!H13 -> 0 | K11: 10 | L11: 50 | M11: 100 | N11: 400 | O11: 100 | P11: 600 | Q11: 400 | R11: 6000 | S11: 0 | T11: 300
B12: cukrová repa | C12: 35 | J12: ='VSTUP RV'!H14 -> 0 | K12: 30 | L12: 80 | M12: 10 | N12: 50 | O12: 100 | P12: 600 | Q12: 1000 | R12: 5000 | S12: 0 | T12: 300
A13: strukoviny | B13: hrach | C13: 5 | J13: ='VSTUP RV'!H15 -> 0 | K13: 1 | L13: 6 | M13: 100 | N13: 400 | O13: 100 | P13: 600 | Q13: 400 | R13: 1500 | S13: 0 | T13: 300
B14: sója | J14: ='VSTUP RV'!H16 -> 0 | K14: 0.5 | L14: 5 | M14: 100 | N14: 500 | O14: 100 | P14: 600 | Q14: 400 | R14: 1500 | S14: 0 | T14: 300
B15: fazuľa | J15: ='VSTUP RV'!H17 -> 0 | K15: 0.5 | L15: 5 | M15: 300 | N15: 1000 | O15: 100 | P15: 600 | Q15: 400 | R15: 1500 | S15: 0 | T15: 300
A16: zelenina | B16: paprika | J16: ='VSTUP RV'!H18 -> 0 | K16: 5 | L16: 30 | M16: 600 | N16: 1500 | O16: 100 | P16: 600 | Q16: 400 | R16: 15000 | S16: 0 | T16: 300
B17: rajčiaky | J17: ='VSTUP RV'!H19 -> 0 | K17: 10 | L17: 50 | M17: 100 | N17: 200 | O17: 100 | P17: 600 | Q17: 400 | R17: 15000 | S17: 0 | T17: 300
B18: mrkva | J18: ='VSTUP RV'!H20 -> 0 | K18: 15 | L18: 40 | M18: 150 | N18: 400 | O18: 100 | P18: 600 | Q18: 400 | R18: 15000 | S18: 0 | T18: 300
B19: karfiol | J19: ='VSTUP RV'!H21 -> 0 | K19: 5 | L19: 20 | M19: 200 | N19: 800 | O19: 100 | P19: 600 | Q19: 400 | R19: 15000 | S19: 0 | T19: 300
B20: kapusta | J20: ='VSTUP RV'!H22 -> 0 | K20: 10 | L20: 40 | M20: 100 | N20: 400 | O20: 100 | P20: 600 | Q20: 400 | R20: 15000 | S20: 0 | T20: 300
A21: ovocie | B21: slivky | J21: ='VSTUP RV'!H23 -> 0 | K21: 2 | L21: 10 | M21: 200 | N21: 600 | O21: 100 | P21: 600 | Q21: 400 | R21: 15000 | S21: 0 | T21: 300
B22: jablká | J22: ='VSTUP RV'!H24 -> 0 | K22: 5 | L22: 25 | M22: 200 | N22: 600 | O22: 100 | P22: 600 | Q22: 400 | R22: 15000 | S22: 0 | T22: 300
A23: ostatné | B23: vinič | J23: ='VSTUP RV'!H25 -> 0 | K23: 3 | L23: 10 | M23: 300 | N23: 800 | O23: 100 | P23: 600 | Q23: 1000 | R23: 15000 | S23: 0 | T23: 300
B24: lúky | J24: ='VSTUP RV'!H26 -> 0 | K24: 5 | L24: 25 | O24: 0 | P24: 600 | Q24: 0 | R24: 500 | S24: 0 | T24: 300
B25: pasienky | J25: ='VSTUP RV'!H27 -> 0 | K25: 2 | L25: 25 | O25: 0 | P25: 600 | Q25: 0 | R25: 300 | S25: 0 | T25: 300
B26: lucerka siata | G26: 0 | J26: ='VSTUP RV'!H28 -> 0 | K26: 5 | L26: 35 | O26: 100 | P26: 600 | Q26: 100 | R26: 800 | S26: 0 | T26: 300
B27: kukurica na siláž | G27: 0 | J27: ='VSTUP RV'!H29 -> 0 | K27: 10 | L27: 50 | O27: 100 | P27: 600 | Q27: 400 | R27: 1400 | S27: 0 | T27: 300

Sheet tlacidka vymaz RV jedn (hidden)

Sheet Vstup žvočíšna výroba
A2: Hovädzí dobytok
A6: UKAZOVATELE | B6: JEDNOTKY | C6: OD | D6: DO | E6: VSTUPNÉ ÚDAJE | F6: ÚDAJE Z POSLEDNÉHO VÝPOČTU | I6: =XFD11 -> Dojnice
A7: úžitkovosť / mlieko | B7: litre / 1 rok | C7: 3000 | D7: 12000 | E7: 5000 | F7: 5000
A8: realizačná cena za 1 liter mlieka | B8: Euro / 1 liter | C8: 0.2 | D8: 0.5
A9: dotácia na 1 dojnicu | B9: Euro / rok | C9: 0 | D9: 700
A10: vlastné náklady na 100 kŕmnych dní | B10: Euro / 100 kŕmnych dní | C10: 200 | D10: 1500
A11: počet dojníc základné stádo | B11: ks | C11: 0 | D11: 500 | XFD11: Dojnice
... 14 more rows

Sheet Výstup podniku spolu
A1: Výsledok Hospodárenia podniku ako celok
A5: Živočíšna Výroba | E5: Rastlinná výroba trhovych plodin | I5: Spolu za podnik | L5: Máte príliž vysokú hodnotu nevyužitých plôch lúk a pasienkov znížte hodnotu o:
A6: Ukazovateľ | B6: Jednotka | C6: Hodnota | E6: Ukazovateľ | F6: Jednotka | G6: Hodnota | I6: Ukazovateľ | J6: Jednotka | K6: Hodnota | L6: Potom spustite výpočet ešte raz
A7: Náklady | B7: Euro | C7: ='Výstup živočíšna výroba'!J11 -> 0 | E7: Náklady | F7: Euro | G7: ='Výstup rastlinná výroba'!F24 -> 0 | I7: Náklady | J7: Euro | K7: =C7+G7 -> 0
A8: Výnosy | B8: Euro | C8: ='Výstup živočíšna výroba'!J14+'Výstup živočíšna výroba'!J16 -> 0 | E8: Výnosy | F8: Euro | G8: ='Výstup rastlinná výroba'!L24 -> 0 | I8: Výnosy | J8: Euro | K8: 0
A9: Výsledok Hospodárenia | B9: Euro | C9: =C8-C7 -> 0 | E9: Výsledok Hospodárenia | F9: Euro | G9: ='Výstup rastlinná výroba'!M24 -> 0 | I9: Výsledok Hospodárenia | J9: Euro | K9: 0
A10: Výmera krmovín pre ŽV | B10: ha | C10: ='Výstup živočíšna výroba'!J10 -> 0 | E10: Výmera trhových plodín | F10: ha | G10: ='Výstup rastlinná výroba'!D24 -> 0 | I10: Výmera podniku spolu | J10: ha | K10: =C10+G10 -> 0
A22: =IFERROR(IF('VSTUP RV'!J42>0,L5,0),0) -> 0 | J22: =IF($A$22='VSTUP RV'!$D$47,'VSTUP RV'!J43,0) -> 0 | K22: =IF($A$22='VSTUP RV'!$D$47,"ha",0) -> 0
A23: =IF($A$22='VSTUP RV'!$D$47,L6,0) -> 0

Sheet Výstup rastlinná výroba
A1: Rastlinná výroba Orná pôda | B1: Úroda | C1: Cena | D1: Plocha osevu | E1: Vlastné náklady | F1: Vlastné náklady spolu | G1: Tržby | H1: Tržby spolu | I1: Výsledok hospodárenia | J1: Rentabilita nákladov | K1: Dotácie spolu | L1: Výnosu spolu | M1: Výsledok hospodárenia spolu
A2: Plodiny | B2: t | C2: Euro / 1 t | D2: ha | E2: Euro / 1 ha | F2: EUR | G2: Euro / 1 ha | H2: Euro | I2: Euro / 1 ha | J2: Euro | K2: Euro | L2: Euro | M2: Euro
A3: pšenica | B3: ='VSTUP RV'!B5 -> 2 | C3: ='VSTUP RV'!D5 -> 0 | D3: ='VSTUP RV'!C5 -> 0 | E3: ='VSTUP RV'!E5 -> 0 | F3: ='VSTUP RV'!K5 -> 0 | G3: =C3*B3 -> 0 | H3: ='VSTUP RV'!L5 -> 0 | I3: ='VSTUP RV'!R5 -> 0 | J3: =IFERROR(F3/H3,0) -> 0 | K3: ='VSTUP RV'!G5 -> 0 | L3: =K3+H3 -> 0 | M3: =K3+H3-F3 -> 0
A4: jacmen | B4: ='VSTUP RV'!B6 -> 3 | C4: ='VSTUP RV'!D6 -> 0 | D4: ='VSTUP RV'!C6 -> 0 | E4: ='VSTUP RV'!E6 -> 0 | F4: ='VSTUP RV'!K6 -> 0 | G4: =C4*B4 -> 0 | H4: ='VSTUP RV'!L6 -> 0 | I4: ='VSTUP RV'!R6 -> 0 | J4: =IFERROR(F4/H4,0) -> 0 | K4: ='VSTUP RV'!G6 -> 0 | L4: =K4+H4 -> 0 | M4: =K4+H4-F4 -> 0
A5: raž | B5: ='VSTUP RV'!B7 -> 5 | C5: ='VSTUP RV'!D7 -> 0 | D5: ='VSTUP RV'!C7 -> 0 | E5: ='VSTUP RV'!E7 -> 0 | F5: ='VSTUP RV'!K7 -> 0 | G5: 0 | H5: ='VSTUP RV'!L7 -> 0 | I5: ='VSTUP RV'!R7 -> 0 | J5: 0 | K5: ='VSTUP RV'!G7 -> 0 | L5: 0 | M5: 0
A6: ovos | B6: ='VSTUP RV'!B8 -> 3 | C6: ='VSTUP RV'!D8 -> 0 | D6: ='VSTUP RV'!C8 -> 0 | E6: ='VSTUP RV'!E8 -> 0 | F6: ='VSTUP RV'!K8 -> 0 | G6: 0 | H6: ='VSTUP RV'!L8 -> 0 | I6: ='VSTUP RV'!R8 -> 0 | J6: 0 | K6: ='VSTUP RV'!G8 -> 0 | L6: 0 | M6: 0
A7: kukurica | B7: ='VSTUP RV'!B9 -> 5 | C7: ='VSTUP RV'!D9 -> 0 | D7: ='VSTUP RV'!C9 -> 0 | E7: ='VSTUP RV'!E9 -> 0 | F7: ='VSTUP RV'!K9 -> 0 | G7: 0 | H7: ='VSTUP RV'!L9 -> 0 | I7: ='VSTUP RV'!R9 -> 0 | J7: 0 | K7: ='VSTUP RV'!G9 -> 0 | L7: 0 | M7: 0
A8: repka olejná | B8: ='VSTUP RV'!B10 -> 5 | C8: ='VSTUP RV'!D10 -> 0 | D8: ='VSTUP RV'!C10 -> 0 | E8: ='VSTUP RV'!E10 -> 0 | F8: ='VSTUP RV'!K10 -> 0 | G8: 0 | H8: ='VSTUP RV'!L10 -> 0 | I8: ='VSTUP RV'!R10 -> 0 | J8: 0 | K8: ='VSTUP RV'!G10 -> 0 | L8: 0 | M8: 0
A9: slnečnica | B9: ='VSTUP RV'!B11 -> 3 | C9: ='VSTUP RV'!D11 -> 0 | D9: ='VSTUP RV'!C11 -> 0 | E9: ='VSTUP RV'!E11 -> 0 | F9: ='VSTUP RV'!K11 -> 0 | G9: 0 | H9: ='VSTUP RV'!L11 -> 0 | I9: ='VSTUP RV'!R11 -> 0 | J9: 0 | K9: ='VSTUP RV'!G11 -> 0 | L9: 0 | M9: 0
A10: mak | B10: ='VSTUP RV'!B12 -> 2 | C10: ='VSTUP RV'!D12 -> 0 | D10: ='VSTUP RV'!C12 -> 0 | E10: ='VSTUP RV'!E12 -> 0 | F10: ='VSTUP RV'!K12 -> 0 | G10: 0 | H10: ='VSTUP RV'!L12 -> 0 | I10: ='VSTUP RV'!R12 -> 0 | J10: 0 | K10: ='VSTUP RV'!G12 -> 0 | L10: 0 | M10: 0
A11: zemiaky | B11: ='VSTUP RV'!B13 -> 15 | C11: ='VSTUP RV'!D13 -> 0 | D11: ='VSTUP RV'!C13 -> 0 | E11: ='VSTUP RV'!E13 -> 0 | F11: ='VSTUP RV'!K13 -> 0 | G11: 0 | H11: ='VSTUP RV'!L13 -> 0 | I11: ='VSTUP RV'!R13 -> 0 | J11: 0 | K11: ='VSTUP RV'!G13 -> 0 | L11: 0 | M11: 0
A12: cukrová repa | B12: ='VSTUP RV'!B14 -> 35 | C12: ='VSTUP RV'!D14 -> 0 | D12: ='VSTUP RV'!C14 -> 0 | E12: ='VSTUP RV'!E14 -> 0 | F12: ='VSTUP RV'!K14 -> 0 | G12: 0 | H12: ='VSTUP RV'!L14 -> 0 | I12: ='VSTUP RV'!R14 -> 0 | J12: 0 | K12: ='VSTUP RV'!G14 -> 0 | L12: 0 | M12: 0
A13: hrach | B13: ='VSTUP RV'!B15 -> 5 | C13: ='VSTUP RV'!D15 -> 0 | D13: ='VSTUP RV'!C15 -> 0 | E13: ='VSTUP RV'!E15 -> 0 | F13: ='VSTUP RV'!K15 -> 0 | G13: 0 | H13: ='VSTUP RV'!L15 -> 0 | I13: ='VSTUP RV'!R15 -> 0 | J13: 0 | K13: ='VSTUP RV'!G15 -> 0 | L13: 0 | M13: 0
A14: sója | B14: ='VSTUP RV'!B16 -> 0 | C14: ='VSTUP RV'!D16 -> 0 | D14: ='VSTUP RV'!C16 -> 0 | E14: ='VSTUP RV'!E16 -> 0 | F14: ='VSTUP RV'!K16 -> 0 | G14: 0 | H14: ='VSTUP RV'!L16 -> 0 | I14: ='VSTUP RV'!R16 -> 0 | J14: 0 | K14: ='VSTUP RV'!G16 -> 0 | L14: 0 | M14: 0
A15: fazuľa | B15: ='VSTUP RV'!B17 -> 0 | C15: ='VSTUP RV'!D17 -> 0 | D15: ='VSTUP RV'!C17 -> 0 | E15: ='VSTUP RV'!E17 -> 0 | F15: ='VSTUP RV'!K17 -> 0 | G15: 0 | H15: ='VSTUP RV'!L17 -> 0 | I15: ='VSTUP RV'!R17 -> 0 | J15: 0 | K15: ='VSTUP RV'!G17 -> 0 | L15: 0 | M15: 0
A16: paprika | B16: ='VSTUP RV'!B18 -> 0 | C16: ='VSTUP RV'!D18 -> 0 | D16: ='VSTUP RV'!C18 -> 0 | E16: ='VSTUP RV'!E18 -> 0 | F16: ='VSTUP RV'!K18 -> 0 | G16: 0 | H16: ='VSTUP RV'!L18 -> 0 | I16: ='VSTUP RV'!R18 -> 0 | J16: 0 | K16: ='VSTUP RV'!G18 -> 0 | L16: 0 | M16: 0
A17: rarajčiaky | B17: ='VSTUP RV'!B19 -> 0 | C17: ='VSTUP RV'!D19 -> 0 | D17: ='VSTUP RV'!C19 -> 0 | E17: ='VSTUP RV'!E19 -> 0 | F17: ='VSTUP RV'!K19 -> 0 | G17: 0 | H17: ='VSTUP RV'!L19 -> 0 | I17: ='VSTUP RV'!R19 -> 0 | J17: 0 | K17: ='VSTUP RV'!G19 -> 0 | L17: 0 | M17: 0
A18: mrkva | B18: ='VSTUP RV'!B20 -> 0 | C18: ='VSTUP RV'!D20 -> 0 | D18: ='VSTUP RV'!C20 -> 0 | E18: ='VSTUP RV'!E20 -> 0 | F18: ='VSTUP RV'!K20 -> 0 | G18: 0 | H18: ='VSTUP RV'!L20 -> 0 | I18: ='VSTUP RV'!R20 -> 0 | J18: 0 | K18: ='VSTUP RV'!G20 -> 0 | L18: 0 | M18: =K18+H18-F18 -> 0
A19: karfiol | B19: ='VSTUP RV'!B21 -> 0 | C19: ='VSTUP RV'!D21 -> 0 | D19: ='VSTUP RV'!C21 -> 0 | E19: ='VSTUP RV'!E21 -> 0 | F19: ='VSTUP RV'!K21 -> 0 | G19: 0 | H19: ='VSTUP RV'!L21 -> 0 | I19: ='VSTUP RV'!R21 -> 0 | J19: 0 | K19: ='VSTUP RV'!G21 -> 0 | L19: 0 | M19: 0
A20: kapusta | B20: ='VSTUP RV'!B22 -> 0 | C20: ='VSTUP RV'!D22 -> 0 | D20: ='VSTUP RV'!C22 -> 0 | E20: ='VSTUP RV'!E22 -> 0 | F20: ='VSTUP RV'!K22 -> 0 | G20: 0 | H20: ='VSTUP RV'!L22 -> 0 | I20: ='VSTUP RV'!R22 -> 0 | J20: 0 | K20: ='VSTUP RV'!G22 -> 0 | L20: 0 | M20: 0
A21: slivky | B21: ='VSTUP RV'!B23 -> 0 | C21: ='VSTUP RV'!D23 -> 0 | D21: ='VSTUP RV'!C23 -> 0 | E21: ='VSTUP RV'!E23 -> 0 | F21: ='VSTUP RV'!K23 -> 0 | G21: 0 | H21: ='VSTUP RV'!L23 -> 0 | I21: ='VSTUP RV'!R23 -> 0 | J21: 0 | K21: ='VSTUP RV'!G23 -> 0 | L21: 0 | M21: 0
A22: jablká | B22: ='VSTUP RV'!B24 -> 0 | C22: ='VSTUP RV'!D24 -> 0 | D22: ='VSTUP RV'!C24 -> 0 | E22: ='VSTUP RV'!E24 -> 0 | F22: ='VSTUP RV'!K24 -> 0 | G22: 0 | H22: ='VSTUP RV'!L24 -> 0 | I22: ='VSTUP RV'!R24 -> 0 | J22: 0 | K22: ='VSTUP RV'!G24 -> 0 | L22: 0 | M22: 0
A23: vinič | B23: ='VSTUP RV'!B25 -> 0 | C23: ='VSTUP RV'!D25 -> 0 | D23: ='VSTUP RV'!C25 -> 0 | E23: ='VSTUP RV'!E25 -> 0 | F23: ='VSTUP RV'!K25 -> 0 | G23: 0 | H23: ='VSTUP RV'!L25 -> 0 | I23: ='VSTUP RV'!R25 -> 0 | J23: 0 | K23: ='VSTUP RV'!G25 -> 0 | L23: 0 | M23: 0
A24: Spolu | D24: =SUM(D3:D23) -> 0 | F24: =SUM(F3:F23) -> 0 | H24: =SUM(H3:H23) -> 0 | I24: =SUM(I3:I23) -> 0 | K24: =SUM(K3:K23) -> 0 | L24: =SUM(L3:L23) -> 0 | M24: 0
A26: Plodiny rastlinnej výroby, ktoré vo forme vlasných nákladov prechádzajú do živočíšnej výroby, kde sa skrmujú.
A27: Živočíšna výroba Orná pôda | B27: Úroda v t / ha | C27: Cena za 1 tonu | D27: Plocha osevu v ha | E27: Vlastné náklady na 1 ha | F27: Vlastné nákldy spolu | G27: Tržby na 1 ha
A28: lúky | B28: ='VSTUP RV'!B26 -> 0 | D28: ='VSTUP RV'!C26 -> 0 | E28: ='VSTUP RV'!E26 -> 0 | F28: ='VSTUP RV'!K26 -> 0 | G28: =C28*B28 -> 0
A29: pasienky | B29: ='VSTUP RV'!B27 -> 0 | D29: ='VSTUP RV'!C27 -> 0 | E29: ='VSTUP RV'!E27 -> 0 | F29: ='VSTUP RV'!K27 -> 0 | G29: =C29*B29 -> 0
A30: lucerka siata | B30: ='VSTUP RV'!B28 -> 0 | D30: =IFERROR(ABS('VSTUP RV'!C34),0) -> 0 | E30: ='VSTUP RV'!E28 -> 0 | F30: =D30*E30 -> 0 | G30: =C30*B30 -> 0
A31: kukurica na siláž | B31: ='VSTUP RV'!B29 -> 0 | D31: =IFERROR(ABS('VSTUP RV'!C35),0) -> 0 | E31: ='VSTUP RV'!E29 -> 0 | F31: =D31*E31 -> 0 | G31: =C31*B31 -> 0
A32: vlastné náklady na lúky a pasienky spolu | F32: =SUM(F28:F31) -> 0
A33: vlastné náklady na ornú pôdu spolu | F33: =SUM(F30:F31) -> 0
A34: vlastné náklady na ornú pôdu pre kŕmne zmesy | F34: =IFERROR('LUCERKA+KUKURICA'!H10,0) -> 0
A35: vlastné náklady krmovín spolu | F35: =SUM(F32:F34) -> 0
A36: plocha ornej pôdy | D36: =SUM(D37:D38) -> 0
A37: plocha krmovín na ornej pôde | D37: =-SUM(D30:D31)*-1 -> 0
A38: potreba osevu pre kŕmne zmesy | D38: =IFERROR('KZ BILANCIA'!I10,0) -> 0

Sheet Výstup živočíšna výroba
B1: Ekonomické hodnotenie chovov živočíšnej výroby
B2: Ukazovateľ za chov spolu | C2: Merná jednotka | D2: Chov HD | E2: Chov ošípanych | F2: Chov oviec | G2: Nosnice | H2: Výkrm kurčiat | I2: Kozy | J2: Spolu
B3: Plánovaný rozsah živočíšnej výroby
B4: Počty zvierat (základné stádo) | C4: ks | D4: =IFERROR('EKONOM HD'!C4,0) -> 0 | E4: ='EKONOMIKA osipane'!C4 -> 0 | F4: ='eKONOMIKA OVIEC'!C4 -> 0 | G4: =EKON.NOSNIC!C4 -> 0 | H4: =EKON.VYK.KURC!C4 -> 0 | I4: =KOZY!C2 -> 0 | J4: =SUM(Table2[[#This Row],[Chov HD]:[Kozy]]) -> 0
B5: Plocha lúk pre chov | C5: ha | D5: =IFERROR('VSTUP RV'!O38,0) -> 0 | E5: ='EKONOMIKA osipane'!H5 -> 0 | F5: =IFERROR('VSTUP RV'!P38,0) -> 0 | G5: =EKON.NOSNIC!H5 -> 0 | H5: =EKON.VYK.KURC!H5 -> 0 | I5: =IFERROR('VSTUP RV'!Q38,0) -> 0 | J5: =SUM(D5:I5) -> 0
B6: Plocha pasienkov pre chov | C6: ha | D6: =IFERROR('VSTUP RV'!O39,0) -> 0 | E6: ='EKONOMIKA osipane'!H6 -> 0 | F6: =IFERROR('VSTUP RV'!P39,0) -> 0 | G6: =EKON.NOSNIC!H6 -> 0 | H6: =EKON.VYK.KURC!H6 -> 0 | I6: =IFERROR('VSTUP RV'!Q39,0) -> 0 | J6: =SUM(D6:I6) -> 0
B7: Plocha lúk + pasienkov pre chov | C7: ha | D7: =D6+D5 -> 0 | E7: =E6+E5 -> 0 | F7: =F6+F5 -> 0 | G7: 0 | H7: 0 | I7: =I6+I5 -> 0 | J7: 0
B8: Plocha ornej pôdy pre potreby živočíšnej výroby (jadrové krmivá) | C8: ha | D8: =IFERROR('KZ BILANCIA'!C10,0) -> 0 | E8: =IFERROR('KZ BILANCIA'!D10,0) -> 0 | F8: ='KZ BILANCIA'!E10 -> 0 | G8: ='KZ BILANCIA'!F10 -> 0 | H8: =EKON.VYK.KURC!H8 -> 0 | I8: ='Ekonomika kôz'!H9 -> 0 | J8: 0
B9: Plocha ornej pôdy pre potrey živočíšnej výroby (objemové krmivá: kukurica a lucerna) | C9: ha | D9: =ABS(IFERROR('EKONOM HD'!H9,0)) -> 0 | E9: ='EKONOMIKA osipane'!H9 -> 0 | F9: =IFERROR('eKONOMIKA OVIEC'!H9,0) -> 0 | G9: =EKON.NOSNIC!H9 -> 0 | H9: =EKON.VYK.KURC!H9 -> 0 | I9: =IFERROR('LUCERKA+KUKURICA'!E4,0) -> 0 | J9: 0
B10: Plocha krmovín | C10: ha | D10: =SUM(D7:D9) -> 0 | E10: =SUM(E7:E9) -> 0 | F10: =SUM(F7:F9) -> 0 | G10: 0 | H10: 0 | I10: 0 | J10: =SUM(D10:I10) -> 0
B11: Vlastné náklady za farmu spolu (rastlinná a živočíšne výroba) | C11: Euro | D11: =IFERROR(D12+D13,0) -> 0 | E11: =IFERROR(E12+E13,0) -> 0 | F11: =IFERROR(F12+F13,0) -> 0 | G11: =G12+G13 -> 0 | H11: =H12+H13 -> 0 | I11: =IFERROR(I12+I13,0) -> 0 | J11: 0
B12: Vlastné náklady rastlinná výroba | C12: Euro | D12: =IFERROR('EKONOM HD'!H12,0) -> 0 | E12: =IFERROR('EKONOMIKA osipane'!H12,0) -> 0 | F12: =IFERROR('eKONOMIKA OVIEC'!H12,0) -> 0 | G12: =EKON.NOSNIC!H12 -> 0 | H12: =EKON.VYK.KURC!H12 -> 0 | I12: =IFERROR('Ekonomika kôz'!H13,0) -> 0 | J12: 0
B13: Vlastné náklady živočíšna výroba | C13: Euro | D13: =IFERROR('EKONOM HD'!H13,0) -> 0 | E13: =IFERROR('EKONOMIKA osipane'!H13,0) -> 0 | F13: ='eKONOMIKA OVIEC'!H13 -> 0 | G13: =EKON.NOSNIC!H13 -> 0 | H13: =EKON.VYK.KURC!H13 -> 0 | I13: ='Ekonomika kôz'!H14 -> 0 | J13: 0
B14: Tržby | C14: Euro | D14: =IFERROR('EKONOM HD'!H14,0) -> 0 | E14: ='EKONOMIKA osipane'!H14 -> 0 | F14: ='eKONOMIKA OVIEC'!H14 -> 0 | G14: =EKON.NOSNIC!H14 -> 0 | H14: =EKON.VYK.KURC!H14 -> 0 | I14: ='Ekonomika kôz'!H16 -> 0 | J14: =SUM(D14:I14) -> 0
B15: Tržby - náklady | C15: Euro | D15: =D14-D11 -> 0 | E15: 0 | F15: 0 | G15: 0 | H15: 0 | I15: 0 | J15: 0
B16: Dotácie na živočíšnu výrobu | C16: Euro | D16: =IFERROR('EKONOM HD'!H27,0) -> 0 | E16: =IFERROR('EKONOMIKA osipane'!H16,0) -> 0 | F16: ='eKONOMIKA OVIEC'!H16 -> 0 | G16: =EKON.NOSNIC!H16 -> 0 | H16: =EKON.VYK.KURC!H16 -> 0 | I16: ='Ekonomika kôz'!H18 -> 0 | J16: 0
B17: Tržby + dotácie -vlastné náklady = ZISK/STRATA | C17: Euro | D17: =(D14+D16)-D11 -> 0 | E17: 0 | F17: 0 | G17: 0 | H17: 0 | I17: =(I14+I16)-I11 -> 0 | J17: =SUM(D17:I17) -> 0
B57: Ukazovateľ HD | C57: Fyzický stav počty zvierat v kategórii
B58: DOJNICE
B59: TEL 0 – 6 MES.
B60: ODCHOV JALOVÍC OD 6 MES. DO 7 MES. TEĽNOSTI
B61: VTJ
B62: VYKRM HD
B123: Ukazovateľ ošípane | C123: Fyzický stav počty zvierat v kategórii
B124: PRASNICE | C124: ='EKONOMIKA osipane'!$C$4 -> 0
B125: CICIAKY | C125: =PREDV!$C$3 -> 0
B126: VYKRM | C126: ='EKONOMIKA osipane'!$F$4 -> 0
B201: Ukazovateľ ovce | C201: Fyzický stav počty zvierat v kategórii
B202: BAHNICE | C202: ='eKONOMIKA OVIEC'!$C$4 -> 0
B203: JAHNATA PRI BAHNICI | C203: ='OVCE-H18'!$C$33 -> 0
B204: JARKY DO ZS | C204: ='OVCE-H18'!$C$30 -> 0
B305: Ukazovateľ kozy | C305: Fyzický stav počty zvierat v kategórii
B306: KOZY | C306: ='Ekonomika kôz'!$C$3 -> 0
B307: KOZĽATÁ PRI KOZE | C307: =KOZY!$C$30 -> 0
B308: KOZIČKY DO ZS | C308: =KOZY!$C$29 -> 0

Sheet EKONOMIKA osipane (hidden)
A1: CHOV OSIPANYCH
A2: UKAZOVATEĽ | B2: M.J | C2: PRASNICE | D2: CICIAKY | E2: PREDVYKRM | F2: VYKRM | H2: SPOLU
A3: plánovaný rozsah chovu žv ošípaných | B3: KS
A4: Počty zvierat | B4: KS | C4: =PRASNICE!C2 -> 0 | D4: =PRASNICE!C41 -> 0 | E4: =PREDV!C18 -> 0 | F4: ='VYKRM os.'!C2 -> 0
A5: PLOCHA LÚK PRE CHOV | B5: HA | C5: ='VYZIVA osip.'!J43 -> 0 | D5: ='VYZIVA osip.'!J43 -> 0 | E5: ='VYZIVA osip.'!J43 -> 0 | F5: ='VYZIVA osip.'!J43 -> 0 | H5: =C5+D5+E5+F5+G5 -> 0
A6: PLOCHA PASIENKOV PRE CHOV | B6: HA | C6: ='VYZIVA osip.'!K44 -> 0 | D6: ='VYZIVA osip.'!K44 -> 0 | E6: ='VYZIVA osip.'!K44 -> 0 | F6: ='VYZIVA osip.'!K44 -> 0 | H6: =C6+D6+E6+F6+G6 -> 0
A7: Plocha lúk + pasienkov pre chov | B7: HA | C7: =C5+C6 -> 0 | D7: =D5+D6 -> 0 | E7: 0 | F7: 0 | H7: =C7+D7+E7+F7 -> 0
A8: PLOCHA ORNEJ PODY PRE POTREBY žv (KZ) | B8: HA | C8: ='VYZIVA osip.'!L6 -> 0 | D8: ='VYZIVA osip.'!L15 -> 0 | E8: ='VYZIVA osip.'!L28 ->  | F8: ='VYZIVA osip.'!L38 ->  | H8: =C8+D8+E8+F8+G8 -> 
A9: Plocha ornej pôdy pre potrebu žv objem = K+L | B9: HA | C9: 0 | D9: 0 | E9: 0 | F9: 0 | H9: 0
A10: Potreba krmív v HA pre potreby žv | B10: HA | C10: =C5+C6+C8 -> 0 | D10: =D5+D6+D8 -> 0 | E10: =E8+E6+E5 ->  | F10: =F8+F6+F5 ->  | H10: =H5+H6+H8 ->  | J10: VYZIVA PREDVYKRM A VYKRM JE SPOJENA=KONVERZIA
A11: VLASTNE NAKLADY SPOLU ZA FARMU (RV+ŽV) | B11: EUR | C11: =C12+C13 ->  | D11: =D12+D13 -> 0 | E11: =E12+E13 ->  | F11: =F12+F13 ->  | H11: =H12+H13 -> 
A12: VLASTNE NAKLADY RV | B12: EUR | C12: ='VYZIVA osip.'!L7 -> 0 | D12: ='VYZIVA osip.'!L16 -> 0 | E12: =PREDV!C37 ->  | F12: ='VYZIVA osip.'!L39 ->  | H12: =C12+D12+E12+F12 -> 
A13: VLASTNE NAKLADY ZV | B13: EUR | C13: =PRASNICE!C53 ->  | E13: =PREDV!C44 ->  | F13: ='VYKRM os.'!C48 ->  | H13: =C13+D13+E13+F13 -> 
A14: TRŽBY – ZA CHOV OSIPANYCH | B14: EUR | C14: =PRASNICE!C39 -> 0 | D14: 0 | E14: 0 | F14: ='VYKRM os.'!C44 -> 0 | H14: =C14+D14+E14+F14+G14 -> 0
A15: Tržby - VN SPOLU | B15: EUR | C15: =C14-C11 ->  | D15: =D14-D11 -> 0 | E15: =E14-E11 ->  | F15: =F14-F11 ->  | H15: =H14-H11 -> 
A16: DOTÁCIE NA ŽV | B16: EUR | C16: =PRASNICE!C55 -> 0 | D16: 0 | E16: =PREDV!C89 ->  | F16: ='VYKRM os.'!C41 ->  | H16: =C16+D16+E16+F16 -> 
A17: TRŽBY + DOTÁCIE ŽV - VN= ZISK/STRATA | B17: EUR | C17: =C14+C16-C11 ->  | D17: =D14+D16-D11 -> 0 | E17: =E14+E16-E11 ->  | F17: =F14+F16-F11 ->  | H17: =H14+H16-H11 ->  | L17: =C17+D17+E17+F17 -> 
A18: RV
A19: VYNOS = OCENIE VEDLAJSICH VYROBKOV | B19: EUR | C19: =PRASNICE!C63 -> 0 | E19: =PREDV!C86 ->  | F19: ='VYKRM os.'!C43 ->  | H19: =C19+D19+E19+F19 -> 
A20: TRZBY + DOTACOE SPOLU ZV | B20: EUR | C20: =C16+C14 -> 0 | D20: =D19+D16+D14 -> 0 | E20: =E16+E14 ->  | F20: =F16+F14 ->  | H20: =H16+H14 -> 
A21: HOSPODARSKY VYSLEDOK ZV | B21: EUR | H21: =H20-#REF! -> 
A22: DOTÁCIE RV LUKY + PASIENKY | B22: EUR | C22: =PRASNICE!C123 -> 0 | D22: =PRASNICE!C123 -> 0 | E22: =E5 -> 0 | F22: =F5 -> 0 | H22: =C22+D22+E22+F22+G22 -> 0
A23: DOTACIE NA ORNU PODU = KZ VLASTNE | B23: EUR | C23: =C8*DOJN!C132 -> 0 | D23: =D8*DOJN!C132 -> 0 | E23: =E10*DOJN!C132 ->  | F23: =F10*DOJN!C132 ->  | H23: =C23+D23+E23+F23 -> 
A24: DOTACIE RV SPOLU | B24: EUR | C24: =C23+C22 -> 0 | D24: =D23+D22 -> 0 | E24: =E23+E22 ->  | F24: =F23+F22 ->  | H24: =H23+H22 -> 
A25: DOTACIE SPOLU = ZV + RV | B25: EUR | C25: =C16+C23+C22 -> 0 | D25: =D23+D22+D16 -> 0 | E25: =E23+E22+E16 ->  | F25: =F23+F22+F16 ->  | H25: =C25+D25+E25+F25 ->  | J25: SKUSKA= | K25: =H23+H22+H16 ->  | L25: OK
A28: TRŽBY + DOTÁCIE ZA FARMU | B28: EUR | C28: =C23+C20 -> 0 | D28: =D25+D14 -> 0 | E28: =E25+E14 ->  | F28: =F25+F14 ->  | H28: =C28+D28+E28+F28+G28 ->  | J28: SKUSKA= | K28: =H25+H14 -> 
A29: (TRŽBY + DOTÁCIE ZA FARMU) – VLASTNÉ NÁKLADY | B29: EUR | C29: =C28-#REF! ->  | D29: =D28-#REF! ->  | E29: =E28-#REF! ->  | F29: =F28-#REF! ->  | H29: =C29+D29+E29+F29+G29 -> 
A31: DOBYTCIE JEDNOTKY | B31: DJ | C31: 0.5 | F31: 0.3
A32: DOBYTCIE JEDNOTKY SPOLU | B32: DJ | C32: =C4*C31 -> 0 | F32: =F4*F31 -> 0 | H32: =C32+F32 -> 0
A36: POROVNANIE -VN - na 100kd VYPOCET | B36: EUR | C36: =#REF!/(C4*365)*100 ->  | D36: =#REF!/(D4*365)*100 ->  | E36: =#REF!/(E4*365)*100 ->  | F36: =#REF!/(F4*365)*100 ->  | G36: =#REF!/(G4*365)*100 -> 
A37: PUBLIKACIA VUEPP NA 100 KD | B37: EUR | C37: 814.38 | D37: 248.4 | E37: 191.8 | F37: 457.18 | G37: 237.96
A38: ROZDIEL | B38: EUR | C38: =C37-C36 ->  | D38: =D37-D36 ->  | E38: =E37-E36 ->  | F38: =F37-F36 ->  | G38: =G37-G36 -> 
A39: ROZDIEL V % | B39: EUR | C39: =100*(C36/C37) ->  | D39: =100*(D36/D37) ->  | E39: =100*(E36/E37) ->  | F39: =100*(F36/F37) ->  | G39: =100*(G36/G37) -> 

Sheet OBJ KR OVCE (hidden)
A2: LUCERNA | B2: VYPOCITAM = | C2: =Q59 ->  | D2: VYSTUP | F2: 250 | I2: =F2+H2 -> 250 | K2: =Q59 ->  | L2: VYSTUP
A3: SILAZ KUKURICNA | B3: VYPOCITAM = | C3: =Q58 ->  | D3: VYSTUP | F3: 250 | I3: 250 | K3: =Q58 ->  | L3: VYSTUP
A4: SPOLU - ORNA PODA - OBJ.KRMIVA | C4: =C3+C2 ->  | D4: VYSTUP | K4: =C4 ->  | L4: VYSTUP
A5: POTREBA ORNEJ PODY pre ZV -KR.ZMES | B5: VYPOCITANE PRE - ZV/KZ/ | I5: 0 | K5: PLOCHY - PRE - ZV-/HA/
A6: PSENICA | B6: VYPOCITANE PRE - ZV/KZ/ | I6: 0 | K6: ='KZ BILANCIA'!E2 -> 0 | L6: VYSTUP
A7: JACMEN | I7: 0 | K7: ='KZ BILANCIA'!E3 -> 0 | L7: VYSTUP
A8: KUKURICA | I8: 0 | K8: ='KZ BILANCIA'!E4 -> 0 | L8: VYSTUP
A9: HRACH | K9: ='KZ BILANCIA'!E5 -> 0 | L9: VYSTUP
A10: PEPKA | K10: ='KZ BILANCIA'!E6 -> 0 | L10: VYSTUP
A11: SLNECNICA | K11: ='KZ BILANCIA'!D7 -> 0 | L11: VYSTUP
A12: SOJA | K12: ='KZ BILANCIA'!E8 -> 0 | L12: VYSTUP
A13: PLOCHA PRE ZV = KZ | B13: =#REF!-'Výstup živočíšna výroba'!#REF! ->  | K13: =K12+K11+K10+K9+K8+K7+K6 -> 0
A14: POLCHA PRE ZV = ORNA PODA = +OBJEMOVE KRM=L+K | K14: =C4*-1 -> 
A15: ORNA PODA SPOLU = PRE ZIVOCISNU VYROBU | K15: =K14+K13 -> 
A16: SADY | B16: 5 | C16: 50 | D16: 800 | F16: 250 | H16: 100 | I16: 350
A17: VINICE | B17: 5 | C17: 20 | D17: 1000 | F17: 250 | H17: 100 | I17: 350 | P17: ovca. NA KD
A18: SADY A VINICE SPOLU | C18: =C17+C16 -> 70 | I18: 0 | N18: NEDOSTATOK | P18: sptreba K.D. | Q18: SPOTREBA | R18: SUS Z 1 HA | S18: SUS Z 1 HA | T18: STRATY | U18: KOEFICIENT | W18: skrmitelna
C19: PLOCHA OSEVU | I19: 0 | J19: TON = SUS =VYROBENE | M19: HA | N19: PREBYTOK HA | O19: SUS V gram v p.h. | Q19: SUS - KD | R19: BEZ - STRAT | S19: STRATY - | T19: PERC. | U19: STRAT | V19: SUS-SKRM. | W19: SUS=( + -)ton
A20: LUKY | B20: ='VSTUP RV'!B26 -> 0 | C20: ='VSTUP RV'!P38 ->  | D20: VYPOCITAM | F20: 250 | H20: 50 | I20: 300 | K20: POTREBA LUK | L20: HA | M20: ='eKONOMIKA OVIEC'!H5 ->  | N20: =C20-M20 ->  | O20: ='RV - KRMOVINY'!Q5 -> 200 | P20: =DOJN!C15 -> 13 | Q20: =(P20*O20)/1000 -> 2.6 | R20: =(B20*O20)/1000 -> 0 | T20: ='RV - KRMOVINY'!O4 -> 0 | U20: =1-(T20/100) -> 1 | V20: =U20*R20 -> 0 | W20: =N20*V20 -> 
A21: PASIENKY | B21: ='VSTUP RV'!B27 -> 0 | C21: ='VSTUP RV'!P39 ->  | D21: VYPOCITAM | F21: 250 | I21: 250 | K21: POTREBA PASIENKOV | L21: HA | M21: ='eKONOMIKA OVIEC'!H6 ->  | N21: =C21-M21 ->  | O21: ='RV - KRMOVINY'!Q5 -> 200 | P21: =DOJN!C15 -> 13 | Q21: =(O21*P21)/1000 -> 2.6 | R21: =(O21*B21)/1000 -> 0 | T21: ='RV - KRMOVINY'!O5 -> 0 | U21: =1-(T21/100) -> 1 | V21: =U21*R21 -> 0 | W21: =V21*N21 -> 
A22: LUKY A PASIENKY SPOLU | C22: =C21+C20 ->  | K22: SPOLU | L22: HA | M22: =M21+M20 ->  | N22: =N21+N20 ->  | W22: =W21+W20 -> 
A23: POLNOHOSPODARSKA PODA SPOLU | C23: =C22+C18+K15 ->  | K23: SUSINA SPOLU | L23: TON | M23: =W22*-1 ->  | O23: SPOLU = SUS | P23: =M23-(M25*-1) ->  | Q23: PAS=SUS | R23: =B21*C21*DOJN!C23 ->  | S23: LUKY=SUS | T23: =B20*C20*DOJN!C23 ->  | U23: SPOLU= | V23: =T23+R23 -> 
K24: PREPOCET - vystup | M24: prebytok | N24: produkcia | O24: perc.prebytku krmiva na /L +P/
K25: luky + pasienky | L25: sus/t | M25: =W22 ->  | N25: =(V20*M20)+(V21*M21) ->  | O25: =M25/(N25/100) -> 
N26: POTREBA CELA
A27: VYPOCET KRMOVIN KUK /LUC | C27: SUS | D27: SNL | E27: SJ | H27: UZIV POMER | J27: hektare | K27: sus | L27: snl | M27: sj
A28: SIL. KUK | B28: ='VSTUP RV'!B29 -> 0 | C28: 0.3 | D28: 0.011 | E28: 0.14 | H28: =E28/D28 -> 12.72727273 | I28: =B43/2 ->  | J28: =I28/(C38/B36) ->  | K28: =(C38*J28)/B36 ->  | L28: =D38*J28 ->  | M28: =E38*J28 -> 
A29: LUCERNA | B29: ='VSTUP RV'!B28 -> 0 | C29: 0.2 | D29: 0.03 | E29: 0.11 | H29: =E29/D29 -> 3.666666667 | I29: =B43/2 ->  | J29: =I29/(C39/B36) ->  | K29: =(C39*J29)/B36 ->  | L29: =D39*J29 ->  | M29: =E39*J29 -> 
A30: pomer 1 ku 1 | B30: 20 | D30: =D29+D28 -> 0.041 | E30: =E29+E28 -> 0.25 | H30: =E30/D30 -> 6.097560976 | J30: =J29+J28 ->  | K30: =K29+K28 ->  | L30: =L29+L28 ->  | M30: =M29+M28 ->  | N30: pomer= | O30: =M30/L30 ->  | P30: zle pomer
A31: pomer urod kuk/luc | B31: =B28/B29 -> 
A32: pomer sus v povodnej hmote | B32: =C28/C29 -> 1.5
A34: kukurici bude z 1metra viac zivin | C34: =C28*B31 ->  | D34: =D28*B31 ->  | E34: =E28*B31 -> 
A35: spolu dorobia z2 metrov | C35: =C34+C29 ->  | D35: =D34+D29 ->  | E35: =E34+E29 ->  | H35: =E35/D35 ->  | J35: 1METER DOROBI SUS | L35: =C35/2 ->  | N35: 1 HA DOROBI SUS | P35: =L35*10000 -> 
A36: fix | B36: 1000
A37: ziviny z ha
A38: SIL. KUK | B38: kg | C38: =B36*B28*C28 -> 0 | D38: =B36*B28*D28 -> 0 | E38: =B36*B28*E28 -> 0 | M38: CIZE + LZ
A39: lucERNA | B39: kg | C39: =B36*B29*C29 -> 0 | D39: =B36*B29*D29 -> 0 | E39: =B36*B29*E29 -> 0 | L39: CIZE + SJ
A40: spolu dorobia z 2 ha | B40: kg | C40: =C39+C38 -> 0 | D40: =D39+D38 -> 0 | E40: =E39+E38 -> 0 | H40: =E40/D40 ->  | I40: ok | J40: 6 | K40: 1 ku 6 = | L40: =H40-J40 -> 
A41: CIZE V SUS | B41: SKUTOCNY KOEFICIENT | C41: =C34/C29 -> 
A42: PRIKLAD | L42: SUSINA = R44 B
A43: VYPOCET CHYBA SUS PRE ZV /TON | B43: =W22 ->  | J43: ZLE HA pozor NA VYPOCITANY POMER = R60H
A44: KOLKO TON SUS NASADIT LUC | B44: =(C39/C40)*B43 ->  | C44: =J44*C39 ->  | D44: =D39*J44 ->  | E44: =J44*E39 ->  | I44: HA | J44: =B45/(C39/B36) ->  | L44: =J44*C39 -> 
A45: KOLKO TON SUS NASADIT KUK | B45: =(C38/C40)*B43 ->  | C45: =J45*C38 ->  | D45: =J45*D38 ->  | E45: =J45*E38 ->  | I45: HA | J45: =B44/(C38/B36) ->  | L45: =J45*C38 -> 
A46: SPOLU HA = R44 B | B46: =B45+B44 ->  | I46: SPOLU HA | J46: =J45+J44 ->  | L46: =(L45+L44)/B36 ->  | M46: OK
A47: ROZDIEL = 0 - OK | B47: =B46-B43 -> 
A48: VYZIVA | C48: =C45+C44 ->  | D48: =D45+D44 ->  | E48: =E45+E44 ->  | H48: POMER = | I48: =E48/D48 ->  | J48: ZLE = R63B
A50: xxxx | E50: kg
A51: 1 - vypocet pomeru = chybajuci | B51: =6.3 -> 6.3 | D51: odpocitane | E51: krat zluc.cislo | H51: ziv krat zlucovacie ci | I51: sus | J51: snl | K51: sj | O51: percent | P51: sus | Q51: ha | R51: povd. Hmota | S51: SNL | T51: SJ
A52: sil. Kukurica | B52: =H28 -> 12.72727273 | C52: =B54/(D28*B36) -> 9.090909091 | D52: =B51-B53 -> 2.633333333 | E52: =D52*C52 -> 23.93939394 | I52: =E52*C28 -> 7.181818182 | J52: =E52*D28 -> 0.2633333333 | K52: =E52*E28 -> 3.351515152 | N52: silaz | O52: =E52/(E54/B54) -> 52.77221109 | P52: =B43*(O52/B54) ->  | Q52: =P52/(C38/B36) ->  | R52: =Q52*B28 ->  | S52: =Q52*D38 ->  | T52: =Q52*E38 -> 
A53: lucerna | B53: =H29 -> 3.666666667 | C53: =B54/(D29*B36) -> 3.333333333 | D53: =B52-B51 -> 6.427272727 | E53: =D53*C53 -> 21.42424242 | I53: =E53*C29 -> 4.284848485 | J53: =E53*D29 -> 0.6427272727 | K53: =E53*E29 -> 2.356666667 | N53: lucerna | O53: =E53/(E54/B54) -> 47.22778891 | P53: =O53*(B43/B54) ->  | Q53: =P53/(C39/B36) ->  | R53: =Q53*B29 ->  | S53: =D39*Q53 ->  | T53: =Q53*E39 -> 
A54: fix | B54: 100 | E54: =E53+E52 -> 45.36363636 | I54: =I53+I52 -> 11.46666667 | J54: =J53+J52 -> 0.9060606061 | K54: =K53+K52 -> 5.708181818 | L54: pomer= | M54: =K54/J54 -> 6.3 | O54: =O53+O52 -> 100 | P54: =P53+P52 ->  | Q54: =Q53+Q52 ->  | S54: =S52+S53 ->  | T54: =T53+T52 -> 
A55: kuk | B55: =D52 -> 2.633333333 | C55: =B55*C28 -> 0.79 | D55: =D28*B55 -> 0.02896666667 | E55: =E28*B55 -> 0.3686666667 | H55: na 1kg kuk p.h. | I55: =C28 -> 0.3 | J55: =D28 -> 0.011 | K55: =E28 -> 0.14 | R55: =R53/R52 ->  | S55: POMER = | T55: =T54/S54 ->  | U55: ZLE | V55: MA BYT=R63B
A56: lucerna | B56: =D53 -> 6.427272727 | C56: =B56*C29 -> 1.285454545 | D56: =D29*B56 -> 0.1928181818 | E56: =E29*B56 -> 0.707 | H56: je potreba luc=Q67 | I56: =R55*C29 ->  | J56: =D29*R55 ->  | K56: =E29*R55 ->  | R56: pomer=l/k
D57: =D56+D55 -> 0.2217848485 | E57: =E56+E55 -> 1.075666667 | F57: =E57/D57 -> 4.850045772 | I57: =I55+I56 ->  | J57: =J55+J56 ->  | K57: =K56+K55 ->  | L57: PRECO | M57: =K57/J57 ->  | Q57: HA - SPRAVNE | S57: snl | T57: sj
A58: ZMIESAVACI POMER = KUK = KG | B58: =E52/E53 -> 1.117397454 | C58: =B58*C28 -> 0.3352192362 | D58: =D28*B58 -> 0.01229137199 | E58: =E28*B58 -> 0.1564356436 | N58: KUK | O58: =C58/(C60/B54) -> 62.63213531 | P58: =B43*(O58/B54) ->  | Q58: =P58/(C38/B36) ->  | R58: spolu ob.ziv. | S58: =Q58*D38 ->  | T58: =E38*Q58 -> 
A59: ZMIESAVACI POMER = LUC = KG | B59: 1 | C59: =B59*C29 -> 0.2 | D59: =D29 -> 0.03 | E59: =B59*E29 -> 0.11 | N59: lucerna | O59: =C59/(C60/B54) -> 37.36786469 | P59: =B43*(O59/B54) ->  | Q59: =P59/(C39/B36) ->  | R59: spolu ob.ziv. | S59: =D39*Q59 ->  | T59: =Q59*E39 -> 
A60: SPOLU ZIVINY | B60: =B59+B58 -> 2.117397454 | C60: =C58+C59 -> 0.5352192362 | D60: =D58+D59 -> 0.04229137199 | E60: =E58+E59 -> 0.2664356436 | F60: POMER = | H60: =E60/D60 -> 6.3 | I60: OK | O60: =O59+O58 -> 100 | P60: =P59+P58 ->  | Q60: =Q59+Q58 ->  | R60: spolu ob.ziv. | S60: =S59+S58 ->  | T60: =T59+T58 -> 
Q61: POMER = | S61: OK | T61: =T60/S60 -> 
A63: pocet oviec ZS | B63: ='OVCE-H18'!C3 -> 0 | J63: na 1 krm. Den
A64: KUKURICNA SILAZ (na 1 krm.den=priemer/rok) | B64: 365 | I64: SUS SILAZE | J64: SILAZ V POV | K64: SILAZ SUS SPOLU/ROK | L64: SIL = HA | M64: sil - pov.hm | N64: sil - pov.hm | O64: silaz - spotreba ton na | Q64: KRMNE DNI
A65: ROZPOCET NA OBRATOVE KATEGORIE HD | B65: SPORTEBA V SUS | C65: PERCENTO | D65: SILAZE TON | E65: STRUK.KOEF | F65: KRMNE DNI | G65: krm.dni spolu | H65: SUS SPOTREBA/ROK | I65: TONY | J65: HMOTE -KG | M65: kus/rok/kg | N65: kus/rok/ton | O65: struktur.dojnicu/ROK | Q65: SPOLU | R65: silaz ha | S65: na 1/kd | T65: ton | U65: kg | V65: 1/kd
A66: ovce | B66: ='OVCE-H18'!C64 -> 2.5 | C66: =B66/(B71/100) -> 71.42857143 | D66: =(P58*-1)*(C66/100) ->  | E66: ='OVCE-H18'!C3/'OVCE-H18'!C3 ->  | F66: =E66*365 ->  | G66: =F66*B63 ->  | H66: =F66*B66 ->  | I66: =D66*(O58/100) ->  | J66: =I66/C28 ->  | K66: =(I66*F66)/1000 ->  | L66: =K66/(C38/1000) ->  | M66: =J66*B64 ->  | N66: =M66/1000 ->  | O66: =K66/C28 ->  | Q66: ='OVCE-H18'!C3*'OVCE-H18'!C20 -> 0 | R66: =(D66/C28)/10 ->  | S66: =(R66/G66)*10000 ->  | T66: =R66*B28 ->  | U66: =T66*1000 ->  | V66: =U66/Q66 -> 
A67: jarky | B67: ='OVCE-H18'!C70 -> 1 | C67: =B67/(B71/100) -> 28.57142857 | D67: =(P58*-1)*(C67/100) ->  | E67: ='OVCE-H18'!C30/'OVCE-H18'!C3 ->  | F67: =E67*E66*365 ->  | G67: ='OVCE-H18'!F76 -> 0 | H67: =F67*B67 ->  | I67: =D67*(O58/100) ->  | J67: =I67/C28 ->  | K67: =(I67*F67)/1000 ->  | L67: =K67/(C38/1000) ->  | M67: =J67*B64 ->  | N67: =M67/1000 ->  | O67: =K67/C28 ->  | Q67: ='OVCE-H18'!C30*'OVCE-H18'!C20 -> 0 | R67: =(D67/C28)/10 ->  | S67: =(R67/G67)*10000 -> 
C68: =B68/(B71/100) -> 0 | D68: =(P58*-1)*(C68/100) ->  | I68: =B68*(O58/100) -> 0 | J68: =I68/C28 -> 0 | L68: =K68/(C38/1000) ->  | M68: =B64*J68 -> 0 | N68: =M68/1000 -> 0 | O68: =K68/C28 -> 0 | R68: =(D68/C28)/10 -> 
C69: =B69/(B71/100) -> 0 | D69: =(P58*-1)*(C69/100) ->  | I69: =B69*(O58/100) -> 0 | J69: =I69/C28 -> 0 | L69: =K69/(C38/1000) ->  | M69: =B64*J69 -> 0 | N69: =M69/1000 -> 0 | O69: =K69/C28 -> 0 | R69: =(D69/C28)/10 -> 
C70: =B70/(B71/100) -> 0 | D70: =(P58*-1)*(C70/100) ->  | I70: =B70*(O58/100) -> 0 | J70: =I70/C28 -> 0 | L70: =K70/(C38/1000) ->  | M70: =B64*J70 -> 0 | N70: =M70/1000 -> 0 | O70: =K70/C28 -> 0 | R70: =(D70/C28)/10 -> 
A71: SPOLU NA 1KD = ZAKLAD | B71: =B70+B69+B68+B67+B66 -> 3.5 | C71: =C70+C69+C68+C67+C66 -> 100 | D71: =D70+D69+D68+D67+D66 ->  | G71: =G70+G69+G68+G67+G66 ->  | H71: =H70+H69+H68+H67+H66 ->  | J71: =J70+J69+J68+J67+J66 ->  | K71: =K70+K69+K68+K67+K66 ->  | L71: =L70+L69+L68+L67+L66 ->  | N71: =N70+N69+N68+N67+N66 ->  | O71: =O70+O69+O68+O67+O66 ->  | R71: =R70+R69+R68+R67+R66 -> 
D72: =(D71/C38)*1000 -> 
C73: ROZDIEL V SUS | D73: =D71-P58*-1 ->  | J73: na 1 krm. Den
A74: LUCERNA (na 1 krm.den=priemer/rok) | B74: 365 | C74: ROZDIEL V HA | D74: =D72-Q58*-1 ->  | I74: LUCERNA | J74: SILAZ V POV | K74: LUCER SUS SPOLU/ROK | L74: LUCERNA | M74: sil - pov.hm | N74: sil - pov.hm | O74: silaz - spotreba ton na | Q74: KRMNE DNI
A75: ROZPOCET NA OBRATOVE KATEGORIE HD | B75: SPORTEBA V SUS | C75: PERCENTO | D75: LUCERNA | E75: STRUK.KOEF | F75: KRMNE DNI | G75: krm.dni spolu | H75: SUS SPOTREBA/ROK | I75: KG | J75: HMOTE -KG | M75: kus/rok/kg | N75: kus/rok/ton | O75: struktur.dojnicu/ROK | Q75: SPOLU | R75: silaz ha | S75: na 1/kd | T75: ton | U75: kg | V75: 1/kd
A76: ovce | B76: =B66 -> 2.5 | C76: =E93 ->  | D76: =(P59*-1)*(C66/100) ->  | E76: =E66 ->  | F76: =E76*365 ->  | G76: =G66 ->  | H76: =F76*B76 ->  | I76: =D76*(O59/100) ->  | J76: =I76/C29 ->  | K76: =(I76*F76)/1000 ->  | L76: =K76/(C39/1000) ->  | M76: =J76*B74 ->  | N76: =M76/1000 ->  | O76: =K76/C39 ->  | Q76: =E76*F76*J84 ->  | R76: =(D76/C29)/10 ->  | S76: =(R76/G76)*10000 ->  | T76: =R76*B38 ->  | U76: =T76*1000 ->  | V76: =U76/Q76 -> 
A77: jarky | B77: =B67 -> 1 | C77: =E94 ->  | D77: =(P59*-1)*(C67/100) ->  | E77: =E67 ->  | F77: =E77*E76*365 ->  | G77: =G67 -> 0 | H77: =F77*B77 ->  | I77: =D77*(O59/100) ->  | J77: =I77/C29 ->  | K77: =(I77*F77)/1000 ->  | L77: =K77/(C39/1000) ->  | M77: =J77*B74 ->  | N77: =M77/1000 ->  | O77: =K77/C39 ->  | Q77: =F77*J84 ->  | R77: =(D77/C29)/10 ->  | S77: =(R77/G77)*10000 -> 
B78: =B68 -> 0 | C78: =E95 ->  | D78: =(P59*-1)*(C68/100) ->  | E78: =E68 -> 0 | F78: =E78*E76*365 ->  | G78: =G68 -> 0 | H78: =F78*B78 ->  | I78: =D78*(O59/100) ->  | J78: =I78/C29 ->  | K78: =(I78*F78)/1000 ->  | L78: =K78/(C39/1000) ->  | M78: =B74*J78 ->  | N78: =M78/1000 ->  | O78: =K78/C39 ->  | Q78: =F78*J84 ->  | R78: =(D78/C29)/10 -> 
B79: =B69 -> 0 | C79: =E96 ->  | D79: =(P59*-1)*(C69/100) ->  | E79: =E69 -> 0 | F79: =E79*E76*365 ->  | G79: =G69 -> 0 | H79: =F79*B79 ->  | I79: =D79*(O59/100) ->  | J79: =I79/C29 ->  | K79: =(I79*F79)/1000 ->  | L79: =K79/(C39/1000) ->  | M79: =B74*J79 ->  | N79: =M79/1000 ->  | O79: =K79/C39 ->  | Q79: =F79*J84 ->  | R79: =(D79/C29)/10 -> 
B80: =B70 -> 0 | C80: =E97 ->  | D80: =(P59*-1)*(C70/100) ->  | E80: =E70 -> 0 | F80: =E80*E76*365 ->  | G80: =G70 -> 0 | H80: =F80*B80 ->  | I80: =D80*(O59/100) ->  | J80: =I80/C29 ->  | K80: =(I80*F80)/1000 ->  | L80: =K80/(C39/1000) ->  | M80: =B74*J80 ->  | N80: =M80/1000 ->  | O80: =K80/C39 ->  | Q80: =F80*J84 ->  | R80: =(D80/C29)/10 -> 
A81: SPOLU NA 1KD = ZAKLAD | B81: =B80+B79+B78+B77+B76 -> 3.5 | C81: =C80+C79+C78+C77+C76 ->  | D81: =D80+D79+D78+D77+D76 ->  | G81: =G80+G79+G78+G77+G76 ->  | H81: =H80+H79+H78+H77+H76 ->  | J81: =J80+J79+J78+J77+J76 ->  | K81: =K80+K79+K78+K77+K76 ->  | L81: =L80+L79+L78+L77+L76 ->  | N81: =N80+N79+N78+N77+N76 ->  | O81: =O80+O79+O78+O77+O76 ->  | R81: =R80+R79+R78+R77+R76 -> 
D82: =(D81/C39)*1000 ->  | H82: OK | J82: SIMPLEX | K82: RIADOK70 STLPEC= O | L82: OK=R70SP | O82: SIMPLEX | Q82: HA = | R82: =(R81/B29)*10 -> 
C83: ROZDIEL V SUS | D83: =D81-P59*-1 ->  | J83: 1 STR.DOJ=SPOTREBA | K83: OK
A84: SPRAVNY ROZPOCET | C84: ROZDIEL V HA | D84: =D82-Q59*-1 -> 
A85: SILAZ KUKURICNA = | C85: KRMNE DNI
A86: SUSINA SPOLU ZA CHOV HD | B86: =N25 -> 
A87: SUSINA SPOLU ZA CHOV HD Z LUC + KUK | B87: =P60*-1 -> 
A88: SUSINA Z LUK A PASIENKOV | B88: =B86-B87 ->  | D88: HA
A89: SUSINA KUKURICE NA ROZDELENIE NA KATEGORRIE | B89: =P58*-1 ->  | C89: =B89/C28 ->  | D89: =C89/B28 ->  | E89: KUK = TON | F89: =Q58*B28 ->  | N89: TON SILAZ
A90: SUSINA LUC NA ROZDELENIE NA KAT, | B90: =P59*-1 ->  | C90: =B90/C29 ->  | D90: =C90/B29 ->  | G90: SUS | N90: =C89 -> 
A91: ovce | B91: =B89+B90 ->  | D91: SUS*KD Z OBRARU STADA | E91: VAHA =OBRATU | G91: VAHA PODIELU | H91: VAHA PODIEL | I91: VAHA PODIEL | J91: VAHA PODIEL | K91: PREPOCET NA SUS | O91: DEL KD
A92: XXXXXXXX = ZAKLAD PRE VYPOCET NA POMER | C92: SPOTREBA SUS/KD | D92: NA ROK/KD | E92: PERCENTO | F92: PERCENTO BEZ VAHY PODIELU OBRATU STADA V KD | G92: NA 1KD | H92: NA 1KD = VAHA | I92: KOEFICIENT | O92: NA1KD
A93: STRUKTUALNY PREPOCET SUS NA 1KD | B93: ovce =ZS | C93: =B76 -> 2.5 | D93: =F76*B76 ->  | E93: =D93/(D98/100) ->  | F93: =C93/(C98/100) -> 71.42857143 | G93: =C93*(E93/100) ->  | H93: =C98*(E93/100) ->  | I93: =H93/C93 ->  | J93: =S76*I93 ->  | K93: =J93*C28 ->  | L93: =J93*H76 ->  | M93: =H93*G76 ->  | N93: =N90*(E93/100) ->  | O93: =(N93/G66)*1000 -> 
A94: SLUZI NA ROZPOCET SUS NA VYZIVU | B94: JARKY = ODCHOV | C94: 1 | D94: =F77*B77 ->  | E94: =D94/(D98/100) ->  | F94: =C94/(C98/100) -> 28.57142857 | G94: =C94*(E94/100) ->  | H94: =C98*(E94/100) ->  | I94: =H94/C94 ->  | J94: =S77*I94 ->  | K94: =J94*C28 ->  | L94: =J94*H77 ->  | M94: =H94*G77 ->  | N94: =N90*(E94/100) ->  | O94: =(N94/G67)*1000 -> 
C95: 0 | D95: =F78*B78 ->  | E95: =D95/(D98/100) ->  | F95: =C95/(C98/100) -> 0 | H95: =C98*(E95/100) ->  | I95: 0 | J95: 0 | K95: =J95*C28 -> 0 | L95: =J95*H78 ->  | M95: =H95*H78 ->  | N95: =N90*(E95/100) -> 
C96: 0 | D96: =F79*B79 ->  | E96: =D96/(D98/100) ->  | F96: =C96/(C98/100) -> 0 | H96: =C98*(E96/100) ->  | I96: 0 | J96: 0 | K96: =J96*C28 -> 0 | L96: =J96*H79 ->  | M96: =H96*H79 ->  | N96: =N90*(E96/100) -> 
C97: 0 | D97: =F80*B80 ->  | E97: =D97/(D98/100) ->  | F97: =C97/(C98/100) -> 0 | H97: =C98*(E97/100) ->  | I97: 0 | J97: 0 | K97: =J97*C28 -> 0 | L97: =J97*H80 ->  | M97: =H97*G70 ->  | N97: =N90*(E97/100) -> 
B98: SPOLU NA 1KD = ZAKLAD | C98: 3.5 | D98: =D97+D96+D95+D94+D93 ->  | E98: =E97+E96+E95+E94+E93 ->  | F98: =F97+F96+F95+F94+F93 -> 100 | G98: =G97+G96+G95+G94+G93 ->  | H98: =H97+H96+H95+H94+H93 ->  | J98: =J93 ->  | K98: =K97+K96+K95+K94+K93 ->  | L98: =L97+L96+L95+L94+L93 ->  | M98: =M97+M96+M95+M94+M93 ->  | N98: =N97+N96+N95+N94+N93 ->  | O98: OK
A99: PLATI TEORIA ROZPOCTU NA KD/KG
A100: SILAZ KUKURICNA = TONY | B100: =B89 ->  | D100: =B90 -> 
A101: SILAZ = HA | B101: =Q58*-1 ->  | D101: =Q59*-1 -> 
A102: SILAZ POVODNA HMOTA V KG | B102: =B101*B28*1000 ->  | C102: SILAZ NA KD | D102: =D101*B29*1000 ->  | E102: POMER=K/L = | F102: =B102/D102 ->  | G102: POMRER=L/K = | H102: =D102/B102 -> 
B103: PODIEL Z CELKU V KG | C103: NA 1 KRMNY DEN | D103: LUCERNA | E103: NA 1KD | F103: sus /kd silaz | G103: lucerna | H103: sus/KD = L + K | I103: POZIADAVKA SUS | J103: ROZDIEL = kg | K103: ROZDIEL = PERCRNTO
A104: ovce | B104: =B102*(E93/100) ->  | C104: =B104/G76 ->  | D104: =D102*(E93/100) ->  | E104: =D104/G76 ->  | F104: =C104*C28 ->  | G104: =E104*C29 ->  | H104: =F104+G104 ->  | I104: =B66 -> 2.5 | J104: =H104-I104 ->  | K104: =J104/(I104/100) -> 
A105: jarky | B105: =B102*(E94/100) ->  | C105: =B105/G77 ->  | D105: =D102*(E94/100) ->  | E105: =D105/G77 ->  | F105: =C105*C28 ->  | G105: =E105*C29 ->  | H105: =F105+G105 ->  | I105: =B67 -> 1 | J105: =H105-I105 ->  | K105: =J105/(I105/100) -> 
B106: =B102*(E95/100) ->  | D106: =$D$135*(E95/100) ->  | F106: =C106*C28 -> 0 | G106: =E106*C29 -> 0 | H106: 0 | I106: =B68 -> 0 | J106: 0
B107: =B102*(E96/100) ->  | F107: =C107*C28 -> 0 | G107: =E107*C29 -> 0 | H107: 0 | I107: =B69 -> 0 | J107: 0
B108: =B102*(E97/100) ->  | F108: =C108*C28 -> 0 | G108: =E108*C29 -> 0 | H108: 0 | I108: =B70 -> 0 | J108: 0
A109: SPOLU NA 1KD = ZAKLAD | B109: =B108+B107+B106+B105+B104 ->  | D109: =D104+D105+D106+D107+D108 -> 
A110: XXXXXXXXXX
A111: PO VYPOCTE NEPASUJE SUSINA O
A116: E= STRUKTUALNY KOEFICIENT = NA 1 DOJNICU ZAKLADNEHO STADA KOLKO KD PRIPADA OSTATNYCH KATEGORII - telce do 6 mesiacov = 182 kd - pobyt v kategorii v dnoch = rok(365dni)/dlzkou pobytu (182dni)=0.5 | L116: =L98/B28/1000 ->  | M116: =M98/B28/1000 ->  | N116: OK
A117: F = KRMNE DNI V KATEGORII /SKUTOCNE/ NA KRMNY DEN SA VSETKO PLANUJE KRMIVA atd
A118: G= SPOTREBA SUS NA 1 KUS = PODLA DLZKY POBYTU V KATEGORII /telce = 182 KD
A119: H = SUSINA KUKURICNEJ SILAZE NA 1 KRMNY DEN / 100 PERCENT/ PRE JEDNOTLIVE KATEGORIE HZ
A120: I = SUSINA PREPOCITANA NA POCODNU HMOTU KRMIVA NA 1 KRMNY DEN / KG KRMIVA VO VALOVE/
A121: J = SUSINA NA 1 STRUKTUALNU DOJNICU /DOJNICA A OBRATOVE KATEGORIE/ = CERVENYM OZNACENE SA MUSIA ROVNAT / VYROBA = SPOTREBE/
A122: K = POTREBA KRMIVA PREPOCITANA NA NA PODY MODRE OZNACEENIE HA SA MUSIA ROVNAT = BUDUCE OCAKAVANE ODHADY
A123: L + L = POTREBA KRMIVA NA ROK = 365KD KG, TON
A124: N = PREPOCET NA STRUKTUALNU DOJNICU = PRIPRAVENY PREPOCET PRE EKONOMICKO - MATEMETICKU OPTIMALIZACIU / ZABUDOVANE VYZIVARSKE PRODUKCNE A REPRODUKCNE POZIADAVKY OBRATOVYCH KATEGORII HZ/
A125: XXXXXXXXXXX
A126: CHOV OVIEC

Sheet eKONOMIKA OVIEC (hidden)
A1: CHOV OVIEC | K1: 0 - STRAT | M1: 10 - STRAT | O1: 10 + STRAT
A2: UKAZOVATEĽ | B2: M.J | C2: BAHNICE | D2: JAHNATA PRI BAHNICI | E2: JARKY DO ZS | F2: VYKRM | H2: SPOLU
A3: Plánovaný rozsah ŽV
A4: Počty zvierat | C4: ='OVCE-H18'!C3 -> 0 | D4: ='OVCE-H18'!C33 -> 0 | E4: ='OVCE-H18'!C30 -> 0 | F4: 0 | H4: =C4+D4+E4 -> 0
A5: PLOCHA LÚK PRE CHOV | B5: HA | C5: ='OVCE-H18'!C96 ->  | D5: ='VYZIVA osip.'!J43 -> 0 | E5: ='OVCE-H18'!C110 ->  | F5: ='VYZIVA osip.'!J43 -> 0 | H5: =C5+D5+E5+F5+G5 ->  | J5: OK | K5: 32.57 | L5: OK | M5: =K5*1.1 -> 35.827 | N5: OK | O5: =M5*1.1 -> 39.4097
A6: PLOCHA PASIENKOV PRE CHOV | B6: HA | C6: ='OVCE-H18'!C88 ->  | D6: ='VYZIVA osip.'!K44 -> 0 | E6: ='OVCE-H18'!C108 ->  | F6: ='VYZIVA osip.'!K44 -> 0 | H6: =C6+D6+E6+F6+G6 ->  | J6: OK | K6: 66.94 | L6: OK | M6: =K6*1.1 -> 73.634 | N6: OK | O6: =M6*1.1 -> 80.9974
A7: POLOCHA LUK + PASIENKOV SPOLU | B7: HA | C7: =C6+C5 ->  | D7: =D5+D6 -> 0 | E7: =E5+E6 ->  | F7: =F5+F6 -> 0 | H7: =H5+H6 ->  | J7: OK | K7: 99.51 | L7: OK | M7: 109.461 | N7: OK | O7: 120.4071
A8: PLOCHA ORNEJ PODY PRE POTREBY žv (KZ) | B8: HA | C8: ='KZ OVCE'!L6 -> 0 | D8: ='KZ OVCE'!L15 -> 0 | E8: ='KZ OVCE'!L29 -> 0 | F8: 0 | H8: =C8+D8+E8+F8+G8 -> 0
A9: Plocha ornej pôdy pre potreby žv K+L | B9: HA | C9: ='OVCE-H18'!C90 ->  | H9: =ABS('LUCERKA+KUKURICA'!D4) -> 
A10: Potreba krmív v HA pre potreby žv | B10: HA | C10: =C5+C6+C8 ->  | D10: =D5+D6+D8 -> 0 | E10: =E8+E6+E5 ->  | F10: =F8+F6+F5 -> 0 | H10: =H5+H6+H8 -> 
A11: VLASTNE NAKLADY SPOLU ZA FARMU (RV+ŽV) | B11: HA | C11: =C12+C13 ->  | D11: =D12+D13 -> 0 | E11: =E12+E13 ->  | F11: =F12+F13 -> 0 | H11: =H12+H13 -> 
A12: VLASTNE NAKLADY RV | B12: EUR | C12: ='OVCE-H18'!C176 ->  | E12: ='OVCE-H18'!C202 ->  | H12: =C12+D12+E12+F12 -> 
A13: VLASTNE NAKLADY ZV | B13: EUR | C13: ='OVCE-H18'!C160 -> 0 | E13: ='OVCE-H18'!C203 -> 0 | H13: =C13+D13+E13+F13 -> 0
A14: TRŽBY – ZA CHOV OVIEC | B14: EUR | C14: ='OVCE-H18'!C141 -> 0 | D14: ='OVCE-H18'!C140 -> 0 | E14: ='OVCE-H18'!C139 -> 0 | F14: 0 | H14: 0
A15: TRŽBY – VLASTNE NAKLADY ZA CHOV | B15: EUR | C15: =C14-C11 ->  | D15: =D14-D11 -> 0 | E15: =E14-E11 ->  | F15: =F14-F11 -> 0
A16: DOTÁCIE NA ŽV | B16: EUR | C16: ='OVCE-H18'!C145 -> 0 | D16: 0 | E16: 0 | F16: 0 | H16: 0 | M16: DOTACIE ZV V % = | O16: =H16/R22 -> 
A17: TRŽBY + DOTÁCIE - VN= ZISK/STRATA | B17: EUR | C17: =(C14+C16)-C11 ->  | D17: =(D14+D16)-D11 -> 0 | F17: 0
A18: RV
A19: VYNOS = OCENIE VEDLAJSICH VYROBKOV | B19: EUR | C19: 0 | D19: 0 | E19: =0 -> 0 | F19: 0 | H19: =C19+D19+E19+F19 -> 0
A20: VYNOSY SPOLU ZV = trzby + dotacie ZV | B20: EUR | C20: =C19+C16+C14 -> 0 | D20: =D19+D16+D14 -> 0 | E20: =E19+E16+E14 -> 0 | F20: =F19+F16+F14 -> 0 | H20: =H19+H16+H14 -> 0
A21: HOSPODARSKY VYSLEDOK CHVU - bez dotacii na RV | B21: EUR | H21: =H20-#REF! ->  | N21: +
A22: DOTÁCIE RV LUKY + PASIENKY + ORNA PODA/KZ/ | B22: EUR | C22: ='OVCE-H18'!C150 ->  | D22: ='OVCE-H18'!C151 -> 0 | E22: ='OVCE-H18'!C157 ->  | F22: 0 | H22: =C22+D22+E22+F22+G22 ->  | J22: SKUSKA= | K22: =H10*DOJN!C132 ->  | L22: OK | M22: DOTACIE RV V % = | O22: =H22/R22 ->  | R22: =(H22+H16)/100 -> 
J23: ROZDIEL= | K23: =H22-K22 ->  | M23: DOTACIE SPOLU = | O23: =O22+O16 -> 
A24: VYNOS = OCENIE VEDLAJSICH VYROBKOV | B24: EUR | C24: 0 | D24: 0 | E24: 0 | F24: 0 | H24: =C24+D24+E24+F24 -> 0
A27: TRŽBY + DOTÁCIE ZA FARMU | B27: EUR | C27: =C20+C22 ->  | D27: =D20+D22 -> 0 | E27: =E20+E22 ->  | F27: =F20+F22 -> 0 | H27: =C27+D27+E27+F27+G27 -> 
A28: (TRŽBY + DOTÁCIE ZA FARMU) – VLASTNÉ NÁKLADY | B28: EUR | C28: =C27-#REF! ->  | D28: =D27-#REF! ->  | E28: =E27-#REF! ->  | F28: =F27-#REF! ->  | H28: =C28+D28+E28+F28+G28 ->  | J28: =H27-#REF! ->  | M28: =H28-'Výstup živočíšna výroba'!#REF! -> 
A30: DOBYTCIE JEDNOTKY | B30: DJ | C30: 0.15 | D30: 0 | E30: 0 | F30: 0
A31: DOBYTCIE JEDNOTKY SPOLU | B31: DJ | C31: =C30*C4 -> 0 | D31: =D30*D4 -> 0 | E31: =E30*E4 -> 0 | F31: =F30*F4 -> 0 | H31: =C31+D31+E31+F31 -> 0
A35: POROVNANIE -VN - na 100kd VYPOCET | B35: EUR | C35: =#REF!/(C4*365)*100 ->  | D35: =#REF!/(D4*365)*100 ->  | E35: =#REF!/(E4*365)*100 ->  | F35: =#REF!/(F4*365)*100 ->  | G35: =#REF!/(G4*365)*100 -> 
A36: PUBLIKACIA VUEPP NA 100 KD | B36: EUR | C36: 814.38 | D36: 248.4 | E36: 191.8 | F36: 457.18 | G36: 237.96
A37: ROZDIEL | B37: EUR | C37: =C36-C35 ->  | D37: =D36-D35 ->  | E37: =E36-E35 ->  | F37: =F36-F35 ->  | G37: =G36-G35 -> 
A38: ROZDIEL V % | B38: EUR | C38: =100*(C35/C36) ->  | D38: =100*(D35/D36) ->  | E38: =100*(E35/E36) ->  | F38: =100*(F35/F36) ->  | G38: =100*(G35/G36) -> 

Sheet OVCE-H18 (hidden)
A1: Vstupné údaje
A2: BAHNICE | B2: MJ | C2: HODNOTA
A3: POCET OVIEC – ZS | B3: KUS | D3: vstup
A4: UHYN OVIEC – ZS | B4: PERCENT | C4: 1
A5: PRIEMERNA HMOTNOST 1 KS | B5: KG | C5: 50
A6: CENA ZA 1KG MASA BRAK.BAHNIC | B6: EUR | C6: 2
A7: REALIZACNA CENA ZA 1LITER MLIEKA | B7: EUR
A8: PRODUKCIA MLIEKA NA 1 BAHNICU/ROK | B8: LITRE
A9: SPOTREBA MLIEKA PRE JAHNATA NA 1KG PRIRASTKU V ODCHOVE | B9: LITRE | C9: 5.1
A10: EKVIVALENT - SPOTREBY MLIEKA NA VYROBU 1KG HRUDKOVEHO OVCIEHO SYRU | B10: LITRE | C10: 4.5
A11: PRODUKCIA VLNY NA 1 BAHNICU/ROK | B11: KG | C11: 4
A12: PRODUKCIA VLNY NA 1 JARKU/ROK | B12: KG | C12: 3
A13: CENA ZA 1 KG VLNY | B13: EUR | C13: 1
A14: BRAKOVANIE BAHNIC ZS | B14: PERCENT | C14: 25
A15: NATALITA – POCET NAR -JAHN. NA 1BAHNICU/ROK | B15: KS | C15: 2
A16: UHYN JAHNIAT – NARODENYCH DO ODCHOVU | B16: PERCENT | C16: 10
A17: HMOTNOST JAHNIAT PRI PREDAJI /VELKONOCNE/ | B17: KG
A18: CENA ZA 1KG MASA JAHNIAT /VELKONOCNE/ | B18: EUR
A19: FIX | C19: 100
A20: FIX | C20: 365
A21: FIX | C21: 1000
A22: VLASTNE NAKLADY NA 100KD BAHNIC | B22: EUR | D22: vstup | E22: VLAST. NAKLADY BEZ KRMOVIN - POZOR
A23: VLASTNE NAKLADY NA 100KD ODCHOV JARIEK = mlade chovne ovce | B23: EUR | D23: vstup
A26: PREPRODUKCIA
A27: POCET OVIEC – ZS – UHYNUTYCH | B27: KS | C27: =(C3*C4)/C19 -> 0
A28: POCET OVIEC – ZS – PREDANYCH /BRAKOVANYCH/ | B28: KS | C28: =((C3*C14)/C19)-C27 -> 0
A29: UBYTOK OVIEC ZS /UHYN + BRAKACIA/ KONTROLA | B29: KS | C29: =C28+C27 -> 0
A30: POTREBA – JARIEK DO ZS | B30: KS | C30: =(C3*C14)/C19 -> 0
A31: POCET NARODENYCH JAHNIAT | B31: KS | C31: =C3*C15 -> 0
A32: POCET JAHNICIEK A BARANKOV – UHYN | B32: KS | C32: =(C16*C31)/C19 -> 0
A33: POCET ODCHOVANYCH JAHNICIEK A BARANKOV | B33: KS | C33: =C31-C32 -> 0
A34: POCET JAHNICIEK A BARANKOV PRE PREDAJ | B34: KS | C34: =C31-(C30+C32) -> 0
A35: HMOTNOST PRI PORODE - JAHNATA | B35: KG | C35: 3
A36: VZTAHY PRE VYPOCET VN PRE JAHNATA -
A37: PRIRASTOK JAHNIAT KS/DEN | B37: KG | C37: 0.25
A38: POCET DNI ODCHOVU JAHNIAT PRI BAHNICI | B38: DNI | C38: =(C17-C35)/C37 -> -12
A39: VZRASTOVY PRIRASTOK JAHNIAT = NARAST HMOTNOSTI 1KUSA | B39: KG | C39: =C17-C35 -> -3
A40: SPOTREBA MLIEKA - OVCIEHO NA 1 ODCHOVANE JAHNA | B40: LITRE | C40: =C39*C9 -> -15.3
A41: SPOTREBA MLIEKA - OVCIEHO NA VSETKY ODCHOVANE JAHNA /SPOLU/ | B41: LITRE | C41: =C40*C33 -> 0
A42: INDEX ODCHOVU = POCET ODCHOVANYCH JAHNIAT NA 1 BAHNICU | B42: INDEX | C42: =C33/C3 -> 
A43: PRODUKCIA MASA JAHNIAT V KG NA 1 BAHNICU + HMOTNOST PORODU/NARODENE/ | B43: KG | C43: =C42*C17 ->  | E43: tu pokracuj d.d.
A44: PRODUKCIA
A45: POCET JAHNICIEK A BARANKOV – PREDAJ | B45: KG | C45: =C34*C17 -> 0
A46: PREDAJ BRAK . OVIEC | B46: KG | C46: =C28*C5 -> 0
A48: PRODUKCIA MLIEKA CELKOVA ZA CHOV - | B48: LITRE | C48: =C3*C8 -> 0
A49: PREDAJ MLIEKA = PRODUKCIA - SPOTREBA MLIEKA JAHNATAMI | B49: LITRE | C49: =C48-C41 -> 0
A50: PREDAJ MLIEKA TRHOVY NA 1BAHNICU /ZAKL. STADA/ | B50: LITRE | C50: =C49/C3 ->  | D50: SKUS. SPR. | E50: =C50+(C40*C42) ->  | F50: OK=VSTUP-R7
A51: PREDAJ VLNY Z OVIEC - BAHNIC | B51: KG | C51: =C11*C3 -> 0
A52: PREDAJ VLNY Z - JARIEK | B52: KG | C52: =C30*C12 -> 0
A54: VYZIVA
A56: BAHNICE
A57: KRMNA REZERVA | B57: PERCENT | C57: ='RV - KRMOVINY'!N4 -> 0
A58: PASIENKY = STRATY – USLAPANIM | B58: PERCENT | C58: ='RV - KRMOVINY'!K5 -> 0
A59: PASIENKY = STRATY – ZBEROM | B59: PERCENT | C59: ='RV - KRMOVINY'!L5 -> 0
A60: STRATY – ZBEROM = luky | B60: PERCENT | C60: ='RV - KRMOVINY'!L4 -> 0
A61: STRATY – USLAPANIM = luky | B61: PERCENT | C61: ='RV - KRMOVINY'!K4 -> 0
A62: LETO – POCET KD – PASIENKY | B62: DNI | C62: 185 | E62: KRMNE DNI= | F62: =C62*C3 -> 0 | G62: LETO
A63: ZIMA – POCET KD – LUKY | B63: DNI | C63: 180 | E63: KRMNE DNI= | F63: =C63*C3 -> 0 | G63: ZIMA
A64: POTREBA SUSINY NA 1KD OBJEM | B64: KG | C64: 2.5 | E64: SPOLU ZS = | F64: =F63+F62 -> 0 | G64: KRM. DNI
A65: SPOTREBA PASIENKOV KUS/DEN – pasienky-V ZELENOM | B65: KG | C65: =C64/DOJN!C56 -> 12.5
A66: POTREBA LUK KUS/DEN – luky – V ZELENOM | B66: KG | C66: =C64/DOJN!C56 -> 12.5
A67: SPOTREBA SENA Z LUK V ZIME NA KRMNY DEN | B67: KG | C67: =C66*0.25 -> 3.125
A68: SPOTREBA KRM.ZMESI. KUS/ ROK | B68: KG | C68: 50
A69: JARKY - VYZIVA | C69: =F76 -> 0
A70: POTREBA SUSINY NA 1KD OBJEM | B70: KG | C70: 1
A71: SPOTREBA PASIENKOV KUS/DEN – pasienky-V ZELENOM | B71: KG | C71: =C70/DOJN!C56 -> 5
A72: sPOTREBA LUK KUS/DEN – luky – V ZELENOM | B72: KG | C72: =C70/DOJN!C56 -> 5
A73: SPOTREBA SENA Z LUK V ZIME NA KRMNY DEN | B73: KG | C73: =C72*0.25 -> 1.25 | H73: SPOTR.KRM. | M73: VAHA | N73: VYROBA LUK | O73: KRMNE | P73: KRMNE DNI | Q73: POTREBA
A74: SPOTREBA PASIENKOV KUS/rok – pasienky-V ZELENOM | B74: KG | C74: =C71*C62 -> 925 | E74: KRMNE DNI= | F74: =C30*C62 -> 0 | G74: LETO | H74: =F74*C71 -> 0 | I74: LUKY | J74: potreba ha L + P | K74: SKUTOCNA | L74: PERCENT | M74: PODIELU HA | N74: POV. HMOTA | O74: DNI | P74: SPOLU | Q74: NA KD
A75: POTREBA LUK KUS/ROK – luky – V ZELENOM | B75: KG | C75: =C72*C63 -> 900 | E75: KRMNE DNI= | F75: =C63*C30 -> 0 | G75: ZIMA | H75: =C72*F75 -> 0 | I75: OVCE LUK | J75: =C100 ->  | K75: ROZPOCITANA | L75: =J75/(J77/100) ->  | M75: =K77*(L75/100) ->  | N75: =M75*'OBJ KR OVCE'!B20 ->  | O75: 365 | P75: =C53 -> 0 | Q75: =(N75/O75)*1000 ->  | R75: SPRAV HLBSIU ANALYZU
A76: SPOTREBA PASIENKOV KUS/rok – pasienky-V ZELENOM + straty uslap. | B76: KG | C76: =C74*(1+(C58/C19)) -> 925 | E76: SPOLU JARKY | F76: =F75+F74 -> 0 | G76: KRMNE DNI | H76: =H75+H74 -> 0 | I76: JARKY DO ZS | J76: =C110 ->  | L76: =J76/(J77/100) ->  | M76: =(K77*L76)/100 ->  | N76: =M76*'OBJ KR OVCE'!B20 ->  | O76: 365 | P76: =C69 -> 0 | Q76: =(N76/O76)*1000 ->  | R76: LUK + PAS
A77: SPOTREBA PASIENKOV KUS/rok – pasienky-V ZELENOM + straty uslap. + krmna rezerva | B77: kg | C77: =C76*(100+'RV - KRMOVINY'!N5)/100 -> 925 | I77: SPOLU | J77: =J76+J75 ->  | K77: ='VSTUP RV'!Q59 ->  | L77: =L76+L75 ->  | M77: =M76+M75 ->  | N77: =N76+N75 -> 
A78: sPOTREBA LUK KUS/ROK – luky – V ZELENOM + STRATY USLAPANIM | B78: KG | C78: =C75*(1+C60/C19) -> 900
A79: sPOTREBA LUK KUS/ROK – luky – V ZELENOM + STRATY USLAPANIM + krmna rezerva | B79: KG | C79: =C78*(100+'RV - KRMOVINY'!N4)/100 -> 900
A80: SPOTREBA PASIENKOV PRE JARKY – pasienky-V ZELENOM | B80: TON | C80: =(C77/C21)*C30 -> 0 | E80: =C80/'RV - KRMOVINY'!B5 ->  | L80: prevod | M80: ha | N80: VN /HA/EUR | O80: VN/CHOV
A81: SPOTREBA LUK PRE JARKY – LUKY-V ZELENOM | B81: TON | C81: =(C79/C21)*C30 -> 0 | E81: =C81/'RV - KRMOVINY'!B4 ->  | J81: plocha lucerny | K81: ha | L81: ='OBJ KR OVCE'!C2 ->  | M81: =L81*-1 ->  | N81: ='VSTUP RV'!E28 -> 0 | O81: =N81*M81 -> 
J82: plocha silaze | K82: ha | L82: ='OBJ KR OVCE'!C3 ->  | M82: =L82*-1 ->  | N82: ='VSTUP RV'!E29 -> 0 | O82: =N82*M82 -> 
A83: KRMNA BILANCIA – BAHNICE ZAKLADNE STADO | J83: SPOLU | L83: =L82+L81 ->  | M83: =L83*-1 ->  | O83: =O82+O81 -> 
A84: SPOTREBA PASIENKOV 1 KUS/ROK – V ZELENOM | B84: KG | C84: =C65*C62 -> 2312.5
A85: SPOTREBA PASIENKOV VSETKY /ROK – V ZELENOM | B85: ton | C85: =(C84/C21)*C3 -> 0 | D85: HA | E85: =C85/'RV - KRMOVINY'!B5 ->  | J85: KRMNA REPA | K85: TON/HA | M85: 30 | N85: 2000
A86: potreba pasienkov VSETKY/rok + straty uslapanim | B86: TON | C86: =C85*(100+'RV - KRMOVINY'!M5)/100 -> 0 | D86: HA | E86: =C86/'RV - KRMOVINY'!B5 ->  | J86: spotreba | K86: ks/kd/kg | L86: 0.5 | M86: zima KD = | N86: =C63 -> 180 | O86: POTR/KUS | P86: =N86*L86 -> 90 | Q86: KG
A87: potreba pasienkov VSETKY/rok + straty uslapanim +krmna rezerva= KONECNA BILANCIA | B87: TON | C87: =C86*(100+'RV - KRMOVINY'!N5)/100 -> 0 | D87: HA | E87: =C87/'RV - KRMOVINY'!B5 ->  | J87: PLOCHA = KRM. REPA | K87: HA | L87: =P86*(C3+C30) -> 0 | M87: =L87/(M85*1000) -> 0 | O87: =M87*N85 -> 0
A88: potreba pasienkov VSETKY/rok + straty uslapanim +krmna rezerva= KONECNA BILANCIA | B88: HA | C88: =C87/'RV - KRMOVINY'!B5 ->  | E88: ok | J88: PLOCHA ORNA PODA | K88: SPOLU | L88: HA | M88: =M87+M83 ->  | O88: =O87+O83 ->  | P88: EUR | Q88: JE ZABUDOVANE R86= C
A89: potreba pasienkov VSETKY/ VYPOCITANA= KONECNA BILANCIA /PRI NEDOSTATKU PAS. V krm.bil. | B89: HA | C89: =M96 -> 
A90: POTREBA ORNEJ PODY PRE OBJEMOVE KRMIVA PRI NEDOSTATKU LUK + PASIENKOV | B90: HA | C90: =M88 -> 
A91: SPOTREBA LUK KUS/ ROK – V ZELENOM - SKRMITELNE | B91: KG | C91: =C66*C63 -> 2250
A92: SPOTREBA PASIENKOV KUS/ ROK + STRATY USLAPANIM | B92: KG | C92: =(1+C58/C19)*C84 -> 2312.5 | D92: OK | E92: POZOR PATRI DO BILANCIE PASIENKOV | M92: VAHA | N92: VYROBA LUK | O92: KRMNE | P92: KRMNE DNI | Q92: POTREBA
A93: SPOTREBA LUK - KUS/ ROK + ZBEROVE STRATY | B93: KG | C93: =(1+(C60/C19))*C91 -> 2250 | D93: OK
A94: SPOTREBA LUK KUS/ROK + ZBEROVE STRATY + KRMNA REZERVA | B94: KG | C94: =C93*(100+'RV - KRMOVINY'!N4)/100 -> 2250
A95: POTREBA LUK KUS/ROK + ZBEROVE STRATY + KRMNA REZERVA = PRE VSETKY | B95: TON | C95: =(C94/1000)*C3 -> 0 | I95: PAS | J95: potreba ha L + P | K95: SKUTOCNA | L95: PERCENT | M95: PODIELU HA | N95: POV. HMOTA | O95: DNI | P95: SPOLU | Q95: NA KD
A96: POTREBA LUK SPOLU PRE VSETKY BAHNICE = TEORETICKA POTREBA /KOLKO LUK JE POTREBNE/ | B96: HA | C96: =C95/'RV - KRMOVINY'!B4 ->  | E96: OK | I96: OVCE PAS | J96: =C88 ->  | K96: ROZPOCITANA | L96: =J96/(J100/100) ->  | M96: =(L96*K100)/100 ->  | N96: =M96*'OBJ KR OVCE'!B21 ->  | O96: 365 | P96: =C53 -> 0 | Q96: =(N96/O96)*1000 ->  | R96: SPRAV HLBSIU ANALYZU
A97: POTREBA LUK SPOLU PRE VSETKY BAHNICE = VYPOCITANA / PRI NEDOSTATKU LUK v krm.bilancii | B97: HA | C97: =M75 ->  | D97: TU - EK
A98: POTREBA PLOCHY PASIENKOV PRE BAHNICE = skrmitelne = BEZ STRAT | B98: HA | C98: =((C92/C21)*C3)/DOJN!C47 ->  | F98: p | I98: JARKY PAS | J98: =C108 ->  | K98: PLOCHA | L98: =J98/(J100/100) ->  | M98: =(K100*L98)/100 ->  | N98: =M98*'OBJ KR OVCE'!B21 ->  | O98: 365 | P98: =C69 -> 0 | Q98: =(N98/P98)*1000 ->  | R98: LUK + PAS
A99: POTREBA PLOCHY PASIENKOV PRE BAHNICE = VYPOCITANA = BEZ STRAT/PRI NEDOSTATKU V KR.BIL | B99: HA | C99: =M96 -> 
A100: POTREBA- PLOCHY LUK PRE BAHNICE = SKRMITELNE = BEZ STRAT | B100: HA | C100: =((C93/C21)*C3)/DOJN!C46 ->  | E100: 19.54 | F100: p | I100: SPOLU | J100: =J98+J96 ->  | K100: ='VSTUP RV'!Q60 ->  | L100: =L98+L96 ->  | M100: =M98+M96 ->  | N100: =N98+N96 -> 
A101: POTREBA PLOCH LUK PRE BAHNICE + STRATY = ZBEROVE + REZERVA | B101: HA | K101: =K100+K77 ->  | N101: OVCE = | O101: SKRMENE POV.HM./DEN | Q101: =Q96+Q75 ->  | R101: OK = R115-O OBJ KR OVCE
A102: POTREBA PLOCHY ORNEJ PODY PRE BAHNICE pre KRMNE ZMESI | B102: HA | C102: ='KZ OVCE'!L6 -> 0
A103: POTREBA PLOCHY ORNEJ PODY PRE JAHNATA PRI BAHNICIACH pre KRMNE ZMESI | B103: HA | C103: ='KZ OVCE'!L15 -> 0
A104: POTREBA PLOCHY ORNEJ PODY PRE BAHNICE + JAHNATA pre KRMNE ZMESI | B104: HA | C104: =C103+C102 -> 0 | E104: OK
A105: CELKOVA PLOCHA PRE BAHNICE A JAHNATA= LUKY + PASIENKY + ORNA PODA/KZ/ | B105: HA | C105: =C88+C96+C102+C103 -> 
A107: KRMNA BILANCIA - JARKY - ODCHOV PRE Z.S.
A108: SPOTREBA PASIENKOV PRE VSETKY – pasienky-V ZELENOM /VSETKY/ | B108: HA | C108: =C80/'RV - KRMOVINY'!B5 -> 
A109: SPOTREBA PASIENKOV PRE VSETKY -VYPOCITANA – /pri nedostatku pasienkov v krm. Bilancii | B109: ha | C109: =M98 ->  | D109: TU - EK
A110: JARKY SPOTREBA LUK NA SENO PRE VSETKY – LUKY-V ZELENOM VSETKY/ | B110: HA | C110: =C81/'RV - KRMOVINY'!B4 -> 
A111: SPOTREBA LUK PRE VSETKY -VYPOCITANA – /pri nedostatku pasienkov v krm. Bilancii | B111: HA | C111: =M76 ->  | D111: TU- EK
A112: JARKY SPOTREBA ORNEJ PODY PRE KZ - /VSETKY/ | B112: HA | C112: ='KZ OVCE'!L29 -> 0
A113: LUKY + PASIENKY + ORNA PODA = PRE JARKY /VSETKY/ | B113: HA | C113: =C112+C110+C108 ->  | E113: =C113*'RV - KRMOVINY'!G4 -> 
A114: KRMNA BILANCIA - POTREBA KRM. ZMESI
A115: BAHNICA POTREBA KRM. ZMESi KUS/den -pred rujov | B115: dni | C115: 21
A116: BAHNICA POTREBA KRM. ZMESI KUS/den -pred rujov | B116: kg/den | C116: 0.25
A117: BAHNICA POTREBA KRM. ZMESI KUS/rok -pred rujov | B117: kg | C117: =C116*C115 -> 5.25
A118: BAHNICA POTREBA KRM. ZMESI KUS/den -pred porodom | B118: dni | C118: 42
A119: BAHNICA POTREBA KRM. ZMESI KUS/den -pred porodom | B119: kg/den | C119: 0.5
A120: BAHNICA POTREBA KRM. ZMESI KUS/rok -pred porodom | B120: kg | C120: =C119*C118 -> 21
A121: BAHNICA POTREBA KRM. ZMESI KUS/den - na laktaciu | B121: dni | C121: 90
A122: BAHNICA POTREBA KRM. ZMESI KUS/den - na laktaciu | B122: kg | C122: 0.33
A123: BAHNICA POTREBA KRM. ZMESI KUS/rok - na laktaciu | B123: kg | C123: =C122*C121 -> 29.7
A124: POTREBA KRMNEJ ZMESI NA ROK PRE 1 - BAHNICU | B124: KG | C124: =C123+C120+C117 -> 55.95
A125: POTREBA KRMNEJ ZMESI NA ROK PRE VSETKY - BAHNICE | B125: TON | C125: =(C124*C3)/1000 -> 0
A126: JARKY POTREBA KRMNEJ ZMESI | B126: DNI | C126: 300
A127: JARKY POTREBA KRMNEJ ZMESI KG/DEN | B127: KG | C127: 0.1
A128: JARKY POTREBA KRMNEJ ZMESI KG/ROK | B128: KG/ROK | C128: =C127*C126 -> 30
A129: JARKY POTREBA KRMNEJ ZMESI TON/ROK | B129: TON | C129: =(C128*C30)/C21 -> 0
A130: JAHNATA DO PREDAJA | B130: DNI | C130: =(C17-C35)/C37 -> -12
A131: JAHNATA DO PREDAJA POTREBA KRMNEJ ZMESI -DEN/KG | B131: KG | C131: 0.25
A132: JAHNATA DO PREDAJA POTREBA KRMNEJ ZMESI -ZA ODCHOV | B132: KG | C132: =C131*C130 -> -3 | D132: JAHNATA DO PREDAJA POTREBA KRMNEJ ZMESI -ZA ODCHOV
A133: POTREBA KRMNEJ ZMESI NA PRE JAHNATA SPOLU | B133: TON | C133: =(C132*(C34+C30))/C21 -> 0
A135: EKONOMIKA
A136: TRZBY – PREDAJ MLIEKA | B136: EUR | C136: =C49*C7 -> 0
A137: TRZBY – PREDAJ BRAK MASA /BAHNIC/ | B137: EUR | C137: =C46*C6 -> 0
A138: TRZBY - ZA OVCE ZAKLADNEHO STADA - VLNA | B138: EUR | C138: =C51*C13 -> 0
A139: TRZBY - ZA JARKY - VLNA | B139: EUR | C139: =C52*C13 -> 0
A140: TRZBY – PREDAJ MASA /JAHNIAT/ | B140: EUR | C140: =C45*C18 -> 0
A141: TRZBY - ZA OVCE ZAKL. STADA = MLIEKO + MASO BRAKOVANYCH + VLNA OVIEC | B141: EUR | C141: =C136+C137+C138 -> 0
A142: TRZBY – SPOLU | B142: EUR | C142: =C136+C137+C138+C140+C139 -> 0
A144: DOTACIE NA 1 BAHNICU ZS | B144: EUR | D144: VSTUP
A145: DOTACIE SPOLU NA ZIVOCISNU VYROBU | B145: EUR | C145: =C144*C3 -> 0
A146: DOTACIE NA LUKY PRE BAHNICE - PODLA SPOTREBY KRMIVA | B146: EUR | C146: =C96*DOJN!C132 -> 
A147: DOTACIE NA PASIENKY PRE BAHNICE - PODLA SPOTREBY KRMIVA | B147: EUR | C147: =C88*DOJN!C132 -> 
A148: DOTACIE NA ORNU PODU /KZ/ PRE BAHNICE - PODLA SPOTREBY KRMIVA | B148: EUR | C148: =C102*DOJN!C132 -> 0
A149: DOTACIE NA ORNU PODU /LUC + KUK+ REPA/ PRE BAHNICE - PODLA SPOTREBY KRMIVA | B149: EUR | C149: =C90*DOJN!C132 -> 
A150: DOTACIE RV SPOLU PRE BAHNICE = LUKY + PASIENKY + ORNA PODA /KZ/ | B150: EUR | C150: =C146+C147+C148 -> 
A151: DOTACIE RV ORNA PODA - JAHNATA NA KZ | B151: EUR | C151: =C103*DOJN!C132 -> 0
A152: DOTACIE RV SPOLU PRE BAHNICE = LUKY + PASIENKY + ORNA PODA /KZ/ | B152: EUR | C152: =C150+C151 -> 
A154: DOTACIE NA PASIENKY PRE JARKY - PODLA SPOTREBY KRMIVA | B154: EUR | C154: =C108*DOJN!C132 -> 
A155: DOTACIE NA LUKY PRE JARKY - PODLA SPOTREBY KRMIVA | B155: EUR | C155: =C110*DOJN!C132 -> 
A156: DOTACIE NA ORNU PODU /KZ/ PRE JARKY - PODLA SPOTREBY KRMIVA | B156: EUR | C156: =C112*'RV - KRMOVINY'!G4 -> 0
A157: DOTACIE RV SPOLU PRE JARKY = LUKY + PASIENKY + ORNA PODA /KZ/ | B157: EUR | C157: =C156+C155+C154 -> 
A159: BAHNICE + JAHNATA
A160: VLASTNE NAKLADY NA BAHNICE | B160: EUR | C160: =C22*C3*3.65 -> 0 | D160: ZADANY VSTUP - VUPP
A161: VLASTNE NAKLADY NA BAHNICE NA VLASTNE - DOROBENE - JADRO | B161: EUR | C161: ='KZ OVCE'!L22 -> 0
A162: VLASTNE NAKLADY NA BAHNICE NA NAKUPENE KONPONENTY - JADRO | B162: EUR | C162: ='KZ OVCE'!L23 -> 0
A163: VLASTNE NAKLADY NA BAHNICE NA JADRO SPOLU | B163: EUR | C163: ='KZ OVCE'!L21 -> 0 | D163: ok - preberam z KZ | G163: =C163 -> 0
A164: VLASTNE NAKLADY NA 1 BAHNICU+JAHNA DO ODSTAVU/ROK | B164: EUR | C164: =C163/C3 -> 
A165: VLASTNE NAKLADY NA 1 BAHNICU+JAHNA DO ODSTAVU/1 KRM.DEN | B165: EUR | C165: =C164/C20 -> 
A166: VN - JADRO- NA 1 BAHNICU+JAHNA DO ODSTAVU/100 KRM.DEN | B166: EUR | C166: =C165*C19 ->  | D166: VN NA 100KD - ODPOCITAT OD VSTUPU | H166: =C166*3.65*C3 -> 
A167: VN - NA PASIENKY NA PASIENKY BAHNICE + JAHNATA /SPOLU/ | B167: EUR | C167: =C98*'RV - KRMOVINY'!E5 ->  | G167: =C167 -> 
A168: VN - NA PASIENKY NA PASIENKY BAHNICE + JAHNATA NA 1KS/ROK | B168: EUR | C168: =C167/C3 -> 
A169: VN - NA PASIENKY NA PASIENKY BAHNICE + JAHNATA NA 1KS/DEN | B169: EUR | C169: =C168/C20 -> 
A170: VN - NA PASIENKY NA PASIENKY BAHNICE + JAHNATA NA 100KD | B170: EUR | C170: =C169*C19 ->  | D170: VN NA 100KD - ODPOCITAT OD VSTUPU | H170: =C170*3.65*C3 -> 
A171: VN - NA LUKY BAHNICE + JAHNATA /SPOLU/ | B171: EUR | C171: =C100*'RV - KRMOVINY'!E4 ->  | G171: =C171 -> 
A172: VN - NA LUKY BAHNICE + JAHNATA NA 1KS/ROK | B172: EUR | C172: =C171/C3 -> 
A173: VN - NA LUKY BAHNICE + JAHNATA NA 1KS/DEN | B173: EUR | C173: =C172/C20 -> 
A174: VN - NA LUKY BAHNICE + JAHNATA NA 100 KD | B174: EUR | C174: =C173*C19 ->  | D174: VN NA 100KD - ODPOCITAT OD VSTUPU | H174: =C174*3.65*C3 ->  | I174: =C173*100 ->  | J174: =I174*3.65*C3 -> 
A175: VLASTNE NAKLADY NA - LUKY + PASIENKY + KRMNU ZMES NA 100KD BAH.+JAHN. | B175: EUR | C175: =C174+C170+C166 -> 
A176: VN SKUSKA SPRAVNOSTI | B176: EUR | C176: =C175*3.65*C3 ->  | D176: OK | E176: =C163+C167+C171 ->  | F176: OK | G176: =G171+G167+G163 ->  | H176: ROZDIEL= | I176: =G176-C176 ->  | J176: =I176+H174 -> 
A177: VN NA KRMENIE + VN VUEPP SPOLU ZA VSETKY BAHNICE + JAHNATA DO ODSTAVU | B177: EUR | C177: =C176+C160 ->  | H177: KD=
A178: VLASTNE NAKLADY NA - 1 KD VYZIVA + VUPP / BAHNICE + JAHNATA DO ODSTAVU/ | B178: EUR | C178: =C177/(C3*C20) -> 
A179: VLASTNE NAKLADY NA - 100 KD VYZIVA + VUPP / BAHNICE + JAHNATA DO ODSTAVU/ | B179: EUR | C179: =C178*C19 -> 
A180: VLASTNE NAKLADY NA ROK/BAHNICA + JAHNA DO ODSTAVU | B180: EUR | C180: =C178*C20 -> 
A181: VLASTNE NAKLADY NA HLAVNE VYROBKY BAHNIC = MLIEKO A MASO JAHNIAT
A182: VLSTNE NAKLADY NA MLIEKO 1 LITER | B182: EUR | C182: =C177/C48 -> 
A183: VLASTNE NAKLADY NA VYCICANE /SPOTREBOVANE/ MLIEKO - JAHNATAMI | B183: EUR | C183: =C182*C41 ->  | E183: toto=
A184: VLASTNE NAKLADY NA 1KG ZIVEJ HMOTNOSTI | B184: EUR | C184: =C183/(C33*C17) -> 
A185: VLASTNE NAKLADY NA 1 ODCHOVANE JAHNA DO PREDAJA | B185: EUR | C185: =C184*C17 ->  | D185: skuska=R144 | E185: =C185*C33 -> 
A186: JARKY - ODCHOV PRE ZAKLADNE STADO
A187: VLASTNE NAKLADY - KRMNA ZMES - JARKY - DOROBENE JADRO -VSETKY | B187: EUR | C187: ='KZ OVCE'!L31 -> 0
A188: VLASTNE NAKLADY - KRMNA ZMES - JARKY - DOROBENE JADRO - 1 KUS/ROK | B188: EUR | C188: =C187/C30 -> 
A189: VLASTNE NAKLADY - KRMNA ZMES - JARKY - DOROBENE JADRO - NA 100KD | B189: EUR | C189: =C188/3.65 ->  | D189: SKUSKA | E189: =C189*3.65*C30 ->  | F189: OK
A190: VLASTNE NAKLADY - KRMNA ZMES - JARKY - NAKUPENE KONPONENTY -VSETKY | B190: EUR | C190: ='KZ OVCE'!L32 -> 0
A191: VLASTNE NAKLADY - KRMNA ZMES - JARKY - NAKUPENE KONPONENT - 1 KUS/ROK | B191: EUR | C191: =C190/C30 -> 
A192: VLASTNE NAKLADY - KRMNA ZMES - JARKY -NAKUPENE KONPO - NA 100KD | B192: EUR | C192: =C191/3.65 ->  | E192: =C192*3.65*C30 ->  | F192: OK
A193: VN - KRMNA ZMES - JARKY - KONPONENTY + VLASTNE JADRO - NA 100KD | B193: EUR | C193: =C192+C189 ->  | D193: SKUSKA
A194: VN - KRMNA ZMES - JARKY - KONPONENTY + VLASTNE JADRO - SPOLU | B194: EUR | C194: =C190+C187 -> 0 | D194: VN - JADRO PRE VSETKY
A195: VN - NA PASIENKY pre -JARKY /SPOLU/ | B195: EUR | C195: =C108*'RV - KRMOVINY'!E5 -> 
A196: VN - NA PASIENKY pre -JARKY - 1KUS/ROK | B196: EUR | C196: =C195/C30 -> 
A197: VN - NA PASIENKY pre -JARKY - 1KUS NA 100KD | B197: EUR | C197: =C196/3.65 -> 
A198: VN - NA LUKY pre -JARKY /SPOLU/ | B198: EUR | C198: =C110*'RV - KRMOVINY'!E4 -> 
A199: VN - NA LUKY pre -JARKY - 1KUS/ROK | B199: EUR | C199: =C198/C30 -> 
A200: VN - NA LUKY pre -JARKY - 1KUS NA 100KD | B200: EUR | C200: =C199/3.65 -> 
A201: JARKY - VLASTNE NAKLADY SPOLU = LUKY+PASIENKY + KRMNA ZMES NA 100KD | B201: EUR | C201: =C200+C197+C193 ->  | D201: TOTO SU VLASTNE NAKLADY NA VYZIVU NA 100 KD
A202: JARKY - VLASTNE NAKLADY SPOLU = LUKY+PASIENKY + KRMNA ZMES = SPOLU | B202: EUR | C202: =C198+C195+C190+C187 ->  | D202: TOTO SU VLASTNE NAKLADY NA VYZIVU PRE VSETKY
A203: JARKY - VKASTNE NAKLADY SPOLU /VUEPP/ ALE BEZ VN NA DOROBENE KRMOVINY = SPOLU | B203: EUR | C203: =C30*C23*3.65 -> 0 | D203: TOTO SU VLASTNE NAKLADY NA VYZIVU PRE VSETKY | F203: DY
A204: JARKY - VLASTNE NAKLADY SPOLU /VUEPP/ + VN NA DOROBENE KRMOVINY | B204: EUR | C204: =C202+C203 -> 
A205: JARKY - VKASTNE NAKLADY SPOLU /VUEPP/ + KRMOVINY NA KRMNY DEN | B205: EUR | C205: =C204/(C30*365) -> 
A206: JARKY - VKASTNE NAKLADY SPOLU /VUEPP/ + KRMOVINY NA 100 KD | B206: EUR | C206: =C205*C19 -> 
A207: SKUSKA VN JARKY - KZ = VLASTNE/DOROBENE/ + NAKUPENE | B207: EUR | C207: ='KZ OVCE'!L34 -> 0
A208: SKUSKA VN JARKY - LUKY + PASIENKY | B208: EUR | C208: =C195+C198 -> 
A209: SKUSKA VN VUEPP | B209: EUR | C209: =C203 -> 0
A210: SKUSKA VN SPOLU | B210: EUR | C210: =C209+C208+C207 ->  | D210: OK
... 107 more rows

Sheet OBJ KR KOZY (hidden)
A2: LUCERNA | B2: VYPOCITAM = | C2: =Q59 ->  | D2: VYSTUP | F2: 250 | I2: =F2+H2 -> 250 | K2: =Q59 ->  | L2: VYSTUP
A3: SILAZ KUKURICNA | B3: VYPOCITAM = | C3: =Q58 ->  | D3: VYSTUP | F3: 250 | I3: 250 | K3: =Q58 ->  | L3: VYSTUP
A4: SPOLU - ORNA PODA - OBJ.KRMIVA | C4: =C3+C2 ->  | D4: VYSTUP | K4: =C4 ->  | L4: VYSTUP
A5: POTREBA ORNEJ PODY pre ZV -KR.ZMES | B5: VYPOCITANE PRE - ZV/KZ/ | I5: 0 | K5: PLOCHY - PRE - ZV-/HA/
A6: PSENICA | B6: VYPOCITANE PRE - ZV/KZ/ | I6: 0 | K6: ='KZ BILANCIA'!G14 -> 0 | L6: VYSTUP
A7: JACMEN | I7: 0 | K7: ='KZ BILANCIA'!#REF! ->  | L7: VYSTUP
A8: KUKURICA | I8: 0 | K8: ='KZ BILANCIA'!#REF! ->  | L8: VYSTUP
A9: HRACH | K9: ='KZ BILANCIA'!#REF! ->  | L9: VYSTUP
A10: PEPKA | K10: ='KZ BILANCIA'!#REF! ->  | L10: VYSTUP
A11: SLNECNICA | K11: ='KZ BILANCIA'!#REF! ->  | L11: VYSTUP
A12: SOJA | K12: ='KZ BILANCIA'!#REF! ->  | L12: VYSTUP
A13: PLOCHA PRE ZV = KZ | B13: =#REF!-'Výstup živočíšna výroba'!#REF! ->  | K13: =K12+K11+K10+K9+K8+K7+K6 -> 
A14: POLCHA PRE ZV = ORNA PODA = +OBJEMOVE KRM=L+K | K14: =C4*-1 -> 
A15: ORNA PODA SPOLU = PRE ZIVOCISNU VYROBU | K15: =K14+K13 -> 
A16: SADY | B16: 5 | C16: 50 | D16: 800 | F16: 250 | H16: 100 | I16: 350
A17: VINICE | B17: 5 | C17: 20 | D17: 1000 | F17: 250 | H17: 100 | I17: 350 | P17: ovca. NA KD
A18: SADY A VINICE SPOLU | C18: =C17+C16 -> 70 | I18: 0 | N18: NEDOSTATOK | P18: sptreba K.D. | Q18: SPOTREBA | R18: SUS Z 1 HA | S18: SUS Z 1 HA | T18: STRATY | U18: KOEFICIENT | W18: skrmitelna
B19: ha | C19: PLOCHA OSEVU | I19: 0 | J19: TON = SUS =VYROBENE | M19: HA | N19: PREBYTOK HA | O19: SUS V gram v p.h. | Q19: SUS - KD | R19: BEZ - STRAT | S19: STRATY - | T19: PERC. | U19: STRAT | V19: SUS-SKRM. | W19: SUS=( + -)ton
A20: LUKY | B20: ='VSTUP RV'!B26 -> 0 | C20: ='VSTUP RV'!Q38 ->  | D20: VYPOCITAM | F20: 250 | H20: 50 | I20: 300 | K20: POTREBA LUK | L20: HA | M20: ='Ekonomika kôz'!H4 ->  | N20: =C20-M20 ->  | O20: ='RV - KRMOVINY'!Q5 -> 200 | P20: =KOZY!C59/'OBJ KR KOZY'!O20*1000 -> 11 | Q20: =(P20*O20)/1000 -> 2.2 | R20: =(B20*O20)/1000 -> 0 | T20: ='RV - KRMOVINY'!O4 -> 0 | U20: =1-(T20/100) -> 1 | V20: =U20*R20 -> 0 | W20: =N20*V20 -> 
A21: PASIENKY | B21: ='VSTUP RV'!B27 -> 0 | C21: ='VSTUP RV'!Q39 ->  | D21: VYPOCITAM | F21: 250 | I21: 250 | K21: POTREBA PASIENKOV | L21: HA | M21: ='Ekonomika kôz'!H5 ->  | N21: =C21-M21 ->  | O21: ='RV - KRMOVINY'!Q5 -> 200 | P21: =P20 -> 11 | Q21: =(O21*P21)/1000 -> 2.2 | R21: =(O21*B21)/1000 -> 0 | T21: ='RV - KRMOVINY'!O5 -> 0 | U21: =1-(T21/100) -> 1 | V21: =U21*R21 -> 0 | W21: =V21*N21 -> 
A22: LUKY A PASIENKY SPOLU | C22: =C21+C20 ->  | K22: SPOLU | L22: HA | M22: =SUM(M20:M21) ->  | N22: =N21+N20 ->  | W22: =W21+W20 -> 
A23: POLNOHOSPODARSKA PODA SPOLU | C23: =C22+C18+K15 ->  | K23: SUSINA SPOLU | L23: TON | M23: =W22*-1 ->  | O23: SPOLU = SUS | P23: =M23-(M25*-1) ->  | Q23: PAS=SUS | R23: =B21*C21*DOJN!C23 ->  | S23: LUKY=SUS | T23: =B20*C20*DOJN!C23 ->  | U23: SPOLU= | V23: =T23+R23 -> 
K24: PREPOCET - vystup | M24: prebytok | N24: produkcia | O24: perc.prebytku krmiva na /L +P/
K25: luky + pasienky | L25: sus/t | M25: =W22 ->  | N25: =(V20*M20)+(V21*M21) ->  | O25: =M25/(N25/100) -> 
N26: POTREBA CELA
A27: VYPOCET KRMOVIN KUK /LUC | C27: SUS | D27: SNL | E27: SJ | H27: UZIV POMER | J27: hektare | K27: sus | L27: snl | M27: sj
A28: SIL. KUK | B28: ='VSTUP RV'!B29 -> 0 | C28: 0.3 | D28: 0.011 | E28: 0.14 | H28: =E28/D28 -> 12.72727273 | I28: =B43/2 ->  | J28: =I28/(C38/B36) ->  | K28: =(C38*J28)/B36 ->  | L28: =D38*J28 ->  | M28: =E38*J28 -> 
A29: LUCERNA | B29: ='VSTUP RV'!B28 -> 0 | C29: 0.2 | D29: 0.03 | E29: 0.11 | H29: =E29/D29 -> 3.666666667 | I29: =B43/2 ->  | J29: =I29/(C39/B36) ->  | K29: =(C39*J29)/B36 ->  | L29: =D39*J29 ->  | M29: =E39*J29 -> 
A30: pomer 1 ku 1 | B30: 20 | D30: =D29+D28 -> 0.041 | E30: =E29+E28 -> 0.25 | H30: =E30/D30 -> 6.097560976 | J30: =J29+J28 ->  | K30: =K29+K28 ->  | L30: =L29+L28 ->  | M30: =M29+M28 ->  | N30: pomer= | O30: =M30/L30 ->  | P30: zle pomer
A31: pomer urod kuk/luc | B31: =B28/B29 -> 
A32: pomer sus v povodnej hmote | B32: =C28/C29 -> 1.5
A34: kukurici bude z 1metra viac zivin | C34: =C28*B31 ->  | D34: =D28*B31 ->  | E34: =E28*B31 -> 
A35: spolu dorobia z2 metrov | C35: =C34+C29 ->  | D35: =D34+D29 ->  | E35: =E34+E29 ->  | H35: =E35/D35 ->  | J35: 1METER DOROBI SUS | L35: =C35/2 ->  | N35: 1 HA DOROBI SUS | P35: =L35*10000 -> 
A36: fix | B36: 1000
A37: ziviny z ha
A38: SIL. KUK | B38: kg | C38: =B36*B28*C28 -> 0 | D38: =B36*B28*D28 -> 0 | E38: =B36*B28*E28 -> 0 | M38: CIZE + LZ
A39: lucERNA | B39: kg | C39: =B36*B29*C29 -> 0 | D39: =B36*B29*D29 -> 0 | E39: =B36*B29*E29 -> 0 | L39: CIZE + SJ
A40: spolu dorobia z 2 ha | B40: kg | C40: =C39+C38 -> 0 | D40: =D39+D38 -> 0 | E40: =E39+E38 -> 0 | H40: =E40/D40 ->  | I40: ok | J40: 6 | K40: 1 ku 6 = | L40: =H40-J40 -> 
A41: CIZE V SUS | B41: SKUTOCNY KOEFICIENT | C41: =C34/C29 -> 
A42: PRIKLAD | L42: SUSINA = R44 B
A43: VYPOCET CHYBA SUS PRE ZV /TON | B43: =W22 ->  | J43: ZLE HA pozor NA VYPOCITANY POMER = R60H
A44: KOLKO TON SUS NASADIT LUC | B44: =(C39/C40)*B43 ->  | C44: =J44*C39 ->  | D44: =D39*J44 ->  | E44: =J44*E39 ->  | I44: HA | J44: =B45/(C39/B36) ->  | L44: =J44*C39 -> 
A45: KOLKO TON SUS NASADIT KUK | B45: =(C38/C40)*B43 ->  | C45: =J45*C38 ->  | D45: =J45*D38 ->  | E45: =J45*E38 ->  | I45: HA | J45: =B44/(C38/B36) ->  | L45: =J45*C38 -> 
A46: SPOLU HA = R44 B | B46: =B45+B44 ->  | I46: SPOLU HA | J46: =J45+J44 ->  | L46: =(L45+L44)/B36 ->  | M46: OK
A47: ROZDIEL = 0 - OK | B47: =B46-B43 -> 
A48: VYZIVA | C48: =C45+C44 ->  | D48: =D45+D44 ->  | E48: =E45+E44 ->  | H48: POMER = | I48: =E48/D48 ->  | J48: ZLE = R63B
A50: xxxx | E50: kg
A51: 1 - vypocet pomeru = chybajuci | B51: 6.3 | D51: odpocitane | E51: krat zluc.cislo | H51: ziv krat zlucovacie ci | I51: sus | J51: snl | K51: sj | O51: percent | P51: sus | Q51: ha | R51: povd. Hmota | S51: SNL | T51: SJ
A52: sil. Kukurica | B52: =H28 -> 12.72727273 | C52: =B54/(D28*B36) -> 9.090909091 | D52: =B51-B53 -> 2.633333333 | E52: =D52*C52 -> 23.93939394 | I52: =E52*C28 -> 7.181818182 | J52: =E52*D28 -> 0.2633333333 | K52: =E52*E28 -> 3.351515152 | N52: silaz | O52: =E52/(E54/B54) -> 52.77221109 | P52: =B43*(O52/B54) ->  | Q52: =P52/(C38/B36) ->  | R52: =Q52*B28 ->  | S52: =Q52*D38 ->  | T52: =Q52*E38 -> 
A53: lucerna | B53: =H29 -> 3.666666667 | C53: =B54/(D29*B36) -> 3.333333333 | D53: =B52-B51 -> 6.427272727 | E53: =D53*C53 -> 21.42424242 | I53: =E53*C29 -> 4.284848485 | J53: =E53*D29 -> 0.6427272727 | K53: =E53*E29 -> 2.356666667 | N53: lucerna | O53: =E53/(E54/B54) -> 47.22778891 | P53: =O53*(B43/B54) ->  | Q53: =P53/(C39/B36) ->  | R53: =Q53*B29 ->  | S53: =D39*Q53 ->  | T53: =Q53*E39 -> 
A54: fix | B54: 100 | E54: =E53+E52 -> 45.36363636 | I54: =I53+I52 -> 11.46666667 | J54: =J53+J52 -> 0.9060606061 | K54: =K53+K52 -> 5.708181818 | L54: pomer= | M54: =K54/J54 -> 6.3 | O54: =O53+O52 -> 100 | P54: =P53+P52 ->  | Q54: =Q53+Q52 ->  | S54: =S52+S53 ->  | T54: =T53+T52 -> 
A55: kuk | B55: =D52 -> 2.633333333 | C55: =B55*C28 -> 0.79 | D55: =D28*B55 -> 0.02896666667 | E55: =E28*B55 -> 0.3686666667 | H55: na 1kg kuk p.h. | I55: =C28 -> 0.3 | J55: =D28 -> 0.011 | K55: =E28 -> 0.14 | R55: =R53/R52 ->  | S55: POMER = | T55: =T54/S54 ->  | U55: ZLE
A56: lucerna | B56: =D53 -> 6.427272727 | C56: =B56*C29 -> 1.285454545 | D56: =D29*B56 -> 0.1928181818 | E56: =E29*B56 -> 0.707 | H56: je potreba luc=Q67 | I56: =R55*C29 ->  | J56: =D29*R55 ->  | K56: =E29*R55 ->  | R56: pomer=l/k
D57: =D56+D55 -> 0.2217848485 | E57: =E56+E55 -> 1.075666667 | F57: =E57/D57 -> 4.850045772 | I57: =I55+I56 ->  | J57: =J55+J56 ->  | K57: =K56+K55 ->  | L57: PRECO | M57: =K57/J57 ->  | Q57: HA - SPRAVNE | S57: snl | T57: sj
A58: ZMIESAVACI POMER = KUK = KG | B58: =E52/E53 -> 1.117397454 | C58: =B58*C28 -> 0.3352192362 | D58: =D28*B58 -> 0.01229137199 | E58: =E28*B58 -> 0.1564356436 | N58: KUK | O58: =C58/(C60/B54) -> 62.63213531 | P58: =B43*(O58/B54) ->  | Q58: =P58/(C38/B36) ->  | R58: spolu ob.ziv. | S58: =Q58*D38 ->  | T58: =E38*Q58 -> 
A59: ZMIESAVACI POMER = LUC = KG | B59: 1 | C59: =B59*C29 -> 0.2 | D59: =D29 -> 0.03 | E59: =B59*E29 -> 0.11 | N59: lucerna | O59: =C59/(C60/B54) -> 37.36786469 | P59: =B43*(O59/B54) ->  | Q59: =P59/(C39/B36) ->  | R59: spolu ob.ziv. | S59: =D39*Q59 ->  | T59: =Q59*E39 -> 
A60: SPOLU ZIVINY | B60: =B59+B58 -> 2.117397454 | C60: =C58+C59 -> 0.5352192362 | D60: =D58+D59 -> 0.04229137199 | E60: =E58+E59 -> 0.2664356436 | F60: POMER = | H60: =E60/D60 -> 6.3 | I60: OK | O60: =O59+O58 -> 100 | P60: =P59+P58 ->  | Q60: =Q59+Q58 ->  | R60: spolu ob.ziv. | S60: =S59+S58 ->  | T60: =T59+T58 -> 
Q61: POMER = | S61: OK | T61: =T60/S60 -> 
J63: na 1 krm. Den
A64: KUKURICNA SILAZ (na 1 krm.den=priemer/rok) | B64: 365 | I64: SUS SILAZE | J64: SILAZ V POV | K64: SILAZ SUS SPOLU/ROK | L64: SIL = HA | M64: sil - pov.hm | N64: sil - pov.hm | O64: silaz - spotreba ton na | Q64: KRMNE DNI
A65: ROZPOCET NA OBRATOVE KATEGORIE HD | B65: SPORTEBA V SUS | C65: PERCENTO | D65: SILAZE TON | E65: STRUK.KOEF | F65: KRMNE DNI | G65: krm.dni spolu | H65: SUS SPOTREBA/ROK | I65: TONY | J65: HMOTE -KG | M65: kus/rok/kg | N65: kus/rok/ton | O65: struktur.dojnicu/ROK | Q65: SPOLU | R65: silaz ha | S65: na 1/kd | T65: ton | U65: kg
A66: KOZY | B66: =KOZY!C59 -> 2.2 | C66: =B66/(B71/100) -> 68.75 | D66: =(P58*-1)*(C66/100) ->  | E66: =KOZY!C2/KOZY!C2 ->  | F66: =E66*365 ->  | G66: =KOZY!G27 -> 0 | H66: =F66*B66 ->  | I66: =D66*(O58/100) ->  | J66: =I66/C28 ->  | K66: =(I66*F66)/1000 ->  | L66: =K66/(C38/1000) ->  | M66: =J66*B64 ->  | N66: =M66/1000 ->  | O66: =K66/C28 ->  | Q66: ='OVCE-H18'!C3*'OVCE-H18'!C20 -> 0 | R66: =(D66/C28)/10 ->  | S66: =(R66/G66)*10000 ->  | T66: =R66*B28 ->  | U66: =T66*1000 -> 
A67: KOZĽATÁ | B67: 0 | C67: =B67/(B71/100) -> 0 | D67: =(P58*-1)*(C67/100) ->  | G67: =B76*E67*B64 -> 0 | H67: =F67*B67 -> 0 | I67: =D67*(O58/100) ->  | J67: =I67/C28 ->  | K67: =(I67*F67)/1000 ->  | L67: =K67/(C38/1000) ->  | M67: =J67*B64 ->  | N67: =M67/1000 ->  | O67: =K67/C28 ->  | Q67: ='OVCE-H18'!C30*'OVCE-H18'!C20 -> 0 | R67: =(D67/C28)/10 ->  | S67: =(R67/G67)*10000 -> 
A68: KOZIČKY | B68: =KOZY!C65 -> 1 | C68: =B68/(B71/100) -> 31.25 | D68: =(P58*-1)*(C68/100) ->  | E68: =KOZY!C26/KOZY!C2 ->  | F68: ='OBJ KR KOZY'!E66*'OBJ KR KOZY'!E68*365 ->  | G68: =KOZY!G29 -> 0 | H68: =B68*F68 ->  | I68: =B68*(O58/100) -> 0.6263213531 | J68: =I68/C28 -> 2.087737844 | L68: =K68/(C38/1000) ->  | M68: =B64*J68 -> 762.0243129 | N68: =M68/1000 -> 0.7620243129 | O68: =K68/C28 -> 0 | R68: =(D68/C28)/10 -> 
C69: =B69/(B71/100) -> 0 | D69: =(P58*-1)*(C69/100) ->  | I69: =B69*(O58/100) -> 0 | J69: =I69/C28 -> 0 | L69: =K69/(C38/1000) ->  | M69: =B64*J69 -> 0 | N69: =M69/1000 -> 0 | O69: =K69/C28 -> 0 | R69: =(D69/C28)/10 -> 
C70: =B70/(B71/100) -> 0 | D70: =(P58*-1)*(C70/100) ->  | I70: =B70*(O58/100) -> 0 | J70: =I70/C28 -> 0 | L70: =K70/(C38/1000) ->  | M70: =B64*J70 -> 0 | N70: =M70/1000 -> 0 | O70: =K70/C28 -> 0 | R70: =(D70/C28)/10 -> 
A71: SPOLU NA 1KD = ZAKLAD | B71: =B70+B69+B68+B67+B66 -> 3.2 | C71: =C70+C69+C68+C67+C66 -> 100 | D71: =D70+D69+D68+D67+D66 ->  | G71: =G70+G69+G68+G67+G66 -> 0 | H71: =H70+H69+H68+H67+H66 ->  | J71: =J70+J69+J68+J67+J66 ->  | K71: =K70+K69+K68+K67+K66 ->  | L71: =L70+L69+L68+L67+L66 ->  | N71: =N70+N69+N68+N67+N66 ->  | O71: =O70+O69+O68+O67+O66 ->  | R71: =R70+R69+R68+R67+R66 -> 
D72: =(D71/C38)*1000 -> 
C73: ROZDIEL V SUS | D73: =D71-P58*-1 ->  | J73: na 1 krm. Den
A74: LUCERNA (na 1 krm.den=priemer/rok) | B74: 365 | C74: ROZDIEL V HA | D74: =D72-Q58*-1 ->  | I74: LUCERNA | J74: SILAZ V POV | K74: LUCER SUS SPOLU/ROK | L74: LUCERNA | M74: sil - pov.hm | N74: sil - pov.hm | O74: silaz - spotreba ton na | Q74: KRMNE DNI
A75: ROZPOCET NA OBRATOVE KATEGORIE HD | B75: SPORTEBA V SUS | C75: PERCENTO | D75: LUCERNA | E75: STRUK.KOEF | F75: KRMNE DNI | G75: krm.dni spolu | H75: SUS SPOTREBA/ROK | I75: KG | J75: HMOTE -KG | M75: kus/rok/kg | N75: kus/rok/ton | O75: struktur.dojnicu/ROK | Q75: SPOLU | R75: silaz ha | S75: na 1/kd | T75: ton | U75: kg
A76: KOZY | B76: =B66 -> 2.2 | C76: =E93 ->  | D76: =(P59*-1)*(C66/100) ->  | E76: =E66 ->  | F76: =E76*365 ->  | G76: =G66 -> 0 | H76: =F76*B76 ->  | I76: =D76*(O59/100) ->  | J76: =I76/C29 ->  | K76: =(I76*F76)/1000 ->  | L76: =K76/(C39/1000) ->  | M76: =J76*B74 ->  | N76: =M76/1000 ->  | O76: =K76/C39 ->  | Q76: =E76*F76*J84 ->  | R76: =(D76/C29)/10 ->  | S76: =(R76/G76)*10000 ->  | T76: =R76*B38 ->  | U76: =T76*1000 -> 
A77: KOZĽATÁ | B77: =B67 -> 0 | C77: =E94 ->  | D77: =(P59*-1)*(C67/100) ->  | E77: =E67 -> 0 | F77: =E77*E76*365 ->  | G77: =G67 -> 0 | H77: =F77*B77 ->  | I77: =D77*(O59/100) ->  | J77: =I77/C29 ->  | K77: =(I77*F77)/1000 ->  | L77: =K77/(C39/1000) ->  | M77: =J77*B74 ->  | N77: =M77/1000 ->  | O77: =K77/C39 ->  | Q77: =F77*J84 ->  | R77: =(D77/C29)/10 ->  | S77: 0
A78: KOZIČKY | B78: =B68 -> 1 | C78: =E95 ->  | D78: =(P59*-1)*(C68/100) ->  | E78: =E68 ->  | F78: =E78*E76*365 ->  | G78: =G68 -> 0 | H78: =F78*B78 ->  | I78: =D78*(O59/100) ->  | J78: =I78/C29 ->  | K78: =(I78*F78)/1000 ->  | L78: =K78/(C39/1000) ->  | M78: =B74*J78 ->  | N78: =M78/1000 ->  | O78: =K78/C39 ->  | Q78: =F78*J84 ->  | R78: =(D78/C29)/10 ->  | S78: =(R78/G78)*10000 -> 
B79: =B69 -> 0 | C79: =E96 ->  | D79: =(P59*-1)*(C69/100) ->  | E79: =E69 -> 0 | F79: =E79*E76*365 ->  | G79: =G69 -> 0 | H79: =F79*B79 ->  | I79: =D79*(O59/100) ->  | J79: =I79/C29 ->  | K79: =(I79*F79)/1000 ->  | L79: =K79/(C39/1000) ->  | M79: =B74*J79 ->  | N79: =M79/1000 ->  | O79: =K79/C39 ->  | Q79: =F79*J84 ->  | R79: =(D79/C29)/10 -> 
B80: =B70 -> 0 | C80: =E97 ->  | D80: =(P59*-1)*(C70/100) ->  | E80: =E70 -> 0 | F80: =E80*E76*365 ->  | G80: =G70 -> 0 | H80: =F80*B80 ->  | I80: =D80*(O59/100) ->  | J80: =I80/C29 ->  | K80: =(I80*F80)/1000 ->  | L80: =K80/(C39/1000) ->  | M80: =B74*J80 ->  | N80: =M80/1000 ->  | O80: =K80/C39 ->  | Q80: =F80*J84 ->  | R80: =(D80/C29)/10 -> 
A81: SPOLU NA 1KD = ZAKLAD | B81: =B80+B79+B78+B77+B76 -> 3.2 | C81: =C80+C79+C78+C77+C76 ->  | D81: =D80+D79+D78+D77+D76 ->  | G81: =G80+G79+G78+G77+G76 -> 0 | H81: =H80+H79+H78+H77+H76 ->  | J81: =J80+J79+J78+J77+J76 ->  | K81: =K80+K79+K78+K77+K76 ->  | L81: =L80+L79+L78+L77+L76 ->  | N81: =N80+N79+N78+N77+N76 ->  | O81: =O80+O79+O78+O77+O76 ->  | R81: =R80+R79+R78+R77+R76 -> 
D82: =(D81/C39)*1000 ->  | H82: OK | J82: SIMPLEX | K82: RIADOK70 STLPEC= O | L82: OK=R70SP | O82: SIMPLEX | Q82: HA = | R82: =(R81/B29)*10 -> 
C83: ROZDIEL V SUS | D83: =D81-P59*-1 ->  | J83: 1 STR.DOJ=SPOTREBA | K83: OK
A84: SPRAVNY ROZPOCET | C84: ROZDIEL V HA | D84: =D82-Q59*-1 -> 
A85: SILAZ KUKURICNA = | C85: KRMNE DNI
A86: SUSINA SPOLU ZA CHOV HD | B86: =N25 -> 
A87: SUSINA SPOLU ZA CHOV HD Z LUC + KUK | B87: =P60*-1 -> 
A88: SUSINA Z LUK A PASIENKOV | B88: =B86-B87 ->  | C88: pov.hmota = ton | D88: HA
A89: SUSINA KUKURICE NA ROZDELENIE NA KATEGORRIE | B89: =P58*-1 ->  | C89: =B89/C28 ->  | D89: =C89/B28 ->  | E89: KUK = TON | F89: =Q58*B28 ->  | N89: TON SILAZ
A90: SUSINA LUC NA ROZDELENIE NA KAT, | B90: =P59*-1 ->  | C90: =B90/C29 ->  | D90: =(B90/C39)*1000 ->  | G90: SUS | N90: =C89 -> 
A91: kozy KUS | B91: =KOZY!C2 -> 0 | D91: SUS*KD Z OBRARU STADA | E91: VAHA =OBRATU | G91: VAHA PODIELU | H91: VAHA PODIEL | I91: VAHA PODIEL | J91: VAHA PODIEL | K91: PREPOCET NA SUS | O91: DEL KD
A92: XXXXXXXX = ZAKLAD PRE VYPOCET NA POMER | C92: SPOTREBA SUS/KD | D92: NA ROK/KD | E92: PERCENTO | F92: PERCENTO BEZ VAHY PODIELU OBRATU STADA V KD | G92: NA 1KD | H92: NA 1KD = VAHA | I92: KOEFICIENT | O92: NA1KD
A93: STRUKTUALNY PREPOCET SUS NA 1KD | B93: KOZY | C93: =B76 -> 2.2 | D93: =F76*B76 ->  | E93: =D93/(D98/100) ->  | F93: =C93/(C98/100) -> 68.75 | G93: =C93*(E93/100) ->  | H93: =C98*(E93/100) ->  | I93: =H93/C93 ->  | J93: =S76*I93 ->  | K93: =J93*C28 ->  | L93: =J93*H76 ->  | M93: =H93*G76 ->  | N93: =N90*(E93/100) ->  | O93: =(N93/G66)*1000 -> 
A94: SLUZI NA ROZPOCET SUS NA VYZIVU | C94: 0 | D94: =F77*B77 ->  | E94: =D94/(D98/100) ->  | F94: =C94/(C98/100) -> 0 | G94: =C94*(E94/100) ->  | I94: 0 | J94: 0 | K94: =J94*C28 -> 0 | L94: =J94*H77 ->  | M94: =H94*G77 -> 0 | N94: =N90*(E94/100) ->  | O94: =(N94/G67)*1000 -> 
B95: KOZICKY DO ZS | C95: 1 | D95: =F78*B78 ->  | E95: =D95/(D98/100) ->  | F95: =C95/(C98/100) -> 31.25 | H95: =C98*(E95/100) ->  | I95: =H95/C95 ->  | J95: =S78*I95 ->  | K95: =J95*C28 ->  | L95: =J95*H78 ->  | M95: =H95*H78 ->  | N95: =N90*(E95/100) -> 
C96: 0 | D96: =F79*B79 ->  | E96: =D96/(D98/100) ->  | F96: =C96/(C98/100) -> 0 | H96: =C98*(E96/100) ->  | I96: 0 | J96: =S79*I96 -> 0 | K96: =J96*C28 -> 0 | L96: =J96*H79 ->  | M96: =H96*H79 ->  | N96: =N90*(E96/100) -> 
C97: 0 | D97: =F80*B80 ->  | E97: =D97/(D98/100) ->  | F97: =C97/(C98/100) -> 0 | H97: =C98*(E97/100) ->  | I97: 0 | J97: 0 | K97: =J97*C28 -> 0 | L97: =J97*H80 ->  | M97: =H97*G70 ->  | N97: =N90*(E97/100) -> 
B98: SPOLU NA 1KD = ZAKLAD | C98: 3.2 | D98: =D97+D96+D95+D94+D93 ->  | E98: =E97+E96+E95+E94+E93 ->  | F98: =F97+F96+F95+F94+F93 -> 100 | G98: =G97+G96+G95+G94+G93 ->  | H98: =H97+H96+H95+H94+H93 ->  | J98: =J93 ->  | K98: =K97+K96+K95+K94+K93 ->  | L98: =L97+L96+L95+L94+L93 ->  | M98: =M97+M96+M95+M94+M93 ->  | N98: =N97+N96+N95+N94+N93 ->  | O98: OK
A99: PLATI TEORIA ROZPOCTU NA KD/KG
A100: SILAZ KUKURICNA = TONY | B100: =B89 ->  | D100: =B90 -> 
A101: SILAZ = HA | B101: =Q58*-1 ->  | D101: =Q59*-1 -> 
A102: SILAZ POVODNA HMOTA V KG | B102: =B101*B28*1000 ->  | C102: SILAZ NA KD | D102: =C90*1000 ->  | E102: POMER=K/L = | F102: =B102/D102 ->  | G102: POMRER=L/K = | H102: =D102/B102 -> 
B103: PODIEL Z CELKU V KG | C103: NA 1 KRMNY DEN | D103: LUCERNA | E103: NA 1KD | F103: sus /kd silaz | G103: lucerna | H103: sus/KD = L + K | I103: POZIADAVKA SUS | J103: ROZDIEL = | K103: ROZDIEL = PERCRNTO
A104: koyz | B104: =B102*(E93/100) ->  | C104: =B104/G76 ->  | D104: =D102*(C76/100) ->  | E104: =D104/G76 ->  | F104: =C104*C28 ->  | G104: =E104*C29 ->  | H104: =F104+G104 ->  | I104: =B66 -> 2.2 | J104: =H104-I104 ->  | K104: =J104/(I104/100) -> 
A105: kozlata | B105: =B102*(E94/100) ->  | E105: 0 | F105: =C105*C28 -> 0 | G105: =E105*C29 -> 0 | H105: =F105+G105 -> 0 | I105: =B67 -> 0 | J105: =H105-I105 -> 0 | K105: =J105/(I105/100) -> 
A106: kozicky | B106: =B102*(E95/100) ->  | C106: =B106/G78 ->  | D106: =D102*(C78/100) ->  | E106: =D106/G78 ->  | F106: =C106*C28 ->  | G106: =E106*C29 ->  | I106: =B68 -> 1
B107: =B102*(E96/100) ->  | D107: =$D$144*(E96/100) ->  | F107: =C107*C28 -> 0 | G107: =E107*C29 -> 0 | H107: 0 | I107: =B69 -> 0 | J107: 0
B108: =B102*(E97/100) ->  | F108: =C108*C28 -> 0 | G108: =E108*C29 -> 0 | H108: 0 | I108: =B70 -> 0 | J108: 0
A109: SPOLU NA 1KD = ZAKLAD | B109: =B108+B107+B106+B105+B104 ->  | D109: =D104+D105+D106+D107+D108 -> 
A110: XXXXXXXXXX
A111: TEORIA ROZPOCTU PASIENKOV
C114: ROZDIEL OD NORMY | D114: ROZDIEL V SUS = POV.HM. | E114: P.H. SPOLU | F114: KRMNA DAVKA | G114: SILAZ NA KRM.DEN | H114: LUC. NA DRM.DEN | I114: LU+PAS KD | J114: SUS/KD | K114: SNL/KD | L114: SJ/KD | M114: POMER
A115: PASIENKY = ZADANA PLOCHA = HA | B115: =C21 ->  | C115: KOZY | D115: =J104/B117 ->  | E115: =D115*G76 ->  | F115: KOZY | G115: =C104 ->  | H115: =E104 ->  | I115: =D115*-1 ->  | J115: =(G115*C28)+(H115*C29)+(I115*B117) ->  | K115: =(G115*D28)+(H115*D29) ->  | L115: =(E28*G115)+(H115*E29) ->  | M115: =L115/K115 ->  | N115: OK = SUS aj uziv.pomer
A116: SUS SA VYROBI NA PASIENKU TON | B116: =B117*B118*B115 ->  | C116: KOZLATA
A117: SUS POVODNEJ HMOTY | B117: =O20/1000 -> 0.2 | C117: KOZICKY | D117: =J106/B117 ->  | E117: =D117*G78 ->  | F117: KOZICKY | G117: =C106 ->  | H117: =E106 ->  | I117: =D117*-1 ->  | J117: =(G117*C28)+(H117*C29)+(I117*B117) ->  | K117: =(G117*D28)+(H117*D29) ->  | L117: =(G117*E28)+(H117*E29) ->  | M117: =L117/K117 ->  | N117: OK = SUS aj uziv.pomer
A118: URODA Z HA = TON /POVODNA HMOTA/ | B118: =B21 -> 0
A119: POTREBA SUSINY PRE CELY CHOV KOZ | B119: =N25 -> 
A120: SUSINA PRE ROZPOCET KUK + LUCERNA | B120: =B119-B116 -> 
A121: SUSINA LUK + PAS PRE ROZPOCET | B121: =B119-B120 -> 
A122: POVODNA HMOTA NA ZADANEJ PLOCHE | B122: =B115*B118*1000 -> 
A125: E= STRUKTUALNY KOEFICIENT = NA 1 DOJNICU ZAKLADNEHO STADA KOLKO KD PRIPADA OSTATNYCH KATEGORII - telce do 6 mesiacov = 182 kd - pobyt v kategorii v dnoch = rok(365dni)/dlzkou pobytu (182dni)=0.5 | L125: =L98/B28/1000 ->  | M125: =M98/B28/1000 ->  | N125: OK
A126: F = KRMNE DNI V KATEGORII /SKUTOCNE/ NA KRMNY DEN SA VSETKO PLANUJE KRMIVA atd
A127: G= SPOTREBA SUS NA 1 KUS = PODLA DLZKY POBYTU V KATEGORII /telce = 182 KD
A128: H = SUSINA KUKURICNEJ SILAZE NA 1 KRMNY DEN / 100 PERCENT/ PRE JEDNOTLIVE KATEGORIE HZ
A129: I = SUSINA PREPOCITANA NA POCODNU HMOTU KRMIVA NA 1 KRMNY DEN / KG KRMIVA VO VALOVE/
A130: J = SUSINA NA 1 STRUKTUALNU DOJNICU /DOJNICA A OBRATOVE KATEGORIE/ = CERVENYM OZNACENE SA MUSIA ROVNAT / VYROBA = SPOTREBE/
A131: K = POTREBA KRMIVA PREPOCITANA NA NA PODY MODRE OZNACEENIE HA SA MUSIA ROVNAT = BUDUCE OCAKAVANE ODHADY
A132: L + L = POTREBA KRMIVA NA ROK = 365KD KG, TON
A133: N = PREPOCET NA STRUKTUALNU DOJNICU = PRIPRAVENY PREPOCET PRE EKONOMICKO - MATEMETICKU OPTIMALIZACIU / ZABUDOVANE VYZIVARSKE PRODUKCNE A REPRODUKCNE POZIADAVKY OBRATOVYCH KATEGORII HZ/
A134: XXXXXXXXXXX
A135: CHOV OVIEC

Sheet Ekonomika kôz (hidden)
A1: CHOV KôZ
A2: UKAZOVATEĽ | B2: M.J | C2: KOZY | D2: KOZĽATÁ PRI KOZE | E2: KOZIČKY DO ZS | F2: VYKRM | H2: SPOLU
A3: Počty zvierat | B3: KS | C3: =KOZY!C2 -> 0 | D3: =KOZY!C32 -> 0 | E3: =KOZY!C29 -> 0 | F3: 0 | H3: =C3+D3+E3 -> 0
A4: PLOCHA LÚK PRE CHOV | B4: HA | C4: =KOZY!C84 ->  | D4: 0 | E4: =KOZY!C93 ->  | H4: =C4+D4+E4+F4+G4 -> 
A5: PLOCHA PASIENKOV PRE CHOV | B5: HA | C5: =KOZY!C83 ->  | D5: =0 -> 0 | E5: =KOZY!C92 ->  | F5: ='VYZIVA osip.'!K44 -> 0 | H5: =C5+D5+E5+F5+G5 -> 
A6: Plocha lúk + pasienkov pre chov | B6: HA | C6: =SUM(C4:C5) ->  | D6: =SUM(D4:D5) -> 0 | F6: 0 | H6: =SUM(C6:F6) -> 
A7: PLOCHA LUK = ZADA STUDENT (PRE SVOJ VYR.ZAMER) | B7: HA | C7: =KOZY!C78 ->  | E7: =KOZY!C76 ->  | H7: =C7+E7 -> 
A8: PLOCHA PASIENKOV = ZADA STUDENT (PRE SVOJ VYR. ZAMER) | B8: HA | C8: =KOZY!C77 ->  | E8: =KOZY!C75 ->  | H8: =C8+E8 -> 
A9: PLOCHA ORNEJ PODY PRE POTREBY ŽV (KZ) | B9: HA | C9: ='Krmné zmesy KOZY'!L6 -> 0 | D9: ='Krmné zmesy KOZY'!L15 -> 0 | E9: ='Krmné zmesy KOZY'!L29 -> 0 | F9: 0 | H9: =C9+D9+E9+F9+G9 -> 0
A10: PLOCHA ORNEJ PODY PRE POTREBU ŽV objem = K+L | B10: HA | C10: =ABS('OBJ KR KOZY'!C4) ->  | H10: =C10+D10+E10+F10 -> 
A11: VÝMERA FARMY V HA | B11: HA | C11: =C10+C9+C8+C7 ->  | D11: =D4+D5+D9 -> 0 | E11: =E9+E8+E7 ->  | F11: =F9+F5+F4 -> 0 | H11: =C11+D11+E11 -> 
A12: Potreba krmív v HA pre potreby ŽV | B12: HA | C12: =C4+C5+C9 ->  | D12: =D4+D5+D9 -> 0 | E12: =E9+E5+E4 ->  | F12: =F9+F5+F4 -> 0 | H12: =H4+H5+H9 -> 
A13: VLASTNÉ NÁKLADY RV | B13: EUR | C13: =KOZY!C163 ->  | E13: =KOZY!C189 ->  | H13: =C13+D13+E13+F13 -> 
A14: VLASTNÉ NÁKLADY ZV | B14: EUR | C14: =KOZY!C143 -> 0 | E14: =KOZY!C190 -> 0 | H14: 0
A15: VLASTNÉ NÁKLADY SPOLU ZA FARMU (RV+ŽV) | B15: EUR | C15: =C14+C13 ->  | D15: =D14+D13 -> 0 | E15: =E14+E13 ->  | F15: =F14+F13 -> 0 | H15: =SUM(C15:F15) -> 
A16: TRŽBY – ZA CHOV KôZ | B16: EUR | C16: =KOZY!C123 -> 0 | D16: =KOZY!C122 -> 0 | E16: 0 | F16: 0 | H16: =C16+D16+E16+F16 -> 0
A17: Tržby - VN ŽV | B17: EUR | C17: =C16-C15 ->  | D17: =D16-D15 -> 0 | E17: =E16-E15 ->  | F17: =F16-F15 -> 0 | H17: =SUM(C17:F17) -> 
A18: DOTÁCIE NA ŽV | B18: EUR | C18: =KOZY!C127 -> 0 | D18: 0 | E18: 0 | F18: 0 | H18: 0
A19: TRŽBY + DOTÁCIE -VN = ZISK/STRATA | B19: EUR | C19: =(C16+C18)-C15 ->  | D19: =(D16+D18)-D15 -> 0 | E19: =(E16+E18)-E15 ->  | F19: =(F16+F18)-F15 -> 0 | H19: =SUM(C19:F19) -> 
A20: RV
A21: VÝNOS = OCENIE VEDĽAJŠÍCH VÝROBKOV | B21: EUR | C21: 0 | D21: 0 | E21: =0 -> 0 | F21: 0 | H21: 0
A22: VÝNOSY SPOLU ZV | B22: EUR | C22: =C21+C18+C16 -> 0 | D22: =D21+D18+D16 -> 0 | E22: =E21+E18+E16 -> 0 | F22: =F21+F18+F16 -> 0 | H22: =H21+H18+H16 -> 0
A23: HOSPODÁRSKY VÝSLEDOK CHOVU - bez dotacii na RV | B23: EUR | H23: =H22-H15 -> 
A24: DOTÁCIE RV LUKY + PASIENKY + ORNÁ PODA/KZ/ | B24: EUR | C24: =KOZY!C135 ->  | D24: =KOZY!C134 -> 0 | E24: =KOZY!C140 ->  | F24: 0 | H24: =C24+D24+E24+F24+G24 ->  | J24: SKUSKA= | K24: =H12*DOJN!C93 ->  | L24: OK
J25: ROZDIEL= | K25: =H24-K24 -> 
A26: VYNOS = OCENIE VEDĽAJŠÍCH VÝROBKOV | B26: EUR | C26: 0 | D26: 0 | E26: 0 | F26: 0 | H26: =C26+D26+E26+F26 -> 0
A29: TRŽBY + DOTÁCIE ZA FARMU | B29: EUR | C29: =C22+C24 ->  | D29: =D22+D24 -> 0 | E29: =E22+E24 ->  | F29: =F22+F24 -> 0 | H29: =C29+D29+E29+F29+G29 -> 
A30: (TRŽBY + DOTÁCIE ZA FARMU) – VLASTNÉ NÁKLADY | B30: EUR | C30: =C29-C15 ->  | D30: =D29-D15 -> 0 | F30: 0 | H30: =C30+D30+E30+F30+G30 ->  | J30: 28007.32 | K30: =J30-H30 ->  | L30: =K30/29200 ->  | M30: =L30*100 -> 
K31: =K30/H12 -> 
A33: farma kôz
A44: POROVNANIE -VN - na 100kd VÝPOČET | B44: EUR | C44: =#REF!/(C3*365)*100 ->  | D44: =#REF!/(D3*365)*100 ->  | E44: =#REF!/(E3*365)*100 ->  | F44: =#REF!/(F3*365)*100 ->  | G44: =#REF!/(G3*365)*100 -> 
A45: PUBLIKÁCIA VUEPP NA 100 KD | B45: EUR | C45: 814.38 | D45: 248.4 | E45: 191.8 | F45: 457.18 | G45: 237.96
A46: ROZDIEL | B46: EUR | C46: =C45-C44 ->  | D46: =D45-D44 ->  | E46: =E45-E44 ->  | F46: =F45-F44 ->  | G46: =G45-G44 -> 
A47: ROZDIEL V % | B47: EUR | C47: =100*(C44/C45) ->  | D47: =100*(D44/D45) ->  | E47: =100*(E44/E45) ->  | F47: =100*(F44/F45) ->  | G47: =100*(G44/G45) -> 
A53: výroba mlieka | B53: l | C53: =KOZY!C2*KOZY!C7 -> 0
A54: spotreba koziatka | B54: l | C54: =KOZY!C40 -> 0
A55: predaj mlieka tržný | B55: l | C55: 4387
A56: spotreba mlieka v syrárni | B56: l | C56: =C53-(C54+C55) -> -4387
A57: spotreba mliek spolu skúška správnosti | C57: =C56+C55+C54 -> 0
A59: tržby
A60: tržby za mlieko | B60: € | C60: =C55*KOZY!C6 -> 0
A61: tržby za syr | B61: € | C61: 38016
A62: tržby za kozlatá | C62: =KOZY!C122 -> 0
A63: tržby spolu | C63: =C62+C61+C60 -> 38016
A64: dotácie spolu len na ZV | C64: =H18 -> 0
A65: dotácie na RV | C65: =H24 ->  | G65: 19080
A66: dotácie + tržby | C66: =C63+C64+C65 -> 
A68: syráreň
A69: vlastné náklady na výrobu syrov
A70: náklady na syráreň | B70: € | C70: =4704+G87 -> 4704
A71: náklady na mlieko do syrárne vo vlastných nákladoch | B71: € | C71: =C56*KOZY!C169 ->  | E71: =C71-G87 -> 
A72: náklady spolu mlieko vo výrobe + ostatné náklady na výrobu tabulka | C72: =C71+C70 -> 
A74: zisk / strata (tržby - vn. Na výrobu + mlieko | C74: =C61-C72 -> 
A76: celkové tržby spolu (syráren + kozy) bez dotácii | C76: =C63 -> 38016 | E76: =(C76/100)*27.14 -> 10317.5424
A77: vlastné náklady na RV + ZV (podniku) | C77: =#REF! -> 
A78: vlastné náklady na syráreň + ostatné náklady na mlieko | C78: =C72 -> 
A79: zisk / strata bez dotácii za výrobu | C79: =C76-C77-C78 -> 
A81: zisk z mlieka z 1l | B81: € | C81: =2-KOZY!C169 -> 
A82: zisk z predaného mlieka | C82: =C81*C55 -> 
A84: zisk spolu bez dotáciií | C84: =C62+C74+C82 -> 
A85: dotácie spolu | C85: =C65+C64 -> 
A86: dotácie + tržby spolu - vlastné n | C86: =C85+C84 ->  | G86: 23643

Sheet KOZY (hidden)
A1: KOZY ZÁKLADNÉ STÁDO | B1: MJ | C1: HODNOTA
A2: POČET KôZ – ZS | B2: KUS | D2: x
A3: ÚHYN KôZ – ZS | B3: PERCENT | C3: 20 | D3: x | E3: P
A4: PRIEMERNÁ HMOTNOSŤ 1 KS | B4: KG | C4: 45 | D4: x
A5: CENA ZA 1KG MASA BRAK.KôZ | B5: EUR | C5: 1 | D5: x
A6: REALIZACNA CENA ZA 1LITER MLIEKA | B6: EUR | D6: x
A7: PRODUKCIA MLIEKA NA 1 KOZU/ROK | B7: LITRE | D7: x
A8: SPOTREBA MLIEKA PRE KOZĽA NA 1KG PRÍRASTKU V ODCHOVE | B8: LITRE | C8: 7
A9: EKVIVALENT - SPOTREBY MLIEKA NA VÝROBU 1KG HRUDKOVÉHO KOZIEHO SYRU | B9: LITRE | C9: 4.5 | D9: 10
A10: PRODUKCIA VLNY NA 1 BAHNICU/ROK | B10: KG | C10: 0
A11: PRODUKCIA VLNY NA 1 JARKU/ROK | B11: KG | C11: 0
A12: CENA ZA 1 KG VLNY | B12: EUR | C12: 0
A13: BRAKOVANIE KOZY ZS | B13: PERCENT | C13: 20 | D13: x
A14: NATALITA – POČET NAR. -KOZLIAT NA 1 KOZU/ROK | B14: KS | C14: 2 | D14: x
A15: ÚHYN KOZLIAT – NARODENYCH DO ODCHOVU | B15: PERCENT | C15: 5 | D15: x
A16: HMOTNOSŤ KOZLIAT PRI PREDAJI /VEĽKONOČNÉ/ | B16: KG | C16: 10 | D16: x
A17: CENA ZA 1KG MASA KOZLIAT /VEĽKONOČNÉ/ | B17: EUR
A18: FIX | C18: 100
A19: FIX | C19: 365
A20: FIX | C20: 1000
A21: VLASTNÉ NÁKLADY NA 100KD KôZ = ZAKLADNE STADO | B21: EUR | D21: x | E21: VLAST. NAKLADY BEZ KRMOVIN - POZOR
A22: VLASTNÉ NÁKLADY NA 100KD ODCHOV MLADÝCH KOZIČIEK DO ZÁKLADNÉHO STÁDA | B22: EUR | D22: x
A25: PREPRODUKCIA
A26: POČET KôZ – ZS – UHYNUTÝCH | B26: KS | C26: =(C2*C3)/C18 -> 0
A27: POČET KôZ – ZS – PREDANÝCH /BRAKOVANÝCH/ | B27: KS | C27: =((C2*C13)/C18)-C26 -> 0 | F27: kd koz= | G27: =C2*C19 -> 0
A28: ÚBYTOK KôZ ZS /ÚHYN + BRAKACIA/ KONTROLA | B28: KS | C28: =C27+C26 -> 0
A29: POTREBA – KOZIČIEK DO ZS | B29: KS | C29: =(C2*C13)/C18 -> 0 | F29: kd koziciek | G29: =C29*C19 -> 0
A30: POČET NARODENÝCH KOZLIAT | B30: KS | C30: =C2*C14 -> 0 | E30: strukt koficient = | G30: =G29/G27 -> 
A31: POČET KOZIČIEK A CAPKOV – ÚHYN | B31: KS | C31: =(C15*C30)/C18 -> 0
A32: POČET ODCHOVANÝCH KOZIČIEK A CAPKOV | B32: KS | C32: =C30-C31 -> 0
A33: POČET KOZIČIEK A CAPKOV PRE PREDAJ | B33: KS | C33: =C30-(C29+C31) -> 0
A34: HMOTNOSŤ PRI PORODE - KOZĽATÁ | B34: KG | C34: 2 | D34: x
A35: VZŤAHY PRE VÝPOČET VN PRE KOZĽATÁ
A36: PRÍRASTOK KOZLIAT KS/DEN | B36: KG | C36: 0.25 | D36: x
A37: POČET DNÍ ODCHOVU KOZLIAT PRI KOZE | B37: DNI | C37: 20 | D37: x
A38: VZRASTOVÝ PRÍRASTOK KOZLIAT = NÁRAST HMOTNOSTI NA 1 KUS | B38: KG | C38: =C16-C34 -> 8
A39: SPOTREBA MLIEKA - KOZIEHO NA 1 ODCHOVANÉ KOZĽA | B39: LITRE | C39: 15
A40: SPOTREBA MLIEKA - KOZLIEHO NA VSETKY ODCHOVANE KOZĽATÁ /SPOLU/ | B40: LITRE | C40: =C39*C32 -> 0
A41: INDEX ODCHOVU = POCET ODCHOVANYCH KOZLIAT NA 1 KOZU | B41: INDEX | C41: =C32/C2 -> 
A42: PRODUKCIA MASA KOZLIAT V KG NA 1 KOZU + HMOTNOSŤ PORODU/NARODENÉ/ | B42: KG | C42: =C41*C16 ->  | E42: tu pokracuj d.d.
A43: PRODUKCIA
A44: POČET KOZIČIEK A CAPKOV – PREDAJ | B44: KG | C44: =C33*C16 -> 0
A45: PREDAJ BRAK . KôZ | B45: KG | C45: =C27*C4 -> 0
A47: PRODUKCIA MLIEKA CELKOVÁ ZA CHOV | B47: LITRE | C47: =C2*C7 -> 0
A48: PREDAJ MLIEKA = PRODUKCIA - SPOTREBA MLIEKA KOZĽATAMI | B48: LITRE | C48: =C47-C40 -> 0
A49: PREDAJ MLIEKA TRHOVÝ NA 1KOZU /ZÁKL. STÁDA/ | B49: LITRE | C49: =C48/C2 ->  | D49: SKUS. SPR. | E49: =C49+(C39*C41) ->  | F49: OK=VSTUP-R7
A50: PREDAJ VLNY Z OVIEC - BAHNÍC | B50: KG | C50: =C10*C2 -> 0
A51: PREDAJ VLNY Z - JARIEK | B51: KG | C51: =C29*C11 -> 0
A53: VÝŽIVA
A54: KOZY
A55: STRATY – UŠLAPANÍM | B55: PERCENT | C55: 0
A56: STRATY – ZBEROM | B56: PERCENT | C56: 0
A57: LETO – POČET KD – PASIENKY | B57: DNI | C57: 185
A58: ZIMA – POČET KD – LÚKY | B58: DNI | C58: 180
A59: POTREBA SUŠINY NA 1KD OBJEM | B59: KG | C59: 2.2 | D59: x | F59: =C59/0.2 -> 11
A60: SPOTREBA PASIENKOV KUS/DEN – pasienky-V ZELENOM | B60: KG | C60: =C59/DOJN!C56 -> 11
A61: SPOTREBA LÚK KUS/DEŇ – lúky – V ZELENOM | B61: KG | C61: =C59/DOJN!C56 -> 11
A62: SPOTREBA SENA Z LÚK V ZIME NA KŔMNY DEŇ | B62: KG | C62: =C61*0.25 -> 2.75
A63: SPOTREBA KŔM.ZMESÍ. KUS/ ROK | B63: KG | C63: 50 | E63: P
A64: KOZIČKY DO ZÁKLADNÉHO STÁDA - VÝŽIVA
A65: POTREBA SUŠINY NA 1KD OBJEM | B65: KG | C65: 1
A66: SPOTREBA PASIENKOV KUS/DEŇ – pasienky-V ZELENOM | B66: KG | C66: =C65/DOJN!C56 -> 5
A67: sPOTREBA LÚK KUS/DEŇ – lúky – V ZELENOM | B67: KG | C67: =C65/DOJN!C56 -> 5
A68: SPOTREBA SENA Z LÚK V ZIME NA KŔMNY DEŇ | B68: KG | C68: =C67*0.25 -> 1.25
A69: SPOTREBA PASIENKOV KUS/rok – pasienky-V ZELENOM | B69: KG | C69: =C66*C57 -> 925
A70: SPOTREBA LÚK KUS/ROK – lúky – V ZELENOM | B70: KG | C70: =C67*C58 -> 900
A71: SPOTREBA PASIENKOV KUS/rok – pasienky-V ZELENOM + straty ušlap. | B71: KG | C71: =C69*(1+(C55/C18)) -> 925
A72: SPOTREBA LÚK KUS/ROK – lúky – V ZELENOM + STRATY UŠLAPANÍM | B72: KG | C72: =C70*(1+C56/C18) -> 900
A73: SPOTREBA PASIENKOV PRE KOZIČKY– pasienky-V ZELENOM | B73: TON | C73: =(C71/C20)*C29 -> 0
A74: SPOTREBA LÚK PRE KOZIČKY – LÚKY-V ZELENOM | B74: TON | C74: =(C70/C20)*C29 -> 0 | L74: POV.HM | M74: SENO
A75: KRMNA BILANCIA - KOZYCKY ZAKLADNE STADO = dorobil som = ha pas. Skutocne ked krmi KUK + LUC | B75: HA - PAS | C75: =H101 ->  | D75: CH
A76: KRMNA BILANCIA - KOZYCKY ZAKLADNE STADO = dorobil som = ha LUK Skutocne ked krmi KUK + LUC | B76: HA - LUK | C76: =H80 ->  | D76: CH
A77: KRMNA BILANCIA - KOZY ZAKLADNE STADO = dorobil som = ha pas. Skutocne ked krmi KUK + LUC | B77: HA -PAS | C77: =H100 ->  | H77: VAHA | I77: VYROBA LUK | J77: KRMNE | K77: KRMNE DNI | L77: POTREBA
A78: KŔMNA BILANCIA – KOZY ZÁKLADNÉ STÁDO = dorobil som = ha luk = skutocne ked sa krmi KUK+LUC | B78: HA - LUK | C78: =H79 ->  | E78: potreba ha L + P | F78: SKUTOCNA | G78: PERCENT | H78: PODIELU HA | I78: POV. HMOTA | J78: DNI | K78: SPOLU | L78: NA KD
A79: SPOTREBA PASIENKOV 1 KUS/ROK – V ZELENOM | B79: KG | C79: =C60*C57 -> 2035 | D79: KOZY LUK | E79: =C84 ->  | F79: ROZPOCITANA | G79: =E79/(E81/100) ->  | H79: =(G79*F81)/100 ->  | I79: =H79*'OBJ KR KOZY'!B20*1000 ->  | J79: 365 | K79: =J79*C2 -> 0 | L79: =I79/K79 ->  | M79: SPRAV HLBSIU ANALYZU
A80: SPOTREBA LÚK KUS/ ROK – V ZELENOM | B80: KG | C80: =C61*C58 -> 1980 | D80: KOZICKY LUK | E80: =C93 ->  | F80: PLOCHA | G80: =E80/(E81/100) ->  | H80: =(F81*G80)/100 ->  | I80: =H80*'OBJ KR KOZY'!B20*1000 ->  | J80: 365 | K80: =J80*C29 -> 0 | L80: =I80/K80 ->  | M80: LUK + PAS
A81: SPOTREBA PASIENKOV KUS/ ROK + STRATY UŠLAPANÍM | B81: KG | C81: =(1+C55/C18)*C79 -> 2035 | D81: SPOLU | E81: =E80+E79 ->  | F81: ='VSTUP RV'!Q65 ->  | G81: =G80+G79 ->  | H81: =H80+H79 -> 
A82: SPOTREBA LÚK - KUS/ ROK + ZBEROVÉ STRATY | B82: KG | C82: =(1+(C56/C18))*C80 -> 1980
A83: POTREBA PLOCHY PASIENKOV PRE KOZY | B83: HA | C83: =((C81/C20)*C2)/DOJN!C47 -> 
A84: POTREBA- PLOCHY LÚK PRE KOZY | B84: HA | C84: =((C82/C20)*C2)/DOJN!C46 ->  | G84: prevod | H84: ha | I84: VN /HA/EUR | J84: VN/CHOV
A85: POTREBA PLOCHY ORNEJ PODY PRE KOZY pre KŔMNE ZMESI | B85: HA | C85: ='Krmné zmesy KOZY'!L6 -> 0 | E85: plocha lucerny | F85: ha | G85: ='OBJ KR KOZY'!C2 ->  | H85: =G85*-1 ->  | I85: ='VSTUP RV'!E28 -> 0 | J85: =I85*H85 -> 
A86: POTREBA PLOCHY ORNEJ PODY PRE KOZĽA PRI KOZIACH pre KŔMNE ZMESI | B86: HA | C86: ='Krmné zmesy KOZY'!L15 -> 0 | E86: plocha silaze | F86: ha | G86: ='OBJ KR KOZY'!C3 ->  | H86: =G86*-1 ->  | I86: ='VSTUP RV'!E29 -> 0 | J86: =I86*H86 -> 
A87: POTREBA PLOCHY ORNEJ PODY PRE KOZY + KOZĽATÁ pre KŔMNE ZMESI | B87: HA | C87: =C86+C85 -> 0 | E87: SPOLU | G87: =G86+G85 ->  | H87: =G87*-1 ->  | J87: =J86+J85 -> 
A88: POTREBA PLOCHY ORNEJ PODY PRE KOZY + KOZĽATÁ pre LUCERNU + SILAZ KUK + KRMNU REPU | B88: HA | C88: =H93 -> 
A89: CELKOVA PLOCHA PRE KOZY A KOZĽATÁ= LÚKY + PASIENKY + ORNÁ PODA/KZ/ +KUK +LUC + KR.REPA | B89: HA | C89: =C77+C78+C85+C88+C87 -> 
A90: PLOCHA ORNEJ PODY PRE KOZY A KOZLATA OBJEMOVE KRMOVINY + kz | B90: ha | C90: =SUM(C85:C88) ->  | E90: KRMNA REPA | F90: TON/HA | H90: 30 | I90: 2000
A91: KŔMNA BILANCIA - KOZIČKY - ODCHOV PRE Z.S. | E91: spotreba | F91: ks/kd/kg | G91: 0.5 | H91: zima KD = | I91: =C58 -> 180 | J91: POTR/KUS | K91: =I91*G91 -> 90 | L91: KG
A92: SPOTREBA PASIENKOV PRE VŠETKY – pasienky-V ZELENOM /VŠETKY/ | B92: HA | C92: =C73/'RV - KRMOVINY'!B5 ->  | E92: PLOCHA = KRM. REPA | F92: HA | G92: =K91*(C2+C29) -> 0 | H92: =G92/(H90*1000) -> 0 | J92: =H92*I90 -> 0
A93: KOZIČKY SPOTREBA LÚK NA SENO PRE VŠETKY – LÚKY-V ZELENOM VŠETKY/ | B93: HA | C93: =C74/'RV - KRMOVINY'!B4 ->  | E93: PLOCHA ORNA PODA | F93: SPOLU | G93: HA | H93: =H92+H87 ->  | J93: =J92+J87 ->  | K93: EUR | L93: JE ZABUDOVANE R86= C
A94: KOZIČKY SPOTREBA ORNEJ PODY PRE KZ - /VŠETKY/ | B94: HA
A96: KŔMNA BILANCIA - POTREBA KRM. ZMESI | H96: VAHA | I96: VYROBA LUK | J96: KRMNE | K96: KRMNE DNI | L96: POTREBA
A97: KOZA POTREBA KŔM. ZMESI KUS/den -pred rujov | B97: dni | C97: 0
A98: KOZA POTREBA KŔM. ZMESI KUS/den -pred rujov | B98: kg/den | C98: 0
A99: KOZA POTREBA KŔM. ZMESI KUS/rok -pred rujov | B99: kg | C99: 0 | D99: PAS | E99: potreba ha L + P | F99: SKUTOCNA | G99: PERCENT | H99: PODIELU HA | I99: POV. HMOTA | J99: DNI | K99: SPOLU | L99: NA KD
A100: KOZA POTREBA KŔM. ZMESI KUS/den -pred porodom | B100: dni | C100: 0 | D100: KOZY PAS | E100: =C83 ->  | F100: ROZPOCITANA | G100: =E100/(E102/100) ->  | H100: =(G100*F102)/100 ->  | I100: =H100*'OBJ KR KOZY'!B21*1000 ->  | J100: 365 | K100: =C2*C19 -> 0 | L100: =I100/K100 ->  | M100: SPRAV HLBSIU ANALYZU
A101: KOZA POTREBA KŔM. ZMESI KUS/den -pred porodom | B101: kg/den | C101: 0 | D101: KOZICKY PAS | E101: =C93 ->  | F101: PLOCHA | G101: =E101/(E102/100) ->  | H101: =(F102*G101)/100 ->  | I101: =H101*'OBJ KR KOZY'!B21*1000 ->  | J101: 365 | K101: =C29*C19 -> 0 | L101: =I101/K101 ->  | M101: LUK + PAS
A102: KOZA POTREBA KŔM. ZMESI KUS/rok -pred porodom | B102: kg | C102: =C101*C100 -> 0 | D102: SPOLU | E102: =E101+E100 ->  | F102: ='VSTUP RV'!Q39 ->  | G102: =G101+G100 ->  | H102: =H101+H100 -> 
A103: KOZA POTREBA KŔM. ZMESI KUS/den - na laktáciu | B103: dni | C103: 365
A104: KOZA POTREBA KŔM. ZMESI KUS/den - na laktáciu | B104: kg | C104: 0.3
A105: KOZA POTREBA KŔM. ZMESI KUS/rok - na laktáciu | B105: kg | C105: =C104*C103 -> 109.5
A106: POTREBA KŔMNEJ ZMESI NA ROK PRE 1 - KOZU | B106: KG | C106: =C105+C102+C99 -> 109.5
A107: POTREBA KRM. ZM. PRE VSETKY | B107: TON | C107: =(C106*C2)/1000 -> 0
A108: KOZIČKY POTREBA KŔMNEJ ZMESI | B108: DNI | C108: 300
A109: KOZIČKY POTREBA KŔMNEJ ZMESI KG/DEN | B109: KG | C109: 0.1
A110: KOZIČKY POTREBA KŔMNEJ ZMESI KG/ROK | B110: KG/ROK | C110: =C109*C108 -> 30
A111: KOZIČKY POTREBA KŔMNEJ ZMESI TON/ROK | B111: TON | C111: =(C110*C29)/C20 -> 0
A112: KOZIČKY DO PREDAJA | B112: DNI | C112: =(C16-C34)/C36 -> 32
A113: KOZIČKY DO PREDAJA POTREBA KŔMNEJ ZMESI -DEN/KG | B113: KG | C113: 0.25
A114: KOZĽATÁ DO PREDAJA POTREBA KŔMNEJ ZMESI -ZA ODCHOV | B114: KG | C114: =C113*C112 -> 8 | D114: JAHNATA DO PREDAJA POTREBA KRMNEJ ZMESI -ZA ODCHOV
A115: POTREBA KŔMNEJ ZMESI PRE KOZĽATÁ SPOLU | B115: TON | C115: =(C114*(C33))/1000 -> 0
A116: POTREBA KRM. ZM. PRE VSETKY KOZLATA + KOZICKY | B116: TON | C116: =C115+C111 -> 0
A117: EKONOMIKA
A118: TRŽBY – PREDAJ MLIEKA | B118: EUR | C118: =C48*C6 -> 0
A119: TRŽBY – PREDAJ BRAK MASA /KôZ/ | B119: EUR | C119: =C45*C5 -> 0 | E119: P
A120: TRŽBY - ZA KOZY ZÁKLADNÉHO STÁDA | B120: EUR | C120: =C50*C12 -> 0
A121: TRŽBY - ZA KOZIČKY | B121: EUR | C121: =C51*C12 -> 0
A122: TRŽBY – PREDAJ MASA /KOZLIAT/ | B122: EUR | C122: =C44*C17 -> 0
A123: TRŽBY - ZA KOZY ZAKL. STÁDA = MLIEKO + MASO BRAKOVANÝCH | B123: EUR | C123: =C118+C119+C120+C121 -> 0
A124: TRŽBY – SPOLU | B124: EUR | C124: =SUM(C122:C123) -> 0
A126: DOTÁCIE NA 1 KOZU ZS | B126: EUR | D126: VSTUP
A127: DOTÁCIE SPOLU NA ŽIVOČÍŠNU VÝROBU | B127: EUR | C127: =C126*C2 -> 0
A128: DOTÁCIE NA LÚKY PRE KOZY - PODĽA SPOTREBY KRMIVA | B128: EUR | C128: =C78*DOJN!C132 -> 
A129: DOTÁCIE NA PASIENKY PRE KOZY - PODĽA SPOTREBY KRMIVA | B129: EUR | C129: =C77*DOJN!C132 -> 
A130: DOTACIE NA ORNU PODU = LUC + KUK + KRM.REPA PODLA SPOTERBY | B130: EUR | C130: =C88*DOJN!C132 -> 
A131: DOTÁCIE NA ORNÚ PODU /KZ/ PRE KOZY - PODĽA SPOTREBY KRMIVA | B131: EUR | C131: =C85*DOJN!C132 -> 0
A132: DOTACIE NA ORNU PODU = KZ PODLA SPOTERBY | B132: EUR | C132: =C87*DOJN!C132 -> 0
A133: DOTÁCIE RV SPOLU PRE KOZY = LÚKY + PASIENKY + ORNÁ PODA /KZ/ | B133: EUR | C133: =SUM(C128:C131) -> 
A134: DOTÁCIE RV ORNÁ PODA - KOZĽATÁ NA KZ | B134: EUR | C134: =C86*DOJN!C132 -> 0
A135: DOTÁCIE RV SPOLU PRE KOZY+ kozicky = LÚKY + PASIENKY + ORNÁ PODA /KZ/ | B135: EUR | C135: =SUM(C132:C134) -> 
A137: DOTÁCIE NA PASIENKY PRE KOZIČKY - PODĽA SPOTREBY KRMIVA | B137: EUR | C137: =C75*DOJN!C132 -> 
A138: DOTÁCIE NA LÚKY PRE KOZIČKY - PODĽA SPOTREBY KRMIVA | B138: EUR | C138: =C76*DOJN!C132 -> 
A139: DOTÁCIE NA ORNÚ PODU /KZ/ PRE KOZIČKY - PODĽA SPOTREBY KRMIVA | B139: EUR | C139: ='Krmné zmesy KOZY'!L29*DOJN!C132 -> 0
A140: DOTÁCIE RV SPOLU PRE KOZIČKY = LÚKY + PASIENKY + ORNÁ PODA /KZ/ | B140: EUR | C140: =C139+C138+C137 -> 
A141: DOTÁCIE RV SPOLU PRE KOZY+ kozicky = LÚKY + PASIENKY + ORNÁ PODA /KZ/ | B141: EUR | C141: =C140+C135 -> 
A142: KOZY + KOZĽATÁ
A143: VLASTNÉ NÁKLADY NA KOZY | B143: EUR | C143: =C21*C2*3.65 -> 0 | D143: ZADANY VSTUP - VUPP
A144: VLASTNÉ NÁKLADY NA KOZY NA VLASTNE - DOROBENE - JADRO | B144: EUR | C144: ='Krmné zmesy KOZY'!L22 -> 0
A145: VLASTNE NAKLADY NA KOZY NA LUC + KUK + REPA = spolu za chov | B145: EUR | C145: =J92 -> 0
A146: VLASTNE NAKLADY NA KOZY NA LUC + KUK + REPA = NA 1 KRMNY DEN | B146: EUR | C146: =C145/C2/365 -> 
A147: VLASTNE NAKLADY NA KOZY NA LUC + KUK + REPA = NA 100 KRM. DNI | B147: EUR | C147: =C146*100 -> 
A148: VLASTNÉ NÁKLADY NA KOZY NA NAKÚPENÉ KONPONENTY - JADRO | B148: EUR | C148: ='Krmné zmesy KOZY'!L23 -> 0
A149: VLASTNÉ NÁKLADY NA KOZY NA JADRO SPOLU | B149: EUR | C149: ='Krmné zmesy KOZY'!L21 -> 0 | D149: ok - preberam z KZ | G149: =C149 -> 0
A150: VLASTNÉ NÁKLADY NA 1 KOZU+KOZĽA DO ODSTAVU/ROK | B150: EUR | C150: =C149/C2 -> 
A151: VLASTNÉ NÁKLADY NA 1 KOZU+KOZĽA DO ODSTAVU/1 KRM.DEN | B151: EUR | C151: =C150/C19 -> 
A152: VN - JADRO- NA 1 KOZU+KOZĽA DO ODSTAVU/100 KRM.DEN | B152: EUR | C152: =C151*C18 ->  | D152: VN NA 100KD - ODPOCITAT OD VSTUPU | H152: =C152*3.65*C2 -> 
A153: VN - NA PASIENKY NA PASIENKY KOZY A KOZĽATÁ /SPOLU/ | B153: EUR | C153: =C77*'RV - KRMOVINY'!D5 ->  | D153: ←skontrolovat! | G153: =C153 -> 
A154: VN - NA PASIENKY NA PASIENKY KOZY A KOZĽATÁ NA 1KS/ROK | B154: EUR | C154: =C153/C2 -> 
A155: VN - NA PASIENKY NA PASIENKY KOZY A KOZĽATÁ NA 1KS/DEN | B155: EUR | C155: =C154/C19 -> 
A156: VN - NA PASIENKY NA PASIENKY KOZY A KOZĽATÁ NA 100KD | B156: EUR | C156: =C155*C18 ->  | D156: VN NA 100KD - ODPOCITAT OD VSTUPU | H156: =C156*3.65*C2 -> 
A157: VN - NA LÚKY KOZY A KOZĽATÁ /SPOLU/ | B157: EUR | C157: =C84*'RV - KRMOVINY'!D4 ->  | G157: =C157 -> 
A158: VN - NA LÚKY KOZY A KOZĽATÁ NA 1KS/ROK | B158: EUR | C158: =C157/C2 -> 
A159: VN - NA LÚKY KOZY A KOZĽATÁ NA 1KS/DEN | B159: EUR | C159: =C158/C19 -> 
A160: VN - NA LÚKY KOZY A KOZĽATÁ NA 100 KD | B160: EUR | C160: =C159*C18 ->  | D160: VN NA 100KD - ODPOCITAT OD VSTUPU | H160: =C160*3.65*C2 ->  | I160: =C159*100 ->  | J160: =I160*3.65*C2 -> 
A161: VLASTNÉ NÁKLADY NA - LÚKY + PASIENKY + KŔMNU ZMES NA 100KD KOZY A KOZĽATÁ | B161: EUR | C161: =C160+C156+C152+C147 -> 
A162: VLASTNÉ NÁKLADY NA - LÚKY + PASIENKY + KŔMNU ZMES NA 100KD KOZY A KOZĽATÁ | B162: EUR | C162: =C160+C156+C152 -> 
A163: VN SKÚŠKA SPRÁVNOSTI | B163: EUR | C163: =C162*3.65*C2 ->  | D163: OK | E163: =C149+C153+C157 ->  | F163: OK | G163: =G157+G153+G149 ->  | H163: ROZDIEL= | I163: =G163-C163 ->  | J163: =I163+H160 -> 
A164: VN NA KŔMENIE + VN VUEPP SPOLU ZA VŠETKY KOZY A KOZĽATÁ DO ODSTAVU | B164: EUR | C164: =C163+C143 ->  | H164: KD=
A165: VLASTNÉ NÁKLADY NA - 1 KD VÝŽIVA + VUPP / KOZY A KOZĽATÁ DO ODSTAVU/ | B165: EUR | C165: =C164/(C2*C19) -> 
A166: VLASTNÉ NÁKLADY NA - 100 KD VÝŽIVA + VUPP / KOZY A KOZĽATÁ DO ODSTAVU/ | B166: EUR | C166: =C165*C18 -> 
A167: VLASTNÉ NÁKLADY NA ROK/KOZY A KOZĽATÁ DO ODSTAVU | B167: EUR | C167: =C165*C19 -> 
A168: VLASTNÉ NÁKLADY NA HLAVNÉ VÝROBKY KôZ = MLIEKO A MASO JAHNIAT
A169: VLSTNÉ NÁKLADY NA MLIEKO 1 LITER | B169: EUR | C169: =C164/C47 -> 
A170: VLASTNÉ NÁKLADY NA VYCICANE /SPOTREBOVANE/ MLIEKO - KOZĽATAMI | B170: EUR | C170: =C169*C40 ->  | E170: toto=
A171: VLASTNÉ NÁKLADY NA 1KG ŽIVEJ HMOTNOSTI | B171: EUR | C171: =C170/(C32*C16) -> 
A172: VLASTNÉ NÁKLADY NA 1 ODCHOVANÉ KOZĽA DO PREDAJA | B172: EUR | C172: =C171*C16 ->  | D172: skuska=R144 | E172: =C172*C32 -> 
A173: KOZIČKY - ODCHOV PRE ZÁKLADNÉ STÁDO
A174: VLASTNÉ NÁKLADY - KRMNA ZMES - KOZIČKY - DOROBENE JADRO -VSETKY | B174: EUR | C174: ='Krmné zmesy KOZY'!L31 -> 0
A175: VLASTNÉ NÁKLADY - KRMNA ZMES - KOZIČKY - DOROBENE JADRO - 1 KUS/ROK | B175: EUR | C175: =C174/C29 -> 
A176: VLASTNÉ NÁKLADY - KRMNA ZMES - KOZIČKY - DOROBENE JADRO - NA 100KD | B176: EUR | C176: =C175/3.65 ->  | D176: SKUSKA | E176: =C176*3.65*C29 ->  | F176: OK
A177: VLASTNÉ NÁKLADY - KRMNA ZMES - KOZIČKY - NAKUPENE KONPONENTY -VSETKY | B177: EUR | C177: ='Krmné zmesy KOZY'!L32 -> 0
A178: VLASTNÉ NÁKLADY - KRMNA ZMES - KOZIČKY - NAKUPENE KONPONENT - 1 KUS/ROK | B178: EUR | C178: =C177/C29 -> 
A179: VLASTNÉ NÁKLADY - KRMNA ZMES - KOZIČKY -NAKUPENE KONPO - NA 100KD | B179: EUR | C179: =C178/3.65 ->  | E179: =C179*3.65*C29 ->  | F179: OK
A180: VN - KRMNA ZMES - KOZIČKY - KONPONENTY + VLASTNE JADRO - NA 100KD | B180: EUR | C180: =C179+C176 ->  | D180: SKUSKA
A181: VN - KRMNA ZMES - KOZIČKY - KONPONENTY + VLASTNE JADRO - SPOLU | B181: EUR | C181: =C177+C174 -> 0 | D181: VN - JADRO PRE VSETKY
A182: VN - NA PASIENKY pre -KOZIČKY /SPOLU/ | B182: EUR | C182: =C92*'RV - KRMOVINY'!D5 -> 
A183: VN - NA PASIENKY pre -KOZIČKY - 1KUS/ROK | B183: EUR | C183: =C182/C29 -> 
A184: VN - NA PASIENKY pre -KOZIČKY - 1KUS NA 100KD | B184: EUR | C184: =C183/3.65 -> 
A185: VN - NA LÚKY pre -KOZIČKY /SPOLU/ | B185: EUR | C185: =C93*'RV - KRMOVINY'!D4 -> 
A186: VN - NA LÚKY pre -KOZIČKY - 1KUS/ROK | B186: EUR | C186: =C185/C29 -> 
A187: VN - NA LÚKY pre -KOZIČKY - 1KUS NA 100KD | B187: EUR | C187: =C186/3.65 -> 
A188: JARKY - VLASTNÉ NÁKLADY SPOLU = LUKY+PASIENKY + KŔMNA ZMES NA 100KD | B188: EUR | C188: =C187+C184+C180 ->  | D188: TOTO SU VLASTNE NAKLADY NA VYZIVU NA 100 KD
A189: JARKY - VLASTNÉ NÁKLADY SPOLU = LUKY+PASIENKY + KŔMNA ZMES = SPOLU | B189: EUR | C189: =C185+C182+C177+C174 ->  | D189: TOTO SU VLASTNE NAKLADY NA VYZIVU PRE VSETKY
A190: JARKY - VKASTNÉ NÁKLADY SPOLU /VUEPP/ ALE BEZ VN NA DOROBENÉ KRMOVINY = SPOLU | B190: EUR | C190: =C29*C22*3.65 -> 0 | D190: TOTO SU VLASTNE NAKLADY NA VYZIVU PRE VSETKY | F190: DY
A191: JARKY - VLASTNÉ NÁKLADY SPOLU /VUEPP/ + VN NA DOROBENÉ KRMOVINY | B191: EUR | C191: =C189+C190 -> 
A192: JARKY - VKASTNÉ NÁKLADY SPOLU /VUEPP/ + KRMOVINY NA KRMNY DEN | B192: EUR | C192: =C191/(C29*365) -> 
A193: JARKY - VKASTNÉ NÁKLADY SPOLU /VUEPP/ + KRMOVINY NA 100 KD | B193: EUR | C193: =C192*C18 -> 
A194: SKUSKA VN KOZIČKY - KZ = VLASTNE/DOROBENE/ + NAKUPENE | B194: EUR | C194: ='Krmné zmesy KOZY'!L34 -> 0
A195: SKUSKA VN KOZIČKY - LUKY + PASIENKY | B195: EUR | C195: =C182+C185 -> 
A196: SKUSKA VN VUEPP | B196: EUR | C196: =C190 -> 0
A197: SKUSKA VN SPOLU | B197: EUR | C197: =C196+C195+C194 ->  | D197: OK

Sheet DOJN (hidden)
A1: ukazovateľ | B1: m.j | C1: hodnota
A2: dojnice | B2: ks | D2: x
A3: užitkovosť | B3: L | C3: 5000 | D3: x | E3: 6848
A4: VNUTROPODNIKOVA SPOTREBA MLIEKA / spotreba na JEDNO telata/ | B4: L | C4: =C118*C119 -> 210 | D4: VYPOCET | E4: =E3/305 -> 22.45245902
A5: TRZNY PREDAJ MLIEKA NA DOJNICU /do mliekarni/ | B5: L | C5: =C3-C4 -> 4790 | G5: úžitkovosť (v litroch - mlieko, v kusoch - vajcia alebo v kg prírastku na 1 deň - mäso)
A6: VNUTROPODNIKOVA SPOTREBA MLIEKA / spotreba na VSETKY telata/ | B6: L | C6: =C4*C2 -> 0 | G6: cena za 1 liter, kus alebo kg
A7: VNUTROPODNIKOVA CENA MLIEKA = NAKLADOVA CENA | B7: L | C7: =C130 ->  | D7: VYPOCET | G7: dotácie na 1 VDJ
A8: VYNOS ZA / VNUTROPODNIKOVU SPOTREBU MLIEKA/ ide plusom do HV | B8: EUR | C8: =C6*C7 ->  | G8: vlastné náklady v Euro na 100 KD
A9: TRHOVY PREDAJ MLIEKA | B9: L | C9: =(C3-C4)*C2 -> 0 | G9: pocet kusov zakladneho stada
A10: PRIEMERNA HMOTNOST NARODENYCH TELIAT | B10: KG | C10: 35 | D10: VSTUP
A11: VN - NA NARODENE TELATA = PERCENTO Z VN NA DOJNICE | B11: % | C11: 6 | D11: VSTUP
A12: VNUTROPODNIKOVA CENA 1KG MASA / narodene telata/ | B12: EUR | C12: =C13/C10 ->  | D12: VYPOCET
A13: VNUTROPODNIKOVA CENA 1 KS NARODENEHO TELATA | B13: KS | C13: =C116 ->  | D13: VYPOCET
A14: VYNOS ZA / VNUTROPOD. NARODENE TELATA SPOLU/ ide plusom do HV | B14: EUR | C14: =C13*C41 ->  | D14: VYPOCET
A15: PRODUKCIA MASTALNEHO HNOJA 1 KUS / ROK / | B15: T | C15: 13
A16: CELKOVA PRODUKCIA MASTALNEHO HNOJA ZA DOJNICE | B16: T | C16: =C15*C2 -> 0
A17: VNUTROPODNIKOVA CENA 1TONY MASTALNEHO HNOJA | B17: EUR | C17: 7.83 | G17: zrušiť | I17: potvrdiť
A18: VYNOS - ZA MASTALNY HNOL ZA DOJNICE | B18: EUR | C18: =C17*C16 -> 0
A19: PRODKCIA MOCOVKY NA 1 DOJNICU ZA ROK | B19: HL | C19: 13
A20: VNUTROPODNIKOVA CENA MOCOVKY/ ZA 1 HL/ | B20: EUR | C20: 0.25
A21: VYNOS - ZA MOCOVKUL ZA DOJNICE | B21: EUR | C21: =C20*C19*C2 -> 0
A22: % brak.dojnic | B22: % | C22: 25
A23: %uhynu | B23: % | C23: 0
A24: %natality | B24: % | C24: 100
A25: hmotnost brakácie | B25: kg | C25: 500
A26: cena za 1kg masa | B26: UER | C26: 1.5 | F26: 0.5 | G26: 5
A27: fix | C27: 100
A28: cena za 1 liter mlieka | B28: EUR | D28: x
A29: % narodených jalovíc | B29: % | C29: 50
A30: % narodených býškov | B30: % | C30: 50
A31: TRŽBY
A32: Počet brakovaných kráv | B32: ks | C32: =(C2*C22)/C27 -> 0
A33: Hmotnosť brakovaných kráv | B33: kg | C33: =C25*C32 -> 0
A34: Tržba z brakácie | B34: EUR | C34: =C33*C26 -> 0
A35: Ttžba za mlieko | B35: EUR | C35: =C28*C5*C2 -> 0
A36: TRŽBY ZA DOJNICE | B36: EUR | C36: =C34+C35 -> 0
A37: VYNOSY ZA DOJNICE 1 -BEZ TRZIEB ZA BRAKOVANE MASO DOJNIC-bez dotacii | B37: EUR | C37: =C35+C21+C18+C14 -> 
A38: VYNOSY ZA DOJNICE 2 S TRZBAMI ZA BRAKOVANE MASO DOJNIC-bez dotacii | B38: EUR | C38: =C37+C34 ->  | F38: vn za dojn. | G38: vn na mlieko
A39: VLASTNE NAKLADY NA 1LITER MLIEKA /BERIEM VYNOSY 1/R36/ | B39: EUR | C39: =(C109-(C14+C18+C21))/(C3*C2) ->  | F39: =C109 ->  | G39: =(F39-(C14+C18+C21))/(C2*C3) -> 
A40: REPRODUKCIA TELIAT V KUSOCH
A41: Narodené telatá spolu | B41: ks | C41: =(C2*C24)/C27 -> 0
A42: z toho jalovičky | B42: ks | C42: =(C41*C29)/C27 -> 0
A43: z toho býčky | B43: ks | C43: =(C41*C30)/C27 -> 0
A44: Fix | B44: rok | C44: 365
A45: KD SPOLU ZA DOJNICE | B45: KD | C45: =C2*365 -> 0
A46: LUKY URODA V ZEL. HMOTE | B46: T | C46: ='RV - KRMOVINY'!B4 -> 0 | D46: x | E46: 8.85 | F46: NEMENIT PREBERA SA Z BLOKU = RV KRMOVINY
A47: PASIENKY URODA ZEL.HMO. | B47: T | C47: ='RV - KRMOVINY'!B5 -> 0 | D47: x | E47: 4.66 | F47: NEMENIT PREBERA SA Z BLOKU = RV KRMOVINY
A48: – K.D. SPOTREBA V ZELEN. | B48: KG | C48: =C57/C56 -> 50
A49: POCET KD PASENIA | B49: DNI | C49: ='RV - KRMOVINY'!C34 -> 150 | F49: NEMENIT PREBERA SA Z BLOKU = RV KRMOVINY
A50: POCET KD ZIMNE KRMENIE | B50: DNI | C50: ='RV - KRMOVINY'!C35 -> 215 | D50: =C61/C60 -> 975 | O50: DOJNICE | P50: T | Q50: JAL | R50: VTJ | S50: VHD | T50: SPOLU
A51: SPOTREBA ZELEN. PASTVA = BEZ STRAT | B51: T | C51: =(C49*C48*C2)/1000 -> 0 | F51: NEMENIT PREBERA SA Z BLOKU = RV KRMOVINY | N51: PAS | O51: ='EKONOM HD'!C6 ->  | Q51: ='EKONOM HD'!E6 ->  | T51: =S51+R51+Q51+P51+O51 -> 
A52: SPOTREBA ZELEN. LUKY = BEZ STRAT | B52: T | C52: =(C48*C50*C2)/1000 -> 0 | D52: TEORET | E52: HA | F52: NEMENIT PREBERA SA Z BLOKU = RV KRMOVINY | N52: LUKY | O52: ='EKONOM HD'!C5 ->  | P52: ='T 0 -6 M'!C56 ->  | Q52: ='EKONOM HD'!E5 ->  | R52: ='EKONOM HD'!F5 ->  | S52: ='EKONOM HD'!G5 ->  | T52: =S52+R52+Q52+P52+O52 -> 
A53: PASIENKY – PLOCHA = BEZ STRAT | B53: HA | C53: =(C51/C47) ->  | D53: =(C51*C50*C2)/1000*L55 ->  | E53: =C53/C48 ->  | F53: =C55*J55 ->  | K53: skuska | L53: vaha | M53: uroda vt | N53: URODA | O53: PREP HA
A54: LUKY – PLOCHA = BEZ STRAT | B54: HA | C54: =C52/C46 ->  | D54: =((C50*C52*C2)/1000)*L56 ->  | E54: =D54/C49 ->  | F54: teoreticky ha | H54: hd spoluha | I54: uroda ph t | J54: oklamana ur T | K54: hmotvy v t | L54: koeficient | M54: cez koef | N54: DOJNICE | O54: DOJNICE
A55: SUSINA POVODNEJ HMOTY /TRAVY/ – VYJADRENA V GRAMOCH | B55: GRAM | C55: ='RV - KRMOVINY'!Q5 -> 200 | D55: =D53/C47 ->  | F55: ='EKONOM HD'!H6 ->  | G55: po rozpocitani pasienky | H55: ='VSTUP RV'!O39 ->  | I55: =H55*C47 ->  | J55: =I55/F55 ->  | K55: =J55*F55 ->  | L55: =J55/C47 ->  | M55: =F55*C47*L55 ->  | N55: =C51 -> 0 | O55: =C53*L55 ->  | Q55: =Q51*L55 ->  | T55: =S55+R55+Q55+P55+O55 -> 
A56: SUSINA POVODNEJ HMOTY /TRAVY/ – VYJADRENA V KG | B56: KG | C56: =C55/1000 -> 0.2 | D56: =D54/C46 ->  | F56: ='EKONOM HD'!H5 ->  | G56: po rozpocitani luky | H56: ='VSTUP RV'!O38 ->  | I56: =H56*C46 ->  | J56: =I56/F56 ->  | K56: =J56*F56 ->  | L56: =J56/C46 ->  | M56: =L56*C46*F56 ->  | N56: =C52 -> 0 | O56: =C54*L56 ->  | P56: =L56*P52 ->  | Q56: =Q52*L56 ->  | R56: =R52*L56 ->  | S56: =S52*L56 ->  | T56: =S56+R56+Q56+P56+O56 -> 
A57: PRIJEM SUS. Z OBJEMU KD – KRMNY DEN | B57: KG | C57: 10 | E57: V POVODNEJ HMOTE = NEMENIT = PREBERAM Z ROZBRU KRMIV A PREPOCITAVAM | G57: spolu | H57: =H56+H55 ->  | I57: =I56+I55 ->  | K57: =K55+K56 ->  | M57: PAS | N57: ROZDIEL | O57: =O51-O55 ->  | T57: =T56+T55 -> 
A58: PRODUKCIA MLIEKA Z OBJEM. KRMIV | B58: LIT | C58: 10 | M58: LUK | N58: ROZDIEL | O58: =O52-O56 -> 
A59: PRODUKCIA MLIEKA Z OBJEMU | B59: LIT | C59: =C58*305 -> 3050
A60: PRODUKCIA MLIEKA Z – 1KG KRMNEJ ZMESI | B60: LIT | C60: 2 | H60: 305 - KD | I60: MLIEKO Z JK | J60: MLIEKO Z OK | K60: rok
A61: PRODUKCIA MLIEKA Z – JADRA | B61: LIT | C61: =C3-(C58*305) -> 1950 | G61: užit. Dojnic | H61: 6850 | I61: =C61 -> 1950 | J61: =C59 -> 3050 | K61: =I61+J61 -> 5000
A62: POTREBA KRMNEJ ZMESI – LAKTACIU PRE 1 DOJNICU | B62: KG | C62: =C61/C60 -> 975
A63: POTREBA KRMNEJ ZMESI – PRE 1 DOJNICU NA 1 PRIEMERNY KRMNY DEN /305 KD/ | B63: KG | C63: =C62/305 -> 3.196721311 | E63: =(C3-C59)/C60/305 -> 3.196721311
A64: SPOTREBA JADRA /KZ/ NA 1LITER MLIEKA | B64: KG | C64: =C62/C3 -> 0.195
A65: SPOTREBA JADRA POCAS STATIA NA SUCHO | B65: KG | C65: 60 | F65: POZOR VSTUP DA SA MENIT
A66: POTREBA JADRA SPOLU NA 1 DOJNICU / LAKTACIA + STATIE NA SUCHO/ | B66: KG | C66: =C65+C62 -> 1035
A67: POTREBA JADRA SPOLU NA VSETKY DOJNICE / LAKTACIA + STATIE NA SUCHO/ | B67: T | C67: =(C66/1000)*C2 -> 0
A68: CENA ZA 1KG KRMNEJ ZMESI - nakupenej | B68: EUR | C68: 0
A69: VLASTNE NAKLADY ZA KRMNU ZMES ZA ROK PRE DOJNICE /VSETKY/ - NÁKUP | B69: EUR | C69: =C62*C68*C2 -> 0
A70: NAKUP – KONCENTRAT VSETKY DOJNICE | B70: EUR | C70: ='KRMNE ZMESI HD'!H4*'KRMNE ZMESI HD'!H47 -> 0
A71: NAKUP – MKP VSETKY DOJNICE | B71: EUR | C71: ='KRMNE ZMESI HD'!I4*'KRMNE ZMESI HD'!I47 -> 0
A72: VLASTNE NAKLADY ZA KRMNU ZMES ZA ROK PRE DOJNICE SPOLU-CASH | B72: EUR | C72: =C71+C70+C69 -> 0
A73: VLASTNE NAKLADY NA DOPESTOVANIE ZRNÍN PRE KZ | B73: EUR | C73: ='KRMNE ZMESI HD'!J7 -> 0
A74: VLASTNE NAKLADY NA KRMNU ZMES ZA DOJNICE SPOLU | B74: EUR | C74: =C72+C73 -> 0 | D74: ok
A75: VLASTNE NAKLADY NA 1KG VYROBENEJ KRM. ZMESY | B75: EUR | C75: =C74/(C62*C2) -> 
A76: NAKLAD NA 1HA LUK | B76: EUR | C76: ='RV - KRMOVINY'!E4 -> 83 | D76: X | E76: 83.1 | F76: 126 | G76: NEMENIT PREBERA SA Z BLOKU = RV KRMOVINY
A77: NAKLAD NA 1HA PASIENKOV | B77: EUR | C77: ='RV - KRMOVINY'!E5 -> 118 | D77: X | E77: 118.2 | F77: 144 | G77: NEMENIT PREBERA SA Z BLOKU = RV KRMOVINY
A78: STRATY PASIENKOV USLAPANIM | B78: % | C78: 0
A79: PLOCHA PASIENKOV + STRATY USLAPANIM | B79: HA | C79: =C53*((C78+100)/100) -> 
A80: STRATY LUK PRI ZBERE | B80: % | C80: 0 | G80: =5000-(305*10) -> 1950
A81: PLOCHA LUK + STRATY ZBEROVE | B81: HA | C81: =C54*(C80+C27)/100 ->  | G81: =G80/2 -> 975
A82: PLOCHA PASIENKOV + KRMIVOVA REZERVA | B82: % | C82: 0 | E82: VSTUP PREBERA SA CENTRALNE | H82: RV KRMOVINY
A83: PLOCHA LUK + KRMIVOVA REZERVA | B83: % | C83: 0 | E83: VSTUP PREBERA SA CENTRALNE | H83: RV KRMOVINY
A84: PLOCHA LUK + KRMIVOVA REZERVA + STRATY ZBEROVE | B84: HA | C84: =C81*(C83+C27)/C27 ->  | D84: ok
A85: PLOCHA PASIENKOV + KRMIVOVA REZERVA + STRATY ZBEROVE | B85: HA | C85: =C79*(C82+C27)/C27 ->  | D85: ok
A86: PLOCHA ORNEJ PODY NA KRMNU ZMES spolu za vsetky dojnice | B86: HA | C86: ='KRMNE ZMESI HD'!J6 -> 0 | D86: ok | E86: VSTUP PREBERA SA CENTRALNE | H86: RV KRMOVINY
A87: PLOCHA ORNEJ PODY PRE KRMNU ZMES spolu za vsetky dojnice = PSENICA | B87: HA | C87: ='KRMNE ZMESI HD'!C6 -> 0 | E87: VSTUP PREBERA SA CENTRALNE | H87: RV KRMOVINY
A88: PLOCHA ORNEJ PODY PRE KRMNU ZMES spolu za vsetky dojnice = JACMEN | B88: HA | C88: ='KRMNE ZMESI HD'!D6 -> 0 | H88: CELA | I88: HA LUCERNY | J88: =J90/'VSTUP RV'!B28/1000 ->  | K88: =K90/'VSTUP RV'!B28/1000 ->  | L88: =L90/'VSTUP RV'!B28/1000 ->  | M88: =M90/'VSTUP RV'!B28/1000 ->  | N88: =N90/'VSTUP RV'!B28/1000 ->  | O88: =N88+M88+L88+K88+J88 ->  | P88: OK
A89: PLOCHA ORNEJ PODY PRE KRMNU ZMES spolu za vsetky dojnice = KUKURICA | B89: HA | C89: ='KRMNE ZMESI HD'!E6 -> 0 | F89: VLAST NAKL/HA | H89: PLOCHA HD | I89: POV HMOTA | J89: DOJNICE | K89: TELCE | L89: JALOVICE | M89: VTJ | N89: VHD | O89: SPOLU
A90: PLOCHA ORNEJ PODY PRE KRMNU ZMES spolu za vsetky dojnice = HRACH | B90: HA | C90: ='KRMNE ZMESI HD'!F6 -> 0 | F90: ='VSTUP RV'!E28 -> 0 | G90: ROZPOCET LUCERNY | H90: ='VSTUP RV'!C34*-1 ->  | I90: =H90*'VSTUP RV'!B28 ->  | J90: ='VSTUP RV'!D136 ->  | K90: ='VSTUP RV'!D137 ->  | L90: ='VSTUP RV'!D138 ->  | M90: ='VSTUP RV'!D139 ->  | N90: ='VSTUP RV'!D140 ->  | O90: =J90+K90+L90+M90+N90 ->  | P90: OK
A91: PLOCHA ORNEJ PODY PRE KRMNU ZMES spolu za vsetky dojnice = SOJA | B91: HA | C91: ='KRMNE ZMESI HD'!G6 -> 0 | F91: ='VSTUP RV'!E29 -> 0 | G91: ROZPOCET KUKURICI | H91: ='VSTUP RV'!C35*-1 ->  | I91: =H91*'VSTUP RV'!B29 ->  | J91: ='VSTUP RV'!B136 ->  | K91: ='VSTUP RV'!B137 ->  | L91: ='VSTUP RV'!B138 ->  | M91: ='VSTUP RV'!B139 ->  | N91: ='VSTUP RV'!B140 ->  | O91: =J91+K91+L91+M91+N91 ->  | P91: OK
A92: POTREBA TON KOMODITY DO KRMNEJ ZMESI ZA VSETKY DOJNICE = PSENICA | B92: TON | C92: ='KRMNE ZMESI HD'!C4 -> 0 | I92: HA KUK. | J92: =J91/1000/'VSTUP RV'!B29 ->  | K92: =K91/1000/'VSTUP RV'!B29 ->  | L92: =L91/1000/'VSTUP RV'!B29 ->  | M92: =M91/1000/'VSTUP RV'!B29 ->  | N92: =N91/1000/'VSTUP RV'!B29 ->  | O92: =J92+K92+L92+M92+N92 ->  | P92: OK
A93: POTREBA TON KOMODITY DO KRMNEJ ZMESI ZA VSETKY DOJNICE = JACMEN | B93: TON | C93: ='KRMNE ZMESI HD'!D4 -> 0 | I93: VN KUK = | J93: =J92*F91 ->  | K93: =K92*F91 ->  | L93: =L92*F91 ->  | M93: =M92*F91 ->  | N93: =N92*F91 ->  | O93: =J93+K93+L93+M93+N93 ->  | P93: OK
A94: POTREBA TON KOMODITY DO KRMNEJ ZMESI ZA VSETKY DOJNICE = KUKURICA | B94: TON | C94: ='KRMNE ZMESI HD'!E4 -> 0 | I94: VN LUC = | J94: =J88*F90 ->  | K94: =K88*F90 ->  | L94: =L88*F90 ->  | M94: =M88*F90 ->  | N94: =N88*F90 ->  | O94: =O88*F90 ->  | P94: OK
A95: POTREBA TON KOMODITY DO KRMNEJ ZMESI ZA VSETKY DOJNICE = HRACH | B95: TON | C95: ='KRMNE ZMESI HD'!F4 -> 0 | H95: VN K + LUC | J95: =J94+J93 ->  | K95: =K94+K93 ->  | P95: OK
A96: POTREBA TON KOMODITY DO KRMNEJ ZMESI ZA VSETKY DOJNICE = SOJA | B96: TON | C96: ='KRMNE ZMESI HD'!G4 -> 0 | H96: SPOLU HA KUK + LUC | J96: =J92+J88 ->  | K96: =K92+K88 ->  | O96: =O92+O88 ->  | P96: OK
A97: POTREBA VLASTNYCH KOMODIT DO KRMNEJ ZMESI SPOLU | B97: TON | C97: =C96+C95+C94+C93+C92 -> 0
A98: POTREBA NAKUPU KONCENTRATOV DO KZ | B98: TON | C98: ='KRMNE ZMESI HD'!H4 -> 0
A99: POTREBA NAKUPU - MKP - DO KZ | B99: TON | C99: ='KRMNE ZMESI HD'!I4 -> 0
A100: POTREBA NAKUPU MKP + KOVCENTRATOV DO KZ | B100: TON | C100: =C99+C98 -> 0
A101: MNOZSTVO KZ PRE DOJNICE SPOLU | B101: TON | C101: =C100+C97 -> 0 | E101: kontrola = R65
A102: VLASTNE NAKLADY LUKY | B102: EUR | C102: =C76*O56 ->  | D102: ok = PREBERA HA Z O56
A103: VLASTNE NAKLADY PASIENKY | B103: EUR | C103: =C77*O55 ->  | D103: ok = prebera HA Z O55
A104: VLASTNE NAKLADY NA LUKY + PASIENKY | B104: EUR | C104: =C102+C103 ->  | D104: ok
A105: VLASTNE NAKLADY LUKY + PASIENKY + KRMNA ZMES | B105: EUR | C105: =C102+C103+C74+J95 ->  | D105: ok = toto su vsetky VN na krmoviny
A106: ROZDIEL = TRZBY /MASO + MLIEKO/ - VN KRMOVIN | B106: EUR | C106: =C36-C105 -> 
A107: NAKLADY NA 100 KD bez krmovin,rezie, mzdovych nakladov | B107: EUR | D107: X | F107: 229.11
A108: VLASTNE NAKLADY NA xy kusov dojnic (podla riadku 2) | B108: EUR | C108: =C107/100*C45 -> 0 | D108: ok = toto su vsetky VN na chov vid kalkulacie BEZ KRMOVIN
A109: VLASTNE NAKLADY SPOLU ZA FARMU (RV+ŽV) | B109: EUR | C109: =C105+C108 ->  | D109: ok = toto su vsetky VN na chov = krmoviny + kalkulacie/ostatne VN/
A110: ROZDIEL = TRZBY / MLIEKO + MASO BRAK. DOJNIC/ - VN CELOK ZA FARMU | B110: EUR | C110: =C36-C109 -> 
A111: ROZDIEL = TRZBY ZA MLIEKO - VN ZA FARMU / | B111: EUR | C111: =C35-C109 ->  | D111: ok
A113: KALKULACIE ZA DOJNICE
A114: VN narodene telata SPOLU | B114: EUR | C114: =C109*(C11/100) -> 
A115: % PODIEL Z CELKOVYCH VN ZA ZV | B115: % | C115: =C11 -> 6
A116: VN NA NARODENE TELA | B116: EUR | C116: =C114/C41 -> 
A117: VN NA 1 KG NARODENEHO TELATA | B117: EUR | C117: =C116/C10 -> 
A118: ODSTAV TELATA V DNOCH | B118: DNI | C118: 21 | D118: VSTUP
A119: DENNA SPOTREBA MLIEKA NA 1 TELA | B119: LITRE | C119: 10 | D119: VSTUP
A120: VN NA ODSTAVENE TELA | B120: EUR | C120: =C116+(C118*C119*C130) -> 
A121: HMOTNOST ODSTAVENEHO TELATA | B121: KG | C121: =C10+(C118*'T 0 -6 M'!C20) -> 35
A122: VN mastalny hnoj SPOLU | B122: EUR | C122: =C18 -> 0
A123: % | B123: % | C123: 3
A124: VN mocovka spolu | B124: EUR | C124: =C21 -> 0
A125: % PODIEL Z CELKOVYCH VN ZA ZV | B125: % | C125: =C124/(C109/100) -> 
A126: VN = TELCE + MASTALNY HNOJ + MOCOVKA | B126: EUR | C126: =C114+C122+C124 -> 
A127: % PODIEL Z CELKOVYCH VN ZA ZV | B127: % | C127: =C126 /(C109/100) -> 
A128: VN MLIEKO SPOLU | B128: EUR | C128: =C109-(C114+C122+C124) -> 
A129: % PODIEL Z CELKOVYCH VN ZA ZV | B129: % | C129: =C128/(C109/100) -> 
A130: VN NA 1 LITER MLIEKA | B130: EUR | C130: =C128/(C3*C2) ->  | D130: OK
A132: DOTACIA RV NA 1 HA | B132: EUR | C132: ='RV - KRMOVINY'!I4 -> 240
A133: DOTACIE RV | B133: EUR | C133: =C132*(O55+O56+J96+C86) ->  | D133: ok
A134: DOTACIE ŽV na 1 VDJ = 1 dojnica | B134: EUR
A135: DOTACIE ŽV | B135: EUR | C135: =C134*C2 -> 0
A136: DOTACIE DO ZV /DOJNIC/ - ZNIZIA VLAST. NAKLADY NA 1LIT. MLIEKA O | B136: EUR | C136: =C135/(C2*C3) ->  | D136: ok = vypocet = zo vsetkeho nadoj. Mlieka
A137: NAKLADY NA 1LITER MLIEKA PO ZAPOCITANI DOTACII R93 | B137: EUR | C137: =C39-C136 -> 
A138: ZISK / STRATA NA 1LITER MLIEKA / CENA MLIEKA R27 - VLAST. NAKLADY + DOTACIE R96 | B138: EUR | C138: =C28-C137 -> 
A139: VYNOSY ZA DOJNICE = R34+94+17+20+13+8 | B139: EUR | C139: =C8+C14+C18+C21+C35+C135 -> 
A140: NAKLADY SPOLU = R | B140: EUR | C140: =C109 -> 
A141: ZISK / STRATA ZA DOJNICE = VYSLEDOK HOSPODARENIA | B141: EUR | C141: =C139-C140 ->  | F141: =C141/(C2*C3) ->  | G141: HV na mlieko | I141: =C141/(C2*(C3-C4)) -> 
A142: DOTACIE SPOLU ZA FARMU | B142: EUR | C142: =C133+C135 -> 
A143: DOTACIE + TRZBY ZA FARMU | B143: EUR | C143: =C142+C36 -> 
A144: DOTACIE + TRZBY ZA FARMU – VLASTNE NAKLADY | B144: EUR | C144: =C143-C109 -> 
A145: PODIEL DOTACII RV/ZV | B145: EUR | C145: =C133/C135 -> 
A146: PODIEL VLASTNYCH NAKLADOV RV/ZV | B146: EUR | C146: =C105/C108 -> 
A148: ODHAD - DOPADOV - INTENZITA - VYROBA - EKONOMIKA - PLOCHA
A149: POVODNA URODA PASIENKOV - | B149: T | C149: =C47 -> 0
A150: DOPAD - INTENZITY VYROBY KRMIV - ODHADY AK SA ZNIZII URODA O 1 TONU NA | B150: T | C150: =C47-1 -> -1
A151: POVODNA PLOCHA PASIENKOV | B151: HA | C151: =C85 ->  | G151: 31.5
A152: ZNIZENIE URODY PASIENKOV O - 1 TONU -BUDE MAT OCAKAVANU PLOCHU/VYPOCET/ | B152: HA | C152: =(C47/(C47-1))*C85 ->  | G152: 42.03
A153: ZNIZENIE URODY PASIENKOV O - 1 TONU -PRINESIE ROZSIRENIE PLOCHY O /VYPOCET/ | B153: HA | C153: =C152-C151 ->  | G153: 10.51
A154: TRZBY - VLASTNE NAKLADY = UF /ZISK - STRATA/ | B154: EUR | C154: =C144 ->  | G154: 15701.9
A155: ZNIZENIE URODY PASIENKOV O - 1 TONU -PRINESIE STRATU V EUR /VYPOCET/ | B155: EUR | C155: =C77*C153*-1 ->  | G155: -1239.9
A156: ZNIZENIE URODY PASIENKOV O - 1 TONU - ZVYSI NAKLADY NA 1L MLIEKA /VYPOCET/ | B156: EUR | C156: =C155/(C3*C2) -> 
A157: VLASTNE NAKLADY NA 1LITER MLIEKA /BERIEM VYNOSY 1/R36/ | B157: EUR | C157: =C39 -> 
A158: OCAKAVANE NAKLADY NA 1 LITER MLIEKA / VYPOCET/ | B158: EUR | C158: =C39-C156 -> 
A159: -/ TRZBY- NAKLADY/ - ZA CHOV DOJNIC OCAKAVANE - /VYPOCET/ | B159: EUR | C159: =C36-(C109-C155) ->  | E159: OTESTOVAT | G159: 262
A160: ODHAD - DOPADOV - INTENZITA - VYROBA - EKONOMIKA - PLOCHA
A161: POVODNA URODA PASIENKOV - | B161: TON | C161: =C47 -> 0
A162: DOPAD - INTENZITY VYROBY KRMIV - ODHADY AK SA ZVYSI URODA O 1 TONU NA | B162: TON | C162: =C161 +1 -> 1
A163: POVODNA PLOCHA PASIENKOV | B163: HA | C163: =C85 -> 
A164: ZVYSENIE URODY PASIENKOV O - 1 TONU -BUDE MAT OCAKAVANU PLOCHU /VYPOCET/ | B164: HA | C164: =(C47/(C47+1))*C85 ->  | E164: OK
A165: ZVYSENIE URODY PASIENKOV O - 1 TONU -PRINESIE USPORU V PLOCHE /VYPOCET/ | B165: HA | C165: =C85-C164 -> 
A166: TRZBY - VLASTNE NAKLADY = UF /ZISK - STRATA/ - POVODNE | B166: EUR | C166: =C144 -> 
A167: ZVYSENIE URODY PASIENKOV O - 1 TONU -PRINESIE USPORU V EUR /VYPOCET/ | B167: EUR | C167: =C165*C77 -> 
A168: ZVYSENIE URODY PASIENKOV O - 1 TONU - ZNIZI NAKLADY NA 1L MLIEKA /VYPOCET/ | B168: EUR | C168: =C167/(C3*C2) ->  | E168: OK
A169: VLASTNE NAKLADY NA 1LITER MLIEKA /BERIEM VYNOSY 1/R36/ | B169: EUR | C169: =C39 -> 
A170: OCAKAVANE NAKLADY NA 1 LITER MLIEKA / VYPOCET/ | B170: EUR | C170: =C169-C168 ->  | E170: OK
A171: -/ TRZBY- NAKLADY/ - ZA CHOV DOJNIC OCAKAVANE - /VYPOCET/ | B171: EUR | C171: =C36-(C109-C167) ->  | E171: OK
A173: ODHAD - DOPADOV - INTENZITA - VYROBA - EKONOMIKA - PLOCHA
A174: POVODNA URODA LUK - | B174: T | C174: =C46 -> 0
A175: DOPAD - INTENZITZ VYROBY KRMIV - ODHADY AK SA ZVYSI URODA O 1 TONU NA | B175: T | C175: =C174+1 -> 1
A176: POVODNA PLOCHA LUK - | B176: HA | C176: =C84 -> 
A177: ZVYSENIE URODY LUK O - 1 TONU BUDE MAT OCAKAVANU - PLOCHU /VYPOCET/ | B177: HA | C177: =(C46/(C46+1))*C84 ->  | D177: OK
A178: ZVYSENIE URODY LUK O - 1 TONU - PRINESIE USPORU V PLOCHE /VYPOCET/ | B178: HA | C178: =C84-C177 ->  | D178: OK
A179: TRZBY - VLASTNE NAKLADY = UF /ZISK - STRATA/ - POVODNE | B179: EUR | C179: =C144 ->  | D179: OK
A180: ZVYSENIE URODY LUK O - 1 TONU - PRINESIE USPORU V EUR /VYPOCET/ | B180: EUR | C180: =C178*C76 ->  | D180: OK
A181: ZVYSENIE URODY LUK O - 1 TONU - ZNIZI NAKLADY - NA L MLIEKA /VYPOCET/ | B181: EUR | C181: =C180/(C3*C2) ->  | D181: OK
A182: VLASTNE NAKLADY NA 1LITER MLIEKA /BERIEM /R36/ | B182: EUR | C182: =C39 -> 
A183: OCAKAVANE NAKLADY NA 1LITER MLIEKA /VYPOCET/ | B183: EUR | C183: =C39-C181 ->  | D183: OK
A184: /TRZBY - NAKLADY / - ZA CHOV DOJNIC OCAKAVANE - PRI ZMENE URODY /VYPOCET/ | B184: EUR | C184: =C36-(C109-C180) ->  | D184: OK | E184: OTESTUJ
A187: ODHAD - DOPADOV - INTENZITA - VYROBA - EKONOMIKA - PLOCHA
A188: POVODNA URODA LUK - | B188: T | C188: =C46 -> 0
A189: DOPAD - INTENZITZ VYROBY KRMIV - ODHADY AK SA ZNIZI URODA O 1 TONU NA | B189: T | C189: =C188-1 -> -1
A190: POVODNA PLOCHA LUK - | B190: HA | C190: =C84 -> 
A191: ZNIZENIE URODY LUK O - 1 TONU BUDE MAT OCAKAVANU - PLOCHU /VYPOCET/ | B191: HA | C191: =(C46/(C46-1))*C84 ->  | D191: OK
A192: ZNIZENIE URODY LUK O - 1 TONU - PRINESIE ROZSIRENIE PLOCHY O /VYPOCET/ | B192: HA | C192: =C191-C190 ->  | D192: OK
A193: TRZBY - VLASTNE NAKLADY = UF /ZISK - STRATA/ - POVODNE | B193: EUR | C193: =C144 -> 
A194: ZNIZENIE URODY LUK O - 1 TONU - PRINESIE STRATU V EUR /VYPOCET/ | B194: EUR | C194: =(C192*C76)*-1 ->  | D194: OK
A195: ZNIZENIE URODY LUK O - 1 TONU - ZVYSI NAKLADY - NA L MLIEKA /VYPOCET/ | B195: EUR | C195: =C194/(C2*C3)*-1 ->  | D195: OK
A196: VLASTNE NAKLADY NA 1LITER MLIEKA /BERIEM /R36/ | C196: =C39 -> 
A197: OCAKAVANE NAKLADY NA 1LITER MLIEKA /VYPOCET/ | C197: =C195+C196 ->  | D197: OK
A198: /TRZBY - NAKLADY / - ZA CHOV DOJNIC OCAKAVANE - PRI ZMENE URODY /VYPOCET/ | C198: =C193 +(C194) ->  | D198: OK | F198: 4724.8
A200: DOPAD CENY MLIEKA NA EKONOMIKU VYROBY MLIEKA
A201: POVODNA CENA MLIEKA | B201: EUR | C201: =C28 -> 0
A202: ZVYSENIE CENY MLIEKA O/ CENTY/ | B202: EUR | C202: 0.01
A203: OCAKAVANA CENA MLIEKA | B203: EUR | C203: =C201+C202 -> 0.01
A204: ZVYSENIE ROCNYCH TRZIEB ZA CHOV DOJNIC O | B204: EUR | C204: =C5*C202 -> 47.9
A206: ZNIZENIE POVODNEJ CENY MLIEKA O /CENTY/ | B206: EUR | C206: 0.01
A207: POVODNA CENA MLIEKA | B207: EUR | C207: =C201 -> 0
A208: OCAKAVANA CENA MLIEKA | B208: EUR | C208: =C201-C206 -> -0.01
... 13 more rows

Sheet T 0 -6 M (hidden)
A1: =DOJN!A1 -> ukazovateľ | B1: =DOJN!B1 -> m.j | C1: =DOJN!C1 -> hodnota
A2: =DOJN!A40 -> REPRODUKCIA TELIAT V KUSOCH
A3: =DOJN!A41 -> Narodené telatá spolu | B3: =DOJN!B41 -> ks | C3: =DOJN!C41 -> 0 | D3: x
A4: =DOJN!A42 -> z toho jalovičky | B4: =DOJN!B42 -> ks | C4: =DOJN!C42 -> 0 | D4: x
A5: =DOJN!A43 -> z toho býčky | B5: =DOJN!B43 -> ks | C5: =DOJN!C43 -> 0 | D5: x
A6: % úhyn teliat | B6: % | C6: 0
A7: fix | C7: 100 | F7: 4000
A8: úhyn teliat v ks spolu | B8: ks | C8: =(C3*C6)/C7 -> 0
A9: úhyn teliat – jalovíc v % | B9: % | C9: 0
A10: úhyn teliat – býčkov v % | B10: % | C10: 0
A11: úhyn teliat – jalovíc v ks | B11: ks | C11: =0.5*C8 -> 0
A12: úhyn teliat – býčkov v ks | B12: ks | C12: =0.5*C8 -> 0
A14: TRŽBY ZA TELATA
A15: Predaj býčkov | B15: ks | C15: 0
A16: Hmotnosť pri predaji | B16: kg | C16: 0
A17: Predaj jalovičiek | B17: ks | C17: 0
A18: Hmotnosť pri predaji | B18: kg | C18: 0
A19: Hmotnosť pri narodení | B19: kg | C19: 45
A20: Prírastok na kŕmny deň | B20: kg | D20: X
A21: Počet KD predaných – JALOVICE | B21: KD | C21: =((C18-C19)/C20)*C17 -> 
A22: Počet KD predaných – BÝK | B22: KD | C22: =((C16-C19)/C20)*C15 -> 
A23: Kŕmne dni – SPOLU – PREDANÝCH | B23: KD | C23: =C21+C22 -> 
A24: Realizacna Cena za 1 kg – PREDAJ MASO B | B24: EUR
A25: Cena za 1 kg – PREDAJ MASO J | B25: EUR | C25: 0
A26: TRŽBY ZA TELATA – J | B26: EUR | C26: =C25*C18*C17 -> 0
A27: TRŽBY ZA TELATA – B | B27: EUR | C27: =C24*C16*C15 -> 0
A28: TRŽBY ZA TELATA – SPOLU | B28: EUR | C28: =C26+C27 -> 0
A29: PREVOD TELIAT 0 – 6 MES. DO ODCHOVOV
A30: počet ks prevodu – výkrmu HD býkov | B30: ks | C30: =C5-C12-C15 -> 0 | D30: x
A31: počet ks prevodu – odchov. Jalovíc | B31: ks | C31: =C4-C11-C17 -> 0 | D31: x
A32: POčet KD SPOLU – PREDANÝCH | B32: KD | C32: =C23 -> 
A33: Počet KD PREVOD DO VYŠŠÍCH Kat. Jalovíc | B33: KD | C33: =(C4-C11-C17)*C34 -> 0
A34: Fix – KD odchov teliat | B34: KD | C34: 182.5
A35: Počet KD PREVOD DO VYŠŠÍCH Kat. Býkov | B35: KD | C35: =(C5-C12-C15)*C34 -> 0
A36: Počet KD ZA KATEGÓRIU TELIA 0 – 6 MES. | B36: KD | C36: =C23+C33+C35 -> 
A37: PRIEMERNÝ STAV TELIAT | C37: =C36/C38 -> 
A38: fix | B38: dní | C38: 365
A39: Hmotnosť pri prevode – vyšších kategoríí | B39: kg | C39: =C19+(C20*C34) -> 45 | D39: x
A40: =DOJN!A45 -> KD SPOLU ZA DOJNICE | B40: =DOJN!B45 -> KD | C40: =DOJN!C45 -> 0
A41: ='JAL -ODCH'!A28 -> Koef. Na prepočet k 1 dojnici ( ŠTRUKTURÁLNA DOJNICA) | B41: ='JAL -ODCH'!B28 -> koef. | C41: =C36/C40 -> 
A42: POTREBA KRMIV OBJEM
A43: SPOTREBA LUK V ZELENEJ HMOTE | B43: KG | C43: =C45/C44 -> 10 | I43: POV. HM./KG
A44: SUSINA POVODNEJ HMOTY VYJADRENA V KG | B44: KG | C44: =DOJN!C56 -> 0.2 | H44: ROK | I44: POTRBA/KS | J44: POTR/KS/ROK | K44: POTR.VSETK | L44: HA=URODA | M44: HA = POTR | N44: STRATY /SPOLU
A45: SPOTREBA SENA Z LUK NA 1 KD | B45: KG | C45: 2 | F45: PASTVA=LETO=KRM.DNI | H45: 100 | I45: =C43 -> 10 | J45: =I45*H45 -> 1000 | K45: =J45*C37 ->  | L45: ='VSTUP RV'!B53 -> 0 | M45: =(K45/1000)/L45 ->  | N45: ='RV - KRMOVINY'!O5 -> 0
A46: POTREBA LUK V ZELENEJ HMOTE NA ODCHOV TEL. | B46: KG | C46: =C43*C37*C38 ->  | F46: ZIMA = SENO LUK=KRM.D | H46: 265 | I46: =C43 -> 10 | J46: =I46*H46 -> 2650 | K46: =J46*C37 ->  | L46: ='VSTUP RV'!B52 -> 0 | M46: =(K46/1000)/L46 ->  | N46: ='RV - KRMOVINY'!O4 -> 0
A47: POTREB LUK V HA BEZ STRAT | B47: HA | C47: =(C46/1000)/DOJN!C46 ->  | G47: ROK =365DNI | H47: =H46+H45 -> 365 | J47: =J46+J45 -> 3650 | L47: SPOLU = | M47: =M46+M45 -> 
A48: POTREBA LUK PO ZAPOCITANI STRAT ZBEROVYCH | B48: HA | C48: =(DOJN!C80+C7)/100*C47 -> 
A49: POTREBA LUK PO ZAPOCITANI STRAT ZBEROVYCH +REZERVA BILANCIE KRMOVIN | B49: HA | C49: =(DOJN!C83+C7)/100*C48 ->  | D49: =DOJN!P56 -> 
A50: POTREBA ORNEJ PODY NA KRMNU ZMES/OBILNINY/ | B50: HA | C50: ='KRMNE ZMESI HD'!J14 -> 
A51: POTREBA PODY SPOLU | B51: HA | C51: =C50+C49 -> 
A52: NÁKLADY NA 1 HA LÚK | B52: EUR | C52: =DOJN!C76 -> 83
A53: NÁKLADY LÚK NA ODCHOV TELIAT 0- 6 MESAČNÝCH | B53: EUR | C53: =C52*D49 -> 
A54: SPOTREBA KŔMNEJ ZMESI NA 1 KD (TELATA 0 – 6 MESAČNÉ) | B54: KG | C54: 1
A55: SPOTREBA KŔMNEJ ZMESI NA 1 PRIEMERNY KUS (TELATA 0 – 6 MESAČNÉ) | B55: KG | C55: =C54*C38 -> 365
A56: SPOTREBA KŔMNEJ ZMESI NA 1 KD ZA ROK/ZA VSETKY/ | B56: TON | C56: =(C54*C36)/1000 -> 
A57: krmna zmes = plocha pre krm. Bilanciu
A58: POTREBA ORNEJ PODY pre LUC + KUK = OBJEMOVE KRM. NA ORNEJ PODE | C58: =DOJN!K96 -> 
A59: VLAST. NAKLADY NA LUC + KUK NA OR. PODE | C59: =DOJN!K95 -> 
A60: PLOCHA ORNEJ PODY PRE KRMNU ZMES spolu za vsetky TELATA = PSENICA | B60: HA | C60: ='KRMNE ZMESI HD'!C14 -> 
A61: PLOCHA ORNEJ PODY PRE KRMNU ZMES spolu za vsetky TELATA= JACMEN | B61: HA | C61: ='KRMNE ZMESI HD'!D14 -> 
A62: PLOCHA ORNEJ PODY PRE KRMNU ZMES spolu za vsetky TELATA = KUKURICA | B62: HA | C62: ='KRMNE ZMESI HD'!E14 -> 
A63: PLOCHA ORNEJ PODY PRE KRMNU ZMES spolu za vsetky TELATA = HRACH | B63: HA | C63: ='KRMNE ZMESI HD'!F14 -> 
A64: PLOCHA ORNEJ PODY PRE KRMNU ZMES spolu za vsetky TELATA = SOJA | B64: HA | C64: ='KRMNE ZMESI HD'!G14 -> 
A65: PLOCHA ORNEJ PODY PRE KRMNU ZMES spolu za vsetky TELATA = SPOLU=R50 | B65: HA | C65: =C64+C63+C62+C61+C60 -> 
A66: potreba konponentov KZ
A67: VLASTNE KONPONENTY PRE KRMNU ZMES spolu za vsetky TELATA = PSENICA | B67: TON | C67: ='KRMNE ZMESI HD'!C13 -> 
A68: VLASTNE KONPONENTY PRE KRMNU ZMES spolu za vsetky TELATA = JACMEN | B68: TON | C68: ='KRMNE ZMESI HD'!D13 -> 
A69: VLASTNE KONPONENTY PRE KRMNU ZMES spolu za vsetky TELATA = KUKURICA | B69: TON | C69: ='KRMNE ZMESI HD'!E13 -> 
A70: VLASTNE KONPONENTY PRE KRMNU ZMES spolu za vsetky TELATA = HRACH | B70: TON | C70: ='KRMNE ZMESI HD'!F13 -> 
A71: VLASTNE KONPONENTY PRE KRMNU ZMES spolu za vsetky TELATA = SOJA | B71: TON | C71: ='KRMNE ZMESI HD'!G13 -> 
A72: VLASTNE KONPONENTY PRE KRMNU ZMES spolu za vsetky TELATA = SPOLU | B72: TON | C72: =C71+C70+C69+C68+C67 -> 
A73: NAKUP KONPONENTOV DO KZ = KONCENTRAT | B73: TON | C73: ='KRMNE ZMESI HD'!H13 -> 
A74: NAKUP KONPONENTOV DO KZ = MKP | B74: TON | C74: ='KRMNE ZMESI HD'!I13 -> 
A75: NAKUP KONCENTRAT + MKP = SPOLU | B75: TON | C75: =C74+C73 -> 
A76: MNOZSTVO KZ PRE ODCHOV SPOLU = R56 /KONTROLA BILANCIE/ | B76: TON | C76: =C75+C72 -> 
A77: CEna za 1 tonu KZ = NAKUPENEJ | B77: EUR | C77: 0
A78: NAKLADY NA KŔMNU ZMES ZA CHOV (ROK) NAKUP KZ | B78: EUR | C78: =C77*C56 -> 
A79: NÁKLADY NA KONCENTRAT ZA CHOV KES | B79: EUR | C79: ='KRMNE ZMESI HD'!H13*'KRMNE ZMESI HD'!H47 -> 
A80: NÁKLADY NA MKP ZA CHOV KES | B80: EUR | C80: ='KRMNE ZMESI HD'!I47*'KRMNE ZMESI HD'!I13 -> 
A81: NAKLADY NA OBILOVINY DO KZ | B81: EUR | C81: ='KRMNE ZMESI HD'!J15 -> 
A82: NAKLADY NA RV = OBILOVINY DO KZ + LUKY /SENO | B82: EUR | C82: =C53+C81 -> 
A83: NAKLADY NA KZ ZA KRMNU ZMES ZA CHOV | B83: EUR | C83: =C78+C79+C80+C81 -> 
A84: VLASTNE NAKLADY NA 1KG KRMNEJ ZMESI TELIAT 0 – 6 MESAČNYCH | B84: EUR | C84: =C83/(C56*1000) -> 
A85: NAKLADY NA 100 KD bez krmovin,rezie, mzdovych nakladov | B85: EUR | D85: x
A86: VLASTNE NAKLADY NA ODCHOV TELIAT 0 – 6 MESAČNYCH | B86: EUR | C86: =C85*(C36/C7) -> 
A87: VN NA ZV | B87: EUR | C87: =C86+C79+C80 -> 
A88: VLASTNE NAKLADY SPOLU ZA FARMU (RV+ŽV) | B88: EUR | C88: =C86+C83+C53+C59 ->  | E88: SKUSKA = | F88: =C87+C82 ->  | G88: OK
A89: ROZDIEL = TRZBY - VN CELOK ZA FARMU | B89: EUR | C89: =C28-C88 -> 
A90: DOTACIA RV NA 1 HA | B90: EUR | C90: =DOJN!C132 -> 240
A91: DOTACIE RV ZA ODCHOV TELIAT 0 – 6 MESAČNÉ ZA RV ( LÚKY A PASIENKY) | B91: EUR | C91: =C90*(D49+C50+C58) -> 
A92: DOTACIE ŽV na 1 VDJ V PREPOČTE NA TELATA 0 – 6 MESAČNÉ | B92: EUR | C92: 20 | D92: pozor nevypocitava sa podla legislativy /PPA/
A93: DOTACIE ŽV SPOLU ZA TELATA 0 – 6 MESAČNÉ | B93: EUR
A94: DOTACIE SPOLU ZA FARMU RV + ŽV | B94: EUR | C94: =C91+C93 -> 
A97: PODIEL DOTACII RV/ZV | B97: EUR
A98: PODIEL VLASTNYCH NAKLADOV RV/ZV | B98: EUR | C98: =C78+C88 -> 

Sheet VTJ (hidden)
A1: ODCHOV VTJ OD 7 DO 9 MES TELNOSTI
A2: ='JAL -ODCH'!A2 -> ukazovateľ | B2: ='JAL -ODCH'!B2 -> m.j | C2: ='JAL -ODCH'!C2 -> hodnota
A3: ='JAL -ODCH'!A3 -> fix | B3: ='JAL -ODCH'!B3 -> x | C3: ='JAL -ODCH'!C3 -> 100
A4: ='JAL -ODCH'!A4 -> fix | B4: ='JAL -ODCH'!B4 -> rok | C4: ='JAL -ODCH'!C4 -> 365
A5: Fix – dĺžka pobytu v kategórií VTJ | B5: dni | C5: 60 | E5: gravidita | F5: =C5+'JAL -ODCH'!F10 -> 270 | G5: kontrola | H5: 270
A6: ='JAL -ODCH'!A22 -> PREVOD DO VTJ | B6: ='JAL -ODCH'!B22 -> ks | C6: ='JAL -ODCH'!C22 ->  | D6: x
A7: PREDAJ – KS | B7: ks | C7: 0
A8: realiyacna CENA ZA 1 KS VTJ | B8: EUR
A9: TRŽBY SPOLU ZA PREDAJ VTJ | B9: EUR | C9: =C8*C7 -> 0
A10: Prevod do DOJNÍC ( DO HIM) | B10: ks | C10: =C6-C7 -> 
A11: KD v kategórií VTJ | B11: KD | C11: =C5*C10 -> 
A12: Priemerný stav – ÚČTOVNÝ – 365 dní | B12: ks | C12: =C11/C4 -> 
A13: ='JAL -ODCH'!A28 -> Koef. Na prepočet k 1 dojnici ( ŠTRUKTURÁLNA DOJNICA) | B13: ='JAL -ODCH'!B28 -> koef. | C13: =C11/C14 -> 
A14: ='T 0 -6 M'!A40 -> KD SPOLU ZA DOJNICE | B14: ='T 0 -6 M'!B40 -> KD | C14: ='T 0 -6 M'!C40 -> 0
A15: POMOCNÉ UKAZOVATELE V KUSOCH VTJ K BRAK. DOJNÍC | C15: 9
A16: =DOJN!A32 -> Počet brakovaných kráv | B16: =DOJN!B32 -> ks | C16: =DOJN!C32 -> 0 | D16: x
A17: =A10 -> Prevod do DOJNÍC ( DO HIM) | B17: =B10 -> ks | C17: =C10 -> 
A18: ROZDIEL BRAK. DOJ. A ODCHOVOM VTJ | B18: ks | C18: =C17-C16 ->  | G18: POV.HMOTA
A19: KRMIVA AKO DOJNICE /LEN OBJEM/ | B19: KG | C19: =C15/DOJN!C56 -> 45 | F19: DNI KRMENIA | G19: POTR/KS/ROK | H19: VSETKY =KG
A20: LUKY – SPOTREBA NA KD OBJEM | B20: KG | C20: =C19*C11 ->  | E20: LUKY | F20: 100 | G20: =F20*C19 -> 4500 | H20: =G20*C12 -> 
A21: LUKY – POTREBA HA BEZ STRAT | B21: HA | C21: =C20/1000/DOJN!C46 ->  | E21: PASIENKY | F21: 265 | G21: =F21*C19 -> 11925 | H21: =G21*C12 -> 
A22: LUKY – POTREBA + STRATY ZBEROVE | B22: HA | C22: =C21*(DOJN!C80+100)/C3 ->  | E22: SPOLU=ROK | F22: =F21+F20 -> 365 | G22: =G21+G20 -> 16425 | H22: =H21+H20 -> 
A23: LUKY – POTREBA + STRATY ZBEROVE + REZERVA | B23: HA | C23: =(DOJN!C83+C3)/C3*C22 ->  | D23: =DOJN!R56 ->  | F23: SUS/KD=R15= | G23: =(G22/365)*DOJN!C56 -> 9 | H23: =H22/C11 ->  | I23: OK=R19 -C
A24: ORNA PODA PRE KRMNU ZMES | B24: HA | C24: ='KRMNE ZMESI HD'!J30 ->  | G24: OK = R15-C
A25: ORNA PODA PRE KUK + LUC = ORNA PODA | B25: HA | C25: =DOJN!M96 -> 
A26: ORNA PODA VLASTNE NAKLADZ KUK + LUC - ORNA PODA | B26: EUR | C26: =DOJN!M95 -> 
A27: PASIENKY – SPOTREBA NA KD OBJEM | B27: KG
A28: PASIENKY – SPOTREBA CELKOM POTREBA + STRATY | B28: KG
A29: NAKLADY NA 100 KD bez krmovin,rezie, mzdovych nakladov | B29: EUR | D29: X
A30: NÁKLADY NA ODCHOV VTJ ZA ROK bez krmovin,rezie, mzdovych nakladov | B30: EUR | C30: =(C29/100)*C11 -> 
A31: LUKY – VLASTNÉ NÁKLADY NA 1 HA | B31: EUR | C31: =DOJN!C76 -> 83
A32: LUKY - VLASTNÉ NÁKLADY NA ODCHOV | B32: EUR | C32: =D23*C31 -> 
A33: VYZIVA - PREPOCET NA PRIJEM SUSINY NA 1KD Z OBJEMU | B33: KG | C33: =DOJN!C56*C19 -> 9
A34: SPOTREBA KŔMNEJ ZMESI NA 1 KD (NA ODCHOV VTJ | B34: KG | C34: 1
A35: SPOTREBA KŔMNEJ ZMESI ZA CHOV VTJ | B35: T | C35: =(C34*C11)/1000 -> 
A36: CENA ZA 1 T KŔMNEJ ZMESI | B36: EUR | C36: 0
A37: NÁKLADY NA NÁKUP KŔMNEJ ZMESI | B37: EUR | C37: =C36*C35 -> 
A38: NAKLADY NA NAKUP KONCENTRATU | B38: EUR | C38: ='KRMNE ZMESI HD'!H29*'KRMNE ZMESI HD'!H47 -> 
A39: NAKLADY NA NAKUP MKP | B39: EUR | C39: ='KRMNE ZMESI HD'!I29*'KRMNE ZMESI HD'!I47 -> 
A40: NAKLADY NA ORNU PODU PRE KZ | B40: EUR | C40: ='KRMNE ZMESI HD'!J31 -> 
A41: NAKLADY NA KZ ZA CHOV | B41: EUR | C41: =C37+C38+C39+C40 -> 
A42: VN RV | B42: EUR | C42: =C40+C32+C26 -> 
A43: VN ZV | B43: EUR | C43: =C30+C38+C39+C37 -> 
A44: NÁKLADY NA ODCHOV VTJ ZA FARMU | B44: EUR | C44: =C42+C43 ->  | D44: SKUSKA= | E44: =C42+C43 ->  | F44: OK
A46: ROZDIEL = TRZBY - VN CELOK ZA FARMU | B46: EUR
A47: DOTACIA RV NA 1 HA | B47: EUR | C47: =DOJN!C132 -> 240
A48: DOTACIE RV | B48: EUR | C48: =(D23+C25+C24)*C47 -> 
A49: DOTACIE ŽV na 1 VDJ | B49: EUR
A50: DOTACIE ŽV | B50: EUR | C50: =C49*C12 -> 
A51: DOTACIE SPOLU ZA FARMU | B51: EUR | C51: =C48+C50 -> 
A52: DOTACIE ZA FARMU – VLASTNÉ NÁKLADY | B52: EUR | C52: =C51-C44 -> 
A53: TRŽBY + DOTÁCIE – VLASTNÉ NÁKLADY | B53: EUR | C53: =C9+C51-C44 -> 
A55: BILANCIA KZ - PRE - VTJ
A56: VLASTNE KONPONENTY PRE KRMNU ZMES spolu za vsetky VTJ = PSENICA | B56: TON | C56: ='KRMNE ZMESI HD'!C29 -> 
A57: VLASTNE KONPONENTY PRE KRMNU ZMES spolu za vsetky VTJ = JACMEN | B57: TON | C57: ='KRMNE ZMESI HD'!D29 -> 
A58: VLASTNE KONPONENTY PRE KRMNU ZMES spolu za vsetky VTJ = KUKURICA | B58: TON | C58: ='KRMNE ZMESI HD'!E29 -> 
A59: VLASTNE KONPONENTY PRE KRMNU ZMES spolu za vsetky VTJ = HRACH | B59: TON | C59: ='KRMNE ZMESI HD'!F29 -> 
A60: VLASTNE KONPONENTY PRE KRMNU ZMES spolu za vsetky VTJ = SOJA | B60: TON | C60: ='KRMNE ZMESI HD'!G29 -> 
A61: VLASTNE KONPONENTY PRE KRMNU ZMES spolu za vsetky VTJ / VLASTNE/ | B61: TON | C61: =C60+C59+C58+C57+C56 -> 
A62: NAKUP KONPONENTOV DO KZ = KONCENTRAT | B62: TON | C62: ='KRMNE ZMESI HD'!H29 -> 
A63: NAKUP KONPONENTOV DO KZ = MKP | B63: TON | C63: ='KRMNE ZMESI HD'!I29 -> 
A64: NAKUP KONCENTRAT + MKP = SPOLU | B64: TON | C64: =C63+C62 -> 
A65: MNOZSTVO KZ PRE ODCHOV SPOLU = R33 /KONTROLA BILANCIE/ | B65: TON | C65: =C64+C61 -> 
A67: POTREBA ORNEJ PODY ZA ODCHOV JALOVÍC
A68: PLOCHA ORNEJ PODY PRE KRMNU ZMES spolu za vsetky VTJ = PSENICA | B68: HA | C68: ='KRMNE ZMESI HD'!C30 -> 
A69: PLOCHA ORNEJ PODY PRE KRMNU ZMES spolu za vsetky VTJ = JACMEN | B69: HA | C69: ='KRMNE ZMESI HD'!D30 -> 
A70: PLOCHA ORNEJ PODY PRE KRMNU ZMES spolu za vsetky VTJ = KUKURICA | B70: HA | C70: ='KRMNE ZMESI HD'!E30 -> 
A71: PLOCHA ORNEJ PODY PRE KRMNU ZMES spolu za vsetky VTJ = HRACH | B71: HA | C71: ='KRMNE ZMESI HD'!F30 -> 
A72: PLOCHA ORNEJ PODY PRE KRMNU ZMES spolu za vsetky VTJ = SOJA | B72: HA | C72: ='KRMNE ZMESI HD'!G30 -> 
A73: PLOCHA ORNEJ PODY PRE KRMNU ZMES spolu za vsetky VTJ = SPOLU R24 | B73: HA | C73: =C72+C71+C70+C69+C68 -> 

Sheet VYKRM HD (hidden)
A1: VYKRM HD | B1: UKAZOVATEL
A2: PREVOD Z TELIAT – 0-6 MES | B2: KS | C2: ='T 0 -6 M'!$C$30 -> 0 | D2: x
A3: HMOTNOST – PRI PREVODE | B3: KG | C3: ='T 0 -6 M'!C39 -> 45
A4: UHYN | B4: % | C4: 0
A5: PRIEMERNY PRIRASTOK KD | B5: KG | D5: X
A6: HMOTNOST – 1KS -PREDANEHO -PORAZKOVA HMOTNOST | B6: KG | C6: 550 | D6: x
A7: UHYN V KUSOCH | B7: KS | C7: =((C4/C8)*2) -> 0
A8: FIX | C8: 100
A9: FIX | C9: 365
A10: FIX | C10: 1000
A11: ODCHOVANE BYKY DO PORAZK. HMOT. | B11: KS | C11: =C2-C7 -> 0
A12: KRMNE DNI ODCHOVU DO POR.HMOT. | B12: DNI | C12: =(C6-C3)/C5 -> 
A13: KOFICIENT K DOJNICIAM – STRUKTURA | B13: KOEF | C13: =C14/DOJN!C45 -> 
A14: POCET KD PRE CELY ODCHOV | B14: DNI | C14: =C12*C11 -> 
A15: PORAZKA JATOCNYCH BYKOV V KUSOCH DO POR.HMOTNOSTI | B15: KS | C15: =C11*C13 ->  | D15: x
A16: PRIEMERNY STAV BYKOV | B16: KS | C16: =C14/C9 -> 
A17: realizacna CENA ZA 1KG HMOTNOSTI | B17: EUR | D17: x
A18: TRZBA ZA PREDAJ JATOCNYCH BYKOV | B18: EUR | C18: =C17*C6*C15 -> 
A19: SPOTREBA LÚK NA 1 KŔMNY DEN | B19: KG | C19: =C21/C20 -> 35
A20: SUŠINA POVODNEJ HMOTY LÚK | B20: % | C20: =DOJN!C56 -> 0.2
A21: SUŠINA NA 1 KD Z OBJEMU | B21: KG | C21: 7
A22: POTREBA KRMOVIN
A23: LUKY | B23: HA | C23: =(C19*C14)/C10/DOJN!C46 ->  | D23: =DOJN!S56 -> 
A24: POTREBA KRMOVIN LUKY + ZBEROVE STRATY | B24: HA | C24: =(DOJN!C82+C8)/C8*C23 -> 
A25: POTREBA KRMOVIN LUKY + ZBEROVE STRATY + REZERVA KRMOVIN | B25: HA | C25: =(DOJN!C80+C8)/C8*C24 -> 
A26: POTRBA ORNEJ PODY NA KRMNU ZMES | B26: HA | C26: ='KRMNE ZMESI HD'!J38 -> 
A27: POTREBA ORNEJ PODZ = KUK + LUC = ORNA PODA | B27: HA | C27: =DOJN!N96 -> 
A28: VLASTNE NAKLADZ NA KUK + LUC = ORNA PODA | B28: EUR | C28: =DOJN!N95 -> 
A29: VLASTNE NAKLADY NA OBJEMOVÉ KRMIVÁ NA 1 HA LÚK | B29: EUR | C29: =DOJN!C76 -> 83
A30: VLASTNE NAKLADY NA OBJEMOVÉ KRMIVÁ ZA ODCHOV | B30: EUR | C30: =C29*D23 -> 
A31: POTREBA KRMNEJ ZMESI NA 1KD | B31: KG | C31: 2
A32: POTREBA KRMNEJ ZMESI ZA CHOV | B32: KG | C32: =(C14*C31) ->  | D32: KONTR. V T | E32: =C32/1000-C61 ->  | F32: OK
A33: CENA ZA 1 tonu A KRMNEJ ZMESI | B33: EUR | C33: 0
A34: NAKLADY NA NAKUP KONCENTRATU | B34: EUR | C34: ='KRMNE ZMESI HD'!H37*'KRMNE ZMESI HD'!H47 -> 
A35: NAKLADY NA NAKUP MKP | B35: EUR | C35: ='KRMNE ZMESI HD'!I37*'KRMNE ZMESI HD'!I47 -> 
A36: NAKLADY NA PESTOVANIE OBILNIN DO KRMNEJ ZMESI | B36: EUR | C36: ='KRMNE ZMESI HD'!J39 -> 
A37: NÁKLADY NA KŔMNE ZMESI ZA ODCHOV | B37: EUR | C37: =((C33*C32)/1000)+C34+C35+C36 -> 
A38: NAKLADY NA 100 KD bez krmovin,rezie, mzdovych nakladov | B38: EUR | D38: X | F38: 48.98
A39: VLASTNE NAKLADY NA ODCHOV BÝKOV bez krmovin,rezie, mzdovych nakladov | B39: EUR | C39: =(C38/100)*C14 -> 
A40: VN - RV | B40: EUR | C40: =C36+C30+C28 -> 
A41: VN- ZV | B41: EUR | C41: =C39+C35+C34 -> 
A42: VLASTNE NAKLADY SPOLU ZA FARMU (RV+ŽV) | B42: EUR | C42: =C40+C41 ->  | D42: skuska = | E42: =C41+C40 ->  | F42: ok
A43: ROZDIEL = TRZBY - VN CELOK ZA FARMU | B43: EUR
A44: DOTACIA RV NA 1 HA | B44: EUR | C44: =DOJN!C132 -> 240
A45: DOTACIE RV | B45: EUR | C45: =(D23+C26+C27)*C44 -> 
A46: DOTACIE ŽV na 1 VDJ | B46: EUR
A47: DOTACIE ŽV | B47: EUR | C47: =C46*C16 -> 
A48: TRŽBY ZA PREDAJ JATOČNÝCH BÝKOV | B48: EUR | C48: =C18 -> 
A49: DOTÁCIE + TRŽBY | B49: EUR | C49: =C48+C45+C47 -> 
A50: DOTÁCIE + TRŽBY – VLASTNÉ NÁKLADY | B50: EUR | C50: =C49-C42 -> 
A52: BILANCIA KZ - PRE - VYKRM HD
A53: VLASTNE KONPONENTY PRE KRMNU ZMES spolu za VYKRM HD = PSENICA | B53: TON | C53: ='KRMNE ZMESI HD'!C37 -> 
A54: VLASTNE KONPONENTY PRE KRMNU ZMES spolu za VYKRM HD = JACMEN | B54: TON | C54: ='KRMNE ZMESI HD'!D37 -> 
A55: VLASTNE KONPONENTY PRE KRMNU ZMES spolu za VYKRM HD = KUKURICA | B55: TON | C55: ='KRMNE ZMESI HD'!E37 -> 
A56: VLASTNE KONPONENTY PRE KRMNU ZMES spolu za VYKRM HD = HRACH | B56: TON | C56: ='KRMNE ZMESI HD'!F37 -> 
A57: VLASTNE KONPONENTY PRE KRMNU ZMES spolu za VYKRM HD = SOJA | B57: TON | C57: ='KRMNE ZMESI HD'!G37 -> 
A58: VLASTNE KONPONENTY PRE KRMNU ZMES spolu za VYKRM HD / VLASTNE/ | B58: TON | C58: =C57+C56+C55+C54+C53 -> 
A59: NAKUP KONPONENTOV DO KZ = MKP | B59: TON | C59: ='KRMNE ZMESI HD'!I37 -> 
A60: NAKUP KONCENTRAT SPOLU = KONCENTRAT | B60: TON | C60: ='KRMNE ZMESI HD'!H37 -> 
A61: MNOZSTVO KZ PRE ODCHOV SPOLU = R33 /KONTROLA BILANCIE/ | B61: TON | C61: =C60+C59+C58 ->  | E61: OK
A63: POTREBA ORNEJ PODY PRE VYKRM HD
A64: PLOCHA ORNEJ PODY PRE KRMNU ZMES spolu za VYKRM HD = PSENICA | B64: HA | C64: ='KRMNE ZMESI HD'!C38 -> 
A65: PLOCHA ORNEJ PODY PRE KRMNU ZMES spolu za VYKRM HD = JACMEN | B65: HA | C65: ='KRMNE ZMESI HD'!D38 -> 
A66: PLOCHA ORNEJ PODY PRE KRMNU ZMES spolu za VYKRM HD = KUKURICA | B66: HA | C66: ='KRMNE ZMESI HD'!E38 -> 
A67: PLOCHA ORNEJ PODY PRE KRMNU ZMES spolu za VYKRM HD = HRACH | B67: HA | C67: ='KRMNE ZMESI HD'!F38 -> 
A68: PLOCHA ORNEJ PODY PRE KRMNU ZMES spolu za VYKRM HD = SOJA | B68: HA | C68: ='KRMNE ZMESI HD'!G38 -> 
A69: PLOCHA ORNEJ PODY PRE KRMNU ZMES spolu za VYKRM HD = PSENICA | B69: HA | C69: =C68+C67+C66+C65+C64 -> 

Sheet VSTUP RV (hidden)
C1: HA | L1: PRODUKCIA | O1: BEZ DOTACII | P1: BEZ DOTACII | Q1: DOTACIE + | R1: DOTACIE + | S1: DOTACIE + | T1: HV | U1: VN NA | V1: ZISK/STRATA
A2: PLOCHA ORNEJ PODY | C2: 1000 | L2: V | O2: ZISK/STRATA | P2: ucinnost | Q2: SPOLU | R2: HV PLODIN | S2: ucinnost | T2: ZISK/STR. | U2: 1 TONU | V2: PRI PREDAJI
A3: RASTLINNA VYROBA ORNA PODA | B3: Úroda v t/ha | C3: PLOCHA OSEVU | D3: CENA/TONU | E3: VN - NA HA | F3: DOTACIE / ha | G3: Dotácie spolu | J3: Úrod v Tonách | K3: VL. NAKL. SPOLU | L3: TRZBY SPOLU | M3: VN-TRZBY | N3: Rentabilita N | O3: DOTACIE | P3: ZISK/STRATA/HA | Q3: nakladov | R3: NA 1 HA | T3: 1 TONY | U3: SPOLU
A4: PLODINY | C4: HA | D4: EUR | E4: EUR | F4: EUR | G4: EUR
A5: pšenica | B5: 2 | G5: =F5*C5 -> 0 | J5: =C5*B5 -> 0 | K5: =C5*E5 -> 0 | L5: =C5*D5*B5 -> 0 | M5: =L5-K5 -> 0 | N5: =L5/K5 ->  | O5: =C5*F5 -> 0 | P5: =(O5+L5)-K5 -> 0 | Q5: =(O5+L5)/K5 ->  | R5: =B5*D5-E5 -> 0 | S5: =E5/B5 -> 0 | T5: =R5/B5 -> 0 | U5: =T5*J5 -> 0
A6: jacmen | B6: 3 | G6: =F6*C6 -> 0 | J6: =C6*B6 -> 0 | K6: =C6*E6 -> 0 | L6: =C6*D6*B6 -> 0 | M6: =L6-K6 -> 0 | N6: =L6/K6 ->  | O6: =C6*F6 -> 0 | P6: =(O6+L6)-K6 -> 0 | Q6: =(O6+L6)/K6 ->  | R6: =B6*D6-E6 -> 0 | S6: =E6/B6 -> 0 | T6: =R6/B6 -> 0 | U6: =T6*J6 -> 0
A7: raž | B7: 5 | G7: 0 | J7: 0 | K7: 0 | L7: 0 | M7: 0 | O7: 0 | P7: 0 | Q7: =(O7+L7)/K7 ->  | R7: 0 | S7: 0 | T7: 0 | U7: 0
A8: ovos | B8: 3 | G8: 0 | J8: 0 | K8: 0 | L8: 0 | M8: 0 | O8: 0 | P8: 0 | R8: 0 | S8: 0 | T8: 0 | U8: 0
A9: kukurica | B9: 5 | G9: 0 | J9: 0 | K9: 0 | L9: 0 | M9: 0 | O9: 0 | P9: 0 | R9: 0 | S9: 0 | T9: 0 | U9: 0
A10: repka olejná | B10: 5 | G10: 0 | J10: 0 | K10: 0 | L10: 0 | M10: 0 | O10: 0 | P10: 0 | R10: 0 | S10: 0 | T10: 0 | U10: 0
A11: slnečnica | B11: 3 | G11: 0 | J11: 0 | K11: 0 | L11: 0 | M11: 0 | O11: 0 | P11: 0 | R11: 0 | S11: 0 | T11: 0 | U11: 0
A12: mak | B12: 2 | G12: 0 | J12: 0 | K12: 0 | L12: 0 | M12: 0 | O12: 0 | P12: 0 | R12: 0 | S12: 0 | T12: 0 | U12: 0
A13: zemiaky | B13: 15 | G13: 0 | J13: 0 | K13: 0 | L13: 0 | M13: 0 | O13: 0 | P13: 0 | R13: 0 | S13: 0 | T13: 0 | U13: 0
A14: cukrová repa | B14: 35 | G14: 0 | J14: 0 | K14: 0 | L14: 0 | M14: 0 | O14: 0 | P14: 0 | R14: 0 | S14: 0 | T14: 0 | U14: 0
A15: hrach | B15: 5 | G15: 0 | J15: 0 | K15: 0 | L15: 0 | M15: 0 | O15: 0 | P15: 0 | R15: 0 | S15: 0 | T15: 0 | U15: 0
A16: sója | G16: 0 | J16: 0 | K16: 0 | L16: 0 | M16: 0 | O16: 0 | P16: 0 | R16: 0
A17: fazuľa | G17: 0 | J17: 0 | K17: 0 | L17: 0 | M17: 0 | O17: 0 | P17: 0 | R17: 0
A18: paprika | G18: 0 | J18: 0 | K18: 0 | L18: 0 | M18: 0 | O18: 0 | P18: 0 | R18: 0
A19: rarajčiaky | G19: 0 | J19: 0 | K19: 0 | L19: 0 | M19: 0 | O19: 0 | P19: 0 | R19: 0
A20: mrkva | G20: 0 | J20: 0 | K20: 0 | L20: 0 | M20: 0 | O20: 0 | P20: 0 | R20: 0
A21: karfiol | G21: 0 | J21: 0 | K21: 0 | L21: 0 | M21: 0 | O21: 0 | P21: 0 | R21: 0
A22: kapusta | G22: 0 | J22: 0 | K22: 0 | L22: 0 | M22: 0 | O22: 0 | P22: 0 | R22: 0
A23: slivky | G23: 0 | J23: 0 | K23: 0 | L23: 0 | M23: 0 | O23: 0 | P23: 0 | R23: 0
A24: jablká | G24: 0 | J24: 0 | K24: 0 | L24: 0 | M24: 0 | O24: 0 | P24: 0 | R24: 0
A25: vinič | G25: 0 | J25: 0 | K25: 0 | L25: 0 | M25: 0 | O25: 0 | P25: 0 | R25: 0
A26: lúky | G26: =F26*C26 -> 0 | J26: 0 | K26: 0 | L26: 0 | M26: 0 | O26: 0 | P26: 0 | R26: 0
A27: pasienky | G27: =F27*C27 -> 0 | J27: 0 | K27: 0 | L27: 0 | M27: 0 | O27: 0 | P27: 0 | R27: 0
A28: lucerka siata | C28: 0 | G28: 0 | J28: 0 | K28: ='LUCERKA+KUKURICA'!F3 *-1 ->  | L28: 0 | M28: =L28-K28 ->  | N28: =L28/K28 ->  | O28: 0 | P28: =(O28+L28)-K28 ->  | Q28: =(O28+L28)/K28 ->  | R28: 0
A29: kukurica na siláž | C29: 0 | G29: 0 | J29: 0 | K29: ='LUCERKA+KUKURICA'!F2*-1 ->  | L29: 0 | M29: =L29-K29 ->  | N29: =L29/K29 ->  | O29: 0 | P29: =(O29+L29)-K29 ->  | Q29: =(O29+L29)/K29 ->  | R29: 0
G30: =SUM(G5:G29) -> 0
A31: SPOLU - ORNA PODA | K31: =I25+I23+I22+I21+I20+I6+I5 -> 0 | M31: =K25+K23+K22+K21+K20+K6+K5 -> 0 | N31: =L25+L23+L22+L21+L20+L6+L5 -> 0 | O31: =N31-M31 -> 0 | P31: =N31/M31 ->  | Q31: =O5+O6+O20+O21+O22+O23+O25 -> 0 | R31: =(Q31+N31)-M31 -> 0 | S31: =(Q31+N31)/M31 ->  | T31: =R31/K31 ->  | V31: OK=R12/Q | W31: =U5+U6+U20+U21+U22+U23+U25 -> 
A32: OBJEMOVE KRMOVINY PRE ZV | N32: ok= skuska | O32: =M25+M23+M22+M21+M20+M6+M5 -> 0
A33: CHOV HD | C33: CHOV HD
A34: LUCERNA | B34: VYPOCITAM = | C34: =Q91 ->  | I34: =F34+H34 -> 0 | K34: =Q91 ->  | L34: VYSTUP
A35: SILAZ KUKURICNA | B35: VYPOCITAM = | C35: =Q90 ->  | I35: =F35+H35 -> 0 | K35: =Q90 ->  | L35: VYSTUP
A36: SPOLU - ORNA PODA - OBJ.KRMIVA | C36: =C35+C34 ->  | I36: PREBYTOK - NEDOSTATOK | K36: PLOCHY - PRE - ZV-/HA/ | M36: STUDENT | O36: ROYPOCET V HA PODLA CHOVOV | V36: VARIANTA INE | AA36: STUDENT | AB36: ROZDIEL
A37: POTREBA ORNEJ PODY pre ZV -KR.ZMES | B37: VYPOCITANE PRE - ZV/KZ/ | E37: HD = HA | F37: OVCE = HA | G37: KOZY = HA | H37: ZV - POTREBA= HA | I37: V ha = (+)(-) | J37: sus v ton stud.za | K37: ='KZ BILANCIA'!J2 ->  | L37: VYSTUP | M37: ZADA = HA | O37: HD HA | P37: OVCE = HA | Q37: KOZY =HA | R37: student=zada | V37: MYSLENIE d.d. | X37: HD | Y37: OVCE | Z37: KOZY | AA37: ZADA | AB37: SKRMI -HD
A38: PSENICA | B38: VYPOCITANE PRE - ZV/KZ/ | D38: luky | E38: =IFERROR('EKONOM HD'!H5,0) -> 0 | F38: ='eKONOMIKA OVIEC'!H5 ->  | G38: ='Ekonomika kôz'!H4 ->  | H38: =E38+F38+G38 ->  | I38: =M38-H38 ->  | J38: =M38*R52 -> 0 | K38: ='KZ BILANCIA'!J3 ->  | L38: VYSTUP | M38: =C26 -> 0 | N38: LUKY | O38: =M38*(E44/100) ->  | P38: =M38*(F44/100) ->  | Q38: =M38*(G44/100) ->  | R38: =O38+P38+Q38 ->  | S38: ZLTYM SU VYPOCITANE VSTUPY V HA DO CHOVOV | V38: xxxxxx | W38: LUKY | Y38: =F38 ->  | Z38: =G38 ->  | AA38: =R38 ->  | AB38: =AA38-Z38-Y38 -> 
A39: JACMEN | D39: pasienky | E39: =IFERROR('EKONOM HD'!H6,0) -> 0 | F39: ='eKONOMIKA OVIEC'!H6 ->  | G39: ='Ekonomika kôz'!H5 ->  | H39: =E39+F39+G39 ->  | I39: =M39-H39 ->  | J39: =M39*R53 -> 0 | K39: ='KZ BILANCIA'!J4 ->  | L39: VYSTUP | M39: =C27 -> 0 | N39: PASIENKY | O39: =M39*(E45/100) ->  | P39: =M39*(F45/100) ->  | Q39: =M39*(G45/100) ->  | R39: =O39+P39+Q39 ->  | S39: SU ROZPOCITANE V HA | V39: xxxxxx | W39: PASIENKY | Y39: =F39 ->  | Z39: =G39 ->  | AA39: =R39 ->  | AB39: =AA39-Y39-Z39 -> 
A40: KUKURICA | D40: SPOLU = HA | E40: =IFERROR('EKONOM HD'!H7,0) -> 0 | F40: =F39+F38 ->  | J40: =J39+J38 -> 0 | K40: ='KZ BILANCIA'!J5 ->  | L40: VYSTUP | M40: =M39+M38 -> 0 | O40: =O39+O38 ->  | P40: =P38+P39 ->  | Q40: =Q38+Q39 ->  | R40: =R39+R38 ->  | S40: =(Q40+P40+O40) -R40 ->  | V40: xxxxxx | Y40: =Y39+Y38 ->  | Z40: =Z39+Z38 ->  | AA40: =AA39+AA38 ->  | AB40: =AB38+AB39 -> 
A41: HRACH | D41: SUSNA = POTREBA | E41: =E38*B52*B57 -> 0 | F41: =F38*B52*B57 ->  | G41: =G38*B52*B57 ->  | H41: =G41+F41+E41 ->  | K41: ='KZ BILANCIA'!J6 -> 0 | L41: VYSTUP | Q41: ok=r54-m | R41: OK | S41: OK = R53 - W | V41: xxxxxx
A42: Soja | D42: SUSINA ´POTREBA | E42: =E39*B53*B57 -> 0 | F42: =F39*B53*B57 ->  | G42: =G39*B53*B57 ->  | H42: =G42+F42+E42 ->  | J42: =J40-H43 ->  | K42: ='KZ BILANCIA'!J7 -> 0 | L42: VYSTUP
A43: SLNECNICA | D43: SPOLU = SUSINA | E43: =E42+E41 -> 0 | F43: =F41+F42 ->  | G43: =G42+G41 ->  | H43: =H42+H41 ->  | I43: luky = plocha v ha | J43: =J42/R52 ->  | K43: ='KZ BILANCIA'!J8 ->  | L43: VYSTUP | N43: KATEGORIE= | O43: HD | P43: OVCE | Q43: KOZY
A44: Repka | B44: KONTROLA = VYSTUP = K R47 | D44: PERCENTA = | E44: =E38/(H38/100) ->  | F44: =F38/(H38/100) ->  | G44: =G38/(H38/100) ->  | H44: =E44+F44+G44 ->  | I44: pas. = plocha v ha | J44: =J42/R53 ->  | K44: =K43+K42+K41+K40+K39+K38+K37 ->  | N44: LUKY | O44: =O38 -> 
A45: PLOCHA PRE ZV = KZ | B45: =H30-'Výstup živočíšna výroba'!J10 -> 0 | D45: PERCENTA = | E45: =E39/(H39/100) ->  | F45: =F39/(H39/100) ->  | G45: =G39/(H39/100) ->  | H45: =G45+F45+E45 ->  | K45: =C35*-1 ->  | N45: PASIENKY | O45: =O39 -> 
A46: POLCHA PRE ZV = ORNA PODA = +OBJEMOVE KRM=L+K | D46: pozor doleaite pre vypocty = ak je J42 KLADNE CISLO TO ZNAMENA PREBYTOK LUK + PAS. NEPUSTIT VYSTUP =ZNIZ PLOCHU J43 ALEBO J44 O VYPOCITANU HODNOTU | K46: =K45+K44 ->  | N46: SPOLU= | O46: =O44+O45 -> 
A47: ORNA PODA SPOLU = PRE ZIVOCISNU VYROBU | D47: Máte príliž vysokú hodnotu nevyužitých plôch lúk a pasienkov znížte hodnotu o: | E47: Potom spustite výpočet ešte raz | K47: =K46+K45 -> 
A48: SADY | B48: 5 | C48: 50 | D48: 800 | F48: 250 | H48: 100 | I48: 350
A49: VINICE | B49: 5 | C49: 20 | D49: 1000 | F49: 250 | H49: 100 | I49: 350 | P49: DOJN. NA KD
A50: SADY A VINICE SPOLU | C50: =C49+C48 -> 70 | I50: 0 | N50: NEDOSTATOK | P50: sptreba K.D. | Q50: SPOTREBA | R50: SUS Z 1 HA | S50: SUS Z 1 HA | T50: STRATY | U50: KOEFICIENT | W50: skrmitelna
C51: PLOCHA OSEVU | I51: 0 | J51: TON = SUS =VYROBENE | M51: HA | N51: PREBYTOK HA | O51: SUS V gram v p.h. | Q51: SUS - KD | R51: BEZ - STRAT | S51: STRATY - | T51: PERC. | U51: STRAT | V51: SUS-SKRM. | W51: SUS=( + -)ton
A52: LUKY | B52: =B26 -> 0 | C52: =O38 ->  | D52: VYPOCITAM | F52: 250 | H52: 50 | I52: 300 | K52: POTREBA LUK | L52: HA | M52: ='EKONOM HD'!H5 ->  | N52: =C52-M52 ->  | O52: ='RV - KRMOVINY'!Q5 -> 200 | P52: =DOJN!C48 -> 50 | Q52: =(P52*O52)/1000 -> 10 | R52: =(B52*O52)/1000 -> 0 | T52: ='RV - KRMOVINY'!O4 -> 0 | U52: =1-(T52/100) -> 1 | V52: =U52*R52 -> 0 | W52: =N52*V52 -> 
A53: PASIENKY | B53: =B27 -> 0 | C53: =O39 ->  | D53: VYPOCITAM | F53: 250 | I53: 250 | K53: POTREBA PASIENKOV | L53: HA | M53: ='EKONOM HD'!H6 ->  | N53: =C53-M53 ->  | O53: ='RV - KRMOVINY'!Q5 -> 200 | P53: =DOJN!C48 -> 50 | Q53: =(O53*P53)/1000 -> 10 | R53: =(O53*B53)/1000 -> 0 | T53: ='RV - KRMOVINY'!O5 -> 0 | U53: =1-(T53/100) -> 1 | V53: =U53*R53 -> 0 | W53: =V53*N53 -> 
A54: LUKY A PASIENKY SPOLU | C54: =C53+C52 ->  | K54: SPOLU | L54: HA | M54: ='VSTUP RV'!M52+'VSTUP RV'!M53 ->  | N54: =N53+N52 ->  | W54: =W53+W52 -> 
A55: POLNOHOSPODARSKA PODA SPOLU | C55: =C54+C50+K47 ->  | K55: SUSINA SPOLU | L55: TON | M55: =W54*-1 ->  | O55: SPOLU = SUS | P55: =M55-(M57*-1) ->  | Q55: PAS=SUS | R55: =B53*C53*DOJN!C56 ->  | S55: LUKY=SUS | T55: =B52*C52*DOJN!C56 ->  | U55: SPOLU= | V55: =T55+R55 -> 
K56: PREPOCET - vystup | M56: prebytok | N56: produkcia | O56: perc.prebytku krmiva na /L +P/
A57: SUSINA LUK + PAS | B57: =O52/1000 -> 0.2 | K57: luky + pasienky | L57: sus/t | M57: =W54 ->  | N57: =(V52*M52)+(V53*M53) ->  | O57: =M57/(N57/100) ->  | Q57: ha | R57: ha | S57: vsetko sus - ya chov | U57: skrmitelna
H58: UZIV POMER | I58: CHOV HD = | K58: XXXXXXXXXXXXXX | L58: SKUTOCNOST L+P | M58: NEDOSTATOK - | N58: SUS Z 1ha | O58: skrm.sus + - | P58: CHOV OVIEC= | Q58: SKUTOCNOST L+P | R58: POTREBA L+P | S58: skrm.susiny = | T58: vyrobi sus ton | U58: SUS = (+ - ) | V58: CHYBA- | W58: PREBYTOK +
A59: VYPOCET KRMOVIN KUK /LUC | C59: SUS | D59: SNL | E59: SJ | H59: =E60/D60 -> 12.72727273 | I59: TEORETICKA POTR | J59: LUKY = POTREBA | K59: =E38 -> 0 | L59: =O38 ->  | M59: =L59-K59 ->  | N59: =R52 -> 0 | O59: =M59*N59 ->  | Q59: =P38 ->  | R59: =F38 ->  | S59: =V52*R59 ->  | T59: =Q59*V52 ->  | U59: =T59-S59 -> 
A60: SIL. KUK | B60: =B29 -> 0 | C60: 0.3 | D60: 0.011 | E60: 0.14 | H60: =E61/D61 -> 3.666666667 | I60: TEORETICKA POTR | J60: PASIENKY = POTR | K60: =E39 -> 0 | L60: =O39 ->  | M60: =L60-K60 ->  | N60: =R53 -> 0 | O60: =M60*N60 ->  | Q60: =P39 ->  | R60: =F39 ->  | S60: =V53*R60 ->  | T60: =Q60*V53 ->  | U60: =T60-S60 -> 
A61: LUCERNA | B61: =B28 -> 0 | C61: 0.2 | D61: 0.03 | E61: 0.11 | H61: =E62/D62 -> 6.097560976 | K61: HA | L61: =L60+L59 ->  | M61: HA = L+P | N61: sus (+ - ) = | O61: =SUM(O59:O60) ->  | S61: =SUM(S59:S60) ->  | T61: SUS + - | U61: =SUM(U59:U60) ->  | V61: BUDE VYROBENA z Sil. + Luc
A62: pomer 1 ku 1 | B62: 20 | D62: =D61+D60 -> 0.041 | E62: =E61+E60 -> 0.25
A63: pomer urod kuk/luc | B63: =B60/B61 ->  | Q63: ha | R63: ha | S63: vsetka sus = zachov | T63: VYROBI SUS
A64: pomer sus v povodnej hmote | B64: =C60/C61 -> 1.5 | P64: CHOV KOZ = | Q64: SKUTOCNOST L+P | R64: POTREBA | S64: SKRM. SUS = | T64: TON
P65: LUKY | Q65: =Q38 ->  | R65: =G38 ->  | S65: =R65*V52 ->  | T65: =Q65*V52 ->  | U65: =T65-S65 -> 
A66: kukurici bude z 1metra viac zivin | C66: =C60*B63 ->  | D66: =D60*B63 ->  | E66: =E60*B63 ->  | H66: 6.88172043 | J66: 1METER DOROBI SUS | L66: 0.325 | P66: PASIENKY | Q66: =Q39 ->  | R66: =G39 ->  | S66: =R66*V53 ->  | T66: =Q66*V53 ->  | U66: =T66-S66 -> 
A67: spolu dorobia z2 metrov | C67: =C66+C61 ->  | D67: =D66+D61 ->  | E67: =E66+E61 ->  | P67: SPOLU | R67: =SUM(R65:R66) ->  | S67: =SUM(S65:S66) ->  | T67: =SUM(T65:T66) ->  | U67: =SUM(U65:U66) -> 
A68: fix | B68: 1000
A69: ziviny z ha
A70: SIL. KUK | B70: kg | C70: =B68*B60*C60 -> 0 | D70: =B68*B60*D60 -> 0 | E70: =B68*B60*E60 -> 0 | M70: CIZE + LZ
A71: lucERNA | B71: kg | C71: =B68*B61*C61 -> 0 | D71: =B68*B61*D61 -> 0 | E71: =B68*B61*E61 -> 0 | L71: CIZE + SJ
A72: spolu dorobia z 2 ha | B72: kg | C72: =C71+C70 -> 0 | D72: =D71+D70 -> 0 | E72: =E71+E70 -> 0 | H72: =E72/D72 ->  | I72: ok | J72: 6 | K72: 1 ku 6 = | L72: =H72-J72 -> 
A73: CIZE V SUS | B73: SKUTOCNY KOEFICIENT | C73: =C66/C61 -> 
A74: PRIKLAD | L74: SUSINA = R44 B
A75: VYPOCET CHYBA SUS PRE ZV /TON | B75: =O61 ->  | J75: ZLE HA pozor NA VYPOCITANY POMER = R60H
A76: KOLKO TON SUS NASADIT LUC | B76: =(C71/C72)*B75 ->  | C76: =J76*C71 ->  | D76: =D71*J76 ->  | E76: =J76*E71 ->  | I76: HA | J76: =B77/(C71/B68) ->  | L76: =J76*C71 -> 
A77: KOLKO TON SUS NASADIT KUK | B77: =(C70/C72)*B75 ->  | C77: =J77*C70 ->  | D77: =J77*D70 ->  | E77: =J77*E70 ->  | I77: HA | J77: =B76/(C70/B68) ->  | L77: =J77*C70 -> 
A78: SPOLU HA = R44 B | B78: =B77+B76 ->  | I78: SPOLU HA | J78: =J77+J76 ->  | L78: =(L77+L76)/B68 ->  | M78: OK
A79: ROZDIEL = 0 - OK | B79: =B78-B75 -> 
A80: VYZIVA | C80: =C77+C76 ->  | D80: =D77+D76 ->  | E80: =E77+E76 ->  | H80: POMER = | I80: =E80/D80 ->  | J80: ZLE = R63B
A82: xxxx | E82: kg
A83: 1 - vypocet pomeru = chybajuci | B83: 6.3 | D83: odpocitane | E83: krat zluc.cislo | H83: ziv krat zlucovacie ci | I83: sus | J83: snl | K83: sj | O83: percent | P83: sus | Q83: ha | R83: povd. Hmota | S83: SNL | T83: SJ
A84: sil. Kukurica | B84: =H59 -> 12.72727273 | C84: =B86/(D60*B68) -> 9.090909091 | D84: =B83-B85 -> 2.633333333 | E84: =D84*C84 -> 23.93939394 | I84: =E84*C60 -> 7.181818182 | J84: =E84*D60 -> 0.2633333333 | K84: =E84*E60 -> 3.351515152 | N84: silaz | O84: =E84/(E86/B86) -> 52.77221109 | P84: =B75*(O84/B86) ->  | Q84: =P84/(C70/B68) ->  | R84: =Q84*B60 ->  | S84: =Q84*D70 ->  | T84: =Q84*E70 -> 
A85: lucerna | B85: =H60 -> 3.666666667 | C85: =B86/(D61*B68) -> 3.333333333 | D85: =B84-B83 -> 6.427272727 | E85: =D85*C85 -> 21.42424242 | I85: =E85*C61 -> 4.284848485 | J85: =E85*D61 -> 0.6427272727 | K85: =E85*E61 -> 2.356666667 | N85: lucerna | O85: =E85/(E86/B86) -> 47.22778891 | P85: =O85*(B75/B86) ->  | Q85: =P85/(C71/B68) ->  | R85: =Q85*B61 ->  | S85: =D71*Q85 ->  | T85: =Q85*E71 -> 
A86: fix | B86: 100 | E86: =E85+E84 -> 45.36363636 | I86: =I85+I84 -> 11.46666667 | J86: =J85+J84 -> 0.9060606061 | K86: =K85+K84 -> 5.708181818 | L86: pomer= | M86: =K86/J86 -> 6.3 | O86: =O85+O84 -> 100 | P86: =P85+P84 ->  | Q86: =Q85+Q84 ->  | S86: =S84+S85 ->  | T86: =T85+T84 -> 
A87: kuk | B87: =D84 -> 2.633333333 | C87: =B87*C60 -> 0.79 | D87: =D60*B87 -> 0.02896666667 | E87: =E60*B87 -> 0.3686666667 | H87: na 1kg kuk p.h. | I87: =C60 -> 0.3 | J87: =D60 -> 0.011 | K87: =E60 -> 0.14 | R87: =R85/R84 ->  | S87: POMER = | T87: =T86/S86 ->  | U87: ZLE | V87: MA BYT=R63B
A88: lucerna | B88: =D85 -> 6.427272727 | C88: =B88*C61 -> 1.285454545 | D88: =D61*B88 -> 0.1928181818 | E88: =E61*B88 -> 0.707 | H88: je potreba luc=Q67 | I88: =R87*C61 ->  | J88: =D61*R87 ->  | K88: =E61*R87 ->  | R88: pomer=l/k
D89: =D88+D87 -> 0.2217848485 | E89: =E88+E87 -> 1.075666667 | F89: =E89/D89 -> 4.850045772 | I89: =I87+I88 ->  | J89: =J87+J88 ->  | K89: =K88+K87 ->  | L89: PRECO | M89: =K89/J89 ->  | Q89: HA - SPRAVNE | S89: snl | T89: sj
A90: ZMIESAVACI POMER = KUK = KG | B90: =E84/E85 -> 1.117397454 | C90: =B90*C60 -> 0.3352192362 | D90: =D60*B90 -> 0.01229137199 | E90: =E60*B90 -> 0.1564356436 | N90: KUK | O90: =C90/(C92/B86) -> 62.63213531 | P90: =B75*(O90/B86) ->  | Q90: =P90/(C70/B68) ->  | R90: spolu ob.ziv. | S90: =Q90*D70 ->  | T90: =E70*Q90 -> 
A91: ZMIESAVACI POMER = LUC = KG | B91: 1 | C91: =B91*C61 -> 0.2 | D91: =D61 -> 0.03 | E91: =B91*E61 -> 0.11 | N91: lucerna | O91: =C91/(C92/B86) -> 37.36786469 | P91: =B75*(O91/B86) ->  | Q91: =P91/(C71/B68) ->  | R91: spolu ob.ziv. | S91: =D71*Q91 ->  | T91: =Q91*E71 -> 
A92: SPOLU ZIVINY | B92: =B91+B90 -> 2.117397454 | C92: =C90+C91 -> 0.5352192362 | D92: =D90+D91 -> 0.04229137199 | E92: =E90+E91 -> 0.2664356436 | F92: POMER = | H92: =E92/D92 -> 6.3 | I92: OK | O92: =O91+O90 -> 100 | P92: =P91+P90 ->  | Q92: =Q91+Q90 ->  | R92: spolu ob.ziv. | S92: =S91+S90 ->  | T92: =T91+T90 -> 
Q93: POMER = | S93: OK | T93: =T92/S92 -> 
J95: na 1 krm. Den
A96: KUKURICNA SILAZ (na 1 krm.den=priemer/rok) | B96: 365 | I96: SUS SILAZE | J96: SILAZ V POV | K96: SILAZ SUS SPOLU/ROK | L96: SIL = HA | M96: sil - pov.hm | N96: sil - pov.hm | O96: silaz - spotreba ton na | Q96: KRMNE DNI
A97: ROZPOCET NA OBRATOVE KATEGORIE HD | B97: SPORTEBA V SUS | C97: PERCENTO | D97: SILAZE TON | E97: STRUK.KOEF | F97: KRMNE DNI | G97: krm.dni spolu | H97: SUS SPOTREBA/ROK | I97: TONY | J97: HMOTE -KG | M97: kus/rok/kg | N97: kus/rok/ton | O97: struktur.dojnicu/ROK | Q97: SPOLU | R97: silaz ha | S97: na 1/kd | T97: ton | U97: kg | V97: 1/kd
A98: DOJNICE = | B98: =DOJN!C58 -> 10 | C98: =B98/(B103/100) -> 28.57142857 | D98: =(P90*-1)*(C98/100) ->  | E98: =DOJN!C2/DOJN!C2 ->  | F98: =E98*365 ->  | G98: =F108*B108 ->  | H98: =F98*B98 ->  | I98: =D98*(O90/100) ->  | J98: =I98/C60 ->  | K98: =(I98*F98)/1000 ->  | L98: =K98/(C70/1000) ->  | M98: =J98*B96 ->  | N98: =M98/1000 ->  | O98: =K98/C60 ->  | Q98: =E98*F98*#REF! ->  | R98: =(D98/C60)/10 ->  | S98: =(R98/G98)*10000 ->  | T98: =R98*B60 ->  | U98: =T98*1000 ->  | V98: =U98/Q98 -> 
A99: TELCE | B99: ='T 0 -6 M'!C45 -> 2 | C99: =B99/(B103/100) -> 5.714285714 | D99: =(P90*-1)*(C99/100) ->  | E99: ='T 0 -6 M'!C41 ->  | F99: =E99*E98*365 ->  | G99: =B108*E99*B96 ->  | H99: =F99*B99 ->  | I99: =D99*(O90/100) ->  | J99: =I99/C60 ->  | K99: =(I99*F99)/1000 ->  | L99: =K99/(C70/1000) ->  | M99: =J99*B96 ->  | N99: =M99/1000 ->  | O99: =K99/C60 ->  | Q99: =F99*#REF! ->  | R99: =(D99/C60)/10 ->  | S99: =(R99/G99)*10000 -> 
A100: ODCHOV JALOVIC | B100: ='JAL -ODCH'!C50 -> 7 | C100: =B100/(B103/100) -> 20 | D100: =(P90*-1)*(C100/100) ->  | E100: ='JAL -ODCH'!C28 ->  | F100: =E100*E98*365 ->  | G100: ='JAL -ODCH'!C25 ->  | H100: =F100*B100 ->  | I100: =B100*(O90/100) -> 4.384249471 | J100: =I100/C60 -> 14.6141649 | K100: =(I100*F100)/1000 ->  | L100: =K100/(C70/1000) ->  | M100: =B96*J100 -> 5334.17019 | N100: =M100/1000 -> 5.33417019 | O100: =K100/C60 ->  | Q100: =F100*#REF! ->  | R100: =(D100/C60)/10 ->  | S100: =(R100/G100)*10000 -> 
A101: VTJ | B101: =VTJ!C33 -> 9 | C101: =B101/(B103/100) -> 25.71428571 | D101: =(P90*-1)*(C101/100) ->  | E101: =VTJ!C13 ->  | F101: =E101*E98*365 ->  | G101: =VTJ!C11 ->  | H101: =F101*B101 ->  | I101: =B101*(O90/100) -> 5.636892178 | J101: =I101/C60 -> 18.78964059 | K101: =(I101*F101)/1000 ->  | L101: =K101/(C70/1000) ->  | M101: =B96*J101 -> 6858.218816 | N101: =M101/1000 -> 6.858218816 | O101: =K101/C60 ->  | Q101: =F101*#REF! ->  | R101: =(D101/C60)/10 ->  | S101: =(R101/G101)*10000 -> 
A102: VYKRM HD | B102: ='VYKRM HD'!C21 -> 7 | C102: =B102/(B103/100) -> 20 | D102: =(P90*-1)*(C102/100) ->  | E102: ='VYKRM HD'!C13 ->  | F102: =E102*E98*365 ->  | G102: ='VYKRM HD'!C14 ->  | H102: =F102*B102 ->  | I102: =B102*(O90/100) -> 4.384249471 | J102: =I102/C60 -> 14.6141649 | K102: =(I102*F102)/1000 ->  | L102: =K102/(C70/1000) ->  | M102: =B96*J102 -> 5334.17019 | N102: =M102/1000 -> 5.33417019 | O102: =K102/C60 ->  | Q102: =F102*#REF! ->  | R102: =(D102/C60)/10 ->  | S102: =(R102/G102)*10000 -> 
A103: SPOLU NA 1KD = ZAKLAD | B103: =B102+B101+B100+B99+B98 -> 35 | C103: =C102+C101+C100+C99+C98 -> 100 | D103: =D102+D101+D100+D99+D98 ->  | G103: =G102+G101+G100+G99+G98 ->  | H103: =H102+H101+H100+H99+H98 ->  | J103: =J102+J101+J100+J99+J98 ->  | K103: =K102+K101+K100+K99+K98 ->  | L103: =L102+L101+L100+L99+L98 ->  | N103: =N102+N101+N100+N99+N98 ->  | O103: =O102+O101+O100+O99+O98 ->  | R103: =R102+R101+R100+R99+R98 -> 
D104: =(D103/C70)*1000 -> 
C105: ROZDIEL V SUS | D105: =D103-P90*-1 ->  | J105: na 1 krm. Den
A106: LUCERNA (na 1 krm.den=priemer/rok) | B106: 365 | C106: ROZDIEL V HA | D106: =D104-Q90*-1 ->  | I106: LUCERNA | J106: SILAZ V POV | K106: LUCER SUS SPOLU/ROK | L106: LUCERNA | M106: sil - pov.hm | N106: sil - pov.hm | O106: silaz - spotreba ton na | Q106: KRMNE DNI
A107: ROZPOCET NA OBRATOVE KATEGORIE HD | B107: SPORTEBA V SUS | C107: PERCENTO | D107: LUCERNA | E107: STRUK.KOEF | F107: KRMNE DNI | G107: krm.dni spolu | H107: SUS SPOTREBA/ROK | I107: KG | J107: HMOTE -KG | M107: kus/rok/kg | N107: kus/rok/ton | O107: struktur.dojnicu/ROK | Q107: SPOLU | R107: silaz ha | S107: na 1/kd | T107: ton | U107: kg | V107: 1/kd
A108: DOJNICE = | B108: =B98 -> 10 | C108: =E125 ->  | D108: =(P91*-1)*(C98/100) ->  | E108: =E98 ->  | F108: =E108*365 ->  | G108: =G98 ->  | H108: =F108*B108 ->  | I108: =D108*(O91/100) ->  | J108: =I108/C61 ->  | K108: =(I108*F108)/1000 ->  | L108: =K108/(C71/1000) ->  | M108: =J108*B106 ->  | N108: =M108/1000 ->  | O108: =K108/C71 ->  | Q108: =E108*F108*J116 ->  | R108: =(D108/C61)/10 ->  | S108: =(R108/G108)*10000 ->  | T108: =R108*B70 ->  | U108: =T108*1000 ->  | V108: =U108/Q108 -> 
A109: TELCE | B109: =B99 -> 2 | C109: =E126 ->  | D109: =(P91*-1)*(C99/100) ->  | E109: =E99 ->  | F109: =E109*E108*365 ->  | G109: =G99 ->  | H109: =F109*B109 ->  | I109: =D109*(O91/100) ->  | J109: =I109/C61 ->  | K109: =(I109*F109)/1000 ->  | L109: =K109/(C71/1000) ->  | M109: =J109*B106 ->  | N109: =M109/1000 ->  | O109: =K109/C71 ->  | Q109: =F109*J116 ->  | R109: =(D109/C61)/10 ->  | S109: =(R109/G109)*10000 -> 
A110: ODCHOV JALOVIC | B110: =B100 -> 7 | C110: =E127 ->  | D110: =(P91*-1)*(C100/100) ->  | E110: =E100 ->  | F110: =E110*E108*365 ->  | G110: =G100 ->  | H110: =F110*B110 ->  | I110: =D110*(O91/100) ->  | J110: =I110/C61 ->  | K110: =(I110*F110)/1000 ->  | L110: =K110/(C71/1000) ->  | M110: =B106*J110 ->  | N110: =M110/1000 ->  | O110: =K110/C71 ->  | Q110: =F110*J116 ->  | R110: =(D110/C61)/10 ->  | S110: =(R110/G110)*10000 -> 
A111: VTJ | B111: =B101 -> 9 | C111: =E128 ->  | D111: =(P91*-1)*(C101/100) ->  | E111: =E101 ->  | F111: =E111*E108*365 ->  | G111: =G101 ->  | H111: =F111*B111 ->  | I111: =D111*(O91/100) ->  | J111: =I111/C61 ->  | K111: =(I111*F111)/1000 ->  | L111: =K111/(C71/1000) ->  | M111: =B106*J111 ->  | N111: =M111/1000 ->  | O111: =K111/C71 ->  | Q111: =F111*J116 ->  | R111: =(D111/C61)/10 ->  | S111: =(R111/G111)*10000 -> 
A112: VYKRM HD | B112: =B102 -> 7 | C112: =E129 ->  | D112: =(P91*-1)*(C102/100) ->  | E112: =E102 ->  | F112: =E112*E108*365 ->  | G112: =G102 ->  | H112: =F112*B112 ->  | I112: =D112*(O91/100) ->  | J112: =I112/C61 ->  | K112: =(I112*F112)/1000 ->  | L112: =K112/(C71/1000) ->  | M112: =B106*J112 ->  | N112: =M112/1000 ->  | O112: =K112/C71 ->  | Q112: =F112*J116 ->  | R112: =(D112/C61)/10 ->  | S112: =(R112/G112)*10000 -> 
A113: SPOLU NA 1KD = ZAKLAD | B113: =B112+B111+B110+B109+B108 -> 35 | C113: =C112+C111+C110+C109+C108 ->  | D113: =D112+D111+D110+D109+D108 ->  | G113: =G112+G111+G110+G109+G108 ->  | H113: =H112+H111+H110+H109+H108 ->  | J113: =J112+J111+J110+J109+J108 ->  | K113: =K112+K111+K110+K109+K108 ->  | L113: =L112+L111+L110+L109+L108 ->  | N113: =N112+N111+N110+N109+N108 ->  | O113: =O112+O111+O110+O109+O108 ->  | R113: =R112+R111+R110+R109+R108 -> 
D114: =(D113/C71)*1000 ->  | H114: OK | J114: SIMPLEX | K114: RIADOK70 STLPEC= O | L114: OK=R70SP | O114: SIMPLEX | Q114: HA = | R114: =(R113/B61)*10 -> 
C115: ROZDIEL V SUS | D115: =D113-P91*-1 ->  | J115: 1 STR.DOJ=SPOTREBA | K115: OK
A116: SPRAVNY ROZPOCET | C116: ROZDIEL V HA | D116: =D114-Q91*-1 -> 
A117: SILAZ KUKURICNA = | C117: KRMNE DNI
A118: SUSINA SPOLU ZA CHOV HD | B118: =N57 -> 
A119: SUSINA SPOLU ZA CHOV HD Z LUC + KUK | B119: =P92*-1 -> 
A120: SUSINA Z LUK A PASIENKOV | B120: =B118-B119 ->  | D120: HA
A121: SUSINA KUKURICE NA ROZDELENIE NA KATEGORRIE | B121: =P90*-1 ->  | C121: =B121/C60 ->  | D121: =C121/B60 ->  | E121: KUK = TON | F121: =Q90*B60 ->  | N121: TON SILAZ
A122: SUSINA LUC NA ROZDELENIE NA KAT, | B122: =P91*-1 ->  | C122: =B122/C61 ->  | D122: =C122/B61 ->  | G122: SUS | N122: =C121 -> 
A123: DOJNICE KUS | B123: =DOJN!C2 -> 0 | D123: SUS*KD Z OBRARU STADA | E123: VAHA =OBRATU | G123: VAHA PODIELU | H123: VAHA PODIEL | I123: VAHA PODIEL | J123: VAHA PODIEL | K123: PREPOCET NA SUS | O123: DEL KD
A124: XXXXXXXX = ZAKLAD PRE VYPOCET NA POMER | C124: SPOTREBA SUS/KD | D124: NA ROK/KD | E124: PERCENTO | F124: PERCENTO BEZ VAHY PODIELU OBRATU STADA V KD | G124: NA 1KD | H124: NA 1KD = VAHA | I124: KOEFICIENT | O124: NA1KD
A125: STRUKTUALNY PREPOCET SUS NA 1KD | B125: DOJNICE = | C125: =B108 -> 10 | D125: =F108*B108 ->  | E125: =D125/(D130/100) ->  | F125: =C125/(C130/100) -> 28.57142857 | G125: =C125*(E125/100) ->  | H125: =C130*(E125/100) ->  | I125: =H125/C125 ->  | J125: =S108*I125 ->  | K125: =J125*C60 ->  | L125: =J125*H108 ->  | M125: =H125*G108 ->  | N125: =N122*(E125/100) ->  | O125: =(N125/G98)*1000 -> 
A126: SLUZI NA ROZPOCET SUS NA VYZIVU | B126: TELCE | C126: 2 | D126: =F109*B109 ->  | E126: =D126/(D130/100) ->  | F126: =C126/(C130/100) -> 5.714285714 | G126: =C126*(E126/100) ->  | H126: =C130*(E126/100) ->  | I126: =H126/C126 ->  | J126: =S109*I126 ->  | K126: =J126*C60 ->  | L126: =J126*H109 ->  | M126: =H126*G109 ->  | N126: =N122*(E126/100) ->  | O126: =(N126/G99)*1000 -> 
A127: PRE KATEG. HZ | B127: ODCHOV JALOVIC | C127: 7 | D127: =F110*B110 ->  | E127: =D127/(D130/100) ->  | F127: =C127/(C130/100) -> 20 | H127: =C130*(E127/100) ->  | K127: =J127*C60 ->  | L127: =J127*H110 ->  | M127: =H127*H110 ->  | N127: =N122*(E127/100) -> 
A128: VAHA SUS PODIELU K OBRATU KD ZAKL.STADA | B128: VTJ | C128: 9 | D128: =F111*B111 ->  | E128: =D128/(D130/100) ->  | F128: =C128/(C130/100) -> 25.71428571 | H128: =C130*(E128/100) ->  | K128: =J128*C60 ->  | L128: =J128*H111 ->  | M128: =H128*H111 ->  | N128: =N122*(E128/100) -> 
B129: VYKRM HD | C129: 7 | D129: =F112*B112 ->  | E129: =D129/(D130/100) ->  | F129: =C129/(C130/100) -> 20 | H129: =C130*(E129/100) ->  | K129: =J129*C60 ->  | L129: =J129*H112 ->  | M129: =H129*G102 ->  | N129: =N122*(E129/100) -> 
B130: SPOLU NA 1KD = ZAKLAD | C130: 35 | D130: =D129+D128+D127+D126+D125 ->  | E130: =E129+E128+E127+E126+E125 ->  | F130: =F129+F128+F127+F126+F125 -> 100 | G130: =G129+G128+G127+G126+G125 ->  | H130: =H129+H128+H127+H126+H125 ->  | J130: =J125 ->  | K130: =K129+K128+K127+K126+K125 ->  | L130: =L129+L128+L127+L126+L125 ->  | M130: =M129+M128+M127+M126+M125 ->  | N130: =N129+N128+N127+N126+N125 ->  | O130: OK
A131: PLATI TEORIA ROZPOCTU NA KD/KG
A132: SILAZ KUKURICNA = TONY | B132: =B121 ->  | D132: =B122 -> 
A133: SILAZ = HA | B133: =Q90*-1 ->  | D133: =Q91*-1 -> 
A134: SILAZ POVODNA HMOTA V KG | B134: =B133*B60*1000 ->  | C134: SILAZ NA KD | D134: =D133*B61*1000 ->  | E134: POMER=K/L = | F134: =B134/D134 ->  | G134: POMRER=L/K = | H134: =D134/B134 -> 
B135: PODIEL Z CELKU V KG | C135: NA 1 KRMNY DEN | D135: LUCERNA | E135: NA 1KD = lucerna | F135: sus /kd silaz | G135: lucerna | H135: sus/KD = L + K | I135: POZIADAVKA SUS | J135: ROZDIEL = | K135: ROZDIEL = PERCRNTO
A136: DOJNICE = | B136: =B134*(E125/100) ->  | C136: =B136/G108 ->  | D136: =$D$134*(E125/100) ->  | E136: =D136/G108 ->  | F136: =C136*C60 ->  | G136: =E136*C61 ->  | H136: =F136+G136 ->  | I136: =B98 -> 10 | J136: =H136-I136 ->  | K136: =J136/(I136/100) -> 
A137: TELCE | B137: =B134*(E126/100) ->  | C137: =B137/G109 ->  | D137: =$D$134*(E126/100) ->  | E137: =D137/G109 ->  | F137: =C137*C60 ->  | G137: =E137*C61 ->  | H137: =F137+G137 ->  | I137: =B99 -> 2 | J137: =H137-I137 ->  | K137: =J137/(I137/100) -> 
A138: ODCHOV JALOVIC | B138: =B134*(E127/100) ->  | C138: =B138/G110 ->  | F138: =C138*C60 ->  | G138: =E138*C61 ->  | I138: =B100 -> 7
A139: VTJ | B139: =B134*(E128/100) ->  | F139: =C139*C60 ->  | G139: =E139*C61 ->  | I139: =B101 -> 9
A140: VYKRM HD | B140: =B134*(E129/100) ->  | F140: =C140*C60 ->  | G140: =E140*C61 ->  | I140: =B102 -> 7
A141: SPOLU NA 1KD = ZAKLAD | B141: =B140+B139+B138+B137+B136 ->  | D141: =D136+D137+D138+D139+D140 -> 
A142: XXXXXXXXXX
A143: PO VYPOCTE NEPASUJE SUSINA O
A148: susina luk + pas | B148: =O52/1000 -> 0.2
A149: E= STRUKTUALNY KOEFICIENT = NA 1 DOJNICU ZAKLADNEHO STADA KOLKO KD PRIPADA OSTATNYCH KATEGORII - telce do 6 mesiacov = 182 kd - pobyt v kategorii v dnoch = rok(365dni)/dlzkou pobytu (182dni)=0.5 | L149: =L130/B60/1000 ->  | M149: =M130/B60/1000 ->  | N149: OK
A150: F = KRMNE DNI V KATEGORII /SKUTOCNE/ NA KRMNY DEN SA VSETKO PLANUJE KRMIVA atd
A151: G= SPOTREBA SUS NA 1 KUS = PODLA DLZKY POBYTU V KATEGORII /telce = 182 KD
A152: H = SUSINA KUKURICNEJ SILAZE NA 1 KRMNY DEN / 100 PERCENT/ PRE JEDNOTLIVE KATEGORIE HZ
A153: I = SUSINA PREPOCITANA NA POCODNU HMOTU KRMIVA NA 1 KRMNY DEN / KG KRMIVA VO VALOVE/
A154: J = SUSINA NA 1 STRUKTUALNU DOJNICU /DOJNICA A OBRATOVE KATEGORIE/ = CERVENYM OZNACENE SA MUSIA ROVNAT / VYROBA = SPOTREBE/
A155: K = POTREBA KRMIVA PREPOCITANA NA NA PODY MODRE OZNACEENIE HA SA MUSIA ROVNAT = BUDUCE OCAKAVANE ODHADY
A156: L + L = POTREBA KRMIVA NA ROK = 365KD KG, TON
A157: N = PREPOCET NA STRUKTUALNU DOJNICU = PRIPRAVENY PREPOCET PRE EKONOMICKO - MATEMETICKU OPTIMALIZACIU / ZABUDOVANE VYZIVARSKE PRODUKCNE A REPRODUKCNE POZIADAVKY OBRATOVYCH KATEGORII HZ/
A158: XXXXXXXXXXX
A159: CHOV OVIEC

Sheet JAL -ODCH (hidden)
A1: ODCHOV JALOVÍC OD 6 MES. DO 7 MES. TEĽNOSTI
A2: ='T 0 -6 M'!A1 -> ukazovateľ | B2: ='T 0 -6 M'!B1 -> m.j | C2: ='T 0 -6 M'!C1 -> hodnota
A3: fix | B3: x | C3: 100
A4: fix | B4: rok | C4: 365
A5: Počet prevedených jalovíc z 0-6 mesačných | B5: ='T 0 -6 M'!B31 -> ks | C5: ='T 0 -6 M'!C31 -> 0 | D5: x
A6: Hmotnosť pri prvej inseminácií | B6: kg | C6: 380
A7: priem. Prírastok | B7: kg | D7: X
A8: KD do 1. inseminácie | B8: KD | C8: =(C6-C9)/C7 -> 
A9: ='T 0 -6 M'!A39 -> Hmotnosť pri prevode – vyšších kategoríí | B9: ='T 0 -6 M'!B39 -> kg | C9: ='T 0 -6 M'!C39 -> 45 | D9: x
A10: 7 mesiacov pobytu gravidných jal. V kategórii odchovu | B10: KD | C10: 210 | F10: 210
A11: Doba pobytu do prevodu medzi VTJ | B11: KD | C11: =C8+C10 ->  | D11: x | F11: =(C11-C9)/2 ->  | G11: =F11+C9 -> 
A12: PREVOD DO VTJ - nepredaných | B12: ks | C12: =C5-C16 -> 0 | D12: x | F12: =F11*2 ->  | G12: =C9+G11 -> 
A13: úhyn | B13: % | C13: 0
A14: úhyn | B14: ks | C14: 0
A15: PREDAJ JALOVÍC | B15: ks | C15: 0
A16: o HMOTNOSTI | B16: kg | C16: 0
A17: KD do PREDAJA | B17: KD | C17: 0
A18: KD ZA VŠETKY JALOVICE PREDANÉ | B18: KD | C18: =((C17-C9)/C7)*C16 -> 
A19: realizacna CENA ZA 1 KG MASA | B19: EUR
A20: CENA ZA PREDANÉ JALOVICE | B20: EUR | C20: =C19*C17*C16 -> 0
A22: PREVOD DO VTJ | B22: ks | C22: =(C5-C14)*(C4/C11) ->  | D22: x | E22: tu pokracuj a urob nanovo krmoviny
A23: KD PREDANÝCH JALOVÍC | B23: KD
A24: KD NEPREDANÝCH JALOVÍC DO PREVODU K VTJ | B24: KD | C24: =C12*C11 -> 
A25: KD JALOVÍC SPOLU V ODCHOVE | B25: KD | C25: =C23+C24 -> 
A26: PRIEMERNÝ STAV JALOVÍC ZA ROK (365 Dní) | B26: priem. | C26: =(C24+C23)/C4 -> 
A27: =DOJN!A45 -> KD SPOLU ZA DOJNICE | B27: =DOJN!B45 -> KD | C27: =DOJN!C45 -> 0
A28: Koef. Na prepočet k 1 dojnici ( ŠTRUKTURÁLNA DOJNICA) | B28: koef. | C28: =C25/C27 -> 
A29: POTREBA KRMOVIN
A30: LUKY - POTRBA ZELENEJ HMOTY NA SENO NA KD/1kus | B30: KG | C30: =C50/C49 -> 35
A31: LUKY - POTREBA NA SENO BEZ STRAT ZBEROVYCH = SKRMITELNE / V ZELENOM/ | B31: TON | C31: =I34 -> 
A32: LUKY - PRODUKCIA SUSINY NA 1 KD | B32: KG | C32: 0 | F32: DNI | G32: KG/DEN | H32: KG/KS/rok | I32: KG= vsetky | J32: ha
A33: LUKY – POTREBA HA NA KRMENIE | B33: HA | C33: =(C31/1000)/'VSTUP RV'!B52 ->  | D33: =DOJN!Q56 ->  | E33: leto=PASTVA | F33: ='RV - KRMOVINY'!D55 -> 150 | G33: =C30 -> 35 | H33: =G33*F33 -> 5250 | I33: =H33*C26 ->  | J33: =(I33/1000)/DOJN!C47 -> 
A34: LUKY – POTREBA HA NA KRMENIE + STRATA ZBEROVA | B34: HA | C34: =(DOJN!C80+C3)/100*C33 ->  | E34: Zima= Luky (seno) | F34: ='RV - KRMOVINY'!D56 -> 215 | G34: =C30 -> 35 | H34: =G34*F34 -> 7525 | I34: =H34*C26 ->  | J34: =(I34/1000)/DOJN!C46 -> 
A35: LUKY – POTREBA +STRATA ZBEROVA + REZERVA | B35: HA | C35: =(DOJN!C83+C3)/C3*C34 ->  | E35: Rok= dni | F35: 365 | H35: =SUM(H33:H34) -> 12775 | I35: =SUM(I33:I34) ->  | J35: SUS na 1 KD
A36: PASIENKY – POTREBA NA KRMENIE NA /ROK = vsetky/ | B36: KG | C36: =I33 ->  | G36: kg/den=r30 | H36: =H35/C4 -> 35
A37: PASIENKY - PRODUKCIA SUSINY NA 1 KD | B37: KG | F37: sus= r48 = | G37: =G33*C49 -> 7
A38: PASIENKY – POTREBA NA KRMENIE | B38: HA | C38: =(C36/1000)/'VSTUP RV'!B53 ->  | D38: =DOJN!Q55 -> 
A39: PASIENKY – POTREBA NA KRMENIE + POSLAPANIE | B39: HA | C39: =(DOJN!C78+C3)/C3*C38 -> 
A40: PASIENKY – POTREBA + POSLAPANIE + REZERVA | B40: HA | C40: =(DOJN!C82+C3)/C3*C39 -> 
A41: SUSINA SKRMITELNA NA 1 KD = Z LUK + PASIENKOV | B41: KG | C41: 0
A42: POTREBA ORNEJ PODY NA KRMNU ZMES | B42: HA | C42: ='KRMNE ZMESI HD'!J22 -> 
A43: POTREBA ORNEJ PODY NA KUKURICU + LUCERNU | B43: HA | C43: =DOJN!L96 -> 
A44: VLASTNE NAKLADY NA KUK + LUC = SPOLU | B44: EUR | C44: =DOJN!L95 -> 
A45: PASIENKY – VLSTNE NÁKLADY NA 1 HA | B45: EUR | C45: =DOJN!C77 -> 118
A46: PASIENKY – VLASTNÉ NÁKLADY NA ODCHOV | B46: EUR | C46: =D38*C45 -> 
A47: LUKY – VLASTNÉ NÁKLADY NA 1 HA | B47: EUR | C47: =DOJN!C76 -> 83
A48: LUKY - VLASTNÉ NÁKLADY NA ODCHOV | B48: EUR | C48: =D33*C47 -> 
A49: OBSAH SUSINY V 1KG POVODNEJ HMOTY | B49: KG | C49: =DOJN!C56 -> 0.2
A50: PRIJEM SUS. Z OBJEMU KD – KRMNY DEN | B50: KG | C50: 7
A51: VLASTNÉ BÁKLADY NA RV (LÚKY + PASIENKY) | B51: EUR | C51: =C48+C46 -> 
A53: NAKLADY NA 100 KD bez krmovin,rezie, mzdovych nakladov | B53: EUR | D53: X | E53: 56.32 | F53: 33.11
A54: VLASTNE NAKLADY NA ODCHOV 6 MES. DO VTJ bez krmovin,rezie, mzdovych nakladov | B54: EUR | C54: =(C53*C25)/C3 -> 
A55: CEna za 1 tonu KZ | B55: EUR | C55: 0
A56: BILANCIA KZ
A57: SPOTREBA KŔMNEJ ZMESI NA 1 KD (NA ODCHOV JALOVÍC 1-2 ROĆNÝCH) | B57: KG | C57: 0.5
A58: POTREBA KŔMNEJ ZMESI ZA ODCHOV JALOVÍC 1 – 2 ROČNÝCH | B58: T | C58: =(C57*C25)/1000 -> 
A59: VLASTNE KONPONENTY PRE KRMNU ZMES spolu za vsetky JALOVICE = PSENICA | B59: TON | C59: ='KRMNE ZMESI HD'!C21 -> 
A60: VLASTNE KONPONENTY PRE KRMNU ZMES spolu za vsetky JALOVICE = JACMEN | B60: TON | C60: ='KRMNE ZMESI HD'!D21 -> 
A61: VLASTNE KONPONENTY PRE KRMNU ZMES spolu za vsetky JALOVICE = KUKURICA | B61: TON | C61: ='KRMNE ZMESI HD'!E21 -> 
A62: VLASTNE KONPONENTY PRE KRMNU ZMES spolu za vsetky JALOVICE = HRACH | B62: TON | C62: ='KRMNE ZMESI HD'!F21 -> 
A63: VLASTNE KONPONENTY PRE KRMNU ZMES spolu za vsetky JALOVICE = SOJA | B63: TON | C63: ='KRMNE ZMESI HD'!G21 -> 
A64: VLASTNE KONPONENTY PRE KRMNU ZMES spolu za vsetky JALOVICE = SPOLU | B64: TON | C64: =C63+C62+C61+C60+C59 -> 
A65: NAKUP KONPONENTOV DO KZ = KONCENTRAT | B65: TON | C65: ='KRMNE ZMESI HD'!H21 -> 
A66: NAKUP KONPONENTOV DO KZ = MKP | B66: TON | C66: ='KRMNE ZMESI HD'!I21 -> 
A67: NAKUP KONCENTRAT + MKP = SPOLU | B67: TON | C67: =C66+C65 -> 
A68: MNOZSTVO KZ PRE ODCHOV SPOLU = R56 /KONTROLA BILANCIE/ | B68: TON | C68: =C67+C64 ->  | D68: ROZDIEL = | E68: =C58-C68 ->  | F68: ok
A69: POTREBA ORNEJ PODY ZA ODCHOV JALOVÍC
A70: PLOCHA ORNEJ PODY PRE KRMNU ZMES spolu za vsetky JALOVICE = PSENICA | B70: HA | C70: ='KRMNE ZMESI HD'!C22 -> 
A71: PLOCHA ORNEJ PODY PRE KRMNU ZMES spolu za vsetky JALOVICE = JACMEN | B71: HA | C71: ='KRMNE ZMESI HD'!D22 -> 
A72: PLOCHA ORNEJ PODY PRE KRMNU ZMES spolu za vsetky JALOVICE = KUKURICA | B72: HA | C72: ='KRMNE ZMESI HD'!E22 -> 
A73: PLOCHA ORNEJ PODY PRE KRMNU ZMES spolu za vsetky JALOVICE = HRACH | B73: HA | C73: ='KRMNE ZMESI HD'!F22 -> 
A74: PLOCHA ORNEJ PODY PRE KRMNU ZMES spolu za vsetky JALOVICE = SOJA | B74: HA | C74: ='KRMNE ZMESI HD'!G22 -> 
A75: PLOCHA ORNEJ PODY PRE KRMNU ZMES spolu za vsetky JALOVICE = SPOLU R42 | B75: HA | C75: =C74+C73+C72+C71+C70 ->  | D75: ROZDIEL = | E75: =C75-C42 ->  | F75: OK
B76: HA
A79: NKLADY NA NÁKUP KŔMNEJ ZMESI NA ODCHOV JALOVÍC 1 – 2 ROČNÝCH | B79: EUR | C79: =C58*C55 -> 
A80: NAKLADY NA KRMNU ZMES ZA ORNU PODU ZA CHOV | B80: EUR | C80: ='KRMNE ZMESI HD'!J23 -> 
A81: NAKLADY NA NAKUP KONCENTRATU | B81: EUR | C81: ='KRMNE ZMESI HD'!H21*'KRMNE ZMESI HD'!H47 -> 
A82: NAKLADY NA NAKUP MKP | B82: EUR | C82: ='KRMNE ZMESI HD'!I21*'KRMNE ZMESI HD'!I47 -> 
A83: NAKLADY NA CELY CHOV | B83: EUR | C83: =C79+C80+C81+C82 -> 
A84: VN NA RV | B84: EUR | C84: =C80+C48+C46+C44 -> 
A85: VN NA ZV | B85: EUR | C85: =C54+C81+C82 -> 
A86: VLASTNE NAKLADY SPOLU ZA FARMU (RV+ŽV) | B86: EUR | C86: =C85+C84 ->  | D86: SKUSKA = | E86: =C85+C84 ->  | F86: OK
A87: ROZDIEL = TRZBY - VN CELOK ZA FARMU | B87: EUR | C87: =C1-C86 -> 
A88: DOTACIA RV NA 1 HA | B88: EUR | C88: =DOJN!C132 -> 240
A89: DOTACIE RV | B89: EUR | C89: =C88*(D33+D38+C42+C43) -> 
A90: DOTACIE ŽV na 1 VDJ resp kus | B90: EUR | D90: POZOR NEVYPOCITAVA SA PODLA /PPA/
A91: DOTACIE ŽV | B91: EUR | C91: =C90*C26 -> 
A92: DOTACIE SPOLU ZA FARMU | B92: EUR | C92: =C89+C91 -> 
A93: DOTACIE ZA FARMU – VLASTNÉ NÁKLADY | B93: EUR | C93: =C92-C86 -> 
A94: TRŽBY + DOTÁCIE – VLASTNÉ NÁKLADY | B94: EUR | C94: =C92+C20-C86 -> 

Sheet EKONOM HD (hidden)
K1: 10+ | L1: 10+
A2: UKAZOVATEĽ | B2: M.J | C2: DOJNICE | D2: TEL 0 – 6 MES. | E2: ODCHOV JALOVÍC OD 6 MES. DO 7 MES. TEĽNOSTI | F2: VTJ | G2: VYKRM HD | H2: SPOLU
A3: Planovany rozsah zv (vyroba)
A4: Počty zvierat KUSY | B4: KS | C4: =DOJN!C2 -> 0 | D4: ='T 0 -6 M'!C37 ->  | E4: ='JAL -ODCH'!C26 ->  | F4: =VTJ!C12 ->  | G4: ='VYKRM HD'!C16 -> 
A5: PLOCHA LÚK PRE CHOV | B5: HA | C5: =DOJN!C84 ->  | D5: ='T 0 -6 M'!C49 ->  | E5: ='JAL -ODCH'!C35 ->  | F5: =VTJ!C23 ->  | G5: ='VYKRM HD'!C25 ->  | H5: =C5+D5+E5+F5+G5 ->  | I5: 36.37 | J5: ok | K5: =I5*1.1 -> 40.007 | L5: =K5*1.1 -> 44.0077
A6: PLOCHA PASIENKOV PRE CHOV | B6: HA | C6: =DOJN!C85 ->  | E6: ='JAL -ODCH'!C40 ->  | H6: =C6+D6+E6+F6+G6 ->  | I6: 33.26 | J6: ok | K6: =I6*1.1 -> 36.586 | L6: =K6*1.1 -> 40.2446
A7: PLOCHA LUK + PASIENKOV PRE CHOV | B7: HA | C7: =C6+C5 ->  | K7: OK | L7: =C7+D7+E7+F7+G7 -> 
A8: PLOCHA ORNEJ PODY PRE POTREBY žv (KZ) | B8: HA | C8: ='KRMNE ZMESI HD'!J6 -> 0 | D8: ='KRMNE ZMESI HD'!J14 ->  | E8: ='KRMNE ZMESI HD'!J22 ->  | F8: ='KRMNE ZMESI HD'!J30 ->  | G8: ='KRMNE ZMESI HD'!J38 ->  | H8: =C8+D8+E8+F8+G8 -> 
A9: PLOCHA ORNEJ PODY PRE POTREBU ZV objem =K+L | B9: HA | C9: =ABS('VSTUP RV'!C36) ->  | H9: =SUM(C9:G9) -> 
A10: Potreba krmív v HA pre potreby žv | B10: HA | C10: =C39+C8+C38+C37 ->  | D10: =D39+D8+D38+D37 -> 
A11: VLASTNE NAKLADY SPOLU ZA (RV+ŽV) | B11: EUR | C11: =DOJN!C109 ->  | D11: ='T 0 -6 M'!C88 ->  | E11: ='JAL -ODCH'!C86 ->  | F11: =VTJ!C44 ->  | G11: ='VYKRM HD'!C42 ->  | H11: =C11+D11+E11+F11+G11 -> 
A12: VLASTNE NAKLADY SPOLU ZA FARMU (RV) pre krmnu bilanciu | B12: EUR | C12: =DOJN!C105 ->  | D12: ='T 0 -6 M'!C82 ->  | E12: ='JAL -ODCH'!C84 ->  | F12: =VTJ!C42 ->  | G12: ='VYKRM HD'!C40 -> 
A13: VLASTNE NAKLADY SPOLU ZA FARMU (ŽV) bez krmiv | B13: EUR | C13: =DOJN!C108 -> 0 | D13: ='T 0 -6 M'!C87 ->  | E13: ='JAL -ODCH'!C85 ->  | F13: =VTJ!C43 ->  | G13: ='VYKRM HD'!C41 -> 
A14: TRŽBY = ŽV | B14: EUR | C14: =DOJN!C36 -> 0 | D14: ='T 0 -6 M'!C28 -> 0 | E14: ='JAL -ODCH'!C20 -> 0 | F14: =VTJ!C9 -> 0 | G14: ='VYKRM HD'!C18 -> 
A15: TRZBY - VN ŽV | B15: EUR | C15: =C14-C11 -> 
A16: DOTACIE ZV len na chovane zvierata | B16: EUR | C16: =DOJN!C135 -> 0 | D16: ='T 0 -6 M'!C93 -> 0 | E16: ='JAL -ODCH'!C91 ->  | F16: =VTJ!C50 ->  | G16: ='VYKRM HD'!C47 ->  | H16: =C16+D16+E16+F16+G16 -> 
A17: TRZBY + DOTACIE ZV - VLAST. NAKL. = ZA zv zisk - strata | B17: EUR | C17: =(C14+C16)-C11 ->  | D17: =(D14+D16)-D11 -> 
A20: raSTLINNA VYROBA = ha spolu | B20: ha | C20: vlastne naklady | D20: trzby | E20: trzby - vl. Naklady | F20: dotacie | G20: dotac. + trz. | H20: zisk/ strata
A21: luky + pasienky | B21: =H7 -> 
A22: RASTLINNA VYROBA = TRHOVE PLODNY (!) = bez ploch krmovin | B22: ='Výstup rastlinná výroba'!D24 -> 0 | C22: ='Výstup rastlinná výroba'!F24 -> 0 | D22: ='Výstup rastlinná výroba'!H24 -> 0 | E22: =D22-C22 -> 0 | F22: ='Výstup rastlinná výroba'!K24 -> 0 | G22: =F22+D22 -> 0 | H22: =G22-F22 -> 0
A23: plocha sa moze delit = podla legslativy = luk + pas atd.
A26: DOTÁCIE RV LUKY + PASIENKY + ORNA PODA | B26: EUR | C26: =DOJN!C133 ->  | D26: ='T 0 -6 M'!C91 ->  | E26: ='JAL -ODCH'!C89 ->  | F26: =VTJ!C48 ->  | G26: ='VYKRM HD'!C45 ->  | I26: PODIEL DOTACII = PODA | K26: =(H26+H27)/100 ->  | L26: =H26/K26 ->  | M26: V % | N26: NEPATRIA DO ZV
A27: DOTÁCIE NA ŽV | B27: EUR | C27: =DOJN!C135 -> 0 | D27: ='T 0 -6 M'!C93 -> 0 | E27: ='JAL -ODCH'!C91 ->  | F27: =VTJ!C50 ->  | G27: ='VYKRM HD'!C47 ->  | I27: PODIEL DOTACII = ZV | L27: =H27/K26 ->  | M27: V %
A28: TRZBY + DOTACIE ZV - VLAST. NAKL. ZA FARMU | B28: EUR | C28: =(C14+C27)-C11 ->  | D28: =(D14+D27)-D11 ->  | E28: =(E14+E27)-E11 ->  | F28: =(F14+F27)-F11 ->  | G28: =(G14+G27)-G11 ->  | H28: =C28+D28+E28+F28+G28 ->  | J28: =(H14+H27)-H11 ->  | K28: OK | L28: =L27+L26 ->  | M28: V %
A29: TRŽBY + DOTÁCIE ZA FARMU | B29: EUR | C29: =C14+C26+C27 ->  | D29: =D14+D26+D27 ->  | E29: =E14+E26+E27 ->  | F29: =F14+F26+F27 ->  | G29: =G14+G26+G27 ->  | H29: =C29+D29+E29+F29+G29 -> 
A30: (TRŽBY + DOTÁCIE ZA FARMU) – VLASTNÉ NÁKLADY | B30: EUR | C30: =C29-C11 ->  | D30: =D29-D11 ->  | E30: =E29-E11 ->  | F30: =F29-F11 ->  | G30: =G29-G11 ->  | H30: =C30+D30+E30+F30+G30 -> 
A31: SKUSKA SPRAVNOSTI = R9 | B31: EUR | C31: =C12+C13 ->  | H31: =H12+H13 ->  | I31: ok
A33: DOBYTCIE JEDNOTKY | B33: DJ | C33: 1 | D33: 0.4 | E33: 0.6 | F33: 1 | G33: 0.6
A34: DOBYTCIE JEDNOTKY SPOLU | B34: DJ | C34: =C33*C4 -> 0 | D34: =D4*D33 ->  | E34: =E4*E33 ->  | F34: =F33*F4 ->  | G34: =G4*G33 ->  | H34: =C34+D34+E34+F34+G34 -> 
A35: POCET DOBYTCICH JEDNOTIEK NA 1 HA | B35: DJ/HA | H35: =H34/H10 -> 
A37: PLOCHA LUK = ZADA STUDENT (PRE SVOJ VYR. ZAMER | B37: HA | C37: =DOJN!O56 ->  | D37: =DOJN!P56 ->  | E37: =DOJN!Q56 ->  | F37: =DOJN!R56 ->  | G37: =DOJN!S56 ->  | H37: =G37+F37+E37+D37+C37 -> 
A38: PLOCHA PASIENKOV = ZADA STUDENT (PRE SVOJ VYR. ZAMER | B38: HA | C38: =DOJN!O55 ->  | D38: =DOJN!P55 -> 0 | E38: =DOJN!Q55 ->  | F38: =DOJN!R55 -> 0 | G38: =DOJN!S51 -> 0 | H38: =G38+F38+E38+D38+C38 -> 
A39: PLOCHA ORNEJ PODY PRE ZV OBLEM (K +L) = | B39: HA | C39: =DOJN!J96 ->  | D39: =DOJN!K96 ->  | E39: =DOJN!L96 ->  | F39: =DOJN!M96 ->  | G39: =DOJN!N96 ->  | H39: =G39+F39+E39+D39+C39 -> 
A41: POROVNANIE -VN - na 100kd VYPOCET | B41: EUR | C41: =C11/(C4*365)*100 ->  | D41: =D11/(D4*365)*100 ->  | E41: =E11/(E4*365)*100 ->  | F41: =F11/(F4*365)*100 ->  | G41: =G11/(G4*365)*100 -> 
A42: PUBLIKACIA VUEPP NA 100 KD | B42: EUR | C42: 814.38 | D42: 248.4 | E42: 191.8 | F42: 457.18 | G42: 237.96
A43: ROZDIEL | B43: EUR | C43: =C42-C41 ->  | D43: =D42-D41 ->  | E43: =E42-E41 ->  | F43: =F42-F41 ->  | G43: =G42-G41 -> 
A44: ROZDIEL V % | B44: EUR | C44: =100*(C41/C42) ->  | D44: =100*(D41/D42) ->  | E44: =100*(E41/E42) ->  | F44: =100*(F41/F42) ->  | G44: =100*(G41/G42) -> 

Sheet Produkcia HD (hidden)
A1: Výrobky - produkcia chov HD | C1: Dojnice | D1: Telce | E1: Odchov jalovíc | F1: VTJ | G1: Výkrm HD
B2: Ukazovateľ | C2: Množstvo
A3: Celková produkcia mlieka | B3: litre | C3: =C6+C4 -> 0
A4: Trhová produkcia mlieka | B4: litre | C4: =DOJN!C9 -> 0
A5: Trhová produkcia mäsa | B5: kg | C5: =DOJN!C33 -> 0
A6: Vnútropodniká spotreba mlieka | B6: litre | C6: =DOJN!C6 -> 0
A7: Produkcia vedlajších výrobkov
A8: Telce | B8: kusy | D8: ='T 0 -6 M'!C30+'T 0 -6 M'!C31 -> 0
A9: Maštalný hnoj | B9: tony | C9: =DOJN!C16 -> 0
A10: Močovka | B10: hektolitre | C10: =DOJN!C19*DOJN!C2 -> 0
A11: Počet prevedených jalovíc z 0-6 mesačných | E11: ='JAL -ODCH'!C5 -> 0
A12: Prevod VTJ | F12: =VTJ!C6 -> 
A13: PREVOD Z TELIAT – 0-6 MES | G13: ='VYKRM HD'!C2 -> 0

Sheet RV - KRMOVINY (hidden)
A1: TU SA PREBERAJU - HODNOTY = PREMENNE RV | C1: KRMIVA V HA | D1: VN na 1HA | E1: BEZ- REZ-MZ | F1: ROZDIEL | G1: VUEPP | H1: SPECIALNE | I1: DOTACIE | J1: TONY Z HA | K1: STRATY | L1: STRATY | M1: STRATY | N1: KRMIVOVA | O1: KRMIVA | P1: VYZIVA | Q1: POVOD.HM | R1: GRAM | AB1: POZNAMKA | AC1: VN-skrmitelne | AD1: VN + STRATY
A2: RASTLINNA VYROBA LUKY +PASIENKY | B2: Úroda v t/ha | C2: POTREBA ZV | D2: VUEPP | E2: VN na 1ha | F2: VN HA | G2: DOTACIE=HA | H2: DOTACIE | I2: SPOLU | J2: susiny | K2: USLAPANIM | L2: ZBEROVE | M2: SPOLU | N2: REZERVA | O2: STR + REZER | P2: OBSAH ZIVIN | Q2: SUSINA | R2: NL | S2: VLAKNINA | T2: Mepr | U2: NEL | V2: NEV | W2: PDIN | X2: PDIE | Y2: Mepr | Z2: VAPNIK | AA2: P | AC2: KG - EUR | AD2: KG - EUR
C3: HA | D3: EUR | E3: EUR | F3: EUR | G3: EUR | H3: EUR | I3: EUR | J3: spolu | Q3: GRAM
A4: luky = seno | B4: ='VSTUP RV'!B26 -> 0 | C4: ='Výstup živočíšna výroba'!J5 -> 0 | D4: 100 | E4: 83 | F4: =D4-E4 -> 17 | G4: 230 | H4: 10 | I4: =G4+H4 -> 240 | J4: =B4*DOJN!C56 -> 0 | K4: 0 | L4: 0 | M4: 0 | N4: 0 | O4: =N4+M4 -> 0 | P4: =A4 -> luky = seno | Q4: 860 | R4: 121 | S4: 198.7 | T4: 8.77 | U4: 5.3 | V4: 5.34 | W4: 74.5 | X4: 67.4 | Y4: 8.77 | Z4: 8.51 | AA4: 3.35 | AB4: n=4 | AC4: =(E4/J4)/1000 ->  | AD4: =AC4*(1+M4/100) -> 
A5: PASIENKY | B5: ='VSTUP RV'!B27 -> 0 | C5: ='Výstup živočíšna výroba'!J6 -> 0 | D5: 130 | E5: 118 | F5: =D5-E5 -> 12 | G5: 230 | H5: 25 | I5: =G5+H5 -> 255 | J5: =B5*DOJN!C56 -> 0 | K5: 0 | L5: 0 | M5: 0 | N5: 0 | O5: =N5+M5 -> 0 | P5: =A5 -> PASIENKY | Q5: 200 | R5: 30.6 | S5: 33.2 | T5: 1.82 | U5: 1.1 | V5: 1.13 | W5: 18.5 | X5: 14.2 | Y5: 1.82 | Z5: 1.27 | AA5: 0.47 | AB5: n=262 | AC5: =(E5/B5)/1000 ->  | AD5: =AC5*(1+M5/100) -> 
A6: SPOLU = LUKY + PASIENKY | C6: =C5+C4 -> 0 | I6: SPOLU = | J6: =(J4*C4)+(J5*C5) -> 0 | P6: SLAMA=KRM | Q6: 856.3 | R6: 44.4 | S6: 374.1 | T6: 6.49 | U6: 3.7 | V6: 3.37 | W6: 26.6 | X6: 48.6 | Y6: 6.49 | Z6: 2.5 | AA6: 0.59 | AB6: n=213 | AC6: DOROBIT | AD6: 0.02
A7: SENAZ LUK
A8: Seno Lucerna | K8: 0 | L8: 0 | M8: 0 | N8: 0 | O8: =$N$8+$L$8+$K$8 -> 0
A9: SILAZ KUKURICNA | B9: 30 | D9: 1100 | E9: 800 | F9: =D9-E9 -> 300 | G9: 230 | H9: 11 | I9: =G9+H9 -> 241 | K9: 0 | L9: 0 | M9: =K9+L9 -> 0 | N9: 0 | O9: =$M$9+$N$9 -> 0 | P9: SILAZ KUKR. | Q9: 294.3 | R9: 24.1 | S9: 76.2 | T9: 3.08 | U9: 1.87 | V9: 1.9 | W9: 14.6 | X9: 20.1 | Y9: 3.08 | Z9: 0.78 | AA9: 0.62 | AB9: 4=n3838 | AC9: =(E9/B9)/1000 -> 0.02666666667 | AD9: =AC9*(1+M9/100) -> 0.02666666667
A10: SLAMA KRMNA
A12: RASTLINNA VYROBA ORNA PODA | B12: Úroda v t/ha | C12: POTREBA ZV | D12: VUEPP | E12: VN na 1ha | F12: ROZDIEL
A13: POTREBA OP NA KZ SPOLU | C13: ='Výstup živočíšna výroba'!J8 -> 0 | O13: PERC V KZ | P13: OBSAH ZIVIN V 1KG p.h. | Q13: =Q3 -> GRAM | R13: =R1 -> GRAM | S13: =S2 -> VLAKNINA | T13: Mepr | U13: NEL | V13: NEV | W13: PDIN | X13: PDIE | Y13: Mepr | Z13: VAPNIK | AA13: P | AC13: CENA ZA 1KG
A14: pšenica | B14: 5 | C14: ='KZ BILANCIA'!J2 ->  | D14: 900 | E14: 650 | F14: =D14-E14 -> 250 | G14: 230 | H14: 1 | I14: =G14+H14 -> 231 | O14: ='KRMNE ZMESI HD'!C2 -> 50 | P14: =A14 -> pšenica | Q14: 860 | R14: 115.3 | S14: 32.6 | T14: 11.65 | U14: 7.57 | V14: 8.31 | W14: 72.3 | X14: 87.5 | Y14: 11.65 | Z14: 0.55 | AA14: 2.57 | AB14: n=521 | AC14: =(E14/B14)/1000 -> 0.13
A15: jacmen | B15: 5 | C15: ='KZ BILANCIA'!J3 ->  | D15: 800 | E15: 550 | F15: =D15-E15 -> 250 | G15: 230 | H15: 2 | I15: 232 | O15: ='KRMNE ZMESI HD'!D2 -> 10 | P15: =A15 -> jacmen | Q15: 880 | R15: 113.2 | S15: 38.4 | T15: 11.53 | U15: 7.46 | V15: 8.15 | W15: 71.8 | X15: 88.4 | Y15: 11.53 | Z15: 0.64 | AA15: 2.35 | AB15: n=1785 | AC15: =(E15/B15)/1000 -> 0.11
A16: kukurica | B16: 5 | C16: ='KZ BILANCIA'!J4 ->  | D16: 1100 | E16: 900 | F16: 200 | G16: 230 | H16: 3 | I16: 233 | O16: ='KRMNE ZMESI HD'!E2 -> 22 | P16: kukurica | Q16: 853 | R16: 86.7 | S16: 22.2 | T16: 12.2 | U16: 8.04 | V16: 8.95 | W16: 64.1 | X16: 100.7 | Y16: 12.2 | Z16: 0.3 | AA16: 2.96 | AB16: n=1015 | AC16: 0.18
A17: hrach | B17: 5 | C17: ='KZ BILANCIA'!J5 ->  | D17: 700 | E17: 560 | F17: 140 | G17: 230 | H17: 4 | I17: 234 | O17: ='KRMNE ZMESI HD'!F2 -> 5 | P17: =A17 -> hrach | Q17: 885.1 | R17: 217.6 | S17: 56.6 | T17: 11.93 | U17: 7.68 | V17: 8.35 | W17: 136 | X17: 105.4 | Y17: 11.93 | Z17: 0.88 | AA17: 3.64 | AB17: n=215 | AC17: 0.112
A18: repka olejná | B18: 5 | C18: 0 | D18: 1200 | E18: 1050 | F18: 150 | G18: 230 | H18: 5 | I18: 235 | J18: PLODINA KTORA NEVSTUPUJE DO KRMNEJ BILANCII | P18: =A18 -> repka olejná | AC18: =(E18/B18)/1000 -> 0.21
A19: slnečnica | B19: 5 | C19: 0 | D19: 1100 | E19: 950 | F19: 150 | G19: 230 | H19: 6 | I19: 236 | J19: PLODINA KTORA NEVSTUPUJE DO KRMNEJ BILANCII | P19: =A19 -> slnečnica | AC19: 0.19
A20: SOJA | B20: 5 | C20: ='KZ BILANCIA'!J8 ->  | D20: 800 | E20: 650 | F20: 150 | G20: 230 | H20: 7 | I20: 237 | O20: ='KRMNE ZMESI HD'!G2 -> 10 | P20: =A20 -> SOJA | Q20: 912 | R20: 368 | S20: 55.1 | T20: 15.2 | U20: 9.65 | V20: 10.36 | W20: 246.8 | X20: 137.6 | Y20: 15.2 | Z20: 2.61 | AA20: 5.75 | AB20: n=158 | AC20: =(E20/B20)/1000 -> 0.13
A21: SPOLU = SKUSKA SPR. | C21: =C20+C19+C18+C17+C16+C15+C14 ->  | O21: ='KRMNE ZMESI HD'!H2 -> 0 | P21: ='KRMNE ZMESI HD'!H1 -> koncentrát
A22: spolu = luky + pasienky - orna poda/KZ/ | C22: =C21+C6 ->  | O22: ='KRMNE ZMESI HD'!I2 -> 3 | P22: ='KRMNE ZMESI HD'!I1 -> MKP | Q22: 900 | Z22: 200 | AA22: 400 | AC22: =('KRMNE ZMESI HD'!I47/1000) -> 0.8
A23: ='KRMNE ZMESI HD'!I1 -> MKP | N23: SPOLU | O23: =O22+O21+O20+O19+O18+O17+O16+O15+O14 -> 100
M24: VYPOCET ZIVIN V KRM.ZMESI | Q24: =Q13 -> GRAM | R24: GRAM | S24: VLAKNINA | T24: Mepr | U24: NEL | V24: NEV | W24: PDIN | X24: PDIE | Y24: Mepr | Z24: VAPNIK | AA24: P | AC24: CENA KR.ZMES
P25: =P14 -> pšenica | Q25: =(Q14/1000)*(O14/100) -> 0.43 | R25: =R14*(O14/100) -> 57.65 | S25: =S14*(O14/100) -> 16.3 | T25: =T14*(O14/100) -> 5.825 | U25: =U14*(O14/100) -> 3.785 | V25: =V14*(O14/100) -> 4.155 | W25: =W14*(O14/100) -> 36.15 | X25: =X14*(O14/100) -> 43.75 | Y25: =Y14*(O14/100) -> 5.825 | Z25: =Z14*(O14/100) -> 0.275 | AA25: =AA14*(O14/100) -> 1.285 | AC25: =AC14*(O14/100) -> 0.065
P26: jacmen | Q26: =(Q15/1000)*(O15/100) -> 0.088 | R26: =R15*(O15/100) -> 11.32 | S26: =S15*(O15/100) -> 3.84 | T26: =T15*(O15/100) -> 1.153 | U26: =U15*(O15/100) -> 0.746 | V26: =V15*(O15/100) -> 0.815 | W26: =W15*(O15/100) -> 7.18 | X26: =X15*(O15/100) -> 8.84 | Y26: =Y15*(O15/100) -> 1.153 | Z26: =Z15*(O15/100) -> 0.064 | AA26: =AA15*(O15/100) -> 0.235 | AC26: =AC15*(O15/100) -> 0.011
P27: kukurica | Q27: 0.18766 | R27: 19.074 | S27: 4.884 | T27: 2.684 | U27: 1.7688 | V27: 1.969 | W27: 14.102 | X27: 22.154 | Y27: 2.684 | Z27: 0.066 | AA27: 0.6512 | AC27: 0.0396
P28: hrach | Q28: 0.044255 | R28: 10.88 | S28: 2.83 | T28: 0.5965 | U28: 0.384 | V28: 0.4175 | W28: 6.8 | X28: 5.27 | Y28: 0.5965 | Z28: 0.044 | AA28: 0.182 | AC28: 0.0056
P29: repka olejná | Q29: 0 | R29: 0 | S29: 0 | T29: 0 | U29: 0 | V29: 0 | W29: 0 | X29: 0 | Y29: 0 | Z29: 0 | AA29: 0 | AC29: 0
P30: slnečnica | Q30: 0 | R30: 0 | S30: 0 | T30: 0 | U30: 0 | V30: 0 | W30: 0 | X30: 0 | Y30: 0 | Z30: 0 | AA30: 0 | AC30: 0
P31: SOJA | Q31: 0.0912 | R31: 36.8 | S31: 5.51 | T31: 1.52 | U31: 0.965 | V31: 1.036 | W31: 24.68 | X31: 13.76 | Y31: 1.52 | Z31: 0.261 | AA31: 0.575 | AC31: 0.013
A32: vypocet krmnych davok | B32: VZTAHY | E32: KD1 = KG/KD | F32: KD2 = KG | G32: KD3 = KG | H32: KD4 = KG | P32: koncentrát | Q32: 0 | R32: 0 | S32: 0 | T32: 0 | U32: 0 | V32: 0 | W32: 0 | X32: 0 | Y32: 0 | Z32: 0 | AA32: 0 | AC32: 0
